Workbook

Sheet orcamento
D1: PREFEITURA MUNICIPAL DE PORTO ALEGRE
D2: SECRETARIA MUNICIPAL DE OBRAS E INFRAESTRUTURA
D3: Objeto: PONTE SOBRE O ARROIO MAUÁ
D4: Endereço: Rua Marinheiros, 312- Ilha Pintado - Porto Alegre - RS
D6: ORÇAMENTO ANALÍTICO
A8: ITEM | B8: FONTE | C8: CÓDIGO | D8: DESCRIÇÃO | E8: QUANT. | F8: UNID. | H8: CUSTO UNITÁRIO | J8: BDI | L8: PREÇO UNITÁRIO | N8: PREÇO TOTAL
G9: Mao de obra | H9: Mat. + Equip. | I9: Total | K9: Mao de obra | L9: Mat. + Equip. | M9: Total
A10: 1 | D10: ADMINISTRAÇÃO LOCAL | N10: =ROUND(N11,2) -> 464878.03
A11: 1.1 | B11: COMPOSICAO_PROPRIA | C11: CCU 01 | D11: EQUIPE DE ADMINISTRAÇÃO LOCAL | E11: 1 | F11: UN | G11: =VLOOKUP(C11,composicoes!$A$9:$K$480,10,0) -> 372412.56 | H11: =VLOOKUP(C11,composicoes!$A$9:$K$480,11,0) -> 8167.08 | I11: =SUM(G11:H11) -> 380579.64 | J11: =BDI!$E$20 -> 0.2215 | K11: =ROUND(G11*(1+J11),2) -> 454901.94 | L11: =M11-K11 -> 9976.09 | M11: =ROUND(I11*(1+J11),2) -> 464878.03 | N11: =ROUND(M11*E11,2) -> 464878.03
A12: 2 | D12: SERVIÇOS INICIAIS | N12: =ROUND(SUM(N13:N26),2) -> 240857.93
A13: 2.1 | B13: COMPOSICAO_PROPRIA | C13: CCU 02 | D13: INSTALAÇÕES PROVISÓRIAS PARA CANTEIRO | E13: 1 | F13: UN | G13: =VLOOKUP(C13,composicoes!$A$9:$K$480,10,0) -> 4466.18 | H13: =VLOOKUP(C13,composicoes!$A$9:$K$480,11,0) -> 26686.31 | I13: =SUM(G13:H13) -> 31152.49 | J13: =BDI!$E$20 -> 0.2215 | K13: =ROUND(G13*(1+J13),2) -> 5455.44 | L13: =M13-K13 -> 32597.33 | M13: =ROUND(I13*(1+J13),2) -> 38052.77 | N13: =ROUND(M13*E13,2) -> 38052.77
A14: 2.2 | B14: SINAPI | C14: 93585 | D14: EXECUÇÃO DE GUARITA EM CANTEIRO DE OBRA EM CHAPA DE MADEIRA COMPENSADA, NÃO INCLUSO MOBILIÁRIO | E14: 4 | F14: M2 | G14: =VLOOKUP(C14,sinapi!$A$2:$H$12405,6,0) -> 171.8 | H14: =VLOOKUP(C14,sinapi!$A$2:$H$12405,7,0)+VLOOKUP(C14,sinapi!$A$2:$H$12405,8,0) -> 938.87 | I14: =SUM(G14:H14) -> 1110.67 | J14: =BDI!$E$20 -> 0.2215 | K14: 209.85 | L14: 1146.83 | M14: 1356.68 | N14: 5426.72
A15: 2.3 | B15: SINAPI | C15: 93584 | D15: EXECUÇÃO DE DEPÓSITO EM CANTEIRO DE OBRA EM CHAPA DE MADEIRA COMPENSADA, NÃO INCLUSO MOBILIÁRIO | E15: 15 | F15: M2 | G15: =VLOOKUP(C15,sinapi!$A$2:$H$12405,6,0) -> 147.02 | H15: =VLOOKUP(C15,sinapi!$A$2:$H$12405,7,0)+VLOOKUP(C15,sinapi!$A$2:$H$12405,8,0) -> 694.95 | I15: 841.97 | J15: =BDI!$E$20 -> 0.2215 | K15: 179.58 | L15: 848.89 | M15: 1028.47 | N15: 15427.05
A16: 2.4 | B16: SINAPI | C16: 93582 | D16: EXECUÇÃO DE CENTRAL DE ARMADURA EM CANTEIRO DE OBRA, NÃO INCLUSO MOBILIÁRIO E EQUIPAMENTOS | E16: 30 | F16: M2 | G16: =VLOOKUP(C16,sinapi!$A$2:$H$12405,6,0) -> 46.86 | H16: =VLOOKUP(C16,sinapi!$A$2:$H$12405,7,0)+VLOOKUP(C16,sinapi!$A$2:$H$12405,8,0) -> 211.49 | I16: 258.35 | J16: =BDI!$E$20 -> 0.2215 | K16: 57.24 | L16: 258.33 | M16: 315.57 | N16: 9467.1
A17: 2.5 | B17: SINAPI | C17: 93583 | D17: EXECUÇÃO DE CENTRAL DE FÔRMAS, PRODUÇÃO DE ARGAMASSA OU CONCRETO EM CANTEIRO DE OBRA, NÃO INCLUSO MOBILIÁRIO E EQUIPAMENTOS | E17: 30 | F17: M2 | G17: =VLOOKUP(C17,sinapi!$A$2:$H$12405,6,0) -> 77.69 | H17: =VLOOKUP(C17,sinapi!$A$2:$H$12405,7,0)+VLOOKUP(C17,sinapi!$A$2:$H$12405,8,0) -> 352.42 | I17: 430.11 | J17: =BDI!$E$20 -> 0.2215 | K17: 94.9 | L17: 430.48 | M17: 525.38 | N17: 15761.4
A18: 2.6 | B18: SINAPI | C18: 93212 | D18: EXECUÇÃO DE SANITÁRIO E VESTIÁRIO EM CANTEIRO DE OBRA EM CHAPA DE MADEIRA COMPENSADA, NÃO INCLUSO MOBILIÁRIO | E18: 30 | F18: M2 | G18: =VLOOKUP(C18,sinapi!$A$2:$H$12405,6,0) -> 193.1 | H18: =VLOOKUP(C18,sinapi!$A$2:$H$12405,7,0)+VLOOKUP(C18,sinapi!$A$2:$H$12405,8,0) -> 770.95 | I18: 964.05 | J18: =BDI!$E$20 -> 0.2215 | K18: 235.87 | L18: 941.72 | M18: 1177.59 | N18: 35327.7
A19: 2.7 | B19: SINAPI | C19: 93210 | D19: EXECUÇÃO DE REFEITÓRIO EM CANTEIRO DE OBRA EM CHAPA DE MADEIRA COMPENSADA, NÃO INCLUSO MOBILIÁRIO E EQUIPAMENTOS | E19: 50 | F19: M2 | G19: =VLOOKUP(C19,sinapi!$A$2:$H$12405,6,0) -> 115.64 | H19: =VLOOKUP(C19,sinapi!$A$2:$H$12405,7,0)+VLOOKUP(C19,sinapi!$A$2:$H$12405,8,0) -> 473.28 | I19: 588.92 | J19: =BDI!$E$20 -> 0.2215 | K19: 141.25 | L19: 578.12 | M19: 719.37 | N19: 35968.5
A20: 2.8 | B20: SINAPI | C20: 93206 | D20: EXECUÇÃO DE ESCRITÓRIO EM CANTEIRO DE OBRA EM ALVENARIA, NÃO INCLUSO MOBILIÁRIO E EQUIPAMENTOS | E20: 15 | F20: M2 | G20: =VLOOKUP(C20,sinapi!$A$2:$H$12405,6,0) -> 318.16 | H20: =VLOOKUP(C20,sinapi!$A$2:$H$12405,7,0)+VLOOKUP(C20,sinapi!$A$2:$H$12405,8,0) -> 810.18 | I20: 1128.34 | J20: =BDI!$E$20 -> 0.2215 | K20: 388.63 | L20: 989.64 | M20: 1378.27 | N20: 20674.05
A21: 2.9 | B21: SINAPI | C21: 93208 | D21: EXECUÇÃO DE ALMOXARIFADO EM CANTEIRO DE OBRA EM CHAPA DE MADEIRA COMPENSADA, INCLUSO PRATELEIRAS | E21: 15 | F21: M2 | G21: =VLOOKUP(C21,sinapi!$A$2:$H$12405,6,0) -> 134.06 | H21: =VLOOKUP(C21,sinapi!$A$2:$H$12405,7,0)+VLOOKUP(C21,sinapi!$A$2:$H$12405,8,0) -> 709.93 | I21: 843.99 | J21: =BDI!$E$20 -> 0.2215 | K21: 163.75 | L21: 867.18 | M21: 1030.93 | N21: 15463.95
A22: 2.10 | B22: SINAPI | C22: 93583 | D22: EXECUÇÃO DE CENTRAL DE FÔRMAS, PRODUÇÃO DE ARGAMASSA OU CONCRETO EM CANTEIRO DE OBRA, NÃO INCLUSO MOBILIÁRIO E EQUIPAMENTOS | E22: 65 | F22: M2 | G22: =VLOOKUP(C22,sinapi!$A$2:$H$12405,6,0) -> 77.69 | H22: =VLOOKUP(C22,sinapi!$A$2:$H$12405,7,0)+VLOOKUP(C22,sinapi!$A$2:$H$12405,8,0) -> 352.42 | I22: 430.11 | J22: =BDI!$E$20 -> 0.2215 | K22: 94.9 | L22: 430.48 | M22: 525.38 | N22: 34149.7
A23: 2.11 | B23: SINAPI | C23: 99059 | D23: LOCACAO CONVENCIONAL DE OBRA, UTILIZANDO GABARITO DE TÁBUAS CORRIDAS PONTALETADAS A CADA 2,00M | E23: 80 | F23: M | G23: =VLOOKUP(C23,sinapi!$A$2:$H$12405,6,0) -> 21.38 | H23: =VLOOKUP(C23,sinapi!$A$2:$H$12405,7,0)+VLOOKUP(C23,sinapi!$A$2:$H$12405,8,0) -> 23.76 | I23: 45.14 | J23: =BDI!$E$20 -> 0.2215 | K23: 26.12 | L23: 29.02 | M23: 55.14 | N23: 4411.2
A24: 2.12 | B24: SICRO | C24: M0045 | D24: BARREIRA PLÁSTICA MONOBLOCO PARA CANALIZAÇÃO DE TRÂNSITO - C = 100 CM, L = 50 CM E H = 55 CM - AQUISIÇÃO E UTILIZAÇÃO | E24: 6 | F24: UN | G24: 0 | H24: =TRUNC((1+$E$116)*823.09,2) -> 840.62 | I24: 840.62 | J24: =BDI!$E$20 -> 0.2215 | K24: 0 | L24: 1026.82 | M24: 1026.82 | N24: 6160.92
A25: 2.13 | B25: COMPOSICAO_PROPRIA | C25: CCU 37 | D25: PLACA DE ADVERTÊNCIA PARA SINALIZAÇÃO DE OBRAS 1,10 M X 0,70M COM SUPORTE EM MADEIRA MÓVEL TIPO CAVALETE - AQUISIÇÃO E UTILIZAÇÃO | E25: 7 | F25: UN | G25: =VLOOKUP(C25,composicoes!$A$9:$K$480,10,0) -> 20.14 | H25: =VLOOKUP(C25,composicoes!$A$9:$K$480,11,0) -> 256.77 | I25: 276.91 | J25: =BDI!$E$20 -> 0.2215 | K25: 24.6 | L25: 313.65 | M25: 338.25 | N25: 2367.75
A26: 2.14 | B26: COMPOSICAO_PROPRIA | C26: CCU 22 | D26: BALIZADOR COM LED PISCANTE - AQUISIÇÃO E UTILIZAÇÃO | E26: 6 | F26: UN | G26: =VLOOKUP(C26,composicoes!$A$9:$K$480,10,0) -> 0.28 | H26: =VLOOKUP(C26,composicoes!$A$9:$K$480,11,0) -> 299.78 | I26: 300.06 | J26: =BDI!$E$20 -> 0.2215 | K26: 0.34 | L26: 366.18 | M26: 366.52 | N26: 2199.12
A27: 3 | D27: DEMOLIÇÃO ESTRUTURA EXISTENTE | N27: =ROUND(SUM(N28:N30),2) -> 28755.72
A28: 3.1 | B28: COMPOSICAO_PROPRIA | C28: CCU 09 | D28: DESMONTE DE ESTRUTURA DE MADEIRA EXISTENTE | E28: 102.53 | F28: M3 | G28: =VLOOKUP(C28,composicoes!$A$9:$K$480,10,0) -> 48.07 | H28: =VLOOKUP(C28,composicoes!$A$9:$K$480,11,0) -> 151.1 | I28: =SUM(G28:H28) -> 199.17 | J28: =BDI!$E$20 -> 0.2215 | K28: =ROUND(G28*(1+J28),2) -> 58.72 | L28: =M28-K28 -> 184.57 | M28: =ROUND(I28*(1+J28),2) -> 243.29 | N28: =ROUND(M28*E28,2) -> 24944.52
A29: 3.2 | B29: COMPOSICAO_PROPRIA | C29: CCU 11 | D29: REMOÇÃO GUARDA-CORPO DE AÇO | E29: 50 | F29: M | G29: =VLOOKUP(C29,composicoes!$A$9:$K$480,10,0) -> 16.38 | H29: =VLOOKUP(C29,composicoes!$A$9:$K$480,11,0) -> 40.6 | I29: 56.98 | J29: =BDI!$E$20 -> 0.2215 | K29: 20.01 | L29: 49.59 | M29: 69.6 | N29: 3480
A30: 3.3 | B30: COMPOSICAO_PROPRIA | C30: CCU 10 | D30: REMOÇÃO DE TUBULAÇÃO DO DMAE ANEXA A PONTE EXISTENTE | E30: 80 | F30: M | G30: =VLOOKUP(C30,composicoes!$A$9:$K$480,10,0) -> 2.75 | H30: =VLOOKUP(C30,composicoes!$A$9:$K$480,11,0) -> 0.64 | I30: 3.39 | J30: =BDI!$E$20 -> 0.2215 | K30: 3.36 | L30: 0.78 | M30: 4.14 | N30: 331.2
A31: 4 | D31: PASSARELA PROVISÓRIA | N31: =ROUND(SUM(N32:N33),2) -> 261710
A32: 4.1 | B32: COMPOSICAO_PROPRIA | C32: CCU 12 | D32: MONTAGEM PASSARELA DE MADEIRA - FORNECIMENTO E INSTALAÇÃO | E32: 1 | F32: UN | G32: =VLOOKUP(C32,composicoes!$A$9:$K$480,10,0) -> 7689.06 | H32: =VLOOKUP(C32,composicoes!$A$9:$K$480,11,0) -> 194253.02 | I32: =SUM(G32:H32) -> 201942.08 | J32: =BDI!$E$20 -> 0.2215 | K32: =ROUND(G32*(1+J32),2) -> 9392.19 | L32: =M32-K32 -> 237280.06 | M32: =ROUND(I32*(1+J32),2) -> 246672.25 | N32: =ROUND(M32*E32,2) -> 246672.25
A33: 4.2 | B33: COMPOSICAO_PROPRIA | C33: CCU 09 | D33: DESMONTE DE ESTRUTURA DE MADEIRA EXISTENTE | E33: 61.81 | F33: M3 | G33: =VLOOKUP(C33,composicoes!$A$9:$K$480,10,0) -> 48.07 | H33: =VLOOKUP(C33,composicoes!$A$9:$K$480,11,0) -> 151.1 | I33: 199.17 | J33: =BDI!$E$20 -> 0.2215 | K33: 58.72 | L33: 184.57 | M33: 243.29 | N33: 15037.75
A34: 5 | D34: MOVIMENTAÇÃO DE TERRA E CONTENÇÃO | N34: =ROUND(SUM(N35:N43),2) -> 93956.29
A35: 5.1 | B35: SINAPI | C35: 98525 | D35: LIMPEZA MECANIZADA DE CAMADA VEGETAL, VEGETAÇÃO E PEQUENAS ÁRVORES (DIÂMETRO DE TRONCO MENOR QUE 0,20 M), COM TRATOR DE ESTEIRAS | E35: 44.03 | F35: M2 | G35: =VLOOKUP(C35,sinapi!$A$2:$H$12405,6,0) -> 0.19 | H35: =VLOOKUP(C35,sinapi!$A$2:$H$12405,7,0)+VLOOKUP(C35,sinapi!$A$2:$H$12405,8,0) -> 0.17 | I35: =SUM(G35:H35) -> 0.36 | J35: =BDI!$E$20 -> 0.2215 | K35: =ROUND(G35*(1+J35),2) -> 0.23 | L35: =M35-K35 -> 0.21 | M35: =ROUND(I35*(1+J35),2) -> 0.44 | N35: =ROUND(M35*E35,2) -> 19.37
A36: 5.2 | B36: COMPOSICAO_PROPRIA | C36: CCU 25 | D36: ESCAVAÇÃO MECÂNICA COM RETROESCAVADEIRA EM MATERIAL DE 1ª CATEGORIA | E36: 187.9 | F36: M3 | G36: =VLOOKUP(C36,composicoes!$A$9:$K$480,10,0) -> 0.53 | H36: =VLOOKUP(C36,composicoes!$A$9:$K$480,11,0) -> 4.66 | I36: 5.19 | J36: =BDI!$E$20 -> 0.2215 | K36: 0.65 | L36: 5.69 | M36: 6.34 | N36: 1191.29
A37: 5.3 | B37: SINAPI | C37: 100978 | D37: CARGA, MANOBRA E DESCARGA DE SOLOS E MATERIAIS GRANULARES EM CAMINHÃO BASCULANTE 10 M³ - CARGA COM ESCAVADEIRA HIDRÁULICA (CAÇAMBA DE 1,20 M³ / 155 HP) E DESCARGA LIVRE | E37: 234.88 | F37: M3 | G37: =VLOOKUP(C37,sinapi!$A$2:$H$12405,6,0) -> 0.89 | H37: =VLOOKUP(C37,sinapi!$A$2:$H$12405,7,0)+VLOOKUP(C37,sinapi!$A$2:$H$12405,8,0) -> 4.3 | I37: 5.19 | J37: =BDI!$E$20 -> 0.2215 | K37: 1.09 | L37: 5.25 | M37: 6.34 | N37: 1489.14
A38: 5.4 | B38: SINAPI | C38: 95875 | D38: TRANSPORTE COM CAMINHÃO BASCULANTE DE 10 M³, EM VIA URBANA PAVIMENTADA, DMT ATÉ 30 KM | E38: 6727.2 | F38: M3XKM | G38: =VLOOKUP(C38,sinapi!$A$2:$H$12405,6,0) -> 0.24 | H38: =VLOOKUP(C38,sinapi!$A$2:$H$12405,7,0)+VLOOKUP(C38,sinapi!$A$2:$H$12405,8,0) -> 1.44 | I38: 1.68 | J38: =BDI!$E$20 -> 0.2215 | K38: 0.29 | L38: 1.76 | M38: 2.05 | N38: 13790.76
A39: 5.5 | B39: COMPOSICAO_PROPRIA | C39: CCU 13 | D39: ENROCAMENTO COM PEDRA DE MÃO, INCLUSIVE ESPALHAMENTO E COMPACTAÇÃO MECÂNICA - FORNECIMENTO E ASSENTAMENTO | E39: 101.48 | F39: M3 | G39: =VLOOKUP(C39,composicoes!$A$9:$K$480,10,0) -> 0.27 | H39: =VLOOKUP(C39,composicoes!$A$9:$K$480,11,0) -> 98.15 | I39: 98.42 | J39: =BDI!$E$20 -> 0.2215 | K39: 0.33 | L39: 119.89 | M39: 120.22 | N39: 12199.93
A40: 5.6 | B40: COMPOSICAO_PROPRIA | C40: CCU 06 | D40: ATERRO COM SOLO PREDOMINANTEMENTE ARGILOSO INCLUSO SOLO, ESCAVAÇÃO, CARGA E TRANSPORTE | E40: 497.76 | F40: M3 | G40: =VLOOKUP(C40,composicoes!$A$9:$K$480,10,0) -> 6.45 | H40: =VLOOKUP(C40,composicoes!$A$9:$K$480,11,0) -> 77.79 | I40: 84.24 | J40: =BDI!$E$20 -> 0.2215 | K40: 7.88 | L40: 95.02 | M40: 102.9 | N40: 51219.5
A41: 5.7 | B41: COMPOSICAO_PROPRIA | C41: CCU 04 | D41: AREIA GRADUADA | E41: 11.65 | F41: M3 | G41: =VLOOKUP(C41,composicoes!$A$9:$K$480,10,0) -> 14.53 | H41: =VLOOKUP(C41,composicoes!$A$9:$K$480,11,0) -> 107.52 | I41: 122.05 | J41: =BDI!$E$20 -> 0.2215 | K41: 17.75 | L41: 131.33 | M41: 149.08 | N41: 1736.78
A42: 5.8 | B42: COMPOSICAO_PROPRIA | C42: CCU 05 | D42: APLICAÇÃO DE GEOTEXTIL NÃO-TECIDO AGULHADO RT 31 | E42: 460.7 | F42: M2 | G42: =VLOOKUP(C42,composicoes!$A$9:$K$480,10,0) -> 0.23 | H42: =VLOOKUP(C42,composicoes!$A$9:$K$480,11,0) -> 17.64 | I42: 17.87 | J42: =BDI!$E$20 -> 0.2215 | K42: 0.28 | L42: 21.55 | M42: 21.83 | N42: 10057.08
A43: 5.9 | B43: COMPOSICAO_PROPRIA | C43: CCU 03 | D43: ENSAIOS DE CARACTERIZAÇÃO E VERIFICAÇÃO DO GRAU DE COMPACTAÇÃO DO SOLO | E43: 4 | F43: UN | G43: =VLOOKUP(C43,composicoes!$A$9:$K$480,10,0) -> 0 | H43: =VLOOKUP(C43,composicoes!$A$9:$K$480,11,0) -> 461 | I43: 461 | J43: =BDI!$E$20 -> 0.2215 | K43: 0 | L43: 563.11 | M43: 563.11 | N43: 2252.44
A44: 6 | D44: INFRA E MESOESTRUTURA | N44: =ROUND(SUM(N45:N59),2) -> 412347.97
A45: 6.1 | B45: COMPOSICAO_PROPRIA | C45: CCU 26 | D45: ESTACAS PRÉ-MOLDADAS 35X35CM EXCLUSO TRANSPORTE | E45: 769.12 | F45: M | G45: =VLOOKUP(C45,composicoes!$A$9:$K$480,10,0) -> 6.77 | H45: =VLOOKUP(C45,composicoes!$A$9:$K$480,11,0) -> 216.36 | I45: =SUM(G45:H45) -> 223.13 | J45: =BDI!$E$20 -> 0.2215 | K45: =ROUND(G45*(1+J45),2) -> 8.27 | L45: =M45-K45 -> 264.28 | M45: =ROUND(I45*(1+J45),2) -> 272.55 | N45: =ROUND(M45*E45,2) -> 209623.66
A46: 6.2 | B46: COMPOSICAO_PROPRIA | C46: CCU 27 | D46: TRANSPORTE COM CAMINHÃO CARROCERIA COM CAPACIDADE DE 11 T E COM GUINDAUTO DE 45 T.M - RODOVIA PAVIMENTADA | E46: 7066.5 | F46: TXKM | G46: =VLOOKUP(C46,composicoes!$A$9:$K$480,10,0) -> 0 | H46: =VLOOKUP(C46,composicoes!$A$9:$K$480,11,0) -> 1.12 | I46: 1.12 | J46: =BDI!$E$20 -> 0.2215 | K46: 0 | L46: 1.37 | M46: 1.37 | N46: 9681.11
A47: 6.3 | B47: COMPOSICAO_PROPRIA | C47: CCU 18 | D47: IMPLANTAÇÃO DO SISTEMA NAVAL TIPO I - PONTE MÓVEL E FLUTUANTE PRINCIPAL (INCLUSO DESMOBILIZAÇÃO) | E47: 1 | F47: UN | G47: =VLOOKUP(C47,composicoes!$A$9:$K$480,10,0) -> 2294.29 | H47: =VLOOKUP(C47,composicoes!$A$9:$K$480,11,0) -> 32754.48 | I47: 35048.77 | J47: =BDI!$E$20 -> 0.2215 | K47: 2802.48 | L47: 40009.59 | M47: 42812.07 | N47: 42812.07
A48: 6.4 | B48: COMPOSICAO_PROPRIA | C48: CCU 19 | D48: OPERAÇÃO DO SISTEMA NAVAL TIPO I - PONTE MÓVEL E FLUTUANTE PRINCIPAL | E48: 425.04 | F48: M | G48: =VLOOKUP(C48,composicoes!$A$9:$K$480,10,0) -> 0 | H48: =VLOOKUP(C48,composicoes!$A$9:$K$480,11,0) -> 21.17 | I48: 21.17 | J48: =BDI!$E$20 -> 0.2215 | K48: 0 | L48: 25.86 | M48: 25.86 | N48: 10991.53
A49: 6.5 | B49: SINAPI | C49: 96616 | D49: LASTRO DE CONCRETO MAGRO, APLICADO EM BLOCOS DE COROAMENTO OU SAPATAS | E49: 7.75 | F49: M3 | G49: =VLOOKUP(C49,sinapi!$A$2:$H$12405,6,0) -> 196.16 | H49: =VLOOKUP(C49,sinapi!$A$2:$H$12405,7,0)+VLOOKUP(C49,sinapi!$A$2:$H$12405,8,0) -> 352.97 | I49: 549.13 | J49: =BDI!$E$20 -> 0.2215 | K49: 239.61 | L49: 431.15 | M49: 670.76 | N49: 5198.39
A50: 6.6 | B50: SINAPI | C50: 96623 | D50: LASTRO COM MATERIAL GRANULAR, APLICADO EM BLOCOS DE COROAMENTO, ESPESSURA DE *10 CM* | E50: 4.11 | F50: M3 | G50: =VLOOKUP(C50,sinapi!$A$2:$H$12405,6,0) -> 65.05 | H50: =VLOOKUP(C50,sinapi!$A$2:$H$12405,7,0)+VLOOKUP(C50,sinapi!$A$2:$H$12405,8,0) -> 89.46 | I50: 154.51 | J50: =BDI!$E$20 -> 0.2215 | K50: 79.46 | L50: 109.27 | M50: 188.73 | N50: 775.68
A51: 6.7 | B51: COMPOSICAO_PROPRIA | C51: CCU 28 | D51: FORMAS DE COMPENSADO PLASTIFICADO 12 MM - USO GERAL - UTILIZAÇÃO DE 3 VEZES - CONFECÇÃO, INSTALAÇÃO E RETIRADA | E51: 148.8 | F51: M2 | G51: =VLOOKUP(C51,composicoes!$A$9:$K$480,10,0) -> 22.96 | H51: =VLOOKUP(C51,composicoes!$A$9:$K$480,11,0) -> 41.44 | I51: 64.4 | J51: =BDI!$E$20 -> 0.2215 | K51: 28.05 | L51: 50.61 | M51: 78.66 | N51: 11704.61
A52: 6.8 | B52: SINAPI | C52: 92917 | D52: ARMAÇÃO DE ESTRUTURAS DE CONCRETO ARMADO, EXCETO VIGAS, PILARES, LAJES E FUNDAÇÕES, UTILIZANDO AÇO CA-50 DE 8,0 MM | E52: 52 | F52: KG | G52: =VLOOKUP(C52,sinapi!$A$2:$H$12405,6,0) -> 2.41 | H52: =VLOOKUP(C52,sinapi!$A$2:$H$12405,7,0)+VLOOKUP(C52,sinapi!$A$2:$H$12405,8,0) -> 11.73 | I52: 14.14 | J52: =BDI!$E$20 -> 0.2215 | K52: 2.94 | L52: 14.33 | M52: 17.27 | N52: 898.04
A53: 6.9 | B53: SINAPI | C53: 92919 | D53: ARMAÇÃO DE ESTRUTURAS DE CONCRETO ARMADO, EXCETO VIGAS, PILARES, LAJES E FUNDAÇÕES, UTILIZANDO AÇO CA-50 DE 10,0 MM | E53: 1274.64 | F53: KG | G53: =VLOOKUP(C53,sinapi!$A$2:$H$12405,6,0) -> 1.71 | H53: =VLOOKUP(C53,sinapi!$A$2:$H$12405,7,0)+VLOOKUP(C53,sinapi!$A$2:$H$12405,8,0) -> 10.92 | I53: 12.63 | J53: =BDI!$E$20 -> 0.2215 | K53: 2.09 | L53: 13.34 | M53: 15.43 | N53: 19667.7
A54: 6.10 | B54: SINAPI | C54: 92921 | D54: ARMAÇÃO DE ESTRUTURAS DE CONCRETO ARMADO, EXCETO VIGAS, PILARES, LAJES E FUNDAÇÕES, UTILIZANDO AÇO CA-50 DE 12,5 MM | E54: 591.36 | F54: KG | G54: =VLOOKUP(C54,sinapi!$A$2:$H$12405,6,0) -> 1.21 | H54: =VLOOKUP(C54,sinapi!$A$2:$H$12405,7,0)+VLOOKUP(C54,sinapi!$A$2:$H$12405,8,0) -> 9.42 | I54: 10.63 | J54: =BDI!$E$20 -> 0.2215 | K54: 1.48 | L54: 11.5 | M54: 12.98 | N54: 7675.85
A55: 6.11 | B55: SINAPI | C55: 92922 | D55: ARMAÇÃO DE ESTRUTURAS DE CONCRETO ARMADO, EXCETO VIGAS, PILARES, LAJES E FUNDAÇÕES, UTILIZANDO AÇO CA-50 DE 16,0 MM | E55: 940.48 | F55: KG | G55: =VLOOKUP(C55,sinapi!$A$2:$H$12405,6,0) -> 0.78 | H55: =VLOOKUP(C55,sinapi!$A$2:$H$12405,7,0)+VLOOKUP(C55,sinapi!$A$2:$H$12405,8,0) -> 9.31 | I55: 10.09 | J55: =BDI!$E$20 -> 0.2215 | K55: 0.95 | L55: 11.37 | M55: 12.32 | N55: 11586.71
A56: 6.12 | B56: SINAPI | C56: 92923 | D56: ARMAÇÃO DE ESTRUTURAS DE CONCRETO ARMADO, EXCETO VIGAS, PILARES, LAJES E FUNDAÇÕES, UTILIZANDO AÇO CA-50 DE 20,0 MM | E56: 3040.3 | F56: KG | G56: =VLOOKUP(C56,sinapi!$A$2:$H$12405,6,0) -> 0.5 | H56: =VLOOKUP(C56,sinapi!$A$2:$H$12405,7,0)+VLOOKUP(C56,sinapi!$A$2:$H$12405,8,0) -> 10.76 | I56: 11.26 | J56: =BDI!$E$20 -> 0.2215 | K56: 0.61 | L56: 13.14 | M56: 13.75 | N56: 41804.13
A57: 6.13 | B57: COMPOSICAO_PROPRIA | C57: CCU 29 | D57: CONCRETO PARA BOMBEAMENTO FCK = 30 MPA - CONFECÇÃO EM CENTRAL DOSADORA DE 30 M³/H - AREIA E BRITA COMERCIAIS | E57: 85.7 | F57: M3 | G57: =VLOOKUP(C57,composicoes!$A$9:$K$480,10,0) -> 2.78 | H57: =VLOOKUP(C57,composicoes!$A$9:$K$480,11,0) -> 337.56 | I57: 340.34 | J57: =BDI!$E$20 -> 0.2215 | K57: 3.4 | L57: 412.33 | M57: 415.73 | N57: 35628.06
A58: 6.14 | B58: COMPOSICAO_PROPRIA | C58: CCU 31 | D58: LANÇAMENTO MECÂNICO DE CONCRETO COM BOMBA REBOCÁVEL COM CAPACIDADE DE 41 M³/H | E58: 85.7 | F58: M3 | G58: =VLOOKUP(C58,composicoes!$A$9:$K$480,10,0) -> 3.5 | H58: =VLOOKUP(C58,composicoes!$A$9:$K$480,11,0) -> 34.44 | I58: 37.94 | J58: =BDI!$E$20 -> 0.2215 | K58: 4.28 | L58: 42.06 | M58: 46.34 | N58: 3971.34
A59: 6.15 | B59: COMPOSICAO_PROPRIA | C59: CCU 32 | D59: ADENSAMENTO DE CONCRETO POR VIBRADOR DE IMERSÃO | E59: 85.7 | F59: M3 | G59: =VLOOKUP(C59,composicoes!$A$9:$K$480,10,0) -> 1.56 | H59: =VLOOKUP(C59,composicoes!$A$9:$K$480,11,0) -> 1.58 | I59: 3.14 | J59: =BDI!$E$20 -> 0.2215 | K59: 1.91 | L59: 1.93 | M59: 3.84 | N59: 329.09
A60: 7 | D60: SUPERESTRUTURA | N60: =ROUND(SUM(N61:N76),2) -> 1150045.67
A61: 7.1 | B61: COMPOSICAO_PROPRIA | C61: CCU 28 | D61: FORMAS DE COMPENSADO PLASTIFICADO 12 MM - USO GERAL - UTILIZAÇÃO DE 3 VEZES - CONFECÇÃO, INSTALAÇÃO E RETIRADA | E61: 923.39 | F61: M2 | G61: =VLOOKUP(C61,composicoes!$A$9:$K$480,10,0) -> 22.96 | H61: =VLOOKUP(C61,composicoes!$A$9:$K$480,11,0) -> 41.44 | I61: =SUM(G61:H61) -> 64.4 | J61: =BDI!$E$20 -> 0.2215 | K61: =ROUND(G61*(1+J61),2) -> 28.05 | L61: =M61-K61 -> 50.61 | M61: =ROUND(I61*(1+J61),2) -> 78.66 | N61: =ROUND(M61*E61,2) -> 72633.86
A62: 7.2 | B62: SINAPI | C62: 101793 | D62: ESCORAMENTO DE FÔRMAS DE LAJE EM MADEIRA NÃO APARELHADA, PÉ-DIREITO DUPLO, INCLUSO TRAVAMENTO, 4 UTILIZAÇÕES | E62: 1497.6 | F62: M3 | G62: =VLOOKUP(C62,sinapi!$A$2:$H$12405,6,0) -> 6.86 | H62: =VLOOKUP(C62,sinapi!$A$2:$H$12405,7,0)+VLOOKUP(C62,sinapi!$A$2:$H$12405,8,0) -> 13.21 | I62: 20.07 | J62: =BDI!$E$20 -> 0.2215 | K62: 8.38 | L62: 16.14 | M62: 24.52 | N62: 36721.15
A63: 7.3 | B63: COTACAO | C63: COT 01 | D63: PERFIS METÁLICOS DE 15,50M W 610 X 174,0 AÇO ASTM A572 - LOCAÇÃO | E63: 4 | F63: UN | G63: 0 | H63: =cotacao!F8 -> 46000 | I63: 46000 | J63: =BDI!$J$20 -> 0.137 | K63: 0 | L63: 52302 | M63: 52302 | N63: 209208
A64: 7.4 | B64: COMPOSICAO_PROPRIA | C64: CCU 34 | D64: PERFIS METÁLICOS DE 15,50M W 610 X 174,0 AÇO ASTM A572 - INSTALAÇÃO | E64: 4 | F64: UN | G64: =VLOOKUP(C64,composicoes!$A$9:$K$480,10,0) -> 176.56 | H64: =VLOOKUP(C64,composicoes!$A$9:$K$480,11,0) -> 1434.8 | I64: =SUM(G64:H64) -> 1611.36 | J64: =BDI!$E$20 -> 0.2215 | K64: =ROUND(G64*(1+J64),2) -> 215.67 | L64: =M64-K64 -> 1752.61 | M64: =ROUND(I64*(1+J64),2) -> 1968.28 | N64: =ROUND(M64*E64,2) -> 7873.12
A65: 7.5 | B65: SINAPI | C65: 92917 | D65: ARMAÇÃO DE ESTRUTURAS DE CONCRETO ARMADO, EXCETO VIGAS, PILARES, LAJES E FUNDAÇÕES, UTILIZANDO AÇO CA-50 DE 8,0 MM | E65: 310 | F65: KG | G65: =VLOOKUP(C65,sinapi!$A$2:$H$12405,6,0) -> 2.41 | H65: =VLOOKUP(C65,sinapi!$A$2:$H$12405,7,0)+VLOOKUP(C65,sinapi!$A$2:$H$12405,8,0) -> 11.73 | I65: 14.14 | J65: =BDI!$E$20 -> 0.2215 | K65: 2.94 | L65: 14.33 | M65: 17.27 | N65: 5353.7
A66: 7.6 | B66: SINAPI | C66: 92919 | D66: ARMAÇÃO DE ESTRUTURAS DE CONCRETO ARMADO, EXCETO VIGAS, PILARES, LAJES E FUNDAÇÕES, UTILIZANDO AÇO CA-50 DE 10,0 MM | E66: 6654.69 | F66: KG | G66: =VLOOKUP(C66,sinapi!$A$2:$H$12405,6,0) -> 1.71 | H66: =VLOOKUP(C66,sinapi!$A$2:$H$12405,7,0)+VLOOKUP(C66,sinapi!$A$2:$H$12405,8,0) -> 10.92 | I66: 12.63 | J66: =BDI!$E$20 -> 0.2215 | K66: 2.09 | L66: 13.34 | M66: 15.43 | N66: 102681.87
A67: 7.7 | B67: SINAPI | C67: 92921 | D67: ARMAÇÃO DE ESTRUTURAS DE CONCRETO ARMADO, EXCETO VIGAS, PILARES, LAJES E FUNDAÇÕES, UTILIZANDO AÇO CA-50 DE 12,5 MM | E67: 9983.36 | F67: KG | G67: =VLOOKUP(C67,sinapi!$A$2:$H$12405,6,0) -> 1.21 | H67: =VLOOKUP(C67,sinapi!$A$2:$H$12405,7,0)+VLOOKUP(C67,sinapi!$A$2:$H$12405,8,0) -> 9.42 | I67: 10.63 | J67: =BDI!$E$20 -> 0.2215 | K67: 1.48 | L67: 11.5 | M67: 12.98 | N67: 129584.01
A68: 7.8 | B68: SINAPI | C68: 92922 | D68: ARMAÇÃO DE ESTRUTURAS DE CONCRETO ARMADO, EXCETO VIGAS, PILARES, LAJES E FUNDAÇÕES, UTILIZANDO AÇO CA-50 DE 16,0 MM | E68: 3963.39 | F68: KG | G68: =VLOOKUP(C68,sinapi!$A$2:$H$12405,6,0) -> 0.78 | H68: =VLOOKUP(C68,sinapi!$A$2:$H$12405,7,0)+VLOOKUP(C68,sinapi!$A$2:$H$12405,8,0) -> 9.31 | I68: 10.09 | J68: =BDI!$E$20 -> 0.2215 | K68: 0.95 | L68: 11.37 | M68: 12.32 | N68: 48828.96
A69: 7.9 | B69: SINAPI | C69: 92923 | D69: ARMAÇÃO DE ESTRUTURAS DE CONCRETO ARMADO, EXCETO VIGAS, PILARES, LAJES E FUNDAÇÕES, UTILIZANDO AÇO CA-50 DE 20,0 MM | E69: 540 | F69: KG | G69: =VLOOKUP(C69,sinapi!$A$2:$H$12405,6,0) -> 0.5 | H69: =VLOOKUP(C69,sinapi!$A$2:$H$12405,7,0)+VLOOKUP(C69,sinapi!$A$2:$H$12405,8,0) -> 10.76 | I69: 11.26 | J69: =BDI!$E$20 -> 0.2215 | K69: 0.61 | L69: 13.14 | M69: 13.75 | N69: 7425
A70: 7.10 | B70: SINAPI | C70: 92924 | D70: ARMAÇÃO DE ESTRUTURAS DE CONCRETO ARMADO, EXCETO VIGAS, PILARES, LAJES E FUNDAÇÕES, UTILIZANDO AÇO CA-50 DE 25,0 MM | E70: 11266.64 | F70: KG | G70: =VLOOKUP(C70,sinapi!$A$2:$H$12405,6,0) -> 0.28 | H70: =VLOOKUP(C70,sinapi!$A$2:$H$12405,7,0)+VLOOKUP(C70,sinapi!$A$2:$H$12405,8,0) -> 10.7 | I70: 10.98 | J70: =BDI!$E$20 -> 0.2215 | K70: 0.34 | L70: 13.07 | M70: 13.41 | N70: 151085.64
A71: 7.11 | B71: COMPOSICAO_PROPRIA | C71: CCU 33 | D71: EXECUCAO DE DRENO COM TUBOS DE PVC - DN 100 | E71: 24 | F71: M | G71: =VLOOKUP(C71,composicoes!$A$9:$K$480,10,0) -> 7.03 | H71: =VLOOKUP(C71,composicoes!$A$9:$K$480,11,0) -> 82.26 | I71: 89.29 | J71: =BDI!$E$20 -> 0.2215 | K71: 8.59 | L71: 100.48 | M71: 109.07 | N71: 2617.68
A72: 7.12 | B72: COMPOSICAO_PROPRIA | C72: CCU 30 | D72: CONCRETO PARA BOMBEAMENTO FCK = 35 MPA - CONFECÇÃO EM CENTRAL DOSADORA DE 30 M³/H - AREIA E BRITA COMERCIAIS | E72: 69.9 | F72: M3 | G72: =VLOOKUP(C72,composicoes!$A$9:$K$480,10,0) -> 2.98 | H72: =VLOOKUP(C72,composicoes!$A$9:$K$480,11,0) -> 363.74 | I72: 366.72 | J72: =BDI!$E$20 -> 0.2215 | K72: 3.64 | L72: 444.31 | M72: 447.95 | N72: 31311.71
A73: 7.13 | B73: COMPOSICAO_PROPRIA | C73: CCU 29 | D73: CONCRETO PARA BOMBEAMENTO FCK = 30 MPA - CONFECÇÃO EM CENTRAL DOSADORA DE 30 M³/H - AREIA E BRITA COMERCIAIS | E73: 154.99 | F73: M3 | G73: =VLOOKUP(C73,composicoes!$A$9:$K$480,10,0) -> 2.78 | H73: =VLOOKUP(C73,composicoes!$A$9:$K$480,11,0) -> 337.56 | I73: 340.34 | J73: =BDI!$E$20 -> 0.2215 | K73: 3.4 | L73: 412.33 | M73: 415.73 | N73: 64433.99
A74: 7.14 | B74: COMPOSICAO_PROPRIA | C74: CCU 31 | D74: LANÇAMENTO MECÂNICO DE CONCRETO COM BOMBA REBOCÁVEL COM CAPACIDADE DE 41 M³/H | E74: 224.89 | F74: M3 | G74: =VLOOKUP(C74,composicoes!$A$9:$K$480,10,0) -> 3.5 | H74: =VLOOKUP(C74,composicoes!$A$9:$K$480,11,0) -> 34.44 | I74: 37.94 | J74: =BDI!$E$20 -> 0.2215 | K74: 4.28 | L74: 42.06 | M74: 46.34 | N74: 10421.4
A75: 7.15 | B75: COMPOSICAO_PROPRIA | C75: CCU 32 | D75: ADENSAMENTO DE CONCRETO POR VIBRADOR DE IMERSÃO | E75: 224.89 | F75: M3 | G75: =VLOOKUP(C75,composicoes!$A$9:$K$480,10,0) -> 1.56 | H75: =VLOOKUP(C75,composicoes!$A$9:$K$480,11,0) -> 1.58 | I75: 3.14 | J75: =BDI!$E$20 -> 0.2215 | K75: 1.91 | L75: 1.93 | M75: 3.84 | N75: 863.58
A76: 7.16 | B76: COMPOSICAO_PROPRIA | C76: CCU 35 | D76: GUARDA CORPO E CORRIMÃO METÁLICO - FORNECIMENTO E INSTALAÇÃO | E76: 50 | F76: UN | G76: =VLOOKUP(C76,composicoes!$A$9:$K$480,10,0) -> 171.59 | H76: =VLOOKUP(C76,composicoes!$A$9:$K$480,11,0) -> 4232.86 | I76: 4404.45 | J76: =BDI!$E$20 -> 0.2215 | K76: 209.6 | L76: 5170.44 | M76: 5380.04 | N76: 269002
A77: 8 | D77: PAVIMENTAÇÃO | N77: =ROUND(SUM(N78:N83),2) -> 22518.02
A78: 8.1 | B78: SINAPI | C78: 96397 | D78: EXECUÇÃO E COMPACTAÇÃO DE BASE E OU SUB BASE PARA PAVIMENTAÇÃO DE BRITA GRADUADA SIMPLES TRATADA COM CIMENTO - EXCLUSIVE CARGA E TRANSPORTE | E78: 21 | F78: M3 | G78: =VLOOKUP(C78,sinapi!$A$2:$H$12405,6,0) -> 5.02 | H78: =VLOOKUP(C78,sinapi!$A$2:$H$12405,7,0)+VLOOKUP(C78,sinapi!$A$2:$H$12405,8,0) -> 168.69 | I78: =SUM(G78:H78) -> 173.71 | J78: =BDI!$E$20 -> 0.2215 | K78: =ROUND(G78*(1+J78),2) -> 6.13 | L78: =M78-K78 -> 206.06 | M78: =ROUND(I78*(1+J78),2) -> 212.19 | N78: =ROUND(M78*E78,2) -> 4455.99
A79: 8.2 | B79: SINAPI | C79: 95875 | D79: TRANSPORTE COM CAMINHÃO BASCULANTE DE 10 M³, EM VIA URBANA PAVIMENTADA, DMT ATÉ 30 KM (CAMADA BASE) | E79: 420 | F79: M3XKM | G79: =VLOOKUP(C79,sinapi!$A$2:$H$12405,6,0) -> 0.24 | H79: =VLOOKUP(C79,sinapi!$A$2:$H$12405,7,0)+VLOOKUP(C79,sinapi!$A$2:$H$12405,8,0) -> 1.44 | I79: 1.68 | J79: =BDI!$E$20 -> 0.2215 | K79: 0.29 | L79: 1.76 | M79: 2.05 | N79: 861
A80: 8.3 | B80: SINAPI | C80: 97636 | D80: DEMOLIÇÃO PAVIMENTO ASFÁLTICO, DE FORMA MECANIZADA, SEM REAPROVEITAMENTO. | E80: 70 | F80: M2 | G80: =VLOOKUP(C80,sinapi!$A$2:$H$12405,6,0) -> 6.12 | H80: =VLOOKUP(C80,sinapi!$A$2:$H$12405,7,0)+VLOOKUP(C80,sinapi!$A$2:$H$12405,8,0) -> 11.78 | I80: 17.9 | J80: =BDI!$E$20 -> 0.2215 | K80: 7.48 | L80: 14.38 | M80: 21.86 | N80: 1530.2
A81: 8.4 | B81: SINAPI | C81: 95875 | D81: TRANSPORTE COM CAMINHÃO BASCULANTE DE 10 M³, EM VIA URBANA PAVIMENTADA, DMT ATÉ 30 KM (CAMADA CBUQ) | E81: 140 | F81: M3XKM | G81: =VLOOKUP(C81,sinapi!$A$2:$H$12405,6,0) -> 0.24 | H81: =VLOOKUP(C81,sinapi!$A$2:$H$12405,7,0)+VLOOKUP(C81,sinapi!$A$2:$H$12405,8,0) -> 1.44 | I81: 1.68 | J81: =BDI!$E$20 -> 0.2215 | K81: 0.29 | L81: 1.76 | M81: 2.05 | N81: 287
A82: 8.5 | B82: COMPOSICAO_PROPRIA | C82: CCU 23 | D82: IMPRIMAÇÃO ASFALTO DILUÍDO | E82: 140 | F82: M2 | G82: =VLOOKUP(C82,composicoes!$A$9:$K$480,10,0) -> 0.02 | H82: =VLOOKUP(C82,composicoes!$A$9:$K$480,11,0) -> 9.19 | I82: 9.21 | J82: =BDI!$E$20 -> 0.2215 | K82: 0.02 | L82: 11.23 | M82: 11.25 | N82: 1575
A83: 8.6 | B83: SINAPI | C83: 95995 | D83: EXECUÇÃO DE PAVIMENTO COM APLICAÇÃO DE CONCRETO ASFÁLTICO, CAMADA DE ROLAMENTO - EXCLUSIVE CARGA E TRANSPORTE | E83: 7 | F83: M3 | G83: =VLOOKUP(C83,sinapi!$A$2:$H$12405,6,0) -> 32.07 | H83: =VLOOKUP(C83,sinapi!$A$2:$H$12405,7,0)+VLOOKUP(C83,sinapi!$A$2:$H$12405,8,0) -> 1582.9 | I83: 1614.97 | J83: =BDI!$E$20 -> 0.2215 | K83: 39.17 | L83: 1933.52 | M83: 1972.69 | N83: 13808.83
A84: 9 | D84: SINALIZAÇÃO | N84: =ROUND(SUM(N85:N93),2) -> 18848.11
A85: 9.1 | B85: COMPOSICAO_PROPRIA | C85: CCU 39 | D85: PLACA EM AÇO - 2,00 X 1,00 M - PELÍCULA RETRORREFLETIVA TIPO I + III - FORNECIMENTO E IMPLANTAÇÃO | E85: 1 | F85: UN | G85: =VLOOKUP(C85,composicoes!$A$9:$K$480,10,0) -> 75.46 | H85: =VLOOKUP(C85,composicoes!$A$9:$K$480,11,0) -> 723.48 | I85: =SUM(G85:H85) -> 798.94 | J85: =BDI!$E$20 -> 0.2215 | K85: =ROUND(G85*(1+J85),2) -> 92.17 | L85: =M85-K85 -> 883.74 | M85: =ROUND(I85*(1+J85),2) -> 975.91 | N85: =ROUND(M85*E85,2) -> 975.91
A86: 9.2 | B86: COMPOSICAO_PROPRIA | C86: CCU 38 | D86: SUPORTE EM AÇO GALVANIZADO A FOGO S5B - AQUISIÇÃO E INSTALAÇÃO | E86: 1 | F86: UN | G86: =VLOOKUP(C86,composicoes!$A$9:$K$480,10,0) -> 411.19 | H86: =VLOOKUP(C86,composicoes!$A$9:$K$480,11,0) -> 6913.91 | I86: 7325.1 | J86: =BDI!$E$20 -> 0.2215 | K86: 502.27 | L86: 8445.34 | M86: 8947.61 | N86: 8947.61
A87: 9.3 | B87: COMPOSICAO_PROPRIA | C87: CCU 40 | D87: PLACA DELINEADOR EM AÇO - 0,30 X 0,90 M - PELÍCULA RETRORREFLETIVA TIPO I + IV - FORNECIMENTO E IMPLANTAÇÃO | E87: 4 | F87: UN | G87: =VLOOKUP(C87,composicoes!$A$9:$K$480,10,0) -> 22.49 | H87: =VLOOKUP(C87,composicoes!$A$9:$K$480,11,0) -> 108.38 | I87: 130.87 | J87: =BDI!$E$20 -> 0.2215 | K87: 27.47 | L87: 132.39 | M87: 159.86 | N87: 639.44
A88: 9.4 | B88: COMPOSICAO_PROPRIA | C88: CCU 43 | D88: SUPORTE METÁLICO GALVANIZADO PARA PLACA DE REGULAMENTAÇÃO - LADO DE 0,331 M - FORNECIMENTO E IMPLANTAÇÃO | E88: 4 | F88: UN | G88: =VLOOKUP(C88,composicoes!$A$9:$K$480,10,0) -> 12.57 | H88: =VLOOKUP(C88,composicoes!$A$9:$K$480,11,0) -> 318.32 | I88: 330.89 | J88: =BDI!$E$20 -> 0.2215 | K88: 15.35 | L88: 388.83 | M88: 404.18 | N88: 1616.72
A89: 9.5 | B89: COMPOSICAO_PROPRIA | C89: CCU 36 | D89: PINTURA DE FAIXA COM TERMOPLÁSTICO POR ASPERSÃO - ESPESSURA DE 1,5 MM | E89: 21.6 | F89: M2 | G89: =VLOOKUP(C89,composicoes!$A$9:$K$480,10,0) -> 0.92 | H89: =VLOOKUP(C89,composicoes!$A$9:$K$480,11,0) -> 40.06 | I89: 40.98 | J89: =BDI!$E$20 -> 0.2215 | K89: 1.12 | L89: 48.94 | M89: 50.06 | N89: 1081.3
A90: 9.6 | B90: COMPOSICAO_PROPRIA | C90: CCU 41 | D90: PLACA DE REGULAMENTAÇÃO EM AÇO D = 0,60 M - PELÍCULA RETRORREFLETIVA TIPO I + SI - FORNECIMENTO E IMPLANTAÇÃO | E90: 4 | F90: UN | G90: =VLOOKUP(C90,composicoes!$A$9:$K$480,10,0) -> 24.84 | H90: =VLOOKUP(C90,composicoes!$A$9:$K$480,11,0) -> 193.15 | I90: 217.99 | J90: =BDI!$E$20 -> 0.2215 | K90: 30.34 | L90: 235.93 | M90: 266.27 | N90: 1065.08
A91: 9.7 | B91: COMPOSICAO_PROPRIA | C91: CCU 42 | D91: SUPORTE METÁLICO GALVANIZADO PARA PLACA DE ADVERTÊNCIA OU REGULAMENTAÇÃO - LADO OU DIÂMETRO DE 0,60 M - FORNECIMENTO E IMPLANTAÇÃO | E91: 4 | F91: UN | G91: =VLOOKUP(C91,composicoes!$A$9:$K$480,10,0) -> 13.27 | H91: =VLOOKUP(C91,composicoes!$A$9:$K$480,11,0) -> 341.58 | I91: 354.85 | J91: =BDI!$E$20 -> 0.2215 | K91: 16.21 | L91: 417.24 | M91: 433.45 | N91: 1733.8
A92: 9.8 | B92: COMPOSICAO_PROPRIA | C92: CCU 44 | D92: TACHÃO REFLETIVO EM PLÁSTICO INJETADO - BIDIRECIONAL - FORNECIMENTO E COLOCAÇÃO | E92: 19 | F92: UN | G92: =VLOOKUP(C92,composicoes!$A$9:$K$480,10,0) -> 4.46 | H92: =VLOOKUP(C92,composicoes!$A$9:$K$480,11,0) -> 70.62 | I92: 75.08 | J92: =BDI!$E$20 -> 0.2215 | K92: 5.45 | L92: 86.26 | M92: 91.71 | N92: 1742.49
A93: 9.9 | B93: COMPOSICAO_PROPRIA | C93: CCU 45 | D93: TACHA REFLETIVA METÁLICA - MONODIRECIONAL TIPO III - COM UM PINO - FORNECIMENTO E COLOCAÇÃO | E93: 38 | F93: UN | G93: =VLOOKUP(C93,composicoes!$A$9:$K$480,10,0) -> 2.45 | H93: =VLOOKUP(C93,composicoes!$A$9:$K$480,11,0) -> 20.08 | I93: 22.53 | J93: =BDI!$E$20 -> 0.2215 | K93: 2.99 | L93: 24.53 | M93: 27.52 | N93: 1045.76
A94: 10 | D94: INSTALAÇÕES COMPLEMENTARES | N94: =ROUND(SUM(N95:N102),2) -> 52872.88
A95: 10.1 | B95: COMPOSICAO_PROPRIA | C95: CCU 07 | D95: INSTALAÇÃO REDE DMAE 90 PEAD PROVISÓRIA | E95: 86.2 | F95: M | G95: =VLOOKUP(C95,composicoes!$A$9:$K$480,10,0) -> 2.75 | H95: =VLOOKUP(C95,composicoes!$A$9:$K$480,11,0) -> 152.73 | I95: =SUM(G95:H95) -> 155.48 | J95: =BDI!$E$20 -> 0.2215 | K95: =ROUND(G95*(1+J95),2) -> 3.36 | L95: =M95-K95 -> 186.56 | M95: =ROUND(I95*(1+J95),2) -> 189.92 | N95: =ROUND(M95*E95,2) -> 16371.1
A96: 10.2 | B96: COMPOSICAO_PROPRIA | C96: CCU 08 | D96: RELOCAÇÃO REDE DMAE PEAD PARA LOCAL DEFINITIVO JUNTO À PONTE NOVA | E96: 80 | F96: M | G96: =VLOOKUP(C96,composicoes!$A$9:$K$480,10,0) -> 2.75 | H96: =VLOOKUP(C96,composicoes!$A$9:$K$480,11,0) -> 1.97 | I96: 4.72 | J96: =BDI!$E$20 -> 0.2215 | K96: 3.36 | L96: 2.41 | M96: 5.77 | N96: 461.6
A97: 10.3 | B97: COMPOSICAO_PROPRIA | C97: CCU 21 | D97: POSTE DE CONCRETO ARMADO DUPLO T | E97: 1 | F97: UN | G97: =VLOOKUP(C97,composicoes!$A$9:$K$480,10,0) -> 91.65 | H97: =VLOOKUP(C97,composicoes!$A$9:$K$480,11,0) -> 909.16 | I97: 1000.81 | J97: =BDI!$E$20 -> 0.2215 | K97: 111.95 | L97: 1110.54 | M97: 1222.49 | N97: 1222.49
A98: 10.4 | B98: COMPOSICAO_PROPRIA | C98: CCU 20 | D98: FECHAMENTO TUBULAÇÃO DMAE COM BLOCO CANALETA U 19X19X39 | E98: 56 | F98: M | G98: =VLOOKUP(C98,composicoes!$A$9:$K$480,10,0) -> 5.59 | H98: =VLOOKUP(C98,composicoes!$A$9:$K$480,11,0) -> 10.84 | I98: 16.43 | J98: =BDI!$E$20 -> 0.2215 | K98: 6.83 | L98: 13.24 | M98: 20.07 | N98: 1123.92
A99: 10.5 | B99: COMPOSICAO_PROPRIA | C99: CCU 14 | D99: INSTALAÇÃO DO POSTE MEDIÇÃO E COMANDO | E99: 3 | F99: UN | G99: =VLOOKUP(C99,composicoes!$A$9:$K$480,10,0) -> 294.5 | H99: =VLOOKUP(C99,composicoes!$A$9:$K$480,11,0) -> 1951.78 | I99: 2246.28 | J99: =BDI!$E$20 -> 0.2215 | K99: 359.73 | L99: 2384.1 | M99: 2743.83 | N99: 8231.49
A100: 10.6 | B100: COMPOSICAO_PROPRIA | C100: CCU 15 | D100: INSTALAÇÃO DE CABOS E DISPOSITIVOS DE MEDIÇÃO E COMANDO | E100: 1 | F100: UN | G100: =VLOOKUP(C100,composicoes!$A$9:$K$480,10,0) -> 1290.72 | H100: =VLOOKUP(C100,composicoes!$A$9:$K$480,11,0) -> 5382.14 | I100: 6672.86 | J100: =BDI!$E$20 -> 0.2215 | K100: 1576.61 | L100: 6574.29 | M100: 8150.9 | N100: 8150.9
A101: 10.7 | B101: COMPOSICAO_PROPRIA | C101: CCU 16 | D101: INSTALAÇÃO DE POSTE DE AÇO PARA ILUMINAÇÃO | E101: 3 | F101: UN | G101: =VLOOKUP(C101,composicoes!$A$9:$K$480,10,0) -> 2.39 | H101: =VLOOKUP(C101,composicoes!$A$9:$K$480,11,0) -> 3026.51 | I101: 3028.9 | J101: =BDI!$E$20 -> 0.2215 | K101: 2.92 | L101: 3696.88 | M101: 3699.8 | N101: 11099.4
A102: 10.8 | B102: COMPOSICAO_PROPRIA | C102: CCU 17 | D102: INSTALAÇÃO PARA ILUMINAÇÃO E ALIMENTAÇÃO DOS POSTES | E102: 3 | F102: UN | G102: =VLOOKUP(C102,composicoes!$A$9:$K$480,10,0) -> 831.46 | H102: =VLOOKUP(C102,composicoes!$A$9:$K$480,11,0) -> 863.72 | I102: 1695.18 | J102: =BDI!$E$20 -> 0.2215 | K102: 1015.63 | L102: 1055.03 | M102: 2070.66 | N102: 6211.98
A103: 11 | D103: SERVIÇOS FINAIS | N103: =ROUND(SUM(N104:N108),2) -> 4802.41
A104: 11.1 | B104: SINAPI | C104: 99814 | D104: LIMPEZA DE SUPERFÍCIE COM JATO DE ALTA PRESSÃO | E104: 800 | F104: M2 | G104: =VLOOKUP(C104,sinapi!$A$2:$H$12405,6,0) -> 1.28 | H104: =VLOOKUP(C104,sinapi!$A$2:$H$12405,7,0)+VLOOKUP(C104,sinapi!$A$2:$H$12405,8,0) -> 0.4 | I104: =SUM(G104:H104) -> 1.68 | J104: =BDI!$E$20 -> 0.2215 | K104: =ROUND(G104*(1+J104),2) -> 1.56 | L104: =M104-K104 -> 0.49 | M104: =ROUND(I104*(1+J104),2) -> 2.05 | N104: =ROUND(M104*E104,2) -> 1640
A105: 11.2 | B105: SINAPI | C105: 98504 | D105: PLANTIO DE GRAMA EM PLACAS | E105: 32.15 | F105: M2 | G105: =VLOOKUP(C105,sinapi!$A$2:$H$12405,6,0) -> 2.73 | H105: =VLOOKUP(C105,sinapi!$A$2:$H$12405,7,0)+VLOOKUP(C105,sinapi!$A$2:$H$12405,8,0) -> 18.76 | I105: 21.49 | J105: =BDI!$E$20 -> 0.2215 | K105: 3.33 | L105: 22.92 | M105: 26.25 | N105: 843.94
A106: 11.3 | B106: SINAPI | C106: 98510 | D106: PLANTIO DE ÁRVORE ORNAMENTAL COM ALTURA DE MUDA MENOR OU IGUAL A 2,00 M. AF_05/2018 | E106: 2 | F106: UN | G106: =VLOOKUP(C106,sinapi!$A$2:$H$12405,6,0) -> 12.76 | H106: =VLOOKUP(C106,sinapi!$A$2:$H$12405,7,0)+VLOOKUP(C106,sinapi!$A$2:$H$12405,8,0) -> 42.64 | I106: 55.4 | J106: =BDI!$E$20 -> 0.2215 | K106: 15.59 | L106: 52.08 | M106: 67.67 | N106: 135.34
A107: 11.4 | B107: COMPOSICAO_PROPRIA | C107: CCU 24 | D107: REMOÇÃO ESTRUTURA CANTEIRO DE OBRAS | E107: 254 | F107: M2 | G107: =VLOOKUP(C107,composicoes!$A$9:$K$480,10,0) -> 4.77 | H107: =VLOOKUP(C107,composicoes!$A$9:$K$480,11,0) -> 1.43 | I107: 6.2 | J107: =BDI!$E$20 -> 0.2215 | K107: 5.83 | L107: 1.74 | M107: 7.57 | N107: 1922.78
A108: 11.5 | B108: SINAPI | C108: 95875 | D108: TRANSPORTE COM CAMINHÃO BASCULANTE DE 10 M³, EM VIA URBANA PAVIMENTADA, DMT ATÉ 30 KM | E108: 127 | F108: M3XKM | G108: =VLOOKUP(C108,sinapi!$A$2:$H$12405,6,0) -> 0.24 | H108: =VLOOKUP(C108,sinapi!$A$2:$H$12405,7,0)+VLOOKUP(C108,sinapi!$A$2:$H$12405,8,0) -> 1.44 | I108: 1.68 | J108: =BDI!$E$20 -> 0.2215 | K108: 0.29 | L108: 1.76 | M108: 2.05 | N108: 260.35
M109: TOTAL | N109: =ROUND(SUM(N10,N12,N27,N31,N34,N44,N60,N77,N84,N94,N103),2) -> 2751593.03
D110: Notas:
D111: ENCARGOS SOCIAIS: 111,22% horista e 69,19% mensalista (Não desonerado) | M111: Porto Alegre, 28 de março de 2022
D112: Percentual de mão de obra em relação ao valor total do orçamento: | E112: =SUMPRODUCT(E11:E108,K11:K108)/N109 -> 0.2364750076
D113: DATA REFERENCIA TÉCNICA:
D114: SINAPI RS - fev/22
D115: CREA RS - 2022
D116: SICRO RS - out/21 - atualizado para fev/22 pelo INCC por: | E116: =TRUNC(972.904 /952.596-1,4) -> 0.0213
D117: ORSE SE - fev/22

Sheet composicoes
B1: PREFEITURA MUNICIPAL DE PORTO ALEGRE
B2: SECRETARIA MUNICIPAL DE OBRAS E INFRAESTRUTURA
B3: =orcamento!D3 -> Objeto: PONTE SOBRE O ARROIO MAUÁ
B4: =orcamento!D4 -> Endereço: Rua Marinheiros, 312- Ilha Pintado - Porto Alegre - RS
B6: COMPOSIÇÃO PRÓPRIA DE CUSTOS UNITÁRIOS
A9: CÓDIGO: | B9: DESCRIÇÃO: | H9: UNIDADE: | J9: CUSTO TOTAL (MO): | K9: CUSTO TOTAL (MAT+EQ):
A10: CCU 01 | B10: EQUIPE DE ADMINISTRAÇÃO LOCAL | H10: UN | J10: =TRUNC(SUM(J12:J15),2) -> 372412.56 | K10: =TRUNC(SUM(K12:K15),2) -> 8167.08
A11: ITEM | B11: DESCRIÇÃO | C11: UNID. | D11: COEF. | E11: REFERENCIAL COEF. | F11: CUSTO UNITARIO (MO) | G11: CUSTO UNITARIO (MAT+EQ) | H11: REFERENCIAL CUSTO | J11: CUSTO TOTAL (MO) | K11: CUSTO TOTAL (MAT+EQ)
A12: 1 | B12: ENGENHEIRO CIVIL DE OBRA PLENO COM ENCARGOS COMPLEMENTARES | C12: MÊS | D12: 12 | F12: =VLOOKUP(I12,sinapi!$A$2:$J$12415,6,0) -> 19862.38 | G12: =VLOOKUP(I12,sinapi!$A$2:$J$12415,7,0)+VLOOKUP(I12,sinapi!$A$2:$J$12415,8,0)+VLOOKUP(I12,sinapi!$A$2:$J$12415,10,0) -> 289.59 | H12: SINAPI | I12: 93567 | J12: =TRUNC(D12*F12,4) -> 238348.56 | K12: =TRUNC(D12*G12,4) -> 3475.08
A13: 2 | B13: ENGENHEIRO CIVIL DE OBRA SENIOR COM ENCARGOS COMPLEMENTARES - GEOTÉCNICO | C13: H | D13: =12*20 -> 240 | F13: =VLOOKUP(I13,sinapi!$A$2:$J$12415,6,0) -> 154.49 | G13: =VLOOKUP(I13,sinapi!$A$2:$J$12415,7,0)+VLOOKUP(I13,sinapi!$A$2:$J$12415,8,0)+VLOOKUP(I13,sinapi!$A$2:$J$12415,10,0) -> 1.54 | H13: SINAPI | I13: 90779 | J13: 37077.6 | K13: 369.6
A14: 3 | B14: TÉCNICO EM SEGURANÇA DO TRABALHO COM ENCARGOS COMPLEMENTARES | C14: H | D14: =12*20 -> 240 | F14: =VLOOKUP(I14,sinapi!$A$2:$J$12415,6,0) -> 34.75 | G14: =VLOOKUP(I14,sinapi!$A$2:$J$12415,7,0)+VLOOKUP(I14,sinapi!$A$2:$J$12415,8,0)+VLOOKUP(I14,sinapi!$A$2:$J$12415,10,0) -> 1.61 | H14: SINAPI | I14: 100309 | J14: 8340 | K14: 386.4
A15: 4 | B15: ENCARREGADO GERAL COM ENCARGOS COMPLEMENTARES | C15: H | D15: =12*160 -> 1920 | F15: =VLOOKUP(I15,sinapi!$A$2:$J$12415,6,0) -> 46.17 | G15: =VLOOKUP(I15,sinapi!$A$2:$J$12415,7,0)+VLOOKUP(I15,sinapi!$A$2:$J$12415,8,0)+VLOOKUP(I15,sinapi!$A$2:$J$12415,10,0) -> 2.05 | H15: SINAPI | I15: 90776 | J15: 88646.4 | K15: 3936
A18: CÓDIGO: | B18: DESCRIÇÃO: | H18: UNIDADE: | J18: CUSTO TOTAL (MO): | K18: CUSTO TOTAL (MAT+EQ):
A19: CCU 02 | B19: INSTALAÇÕES PROVISÓRIAS PARA CANTEIRO | H19: UN | J19: =TRUNC(SUM(J21:J27),2) -> 4466.18 | K19: =TRUNC(SUM(K21:K27),2) -> 26686.31
A20: ITEM | B20: DESCRIÇÃO | C20: UNID. | D20: COEF. | E20: REFERENCIAL COEF. | F20: CUSTO UNITARIO (MO) | G20: CUSTO UNITARIO (MAT+EQ) | H20: REFERENCIAL CUSTO | J20: CUSTO TOTAL (MO) | K20: CUSTO TOTAL (MAT+EQ)
A21: 1 | B21: ENTRADA DE ENERGIA ELÉTRICA, AÉREA, TRIFÁSICA, COM CAIXA DE EMBUTIR, CABO DE 16 MM2 E DISJUNTOR DIN 50A (NÃO INCLUSO O POSTE DE CONCRETO). AF_07/2020 | C21: UN | D21: 1 | F21: =VLOOKUP(I21,sinapi!$A$2:$J$12415,6,0) -> 322.22 | G21: =VLOOKUP(I21,sinapi!$A$2:$J$12415,7,0)+VLOOKUP(I21,sinapi!$A$2:$J$12415,8,0)+VLOOKUP(I21,sinapi!$A$2:$J$12415,10,0) -> 1751.89 | H21: SINAPI | I21: 101510 | J21: =TRUNC(D21*F21,4) -> 322.22 | K21: =TRUNC(D21*G21,4) -> 1751.89
A22: 2 | B22: POSTE DE CONCRETO CIRCULAR, 300 KG, H = 9 M (NBR 8451) | C22: UN | D22: 1 | F22: =VLOOKUP(I22,sinapi!$A$2:$J$12415,6,0) -> 0 | G22: =VLOOKUP(I22,sinapi!$A$2:$J$12415,7,0)+VLOOKUP(I22,sinapi!$A$2:$J$12415,8,0)+VLOOKUP(I22,sinapi!$A$2:$J$12415,10,0) -> 1320.61 | H22: SINAPI | I22: 5059 | J22: =TRUNC(D22*F22,4) -> 0 | K22: =TRUNC(D22*G22,4) -> 1320.61
A23: 3 | B23: PLACA DE OBRA PLACA DE OBRA EM CHAPA DE ACO GALVANIZADO | C23: m² | D23: 11.52 | F23: =VLOOKUP(I23,sinapi!$A$2:$J$12415,6,0) -> 0 | G23: =VLOOKUP(I23,sinapi!$A$2:$J$12415,7,0)+VLOOKUP(I23,sinapi!$A$2:$J$12415,8,0)+VLOOKUP(I23,sinapi!$A$2:$J$12415,10,0) -> 225 | H23: SINAPI | I23: 4813 | J23: 0 | K23: 2592
A24: 4 | B24: PORTAO DE ABRIR EM GRADIL DE METALON REDONDO DE 3/4" VERTICAL, COM REQUADRO, ACABAMENTO NATURAL - COMPLETO | C24: m² | D24: 12 | F24: =VLOOKUP(I24,sinapi!$A$2:$J$12415,6,0) -> 0 | G24: =VLOOKUP(I24,sinapi!$A$2:$J$12415,7,0)+VLOOKUP(I24,sinapi!$A$2:$J$12415,8,0)+VLOOKUP(I24,sinapi!$A$2:$J$12415,10,0) -> 502.5 | H24: SINAPI | I24: 4948 | J24: 0 | K24: 6030
A25: 5 | B25: EXECUÇÃO DE RESERVATÓRIO ELEVADO DE ÁGUA (2000 LITROS) EM CANTEIRO DE OBRA, APOIADO EM ESTRUTURA DE MADEIRA. AF_02/2016 | C25: UN | D25: 1 | F25: =VLOOKUP(I25,sinapi!$A$2:$J$12415,6,0) -> 399.65 | G25: =VLOOKUP(I25,sinapi!$A$2:$J$12415,7,0)+VLOOKUP(I25,sinapi!$A$2:$J$12415,8,0)+VLOOKUP(I25,sinapi!$A$2:$J$12415,10,0) -> 7313.98 | H25: SINAPI | I25: 93243 | J25: 399.65 | K25: 7313.98
A26: 6 | B26: CERCA COM MOURÕES DE CONCRETO, ESPAÇAMENTO DE 2,5 M, CRAVADOS 0,5 M, COM 11 FIOS DE ARAME DE AÇO OVALADO 15X17 - FORNECIMENTO E INSTALAÇÃO. AF_05/2020 | C26: m | D26: =70+40+10 -> 120 | F26: =VLOOKUP(I26,sinapi!$A$2:$J$12415,6,0) -> 27.76 | G26: =VLOOKUP(I26,sinapi!$A$2:$J$12415,7,0)+VLOOKUP(I26,sinapi!$A$2:$J$12415,8,0)+VLOOKUP(I26,sinapi!$A$2:$J$12415,10,0) -> 56.71 | H26: SINAPI | I26: 101198 | J26: 3331.2 | K26: 6805.2
A27: 7 | B27: ASSENTAMENTO DE POSTE DE CONCRETO COM COMPRIMENTO NOMINAL DE 9 M, CARGA NOMINAL DE 1000 DAN, ENGASTAMENTO BASE CONCRETADA COM 1 M DE CONCRETO E 0,5 M DE SOLO (NÃO INCLUI FORNECIMENTO). AF_11/2019 | C27: UN | D27: 1 | F27: =VLOOKUP(I27,sinapi!$A$2:$J$12415,6,0) -> 413.11 | G27: =VLOOKUP(I27,sinapi!$A$2:$J$12415,7,0)+VLOOKUP(I27,sinapi!$A$2:$J$12415,8,0)+VLOOKUP(I27,sinapi!$A$2:$J$12415,10,0) -> 872.63 | H27: SINAPI | I27: 100603 | J27: 413.11 | K27: 872.63
A30: CÓDIGO: | B30: DESCRIÇÃO: | H30: UNIDADE: | J30: CUSTO TOTAL (MO): | K30: CUSTO TOTAL (MAT+EQ):
A31: CCU 03 | B31: ENSAIOS DE CARACTERIZAÇÃO E VERIFICAÇÃO DO GRAU DE COMPACTAÇÃO DO SOLO | H31: UN | J31: =TRUNC(SUM(J33:J35),2) -> 0 | K31: =TRUNC(SUM(K33:K35),2) -> 461
A32: ITEM | B32: DESCRIÇÃO | C32: UNID. | D32: COEF. | E32: REFERENCIAL COEF. | F32: CUSTO UNITARIO (MO) | G32: CUSTO UNITARIO (MAT+EQ) | H32: REFERENCIAL CUSTO | J32: CUSTO TOTAL (MO) | K32: CUSTO TOTAL (MAT+EQ)
A33: 1 | B33: ENSAIO DE GRANULOMETRIA POR PENEIRAMENTO E SEDIMENTACAO - SOLOS | C33: UN | D33: 1 | F33: 0 | G33: 140 | H33: ORSE | I33: 4682 | J33: =TRUNC(D33*F33,4) -> 0 | K33: =TRUNC(D33*G33,4) -> 140
A34: 2 | B34: ENSAIO DE COMPACTACAO - AMOSTRAS NAO TRABALHADAS - ENERGIA NORMAL - SOLOS | C34: UN | D34: 1 | F34: 0 | G34: 202 | H34: ORSE | I34: 4685 | J34: 0 | K34: 202
A35: 3 | B35: ENSAIO DE ADENSAMENTO DO SOLO | C35: UN | D35: 1 | F35: 0 | G35: 119 | H35: ORSE | I35: 4693 | J35: 0 | K35: 119
A38: CÓDIGO: | B38: DESCRIÇÃO: | H38: UNIDADE: | J38: CUSTO TOTAL (MO): | K38: CUSTO TOTAL (MAT+EQ):
A39: CCU 04 | B39: AREIA GRADUADA | H39: M3 | J39: =TRUNC(SUM(J41:J44),2) -> 14.53 | K39: =TRUNC(SUM(K41:K44),2) -> 107.52
A40: ITEM | B40: DESCRIÇÃO | C40: UNID. | D40: COEF. | E40: REFERENCIAL COEF. | F40: CUSTO UNITARIO (MO) | G40: CUSTO UNITARIO (MAT+EQ) | H40: REFERENCIAL CUSTO | J40: CUSTO TOTAL (MO) | K40: CUSTO TOTAL (MAT+EQ)
A41: 1 | B41: AREIA MEDIA - POSTO JAZIDA/FORNECEDOR (RETIRADO NA JAZIDA, SEM TRANSPORTE) | C41: M3 | D41: 1 | F41: =VLOOKUP(I41,sinapi!$A$2:$J$12415,6,0) -> 0 | G41: =VLOOKUP(I41,sinapi!$A$2:$J$12415,7,0)+VLOOKUP(I41,sinapi!$A$2:$J$12415,8,0)+VLOOKUP(I41,sinapi!$A$2:$J$12415,10,0) -> 85 | H41: SINAPI | I41: 370 | J41: =TRUNC(D41*F41,4) -> 0 | K41: =TRUNC(D41*G41,4) -> 85
A42: 2 | B42: TRANSPORTE COM CAMINHÃO BASCULANTE DE 10 M³, EM VIA URBANA PAVIMENTADA, DMT ATÉ 30 KM (UNIDADE: M3XKM). AF_07/2020 | C42: M3XKM | D42: 10 | F42: =VLOOKUP(I42,sinapi!$A$2:$J$12415,6,0) -> 0.24 | G42: =VLOOKUP(I42,sinapi!$A$2:$J$12415,7,0)+VLOOKUP(I42,sinapi!$A$2:$J$12415,8,0)+VLOOKUP(I42,sinapi!$A$2:$J$12415,10,0) -> 1.44 | H42: SINAPI | I42: 95875 | J42: 2.4 | K42: 14.4
A43: 3 | B43: SERVENTE COM ENCARGOS COMPLEMENTARES | C43: H | D43: 0.8 | F43: =VLOOKUP(I43,sinapi!$A$2:$J$12415,6,0) -> 14.06 | G43: =VLOOKUP(I43,sinapi!$A$2:$J$12415,7,0)+VLOOKUP(I43,sinapi!$A$2:$J$12415,8,0)+VLOOKUP(I43,sinapi!$A$2:$J$12415,10,0) -> 4.78 | H43: SINAPI | I43: 88316 | J43: 11.248 | K43: 3.824
A44: 4 | B44: CARGA, MANOBRA E DESCARGA DE SOLOS E MATERIAIS GRANULARES EM CAMINHÃO BASCULANTE 10 M³ - CARGA COM ESCAVADEIRA HIDRÁULICA (CAÇAMBA DE 1,20 M³ / 155 HP) E DESCARGA LIVRE (UNIDADE: M3). AF_07/2020 | C44: M# | D44: 1 | F44: =VLOOKUP(I44,sinapi!$A$2:$J$12415,6,0) -> 0.89 | G44: =VLOOKUP(I44,sinapi!$A$2:$J$12415,7,0)+VLOOKUP(I44,sinapi!$A$2:$J$12415,8,0)+VLOOKUP(I44,sinapi!$A$2:$J$12415,10,0) -> 4.3 | H44: SINAPI | I44: 100978 | J44: 0.89 | K44: 4.3
A47: CÓDIGO: | B47: DESCRIÇÃO: | H47: UNIDADE: | J47: CUSTO TOTAL (MO): | K47: CUSTO TOTAL (MAT+EQ):
A48: CCU 05 | B48: APLICAÇÃO DE GEOTEXTIL NÃO-TECIDO AGULHADO RT 31 | H48: M2 | J48: =TRUNC(SUM(J50:J51),2) -> 0.23 | K48: =TRUNC(SUM(K50:K51),2) -> 17.64
A49: ITEM | B49: DESCRIÇÃO | C49: UNID. | D49: COEF. | E49: REFERENCIAL COEF. | F49: CUSTO UNITARIO (MO) | G49: CUSTO UNITARIO (MAT+EQ) | H49: REFERENCIAL CUSTO | J49: CUSTO TOTAL (MO) | K49: CUSTO TOTAL (MAT+EQ)
A50: 1 | B50: SERVENTE COM ENCARGOS COMPLEMENTARES | C50: H | D50: =TRUNC(3/180,4) -> 0.0166 | E50: 2003867 - SICRO | F50: =VLOOKUP(I50,sinapi!$A$2:$J$12415,6,0) -> 14.06 | G50: =VLOOKUP(I50,sinapi!$A$2:$J$12415,7,0)+VLOOKUP(I50,sinapi!$A$2:$J$12415,8,0)+VLOOKUP(I50,sinapi!$A$2:$J$12415,10,0) -> 4.78 | H50: SINAPI | I50: 88316 | J50: =TRUNC(D50*F50,4) -> 0.2333 | K50: =TRUNC(D50*G50,4) -> 0.0793
A51: 2 | B51: Geotêxtil não-tecido agulhado em poliéster - resistência à tração longitudinal de 31kN/m | C51: M2 | D51: 1.05 | E51: 2003867 - SICRO | F51: 0 | G51: =TRUNC(16.3789*(1+orcamento!$E$116),4) -> 16.7277 | H51: SICRO | I51: M1553 | J51: 0 | K51: 17.564
A54: CÓDIGO: | B54: DESCRIÇÃO: | H54: UNIDADE: | J54: CUSTO TOTAL (MO): | K54: CUSTO TOTAL (MAT+EQ):
A55: CCU 06 | B55: ATERRO COM SOLO PREDOMINANTEMENTE ARGILOSO INCLUSO SOLO, ESCAVAÇÃO, CARGA E TRANSPORTE | H55: M3 | J55: =TRUNC(SUM(J57:J60),2) -> 6.45 | K55: =TRUNC(SUM(K57:K60),2) -> 77.79
A56: ITEM | B56: DESCRIÇÃO | C56: UNID. | D56: COEF. | E56: REFERENCIAL COEF. | F56: CUSTO UNITARIO (MO) | G56: CUSTO UNITARIO (MAT+EQ) | H56: REFERENCIAL CUSTO | J56: CUSTO TOTAL (MO) | K56: CUSTO TOTAL (MAT+EQ)
A57: 1 | B57: ARGILA OU BARRO PARA ATERRO/REATERRO (COM TRANSPORTE ATE 10 KM) | C57: M3 | D57: 1 | F57: =VLOOKUP(I57,sinapi!$A$2:$J$12415,6,0) -> 0 | G57: =VLOOKUP(I57,sinapi!$A$2:$J$12415,7,0)+VLOOKUP(I57,sinapi!$A$2:$J$12415,8,0)+VLOOKUP(I57,sinapi!$A$2:$J$12415,10,0) -> 52.19 | H57: SINAPI | I57: 6081 | J57: =TRUNC(D57*F57,4) -> 0 | K57: =TRUNC(D57*G57,4) -> 52.19
A58: 2 | B58: EXECUÇÃO DE ATERRO COM SOLO PREDOMINANTEMENTE ARGILOSO - EXCLUSIVE SOLO, ESCAVAÇÃO, CARGA E TRANSPORTE. AF_11/2019 | C58: M3 | D58: 1 | F58: =VLOOKUP(I58,sinapi!$A$2:$J$12415,6,0) -> 3.16 | G58: =VLOOKUP(I58,sinapi!$A$2:$J$12415,7,0)+VLOOKUP(I58,sinapi!$A$2:$J$12415,8,0)+VLOOKUP(I58,sinapi!$A$2:$J$12415,10,0) -> 6.9 | H58: SINAPI | I58: 96385 | J58: 3.16 | K58: 6.9
A59: 3 | B59: TRANSPORTE COM CAMINHÃO BASCULANTE DE 10 M³, EM VIA URBANA PAVIMENTADA, DMT ATÉ 30 KM (UNIDADE: M3XKM). AF_07/2020 | C59: M3XKM | D59: 10 | F59: =VLOOKUP(I59,sinapi!$A$2:$J$12415,6,0) -> 0.24 | G59: =VLOOKUP(I59,sinapi!$A$2:$J$12415,7,0)+VLOOKUP(I59,sinapi!$A$2:$J$12415,8,0)+VLOOKUP(I59,sinapi!$A$2:$J$12415,10,0) -> 1.44 | H59: SINAPI | I59: 95875 | J59: 2.4 | K59: 14.4
A60: 4 | B60: CARGA, MANOBRA E DESCARGA DE SOLOS E MATERIAIS GRANULARES EM CAMINHÃO BASCULANTE 10 M³ - CARGA COM ESCAVADEIRA HIDRÁULICA (CAÇAMBA DE 1,20 M³ / 155 HP) E DESCARGA LIVRE (UNIDADE: M3). AF_07/2020 | C60: M3 | D60: 1 | F60: =VLOOKUP(I60,sinapi!$A$2:$J$12415,6,0) -> 0.89 | G60: =VLOOKUP(I60,sinapi!$A$2:$J$12415,7,0)+VLOOKUP(I60,sinapi!$A$2:$J$12415,8,0)+VLOOKUP(I60,sinapi!$A$2:$J$12415,10,0) -> 4.3 | H60: SINAPI | I60: 100978 | J60: 0.89 | K60: 4.3
A63: CÓDIGO: | B63: DESCRIÇÃO: | H63: UNIDADE: | J63: CUSTO TOTAL (MO): | K63: CUSTO TOTAL (MAT+EQ):
A64: CCU 07 | B64: INSTALAÇÃO REDE DMAE 90 PEAD PROVISÓRIA | H64: M | J64: =TRUNC(SUM(J66:J69),2) -> 2.75 | K64: =TRUNC(SUM(K66:K69),2) -> 152.73
A65: ITEM | B65: DESCRIÇÃO | C65: UNID. | D65: COEF. | E65: REFERENCIAL COEF. | F65: CUSTO UNITARIO (MO) | G65: CUSTO UNITARIO (MAT+EQ) | H65: REFERENCIAL CUSTO | J65: CUSTO TOTAL (MO) | K65: CUSTO TOTAL (MAT+EQ)
A66: 1 | B66: TUBO DE POLIETILENO DE ALTA DENSIDADE, PEAD, PE-80, DE = 110 MM X 10,0 MM PAREDE, ( SDR 11 - PN 12,5 ) PARA REDE DE AGUA OU ESGOTO (NBR 15561) | C66: M | D66: 1 | F66: =VLOOKUP(I66,sinapi!$A$2:$J$12415,6,0) -> 0 | G66: =VLOOKUP(I66,sinapi!$A$2:$J$12415,7,0)+VLOOKUP(I66,sinapi!$A$2:$J$12415,8,0)+VLOOKUP(I66,sinapi!$A$2:$J$12415,10,0) -> 150.76 | H66: SINAPI | I66: 44526 | J66: =TRUNC(D66*F66,4) -> 0 | K66: =TRUNC(D66*G66,4) -> 150.76
A67: 2 | B67: PASTA LUBRIFICANTE PARA TUBOS E CONEXOES COM JUNTA ELASTICA (USO EM PVC, ACO, POLIETILENO E OUTROS) ( DE *400* G) | C67: UN | D67: 0.0417 | F67: =VLOOKUP(I67,sinapi!$A$2:$J$12415,6,0) -> 0 | G67: =VLOOKUP(I67,sinapi!$A$2:$J$12415,7,0)+VLOOKUP(I67,sinapi!$A$2:$J$12415,8,0)+VLOOKUP(I67,sinapi!$A$2:$J$12415,10,0) -> 31.72 | H67: SINAPI | I67: 20078 | J67: 0 | K67: 1.3227
A68: 3 | B68: ASSENTADOR DE TUBOS COM ENCARGOS COMPLEMENTARES | C68: H | D68: 0.0753 | F68: =VLOOKUP(I68,sinapi!$A$2:$J$12415,6,0) -> 22.54 | G68: =VLOOKUP(I68,sinapi!$A$2:$J$12415,7,0)+VLOOKUP(I68,sinapi!$A$2:$J$12415,8,0)+VLOOKUP(I68,sinapi!$A$2:$J$12415,10,0) -> 3.84 | H68: SINAPI | I68: 88246 | J68: 1.6972 | K68: 0.2891
A69: 4 | B69: SERVENTE COM ENCARGOS COMPLEMENTARES | C69: H | D69: 0.0753 | F69: =VLOOKUP(I69,sinapi!$A$2:$J$12415,6,0) -> 14.06 | G69: =VLOOKUP(I69,sinapi!$A$2:$J$12415,7,0)+VLOOKUP(I69,sinapi!$A$2:$J$12415,8,0)+VLOOKUP(I69,sinapi!$A$2:$J$12415,10,0) -> 4.78 | H69: SINAPI | I69: 88316 | J69: 1.0587 | K69: 0.3599
A72: CÓDIGO: | B72: DESCRIÇÃO: | H72: UNIDADE: | J72: CUSTO TOTAL (MO): | K72: CUSTO TOTAL (MAT+EQ):
A73: CCU 08 | B73: RELOCAÇÃO REDE DMAE PEAD PARA LOCAL DEFINITIVO JUNTO À PONTE NOVA | H73: M | J73: =TRUNC(SUM(J75:J77),2) -> 2.75 | K73: =TRUNC(SUM(K75:K77),2) -> 1.97
A74: ITEM | B74: DESCRIÇÃO | C74: UNID. | D74: COEF. | E74: REFERENCIAL COEF. | F74: CUSTO UNITARIO (MO) | G74: CUSTO UNITARIO (MAT+EQ) | H74: REFERENCIAL CUSTO | J74: CUSTO TOTAL (MO) | K74: CUSTO TOTAL (MAT+EQ)
A75: 1 | B75: PASTA LUBRIFICANTE PARA TUBOS E CONEXOES COM JUNTA ELASTICA (USO EM PVC, ACO, POLIETILENO E OUTROS) ( DE *400* G) | C75: UN | D75: 0.0417 | F75: =VLOOKUP(I75,sinapi!$A$2:$J$12415,6,0) -> 0 | G75: =VLOOKUP(I75,sinapi!$A$2:$J$12415,7,0)+VLOOKUP(I75,sinapi!$A$2:$J$12415,8,0)+VLOOKUP(I75,sinapi!$A$2:$J$12415,10,0) -> 31.72 | H75: SINAPI | I75: 20078 | J75: =TRUNC(D75*F75,4) -> 0 | K75: =TRUNC(D75*G75,4) -> 1.3227
A76: 2 | B76: ASSENTADOR DE TUBOS COM ENCARGOS COMPLEMENTARES | C76: H | D76: 0.0753 | F76: =VLOOKUP(I76,sinapi!$A$2:$J$12415,6,0) -> 22.54 | G76: =VLOOKUP(I76,sinapi!$A$2:$J$12415,7,0)+VLOOKUP(I76,sinapi!$A$2:$J$12415,8,0)+VLOOKUP(I76,sinapi!$A$2:$J$12415,10,0) -> 3.84 | H76: SINAPI | I76: 88246 | J76: 1.6972 | K76: 0.2891
A77: 3 | B77: SERVENTE COM ENCARGOS COMPLEMENTARES | C77: H | D77: 0.0753 | F77: =VLOOKUP(I77,sinapi!$A$2:$J$12415,6,0) -> 14.06 | G77: =VLOOKUP(I77,sinapi!$A$2:$J$12415,7,0)+VLOOKUP(I77,sinapi!$A$2:$J$12415,8,0)+VLOOKUP(I77,sinapi!$A$2:$J$12415,10,0) -> 4.78 | H77: SINAPI | I77: 88316 | J77: 1.0587 | K77: 0.3599
A80: CÓDIGO: | B80: DESCRIÇÃO: | H80: UNIDADE: | J80: CUSTO TOTAL (MO): | K80: CUSTO TOTAL (MAT+EQ):
A81: CCU 09 | B81: DESMONTE DE ESTRUTURA DE MADEIRA EXISTENTE | H81: M3 | J81: =TRUNC(SUM(J83:J88),2) -> 48.07 | K81: =TRUNC(SUM(K83:K88),2) -> 151.1
A82: ITEM | B82: DESCRIÇÃO | C82: UNID. | D82: COEF. | E82: REFERENCIAL COEF. | F82: CUSTO UNITARIO (MO) | G82: CUSTO UNITARIO (MAT+EQ) | H82: REFERENCIAL CUSTO | J82: CUSTO TOTAL (MO) | K82: CUSTO TOTAL (MAT+EQ)
A83: 1 | B83: SERVENTE COM ENCARGOS COMPLEMENTARES | C83: H | D83: 0.9072 | F83: =VLOOKUP(I83,sinapi!$A$2:$J$12415,6,0) -> 14.06 | G83: =VLOOKUP(I83,sinapi!$A$2:$J$12415,7,0)+VLOOKUP(I83,sinapi!$A$2:$J$12415,8,0)+VLOOKUP(I83,sinapi!$A$2:$J$12415,10,0) -> 4.78 | H83: SINAPI | I83: 88316 | J83: =TRUNC(D83*F83,4) -> 12.7552 | K83: =TRUNC(D83*G83,4) -> 4.3364
A84: 2 | B84: CARPINTEIRO DE FORMAS COM ENCARGOS COMPLEMENTARES | C84: H | D84: 0.9072 | F84: =VLOOKUP(I84,sinapi!$A$2:$J$12415,6,0) -> 17.75 | G84: =VLOOKUP(I84,sinapi!$A$2:$J$12415,7,0)+VLOOKUP(I84,sinapi!$A$2:$J$12415,8,0)+VLOOKUP(I84,sinapi!$A$2:$J$12415,10,0) -> 4.78 | H84: SINAPI | I84: 88262 | J84: 16.1028 | K84: 4.3364
A85: 3 | B85: GUINDASTE HIDRÁULICO AUTOPROPELIDO, COM LANÇA TELESCÓPICA 40 M, CAPACIDADE MÁXIMA 60 T, POTÊNCIA 260 KW - CHP DIURNO. AF_03/2016 | C85: CHP | D85: 0.3024 | F85: =VLOOKUP(I85,sinapi!$A$2:$J$12415,6,0) -> 22.07 | G85: =VLOOKUP(I85,sinapi!$A$2:$J$12415,7,0)+VLOOKUP(I85,sinapi!$A$2:$J$12415,8,0)+VLOOKUP(I85,sinapi!$A$2:$J$12415,10,0) -> 245.7 | H85: SINAPI | I85: 93287 | J85: 6.6739 | K85: 74.2996
A86: 4 | B86: GUINDASTE HIDRÁULICO AUTOPROPELIDO, COM LANÇA TELESCÓPICA 40 M, CAPACIDADE MÁXIMA 60 T, POTÊNCIA 260 KW - CHI DIURNO. AF_03/2016 | C86: CHI | D86: 0.3024 | F86: =VLOOKUP(I86,sinapi!$A$2:$J$12415,6,0) -> 22.07 | G86: =VLOOKUP(I86,sinapi!$A$2:$J$12415,7,0)+VLOOKUP(I86,sinapi!$A$2:$J$12415,8,0)+VLOOKUP(I86,sinapi!$A$2:$J$12415,10,0) -> 113 | H86: SINAPI | I86: 93288 | J86: 6.6739 | K86: 34.1712
A87: 5 | B87: TRANSPORTE COM CAMINHÃO BASCULANTE DE 10 M³, EM VIA URBANA PAVIMENTADA, DMT ATÉ 30 KM (UNIDADE: M3XKM). AF_07/2020 | C87: M3XKM | D87: 20 | F87: =VLOOKUP(I87,sinapi!$A$2:$J$12415,6,0) -> 0.24 | G87: =VLOOKUP(I87,sinapi!$A$2:$J$12415,7,0)+VLOOKUP(I87,sinapi!$A$2:$J$12415,8,0)+VLOOKUP(I87,sinapi!$A$2:$J$12415,10,0) -> 1.44 | H87: SINAPI | I87: 95875 | J87: 4.8 | K87: 28.8
A88: 6 | B88: CARGA, MANOBRA E DESCARGA DE SOLOS E MATERIAIS GRANULARES EM CAMINHÃO BASCULANTE 10 M³ - CARGA COM ESCAVADEIRA HIDRÁULICA (CAÇAMBA DE 1,20 M³ / 155 HP) E DESCARGA LIVRE (UNIDADE: M3). AF_07/2020 | C88: M3 | D88: 1.2 | F88: =VLOOKUP(I88,sinapi!$A$2:$J$12415,6,0) -> 0.89 | G88: =VLOOKUP(I88,sinapi!$A$2:$J$12415,7,0)+VLOOKUP(I88,sinapi!$A$2:$J$12415,8,0)+VLOOKUP(I88,sinapi!$A$2:$J$12415,10,0) -> 4.3 | H88: SINAPI | I88: 100978 | J88: 1.068 | K88: 5.16
A91: CÓDIGO: | B91: DESCRIÇÃO: | H91: UNIDADE: | J91: CUSTO TOTAL (MO): | K91: CUSTO TOTAL (MAT+EQ):
A92: CCU 10 | B92: REMOÇÃO DE TUBULAÇÃO DO DMAE ANEXA A PONTE EXISTENTE | H92: M | J92: =TRUNC(SUM(J94:J95),2) -> 2.75 | K92: =TRUNC(SUM(K94:K95),2) -> 0.64
A93: ITEM | B93: DESCRIÇÃO | C93: UNID. | D93: COEF. | E93: REFERENCIAL COEF. | F93: CUSTO UNITARIO (MO) | G93: CUSTO UNITARIO (MAT+EQ) | H93: REFERENCIAL CUSTO | J93: CUSTO TOTAL (MO) | K93: CUSTO TOTAL (MAT+EQ)
A94: 1 | B94: ASSENTADOR DE TUBOS COM ENCARGOS COMPLEMENTARES | C94: H | D94: 0.0753 | F94: =VLOOKUP(I94,sinapi!$A$2:$J$12415,6,0) -> 22.54 | G94: =VLOOKUP(I94,sinapi!$A$2:$J$12415,7,0)+VLOOKUP(I94,sinapi!$A$2:$J$12415,8,0)+VLOOKUP(I94,sinapi!$A$2:$J$12415,10,0) -> 3.84 | H94: SINAPI | I94: 88246 | J94: =TRUNC(D94*F94,4) -> 1.6972 | K94: =TRUNC(D94*G94,4) -> 0.2891
A95: 2 | B95: SERVENTE COM ENCARGOS COMPLEMENTARES | C95: H | D95: 0.0753 | F95: =VLOOKUP(I95,sinapi!$A$2:$J$12415,6,0) -> 14.06 | G95: =VLOOKUP(I95,sinapi!$A$2:$J$12415,7,0)+VLOOKUP(I95,sinapi!$A$2:$J$12415,8,0)+VLOOKUP(I95,sinapi!$A$2:$J$12415,10,0) -> 4.78 | H95: SINAPI | I95: 88316 | J95: 1.0587 | K95: 0.3599
A98: CÓDIGO: | B98: DESCRIÇÃO: | H98: UNIDADE: | J98: CUSTO TOTAL (MO): | K98: CUSTO TOTAL (MAT+EQ):
A99: CCU 11 | B99: REMOÇÃO GUARDA-CORPO DE AÇO | H99: M | J99: =TRUNC(SUM(J101:J104),2) -> 16.38 | K99: =TRUNC(SUM(K101:K104),2) -> 40.6
A100: ITEM | B100: DESCRIÇÃO | C100: UNID. | D100: COEF. | E100: REFERENCIAL COEF. | F100: CUSTO UNITARIO (MO) | G100: CUSTO UNITARIO (MAT+EQ) | H100: REFERENCIAL CUSTO | J100: CUSTO TOTAL (MO) | K100: CUSTO TOTAL (MAT+EQ)
A101: 1 | B101: AUXILIAR DE SERRALHEIRO COM ENCARGOS COMPLEMENTARES | C101: H | D101: 0.5 | F101: =VLOOKUP(I101,sinapi!$A$2:$J$12415,6,0) -> 15.02 | G101: =VLOOKUP(I101,sinapi!$A$2:$J$12415,7,0)+VLOOKUP(I101,sinapi!$A$2:$J$12415,8,0)+VLOOKUP(I101,sinapi!$A$2:$J$12415,10,0) -> 4.9 | H101: SINAPI | I101: 88251 | J101: =TRUNC(D101*F101,4) -> 7.51 | K101: =TRUNC(D101*G101,4) -> 2.45
A102: 2 | B102: SERRALHEIRO COM ENCARGOS COMPLEMENTARES | C102: H | D102: 0.5 | F102: =VLOOKUP(I102,sinapi!$A$2:$J$12415,6,0) -> 17.75 | G102: =VLOOKUP(I102,sinapi!$A$2:$J$12415,7,0)+VLOOKUP(I102,sinapi!$A$2:$J$12415,8,0)+VLOOKUP(I102,sinapi!$A$2:$J$12415,10,0) -> 4.9 | H102: SINAPI | I102: 88315 | J102: 8.875 | K102: 2.45
A103: 3 | B103: APARELHO PARA CORTE E SOLDA OXI-ACETILENO SOBRE RODAS, INCLUSIVE CILINDROS E MAÇARICOS - CHP DIURNO. AF_12/2015 | C103: CHP | D103: 1.4465 | F103: =VLOOKUP(I103,sinapi!$A$2:$J$12415,6,0) -> 0 | G103: =VLOOKUP(I103,sinapi!$A$2:$J$12415,7,0)+VLOOKUP(I103,sinapi!$A$2:$J$12415,8,0)+VLOOKUP(I103,sinapi!$A$2:$J$12415,10,0) -> 24.27 | H103: SINAPI | I103: 92716 | J103: 0 | K103: 35.1065
A104: 4 | B104: APARELHO PARA CORTE E SOLDA OXI-ACETILENO SOBRE RODAS, INCLUSIVE CILINDROS E MAÇARICOS - CHI DIURNO. AF_12/2015 | C104: CHI | D104: 3.5307 | F104: =VLOOKUP(I104,sinapi!$A$2:$J$12415,6,0) -> 0 | G104: =VLOOKUP(I104,sinapi!$A$2:$J$12415,7,0)+VLOOKUP(I104,sinapi!$A$2:$J$12415,8,0)+VLOOKUP(I104,sinapi!$A$2:$J$12415,10,0) -> 0.17 | H104: SINAPI | I104: 92717 | J104: 0 | K104: 0.6002
A107: CÓDIGO: | B107: DESCRIÇÃO: | H107: UNIDADE: | J107: CUSTO TOTAL (MO): | K107: CUSTO TOTAL (MAT+EQ):
A108: CCU 12 | B108: MONTAGEM PASSARELA DE MADEIRA - FORNECIMENTO E INSTALAÇÃO | H108: UN | J108: =TRUNC(SUM(J110:J119),2) -> 7689.06 | K108: =TRUNC(SUM(K110:K119),2) -> 194253.02
A109: ITEM | B109: DESCRIÇÃO | C109: UNID. | D109: COEF. | E109: REFERENCIAL COEF. | F109: CUSTO UNITARIO (MO) | G109: CUSTO UNITARIO (MAT+EQ) | H109: REFERENCIAL CUSTO | J109: CUSTO TOTAL (MO) | K109: CUSTO TOTAL (MAT+EQ)
A110: 1 | B110: MADEIRA ROLICA TRATADA, D = 25 A 29 CM, EM EUCALIPTO OU EQUIVALENTE DA REGIAO | C110: M | D110: 326.3 | F110: =VLOOKUP(I110,sinapi!$A$2:$J$12415,6,0) -> 0 | G110: =VLOOKUP(I110,sinapi!$A$2:$J$12415,7,0)+VLOOKUP(I110,sinapi!$A$2:$J$12415,8,0)+VLOOKUP(I110,sinapi!$A$2:$J$12415,10,0) -> 169.4 | H110: SINAPI | I110: 2794 | J110: =TRUNC(D110*F110,4) -> 0 | K110: =TRUNC(D110*G110,4) -> 55275.22
A111: 2 | B111: MADEIRA ROLICA TRATADA, D = 30 A 34 CM, EM EUCALIPTO OU EQUIVALENTE DA REGIAO | C111: M | D111: 420 | F111: =VLOOKUP(I111,sinapi!$A$2:$J$12415,6,0) -> 0 | G111: =VLOOKUP(I111,sinapi!$A$2:$J$12415,7,0)+VLOOKUP(I111,sinapi!$A$2:$J$12415,8,0)+VLOOKUP(I111,sinapi!$A$2:$J$12415,10,0) -> 246.78 | H111: SINAPI | I111: 2788 | J111: 0 | K111: 103647.6
A112: 3 | B112: TABUA APARELHADA *2,5 X 30* CM, EM MACARANDUBA, ANGELIM OU EQUIVALENTE DA REGIAO | C112: M | D112: 532.8 | F112: =VLOOKUP(I112,sinapi!$A$2:$J$12415,6,0) -> 0 | G112: =VLOOKUP(I112,sinapi!$A$2:$J$12415,7,0)+VLOOKUP(I112,sinapi!$A$2:$J$12415,8,0)+VLOOKUP(I112,sinapi!$A$2:$J$12415,10,0) -> 18.44 | H112: SINAPI | I112: 3992 | J112: 0 | K112: 9824.832
A113: 4 | B113: CAIBRO NAO APARELHADO EM MACARANDUBA, ANGELIM OU EQUIVALENTE DA REGIAO - BRUTA | C113: M | D113: 184.6 | F113: =VLOOKUP(I113,sinapi!$A$2:$J$12415,6,0) -> 0 | G113: =VLOOKUP(I113,sinapi!$A$2:$J$12415,7,0)+VLOOKUP(I113,sinapi!$A$2:$J$12415,8,0)+VLOOKUP(I113,sinapi!$A$2:$J$12415,10,0) -> 15.54 | H113: SINAPI | I113: 4433 | J113: 0 | K113: 2868.684
A114: 5 | B114: SERVENTE COM ENCARGOS COMPLEMENTARES | C114: H | D114: 176 | F114: =VLOOKUP(I114,sinapi!$A$2:$J$12415,6,0) -> 14.06 | G114: =VLOOKUP(I114,sinapi!$A$2:$J$12415,7,0)+VLOOKUP(I114,sinapi!$A$2:$J$12415,8,0)+VLOOKUP(I114,sinapi!$A$2:$J$12415,10,0) -> 4.78 | H114: SINAPI | I114: 88316 | J114: 2474.56 | K114: 841.28
A115: 6 | B115: CARPINTEIRO DE FORMAS COM ENCARGOS COMPLEMENTARES | C115: H | D115: 176 | F115: =VLOOKUP(I115,sinapi!$A$2:$J$12415,6,0) -> 17.75 | G115: =VLOOKUP(I115,sinapi!$A$2:$J$12415,7,0)+VLOOKUP(I115,sinapi!$A$2:$J$12415,8,0)+VLOOKUP(I115,sinapi!$A$2:$J$12415,10,0) -> 4.78 | H115: SINAPI | I115: 88262 | J115: 3124 | K115: 841.28
A116: 7 | B116: GUINDASTE HIDRÁULICO AUTOPROPELIDO, COM LANÇA TELESCÓPICA 40 M, CAPACIDADE MÁXIMA 60 T, POTÊNCIA 260 KW - CHP DIURNO. AF_03/2016 | C116: CHP | D116: 44 | F116: =VLOOKUP(I116,sinapi!$A$2:$J$12415,6,0) -> 22.07 | G116: =VLOOKUP(I116,sinapi!$A$2:$J$12415,7,0)+VLOOKUP(I116,sinapi!$A$2:$J$12415,8,0)+VLOOKUP(I116,sinapi!$A$2:$J$12415,10,0) -> 245.7 | H116: SINAPI | I116: 93287 | J116: 971.08 | K116: 10810.8
A117: 8 | B117: GUINDASTE HIDRÁULICO AUTOPROPELIDO, COM LANÇA TELESCÓPICA 40 M, CAPACIDADE MÁXIMA 60 T, POTÊNCIA 260 KW - CHI DIURNO. AF_03/2016 | C117: CHI | D117: 44 | F117: =VLOOKUP(I117,sinapi!$A$2:$J$12415,6,0) -> 22.07 | G117: =VLOOKUP(I117,sinapi!$A$2:$J$12415,7,0)+VLOOKUP(I117,sinapi!$A$2:$J$12415,8,0)+VLOOKUP(I117,sinapi!$A$2:$J$12415,10,0) -> 113 | H117: SINAPI | I117: 93288 | J117: 971.08 | K117: 4972
A118: 9 | B118: TRANSPORTE COM CAMINHÃO BASCULANTE DE 10 M³, EM VIA URBANA PAVIMENTADA, DMT ATÉ 30 KM (UNIDADE: M3XKM). AF_07/2020 | C118: M3XKM | D118: 618.0958 | F118: =VLOOKUP(I118,sinapi!$A$2:$J$12415,6,0) -> 0.24 | G118: =VLOOKUP(I118,sinapi!$A$2:$J$12415,7,0)+VLOOKUP(I118,sinapi!$A$2:$J$12415,8,0)+VLOOKUP(I118,sinapi!$A$2:$J$12415,10,0) -> 1.44 | H118: SINAPI | I118: 95875 | J118: 148.3429 | K118: 890.0579
A119: 10 | B119: TELA DE ARAME ONDULADA, FIO *2,77* MM (12 BWG), MALHA 5 X 5 CM, H = 2 M | C119: M2 | D119: 133 | F119: =VLOOKUP(I119,sinapi!$A$2:$J$12415,6,0) -> 0 | G119: =VLOOKUP(I119,sinapi!$A$2:$J$12415,7,0)+VLOOKUP(I119,sinapi!$A$2:$J$12415,8,0)+VLOOKUP(I119,sinapi!$A$2:$J$12415,10,0) -> 32.19 | H119: SINAPI | I119: 7164 | J119: 0 | K119: 4281.27
A122: CÓDIGO: | B122: DESCRIÇÃO: | H122: UNIDADE: | J122: CUSTO TOTAL (MO): | K122: CUSTO TOTAL (MAT+EQ):
A123: CCU 13 | B123: ENROCAMENTO COM PEDRA DE MÃO, INCLUSIVE ESPALHAMENTO E COMPACTAÇÃO MECÂNICA - FORNECIMENTO E ASSENTAMENTO | H123: M3 | J123: =TRUNC(SUM(J125:J129),2) -> 0.27 | K123: =TRUNC(SUM(K125:K129),2) -> 98.15
A124: ITEM | B124: DESCRIÇÃO | C124: UNID. | D124: COEF. | E124: REFERENCIAL COEF. | F124: CUSTO UNITARIO (MO) | G124: CUSTO UNITARIO (MAT+EQ) | H124: REFERENCIAL CUSTO | J124: CUSTO TOTAL (MO) | K124: CUSTO TOTAL (MAT+EQ)
A125: 1 | B125: SERVENTE COM ENCARGOS COMPLEMENTARES | C125: H | D125: =TRUNC(1/50.11,4) -> 0.0199 | E125: 1505877 - SICRO | F125: =VLOOKUP(I125,sinapi!$A$2:$J$12415,6,0) -> 14.06 | G125: =VLOOKUP(I125,sinapi!$A$2:$J$12415,7,0)+VLOOKUP(I125,sinapi!$A$2:$J$12415,8,0)+VLOOKUP(I125,sinapi!$A$2:$J$12415,10,0) -> 4.78 | H125: SINAPI | I125: 88316 | J125: =TRUNC(D125*F125,4) -> 0.2797 | K125: =TRUNC(D125*G125,4) -> 0.0951
A126: 2 | B126: Rolo compactador liso vibratório autopropelido por pneus de 11 t - 97 kW | C126: CHP | D126: =TRUNC(0.35/50.11,4) -> 0.0069 | E126: 1505877 - SICRO | F126: 0 | G126: =TRUNC(167.1187*(1+orcamento!$E$116),4) -> 170.6783 | H126: SICRO | I126: E9530 | J126: 0 | K126: 1.1776
A127: 3 | B127: Rolo compactador liso vibratório autopropelido por pneus de 11 t - 97 kW | C127: CHI | D127: =TRUNC(0.65/50.11,4) -> 0.0129 | E127: 1505877 - SICRO | F127: 0 | G127: =TRUNC(167.1187*(1+orcamento!$E$116),4) -> 170.6783 | H127: SICRO | I127: E9530 | J127: =TRUNC(D127*F127,4) -> 0 | K127: =TRUNC(D127*G127,4) -> 2.2017
A128: 4 | B128: Trator sobre esteiras com lâmina - 259 kW | C128: CHP | D128: =TRUNC(1/50.11,4) -> 0.0199 | E128: 1505877 - SICRO | F128: 0 | G128: =TRUNC(573.8016*(1+orcamento!$E$116),4) -> 586.0235 | H128: SICRO | I128: E9541 | J128: 0 | K128: 11.6618
A129: 5 | B129: Pedra de mão ou rachão | C129: M3 | D129: 1.2 | E129: 1505877 - SICRO | F129: 0 | G129: =TRUNC(67.736*(1+orcamento!$E$116),4) -> 69.1787 | H129: SICRO | I129: M1097 | J129: 0 | K129: 83.0144
A132: CÓDIGO: | B132: DESCRIÇÃO: | H132: UNIDADE: | J132: CUSTO TOTAL (MO): | K132: CUSTO TOTAL (MAT+EQ):
A133: CCU 14 | B133: INSTALAÇÃO DO POSTE MEDIÇÃO E COMANDO | H133: UN | J133: =TRUNC(SUM(J135:J138),2) -> 294.5 | K133: =TRUNC(SUM(K135:K138),2) -> 1951.78
A134: ITEM | B134: DESCRIÇÃO | C134: UNID. | D134: COEF. | E134: REFERENCIAL COEF. | F134: CUSTO UNITARIO (MO) | G134: CUSTO UNITARIO (MAT+EQ) | H134: REFERENCIAL CUSTO | J134: CUSTO TOTAL (MO) | K134: CUSTO TOTAL (MAT+EQ)
A135: 1 | B135: ESCAVAÇÃO MANUAL DE VALA COM PROFUNDIDADE MENOR OU IGUAL A 1,30 M. AF_02/2021 | C135: M3 | D135: 5.25 | F135: =VLOOKUP(I135,sinapi!$A$2:$J$12415,6,0) -> 55.64 | G135: =VLOOKUP(I135,sinapi!$A$2:$J$12415,7,0)+VLOOKUP(I135,sinapi!$A$2:$J$12415,8,0)+VLOOKUP(I135,sinapi!$A$2:$J$12415,10,0) -> 18.89 | H135: SINAPI | I135: 93358 | J135: =TRUNC(D135*F135,4) -> 292.11 | K135: =TRUNC(D135*G135,4) -> 99.1725
A136: 2 | B136: CAIXA DE INSPECAO PARA ATERRAMENTO OU OUTRO USO, EM PVC, DN = 250 X 250 MM | C136: UN | D136: 1 | F136: =VLOOKUP(I136,sinapi!$A$2:$J$12415,6,0) -> 0 | G136: =VLOOKUP(I136,sinapi!$A$2:$J$12415,7,0)+VLOOKUP(I136,sinapi!$A$2:$J$12415,8,0)+VLOOKUP(I136,sinapi!$A$2:$J$12415,10,0) -> 59.75 | H136: SINAPI | I136: 41480 | J136: 0 | K136: 59.75
A137: 3 | B137: Poste de concreto seção circular 9m - 200 daN | C137: UN | D137: 1 | F137: =VLOOKUP(I137,sinapi!$A$2:$J$12415,6,0) -> 0 | G137: =VLOOKUP(I137,sinapi!$A$2:$J$12415,7,0)+VLOOKUP(I137,sinapi!$A$2:$J$12415,8,0)+VLOOKUP(I137,sinapi!$A$2:$J$12415,10,0) -> 1770.69 | H137: SINAPI | I137: 5044 | J137: 0 | K137: 1770.69
A138: 4 | B138: GUINDAUTO HIDRÁULICO, CAPACIDADE MÁXIMA DE CARGA 6200 KG, MOMENTO MÁXIMO DE CARGA 11,7 TM, ALCANCE MÁXIMO HORIZONTAL 9,70 M, INCLUSIVE CAMINHÃO TOCO PBT 16.000 KG, POTÊNCIA DE 189 CV - CHP DIURNO. AF_06/2014 | C138: CHP | D138: 0.11 | F138: =VLOOKUP(I138,sinapi!$A$2:$J$12415,6,0) -> 21.8 | G138: =VLOOKUP(I138,sinapi!$A$2:$J$12415,7,0)+VLOOKUP(I138,sinapi!$A$2:$J$12415,8,0)+VLOOKUP(I138,sinapi!$A$2:$J$12415,10,0) -> 201.55 | H138: SINAPI | I138: 5928 | J138: 2.398 | K138: 22.1705
A141: CÓDIGO: | B141: DESCRIÇÃO: | H141: UNIDADE: | J141: CUSTO TOTAL (MO): | K141: CUSTO TOTAL (MAT+EQ):
A142: CCU 15 | B142: INSTALAÇÃO DE CABOS E DISPOSITIVOS DE MEDIÇÃO E COMANDO | H142: UN | J142: =TRUNC(SUM(J144:J176),2) -> 1290.72 | K142: =TRUNC(SUM(K144:K176),2) -> 5382.14
A143: ITEM | B143: DESCRIÇÃO | C143: UNID. | D143: COEF. | E143: REFERENCIAL COEF. | F143: CUSTO UNITARIO (MO) | G143: CUSTO UNITARIO (MAT+EQ) | H143: REFERENCIAL CUSTO | J143: CUSTO TOTAL (MO) | K143: CUSTO TOTAL (MAT+EQ)
A144: 1 | B144: AUXILIAR DE ELETRICISTA COM ENCARGOS COMPLEMENTARES | C144: H | D144: 32 | F144: =VLOOKUP(I144,sinapi!$A$2:$J$12415,6,0) -> 12.87 | G144: =VLOOKUP(I144,sinapi!$A$2:$J$12415,7,0)+VLOOKUP(I144,sinapi!$A$2:$J$12415,8,0)+VLOOKUP(I144,sinapi!$A$2:$J$12415,10,0) -> 4.92 | H144: SINAPI | I144: 88247 | J144: =TRUNC(D144*F144,4) -> 411.84 | K144: =TRUNC(D144*G144,4) -> 157.44
A145: 2 | B145: ELETRICISTA COM ENCARGOS COMPLEMENTARES | C145: H | D145: =32+16 -> 48 | F145: =VLOOKUP(I145,sinapi!$A$2:$J$12415,6,0) -> 18.31 | G145: =VLOOKUP(I145,sinapi!$A$2:$J$12415,7,0)+VLOOKUP(I145,sinapi!$A$2:$J$12415,8,0)+VLOOKUP(I145,sinapi!$A$2:$J$12415,10,0) -> 4.92 | H145: SINAPI | I145: 88264 | J145: 878.88 | K145: 236.16
A146: 3 | B146: Disjuntor binolar até 32A | C146: UN | D146: 1 | F146: =VLOOKUP(I146,sinapi!$A$2:$J$12415,6,0) -> 0 | G146: =VLOOKUP(I146,sinapi!$A$2:$J$12415,7,0)+VLOOKUP(I146,sinapi!$A$2:$J$12415,8,0)+VLOOKUP(I146,sinapi!$A$2:$J$12415,10,0) -> 52.93 | H146: SINAPI | I146: 34616 | J146: 0 | K146: 52.93
A147: 4 | B147: Disjuntor monolar até 32A | C147: UN | D147: 1 | F147: =VLOOKUP(I147,sinapi!$A$2:$J$12415,6,0) -> 0 | G147: =VLOOKUP(I147,sinapi!$A$2:$J$12415,7,0)+VLOOKUP(I147,sinapi!$A$2:$J$12415,8,0)+VLOOKUP(I147,sinapi!$A$2:$J$12415,10,0) -> 9.23 | H147: SINAPI | I147: 34653 | J147: 0 | K147: 9.23
A148: 5 | B148: Dispositivo DR | C148: UN | D148: 1 | F148: =VLOOKUP(I148,sinapi!$A$2:$J$12415,6,0) -> 0 | G148: =VLOOKUP(I148,sinapi!$A$2:$J$12415,7,0)+VLOOKUP(I148,sinapi!$A$2:$J$12415,8,0)+VLOOKUP(I148,sinapi!$A$2:$J$12415,10,0) -> 162 | H148: SINAPI | I148: 39455 | J148: 0 | K148: 162
A149: 6 | B149: Dispositivo de proteção de surto 40kA | C149: UN | D149: 3 | F149: =VLOOKUP(I149,sinapi!$A$2:$J$12415,6,0) -> 0 | G149: =VLOOKUP(I149,sinapi!$A$2:$J$12415,7,0)+VLOOKUP(I149,sinapi!$A$2:$J$12415,8,0)+VLOOKUP(I149,sinapi!$A$2:$J$12415,10,0) -> 69.1 | H149: SINAPI | I149: 39465 | J149: 0 | K149: 207.3
A150: 7 | B150: Contator In=12A - AC3 | C150: UN | D150: 1 | F150: =VLOOKUP(I150,sinapi!$A$2:$J$12415,6,0) -> 0 | G150: =VLOOKUP(I150,sinapi!$A$2:$J$12415,7,0)+VLOOKUP(I150,sinapi!$A$2:$J$12415,8,0)+VLOOKUP(I150,sinapi!$A$2:$J$12415,10,0) -> 261.03 | H150: SINAPI | I150: 1623 | J150: 0 | K150: 261.03
A151: 8 | B151: Caixas (quadros metálicos) 400x400x200mm | C151: UN | D151: 1 | F151: 0 | G151: =cotacao!I17 -> 309.37 | H151: COTACAO | I151: COT 02 | J151: 0 | K151: 309.37
A152: 9 | B152: Armação secundária de 1 estribo completa | C152: UN | D152: 2 | F152: =VLOOKUP(I152,sinapi!$A$2:$J$12415,6,0) -> 0 | G152: =VLOOKUP(I152,sinapi!$A$2:$J$12415,7,0)+VLOOKUP(I152,sinapi!$A$2:$J$12415,8,0)+VLOOKUP(I152,sinapi!$A$2:$J$12415,10,0) -> 37.47 | H152: SINAPI | I152: 1091 | J152: 0 | K152: 74.94
A153: 10 | B153: Arruela de alumínio para eletroduto Ø 1" | C153: UN | D153: 1 | F153: =VLOOKUP(I153,sinapi!$A$2:$J$12415,6,0) -> 0 | G153: =VLOOKUP(I153,sinapi!$A$2:$J$12415,7,0)+VLOOKUP(I153,sinapi!$A$2:$J$12415,8,0)+VLOOKUP(I153,sinapi!$A$2:$J$12415,10,0) -> 0.84 | H153: SINAPI | I153: 39210 | J153: 0 | K153: 0.84
A154: 11 | B154: Arruela de alumínio para eletroduto Ø 2" | C154: UN | D154: 1 | F154: =VLOOKUP(I154,sinapi!$A$2:$J$12415,6,0) -> 0 | G154: =VLOOKUP(I154,sinapi!$A$2:$J$12415,7,0)+VLOOKUP(I154,sinapi!$A$2:$J$12415,8,0)+VLOOKUP(I154,sinapi!$A$2:$J$12415,10,0) -> 2.19 | H154: SINAPI | I154: 39213 | J154: 0 | K154: 2.19
A155: 12 | B155: Bucha de alumínio para eletrodutos de Ø 1" | C155: UN | D155: 1 | F155: =VLOOKUP(I155,sinapi!$A$2:$J$12415,6,0) -> 0 | G155: =VLOOKUP(I155,sinapi!$A$2:$J$12415,7,0)+VLOOKUP(I155,sinapi!$A$2:$J$12415,8,0)+VLOOKUP(I155,sinapi!$A$2:$J$12415,10,0) -> 1.13 | H155: SINAPI | I155: 39176 | J155: 0 | K155: 1.13
A156: 13 | B156: Bucha de alumínio para eletrodutos de Ø 2" | C156: UN | D156: 1 | F156: =VLOOKUP(I156,sinapi!$A$2:$J$12415,6,0) -> 0 | G156: =VLOOKUP(I156,sinapi!$A$2:$J$12415,7,0)+VLOOKUP(I156,sinapi!$A$2:$J$12415,8,0)+VLOOKUP(I156,sinapi!$A$2:$J$12415,10,0) -> 4.59 | H156: SINAPI | I156: 39179 | J156: 0 | K156: 4.59
A157: 14 | B157: Cabo de cobre nu, seção 4 AWG (25mm²) | C157: M | D157: 65 | F157: =VLOOKUP(I157,sinapi!$A$2:$J$12415,6,0) -> 0 | G157: =VLOOKUP(I157,sinapi!$A$2:$J$12415,7,0)+VLOOKUP(I157,sinapi!$A$2:$J$12415,8,0)+VLOOKUP(I157,sinapi!$A$2:$J$12415,10,0) -> 25.46 | H157: SINAPI | I157: 868 | J157: 0 | K157: 1654.9
A158: 15 | B158: Cabo de cobre singelo, seção 10mm² - PVC 0,6/1kV | C158: M | D158: 64 | F158: =VLOOKUP(I158,sinapi!$A$2:$J$12415,6,0) -> 0 | G158: =VLOOKUP(I158,sinapi!$A$2:$J$12415,7,0)+VLOOKUP(I158,sinapi!$A$2:$J$12415,8,0)+VLOOKUP(I158,sinapi!$A$2:$J$12415,10,0) -> 11.26 | H158: SINAPI | I158: 1020 | J158: 0 | K158: 720.64
A159: 16 | B159: Cabo ramal multiplex duplex 2#10(10)m² | C159: M | D159: 5 | F159: 0 | G159: =cotacao!I18 -> 3.51 | H159: COTACAO | I159: COT 03 | J159: 0 | K159: 17.55
A160: 17 | B160: Caixa de medição padrão com visor para uso em poste | C160: UN | D160: 1 | F160: =VLOOKUP(I160,sinapi!$A$2:$J$12415,6,0) -> 0 | G160: =VLOOKUP(I160,sinapi!$A$2:$J$12415,7,0)+VLOOKUP(I160,sinapi!$A$2:$J$12415,8,0)+VLOOKUP(I160,sinapi!$A$2:$J$12415,10,0) -> 337.18 | H160: SINAPI | I160: 1062 | J160: 0 | K160: 337.18
A161: 18 | B161: Cinta galvanizada para poste circular | C161: UN | D161: 5 | F161: =VLOOKUP(I161,sinapi!$A$2:$J$12415,6,0) -> 0 | G161: =VLOOKUP(I161,sinapi!$A$2:$J$12415,7,0)+VLOOKUP(I161,sinapi!$A$2:$J$12415,8,0)+VLOOKUP(I161,sinapi!$A$2:$J$12415,10,0) -> 46.56 | H161: SINAPI | I161: 12327 | J161: 0 | K161: 232.8
A162: 19 | B162: Conector - terminal sapata - 25mm² | C162: UN | D162: 1 | F162: =VLOOKUP(I162,sinapi!$A$2:$J$12415,6,0) -> 0 | G162: =VLOOKUP(I162,sinapi!$A$2:$J$12415,7,0)+VLOOKUP(I162,sinapi!$A$2:$J$12415,8,0)+VLOOKUP(I162,sinapi!$A$2:$J$12415,10,0) -> 7.09 | H162: SINAPI | I162: 1586 | J162: 0 | K162: 7.09
A163: 20 | B163: Conector perfurante principal 16 - 95mm² - derivacao 4-35mm² | C163: UN | D163: 2 | F163: 0 | G163: =cotacao!I19 -> 7.49 | H163: COTACAO | I163: COT 04 | J163: 0 | K163: 14.98
A164: 21 | B164: Curva de eletroduto PVC Ø 2" | C164: UN | D164: 2 | F164: =VLOOKUP(I164,sinapi!$A$2:$J$12415,6,0) -> 0 | G164: =VLOOKUP(I164,sinapi!$A$2:$J$12415,7,0)+VLOOKUP(I164,sinapi!$A$2:$J$12415,8,0)+VLOOKUP(I164,sinapi!$A$2:$J$12415,10,0) -> 63.79 | H164: SINAPI | I164: 2631 | J164: 0 | K164: 127.58
A165: 22 | B165: Disjuntor tripolar termomagnético In =50A | C165: UN | D165: 1 | F165: =VLOOKUP(I165,sinapi!$A$2:$J$12415,6,0) -> 0 | G165: =VLOOKUP(I165,sinapi!$A$2:$J$12415,7,0)+VLOOKUP(I165,sinapi!$A$2:$J$12415,8,0)+VLOOKUP(I165,sinapi!$A$2:$J$12415,10,0) -> 64.85 | H165: SINAPI | I165: 34709 | J165: 0 | K165: 64.85
A166: 23 | B166: Eletroduto Corrugado em PEAD Ø 1" | C166: M | D166: 2 | F166: =VLOOKUP(I166,sinapi!$A$2:$J$12415,6,0) -> 0 | G166: =VLOOKUP(I166,sinapi!$A$2:$J$12415,7,0)+VLOOKUP(I166,sinapi!$A$2:$J$12415,8,0)+VLOOKUP(I166,sinapi!$A$2:$J$12415,10,0) -> 6.99 | H166: SINAPI | I166: 39247 | J166: 0 | K166: 13.98
A167: 24 | B167: Eletroduto de aço galvanizado roscável Ø 1" - L=3m | C167: M | D167: 3 | F167: 0 | G167: =cotacao!I20 -> 26.27 | H167: COTACAO | I167: COT 05 | J167: 0 | K167: 78.81
A168: 25 | B168: Eletroduto de aço galvanizado roscável Ø 2" - L=3m | C168: M | D168: 4 | F168: 0 | G168: =cotacao!I21 -> 80.76 | H168: COTACAO | I168: COT 06 | J168: 0 | K168: 323.04
A169: 26 | B169: Fita autofusão em rolo 10m | C169: M | D169: 20 | F169: =VLOOKUP(I169,sinapi!$A$2:$J$12415,6,0) -> 0 | G169: =VLOOKUP(I169,sinapi!$A$2:$J$12415,7,0)+VLOOKUP(I169,sinapi!$A$2:$J$12415,8,0)+VLOOKUP(I169,sinapi!$A$2:$J$12415,10,0) -> 1 | H169: SINAPI | I169: 404 | J169: 0 | K169: 20
A170: 27 | B170: Fita isolante plástica em rolo de 20m | C170: UN | D170: 1 | F170: =VLOOKUP(I170,sinapi!$A$2:$J$12415,6,0) -> 0 | G170: =VLOOKUP(I170,sinapi!$A$2:$J$12415,7,0)+VLOOKUP(I170,sinapi!$A$2:$J$12415,8,0)+VLOOKUP(I170,sinapi!$A$2:$J$12415,10,0) -> 7.4 | H170: SINAPI | I170: 20111 | J170: 0 | K170: 7.4
A171: 28 | B171: Haste de aterramento cobreada Ø19mm L=3m | C171: UN | D171: 1 | F171: =VLOOKUP(I171,sinapi!$A$2:$J$12415,6,0) -> 0 | G171: =VLOOKUP(I171,sinapi!$A$2:$J$12415,7,0)+VLOOKUP(I171,sinapi!$A$2:$J$12415,8,0)+VLOOKUP(I171,sinapi!$A$2:$J$12415,10,0) -> 124.28 | H171: SINAPI | I171: 3378 | J171: 0 | K171: 124.28
A172: 29 | B172: Isolador roldana | C172: UN | D172: 1 | F172: =VLOOKUP(I172,sinapi!$A$2:$J$12415,6,0) -> 0 | G172: =VLOOKUP(I172,sinapi!$A$2:$J$12415,7,0)+VLOOKUP(I172,sinapi!$A$2:$J$12415,8,0)+VLOOKUP(I172,sinapi!$A$2:$J$12415,10,0) -> 5.64 | H172: SINAPI | I172: 3398 | J172: 0 | K172: 5.64
A173: 30 | B173: Luva de eletroduto de aço galvanizado Ø 2" | C173: UN | D173: 2 | F173: =VLOOKUP(I173,sinapi!$A$2:$J$12415,6,0) -> 0 | G173: =VLOOKUP(I173,sinapi!$A$2:$J$12415,7,0)+VLOOKUP(I173,sinapi!$A$2:$J$12415,8,0)+VLOOKUP(I173,sinapi!$A$2:$J$12415,10,0) -> 18.06 | H173: SINAPI | I173: 2643 | J173: 0 | K173: 36.12
A174: 31 | B174: Luva de eletroduto de PVC Ø 2" | C174: UN | D174: 5 | F174: =VLOOKUP(I174,sinapi!$A$2:$J$12415,6,0) -> 0 | G174: =VLOOKUP(I174,sinapi!$A$2:$J$12415,7,0)+VLOOKUP(I174,sinapi!$A$2:$J$12415,8,0)+VLOOKUP(I174,sinapi!$A$2:$J$12415,10,0) -> 6.57 | H174: SINAPI | I174: 1894 | J174: 0 | K174: 32.85
A175: 32 | B175: Massa de calafetar | C175: KG | D175: 1 | F175: 0 | G175: =cotacao!I22 -> 29.9 | H175: COTACAO | I175: COT 07 | J175: 0 | K175: 29.9
A176: 33 | B176: Relé fotoelétrico | C176: UN | D176: 1 | F176: =VLOOKUP(I176,sinapi!$A$2:$J$12415,6,0) -> 0 | G176: =VLOOKUP(I176,sinapi!$A$2:$J$12415,7,0)+VLOOKUP(I176,sinapi!$A$2:$J$12415,8,0)+VLOOKUP(I176,sinapi!$A$2:$J$12415,10,0) -> 53.4 | H176: SINAPI | I176: 2510 | J176: 0 | K176: 53.4
A179: CÓDIGO: | B179: DESCRIÇÃO: | H179: UNIDADE: | J179: CUSTO TOTAL (MO): | K179: CUSTO TOTAL (MAT+EQ):
A180: CCU 16 | B180: INSTALAÇÃO DE POSTE DE AÇO PARA ILUMINAÇÃO | H180: UN | J180: =TRUNC(SUM(J182:J183),2) -> 2.39 | K180: =TRUNC(SUM(K182:K183),2) -> 3026.51
A181: ITEM | B181: DESCRIÇÃO | C181: UNID. | D181: COEF. | E181: REFERENCIAL COEF. | F181: CUSTO UNITARIO (MO) | G181: CUSTO UNITARIO (MAT+EQ) | H181: REFERENCIAL CUSTO | J181: CUSTO TOTAL (MO) | K181: CUSTO TOTAL (MAT+EQ)
A182: 1 | B182: Poste de aço reto IP-PA8 | C182: UN | D182: 1 | F182: =VLOOKUP(I182,sinapi!$A$2:$J$12415,6,0) -> 0 | G182: =VLOOKUP(I182,sinapi!$A$2:$J$12415,7,0)+VLOOKUP(I182,sinapi!$A$2:$J$12415,8,0)+VLOOKUP(I182,sinapi!$A$2:$J$12415,10,0) -> 3004.34 | H182: SINAPI | I182: 14165 | J182: =TRUNC(D182*F182,4) -> 0 | K182: =TRUNC(D182*G182,4) -> 3004.34
A183: 2 | B183: GUINDAUTO HIDRÁULICO, CAPACIDADE MÁXIMA DE CARGA 6200 KG, MOMENTO MÁXIMO DE CARGA 11,7 TM, ALCANCE MÁXIMO HORIZONTAL 9,70 M, INCLUSIVE CAMINHÃO TOCO PBT 16.000 KG, POTÊNCIA DE 189 CV - CHP DIURNO. AF_06/2014 | C183: CHP | D183: 0.11 | F183: =VLOOKUP(I183,sinapi!$A$2:$J$12415,6,0) -> 21.8 | G183: =VLOOKUP(I183,sinapi!$A$2:$J$12415,7,0)+VLOOKUP(I183,sinapi!$A$2:$J$12415,8,0)+VLOOKUP(I183,sinapi!$A$2:$J$12415,10,0) -> 201.55 | H183: SINAPI | I183: 5928 | J183: 2.398 | K183: 22.1705
A186: CÓDIGO: | B186: DESCRIÇÃO: | H186: UNIDADE: | J186: CUSTO TOTAL (MO): | K186: CUSTO TOTAL (MAT+EQ):
A187: CCU 17 | B187: INSTALAÇÃO PARA ILUMINAÇÃO E ALIMENTAÇÃO DOS POSTES | H187: UN | J187: =TRUNC(SUM(J189:J200),2) -> 831.46 | K187: =TRUNC(SUM(K189:K200),2) -> 863.72
A188: ITEM | B188: DESCRIÇÃO | C188: UNID. | D188: COEF. | E188: REFERENCIAL COEF. | F188: CUSTO UNITARIO (MO) | G188: CUSTO UNITARIO (MAT+EQ) | H188: REFERENCIAL CUSTO | J188: CUSTO TOTAL (MO) | K188: CUSTO TOTAL (MAT+EQ)
A189: 1 | B189: AUXILIAR DE ELETRICISTA COM ENCARGOS COMPLEMENTARES | C189: H | D189: 26.6667 | F189: =VLOOKUP(I189,sinapi!$A$2:$J$12415,6,0) -> 12.87 | G189: =VLOOKUP(I189,sinapi!$A$2:$J$12415,7,0)+VLOOKUP(I189,sinapi!$A$2:$J$12415,8,0)+VLOOKUP(I189,sinapi!$A$2:$J$12415,10,0) -> 4.92 | H189: SINAPI | I189: 88247 | J189: =TRUNC(D189*F189,4) -> 343.2004 | K189: =TRUNC(D189*G189,4) -> 131.2001
A190: 2 | B190: ELETRICISTA COM ENCARGOS COMPLEMENTARES | C190: H | D190: 26.6667 | F190: =VLOOKUP(I190,sinapi!$A$2:$J$12415,6,0) -> 18.31 | G190: =VLOOKUP(I190,sinapi!$A$2:$J$12415,7,0)+VLOOKUP(I190,sinapi!$A$2:$J$12415,8,0)+VLOOKUP(I190,sinapi!$A$2:$J$12415,10,0) -> 4.92 | H190: SINAPI | I190: 88264 | J190: 488.2672 | K190: 131.2001
A191: 3 | B191: ALCA PREFORMADA DE DISTRIBUICAO, EM ACO GALVANIZADO, PARA CABO DE ALUMINIO DIAMETRO 16 A 25 MM | C191: UN | D191: 1 | F191: =VLOOKUP(I191,sinapi!$A$2:$J$12415,6,0) -> 0 | G191: =VLOOKUP(I191,sinapi!$A$2:$J$12415,7,0)+VLOOKUP(I191,sinapi!$A$2:$J$12415,8,0)+VLOOKUP(I191,sinapi!$A$2:$J$12415,10,0) -> 4.43 | H191: SINAPI | I191: 417 | J191: 0 | K191: 4.43
A192: 4 | B192: ARMACAO VERTICAL COM HASTE E CONTRA-PINO, EM CHAPA DE ACO GALVANIZADO 3/16", COM 1 ESTRIBO E 1 ISOLADOR | C192: UN | D192: 1 | F192: =VLOOKUP(I192,sinapi!$A$2:$J$12415,6,0) -> 0 | G192: =VLOOKUP(I192,sinapi!$A$2:$J$12415,7,0)+VLOOKUP(I192,sinapi!$A$2:$J$12415,8,0)+VLOOKUP(I192,sinapi!$A$2:$J$12415,10,0) -> 37.47 | H192: SINAPI | I192: 1091 | J192: 0 | K192: 37.47
A193: 5 | B193: Cabo ramal multiplex duplex 2#10(10)m² | C193: M | D193: 21.6667 | F193: 0 | G193: =cotacao!I18 -> 3.51 | H193: COTACAO | I193: COT 03 | J193: 0 | K193: 76.0501
A194: 6 | B194: CINTA CIRCULAR EM ACO GALVANIZADO DE 210 MM DE DIAMETRO PARA INSTALACAO DE TRANSFORMADOR EM POSTE DE CONCRETO | C194: UN | D194: 1 | F194: =VLOOKUP(I194,sinapi!$A$2:$J$12415,6,0) -> 0 | G194: =VLOOKUP(I194,sinapi!$A$2:$J$12415,7,0)+VLOOKUP(I194,sinapi!$A$2:$J$12415,8,0)+VLOOKUP(I194,sinapi!$A$2:$J$12415,10,0) -> 46.56 | H194: SINAPI | I194: 12327 | J194: 0 | K194: 46.56
A195: 7 | B195: Conector perfurante principal 16 - 95mm² - derivacao 4-35mm² | C195: UN | D195: 3 | F195: 0 | G195: =cotacao!I19 -> 7.49 | H195: COTACAO | I195: COT 04 | J195: 0 | K195: 22.47
A196: 8 | B196: FITA ISOLANTE DE BORRACHA AUTOFUSAO, USO ATE 69 KV (ALTA TENSAO) | C196: M | D196: 6 | F196: =VLOOKUP(I196,sinapi!$A$2:$J$12415,6,0) -> 0 | G196: =VLOOKUP(I196,sinapi!$A$2:$J$12415,7,0)+VLOOKUP(I196,sinapi!$A$2:$J$12415,8,0)+VLOOKUP(I196,sinapi!$A$2:$J$12415,10,0) -> 1 | H196: SINAPI | I196: 404 | J196: 0 | K196: 6
A197: 9 | B197: FITA ISOLANTE ADESIVA ANTICHAMA, USO ATE 750 V, EM ROLO DE 19 MM X 20 M | C197: UN | D197: 1 | F197: =VLOOKUP(I197,sinapi!$A$2:$J$12415,6,0) -> 0 | G197: =VLOOKUP(I197,sinapi!$A$2:$J$12415,7,0)+VLOOKUP(I197,sinapi!$A$2:$J$12415,8,0)+VLOOKUP(I197,sinapi!$A$2:$J$12415,10,0) -> 7.4 | H197: SINAPI | I197: 20111 | J197: 0 | K197: 7.4
A198: 10 | B198: TERMINAL METALICO A PRESSAO PARA 1 CABO DE 25 MM2, COM 1 FURO DE FIXACAO | C198: UN | D198: 1 | F198: =VLOOKUP(I198,sinapi!$A$2:$J$12415,6,0) -> 0 | G198: =VLOOKUP(I198,sinapi!$A$2:$J$12415,7,0)+VLOOKUP(I198,sinapi!$A$2:$J$12415,8,0)+VLOOKUP(I198,sinapi!$A$2:$J$12415,10,0) -> 7.09 | H198: SINAPI | I198: 1586 | J198: 0 | K198: 7.09
A199: 11 | B199: Suporte em ferro galv. Topo poste com parafusos | C199: UN | D199: 1 | F199: 0 | G199: =cotacao!I23 -> 164.5 | H199: COTACAO | I199: COT 08 | J199: 0 | K199: 164.5
A200: 12 | B200: LUMINARIA DE LED PARA ILUMINACAO PUBLICA, DE 33 W ATE 50 W, INVOLUCRO EM ALUMINIO OU ACO INOX | C200: UN | D200: 1 | F200: =VLOOKUP(I200,sinapi!$A$2:$J$12415,6,0) -> 0 | G200: =VLOOKUP(I200,sinapi!$A$2:$J$12415,7,0)+VLOOKUP(I200,sinapi!$A$2:$J$12415,8,0)+VLOOKUP(I200,sinapi!$A$2:$J$12415,10,0) -> 229.35 | H200: SINAPI | I200: 42244 | J200: 0 | K200: 229.35
A203: CÓDIGO: | B203: DESCRIÇÃO: | H203: UNIDADE: | J203: CUSTO TOTAL (MO): | K203: CUSTO TOTAL (MAT+EQ):
A204: CCU 18 | B204: IMPLANTAÇÃO DO SISTEMA NAVAL TIPO I - PONTE MÓVEL E FLUTUANTE PRINCIPAL (INCLUSO DESMOBILIZAÇÃO) | H204: UN | J204: =TRUNC(SUM(J206:J210),2) -> 2294.29 | K204: =TRUNC(SUM(K206:K210),2) -> 32754.48
A205: ITEM | B205: DESCRIÇÃO | C205: UNID. | D205: COEF. | E205: REFERENCIAL COEF. | F205: CUSTO UNITARIO (MO) | G205: CUSTO UNITARIO (MAT+EQ) | H205: REFERENCIAL CUSTO | J205: CUSTO TOTAL (MO) | K205: CUSTO TOTAL (MAT+EQ)
A206: 1 | B206: Guindaste móvel sobre esteiras com capacidade de 40 t - 186 kW | C206: CHP | D206: 36.67 | F206: 0 | G206: =TRUNC(399.2532*(1+orcamento!$E$116),4) -> 407.7572 | H206: SICRO | I206: E9660 | J206: =TRUNC(D206*F206,4) -> 0 | K206: =TRUNC(D206*G206,4) -> 14952.4565
A207: 2 | B207: Pontão flutuante de 15 x 30 x 1,8 m com capacidade de 500 t | C207: CHP | D207: 36.67 | F207: 0 | G207: =TRUNC(86.0312*(1+orcamento!$E$116),4) -> 87.8636 | H207: SICRO | I207: E9620 | J207: 0 | K207: 3221.9582
A208: 3 | B208: Caminhão de resgate de veículos pesados com dois guinchos com capacidade de 35 t - 240 Kw | C208: CHP | D208: 36.67 | F208: 0 | G208: =TRUNC(374.2712*(1+orcamento!$E$116),4) -> 382.2431 | H208: SICRO | I208: E9099 | J208: 0 | K208: 14016.8544
A209: 4 | B209: AJUDANTE DE ESTRUTURAS METÁLICAS COM ENCARGOS COMPLEMENTARES | C209: H | D209: 110 | F209: =VLOOKUP(I209,sinapi!$A$2:$J$12415,6,0) -> 14.8 | G209: =VLOOKUP(I209,sinapi!$A$2:$J$12415,7,0)+VLOOKUP(I209,sinapi!$A$2:$J$12415,8,0)+VLOOKUP(I209,sinapi!$A$2:$J$12415,10,0) -> 3.84 | H209: SINAPI | I209: 88240 | J209: 1628 | K209: 422.4
A210: 5 | B210: MONTADOR DE ESTRUTURA METÁLICA COM ENCARGOS COMPLEMENTARES | C210: H | D210: 36.67 | F210: =VLOOKUP(I210,sinapi!$A$2:$J$12415,6,0) -> 18.17 | G210: =VLOOKUP(I210,sinapi!$A$2:$J$12415,7,0)+VLOOKUP(I210,sinapi!$A$2:$J$12415,8,0)+VLOOKUP(I210,sinapi!$A$2:$J$12415,10,0) -> 3.84 | H210: SINAPI | I210: 88278 | J210: 666.2939 | K210: 140.8128
A213: CÓDIGO: | B213: DESCRIÇÃO: | H213: UNIDADE: | J213: CUSTO TOTAL (MO): | K213: CUSTO TOTAL (MAT+EQ):
A214: CCU 19 | B214: OPERAÇÃO DO SISTEMA NAVAL TIPO I - PONTE MÓVEL E FLUTUANTE PRINCIPAL | H214: M | J214: =TRUNC(SUM(J216),2) -> 0 | K214: =TRUNC(SUM(K216),2) -> 21.17
A215: ITEM | B215: DESCRIÇÃO | C215: UNID. | D215: COEF. | E215: REFERENCIAL COEF. | F215: CUSTO UNITARIO (MO) | G215: CUSTO UNITARIO (MAT+EQ) | H215: REFERENCIAL CUSTO | J215: CUSTO TOTAL (MO) | K215: CUSTO TOTAL (MAT+EQ)
A216: 1 | B216: Pontão flutuante de 15 x 30 x 1,8 m com capacidade de 500 t | C216: CHP | D216: 0.241 | F216: 0 | G216: =TRUNC(86.0312*(1+orcamento!$E$116),4) -> 87.8636 | H216: SICRO | I216: E9620 | J216: =TRUNC(D216*F216,4) -> 0 | K216: =TRUNC(D216*G216,4) -> 21.1751
A219: CÓDIGO: | B219: DESCRIÇÃO: | H219: UNIDADE: | J219: CUSTO TOTAL (MO): | K219: CUSTO TOTAL (MAT+EQ):
A220: CCU 20 | B220: FECHAMENTO TUBULAÇÃO DMAE COM BLOCO CANALETA U 19X19X39 | H220: M | J220: =TRUNC(SUM(J222:J224),2) -> 5.59 | K220: =TRUNC(SUM(K222:K224),2) -> 10.84
A221: ITEM | B221: DESCRIÇÃO | C221: UNID. | D221: COEF. | E221: REFERENCIAL COEF. | F221: CUSTO UNITARIO (MO) | G221: CUSTO UNITARIO (MAT+EQ) | H221: REFERENCIAL CUSTO | J221: CUSTO TOTAL (MO) | K221: CUSTO TOTAL (MAT+EQ)
A222: 1 | B222: CANALETA DE CONCRETO 19 X 19 X 19 CM (CLASSE C - NBR 6136) | C222: UN | D222: 2.5 | F222: =VLOOKUP(I222,sinapi!$A$2:$J$12415,6,0) -> 0 | G222: =VLOOKUP(I222,sinapi!$A$2:$J$12415,7,0)+VLOOKUP(I222,sinapi!$A$2:$J$12415,8,0)+VLOOKUP(I222,sinapi!$A$2:$J$12415,10,0) -> 3.32 | H222: SINAPI | I222: 660 | J222: =TRUNC(D222*F222,4) -> 0 | K222: =TRUNC(D222*G222,4) -> 8.3
A223: 2 | B223: ARGAMASSA TRAÇO 1:2:8 (EM VOLUME DE CIMENTO, CAL E AREIA MÉDIA ÚMIDA) PARA EMBOÇO/MASSA ÚNICA/ASSENTAMENTO DE ALVENARIA DE VEDAÇÃO, PREPARO MECÂNICO COM BETONEIRA 400 L. AF_08/2019 | C223: M3 | D223: 0.0028 | F223: =VLOOKUP(I223,sinapi!$A$2:$J$12415,6,0) -> 82.93 | G223: =VLOOKUP(I223,sinapi!$A$2:$J$12415,7,0)+VLOOKUP(I223,sinapi!$A$2:$J$12415,8,0)+VLOOKUP(I223,sinapi!$A$2:$J$12415,10,0) -> 382.32 | H223: SINAPI | I223: 87292 | J223: 0.2322 | K223: 1.0704
A224: 3 | B224: PEDREIRO COM ENCARGOS COMPLEMENTARES | C224: H | D224: 0.3 | F224: =VLOOKUP(I224,sinapi!$A$2:$J$12415,6,0) -> 17.89 | G224: =VLOOKUP(I224,sinapi!$A$2:$J$12415,7,0)+VLOOKUP(I224,sinapi!$A$2:$J$12415,8,0)+VLOOKUP(I224,sinapi!$A$2:$J$12415,10,0) -> 4.9 | H224: SINAPI | I224: 88309 | J224: 5.367 | K224: 1.47
A227: CÓDIGO: | B227: DESCRIÇÃO: | H227: UNIDADE: | J227: CUSTO TOTAL (MO): | K227: CUSTO TOTAL (MAT+EQ):
A228: CCU 21 | B228: POSTE DE CONCRETO ARMADO DUPLO T | H228: UN | J228: =TRUNC(SUM(J230:J233),2) -> 91.65 | K228: =TRUNC(SUM(K230:K233),2) -> 909.16
A229: ITEM | B229: DESCRIÇÃO | C229: UNID. | D229: COEF. | E229: REFERENCIAL COEF. | F229: CUSTO UNITARIO (MO) | G229: CUSTO UNITARIO (MAT+EQ) | H229: REFERENCIAL CUSTO | J229: CUSTO TOTAL (MO) | K229: CUSTO TOTAL (MAT+EQ)
A230: 1 | B230: AUXILIAR DE ELETRICISTA COM ENCARGOS COMPLEMENTARES | C230: H | D230: 1.233 | F230: =VLOOKUP(I230,sinapi!$A$2:$J$12415,6,0) -> 12.87 | G230: =VLOOKUP(I230,sinapi!$A$2:$J$12415,7,0)+VLOOKUP(I230,sinapi!$A$2:$J$12415,8,0)+VLOOKUP(I230,sinapi!$A$2:$J$12415,10,0) -> 4.92 | H230: SINAPI | I230: 88247 | J230: =TRUNC(D230*F230,4) -> 15.8687 | K230: =TRUNC(D230*G230,4) -> 6.0663
A231: 2 | B231: ELETRICISTA COM ENCARGOS COMPLEMENTARES | C231: H | D231: 4.008 | F231: =VLOOKUP(I231,sinapi!$A$2:$J$12415,6,0) -> 18.31 | G231: =VLOOKUP(I231,sinapi!$A$2:$J$12415,7,0)+VLOOKUP(I231,sinapi!$A$2:$J$12415,8,0)+VLOOKUP(I231,sinapi!$A$2:$J$12415,10,0) -> 4.92 | H231: SINAPI | I231: 88264 | J231: =TRUNC(D231*F231,4) -> 73.3864 | K231: =TRUNC(D231*G231,4) -> 19.7193
A232: 3 | B232: POSTE DE CONCRETO ARMADO DE SECAO DUPLO T, EXTENSAO DE 10,00 M, RESISTENCIA DE 150 DAN, TIPO D | C232: UN | D232: 1 | F232: =VLOOKUP(I232,sinapi!$A$2:$J$12415,6,0) -> 0 | G232: =VLOOKUP(I232,sinapi!$A$2:$J$12415,7,0)+VLOOKUP(I232,sinapi!$A$2:$J$12415,8,0)+VLOOKUP(I232,sinapi!$A$2:$J$12415,10,0) -> 861.21 | H232: SINAPI | I232: 41199 | J232: 0 | K232: 861.21
A233: 4 | B233: GUINDAUTO HIDRÁULICO, CAPACIDADE MÁXIMA DE CARGA 6200 KG, MOMENTO MÁXIMO DE CARGA 11,7 TM, ALCANCE MÁXIMO HORIZONTAL 9,70 M, INCLUSIVE CAMINHÃO TOCO PBT 16.000 KG, POTÊNCIA DE 189 CV - CHP DIURNO. AF_06/2014 | C233: CHP | D233: 0.11 | F233: =VLOOKUP(I233,sinapi!$A$2:$J$12415,6,0) -> 21.8 | G233: =VLOOKUP(I233,sinapi!$A$2:$J$12415,7,0)+VLOOKUP(I233,sinapi!$A$2:$J$12415,8,0)+VLOOKUP(I233,sinapi!$A$2:$J$12415,10,0) -> 201.55 | H233: SINAPI | I233: 5928 | J233: 2.398 | K233: 22.1705
A236: CÓDIGO: | B236: DESCRIÇÃO: | H236: UNIDADE: | J236: CUSTO TOTAL (MO): | K236: CUSTO TOTAL (MAT+EQ):
A237: CCU 22 | B237: BALIZADOR COM LED PISCANTE - AQUISIÇÃO E UTILIZAÇÃO | H237: UN | J237: =TRUNC(SUM(J239:J241),2) -> 0.28 | K237: =TRUNC(SUM(K239:K241),2) -> 299.78
A238: ITEM | B238: DESCRIÇÃO | C238: UNID. | D238: COEF. | E238: REFERENCIAL COEF. | F238: CUSTO UNITARIO (MO) | G238: CUSTO UNITARIO (MAT+EQ) | H238: REFERENCIAL CUSTO | J238: CUSTO TOTAL (MO) | K238: CUSTO TOTAL (MAT+EQ)
A239: 1 | B239: Piscante para baliza - aquisição e utilizalização em tempo integral | C239: UN | D239: 1 | F239: 0 | G239: =cotacao!I24 -> 155.73 | H239: COTACAO | I239: COT 09 | J239: =TRUNC(D239*F239,4) -> 0 | K239: =TRUNC(D239*G239,4) -> 155.73
A240: 2 | B240: Balizador cônico refletivo em polietileno semiflexível de 114 x 11 x 40 cm - aquisição e utilização em tempo integral | C240: UN | D240: 1 | F240: 0 | G240: =TRUNC(140.9584*(1+orcamento!$E$116),4) -> 143.9608 | H240: SICRO | I240: M0048 | J240: 0 | K240: 143.9608
A241: 3 | B241: SERVENTE COM ENCARGOS COMPLEMENTARES implantação e movimentação | C241: H | D241: 0.02 | F241: =VLOOKUP(I241,sinapi!$A$2:$J$12415,6,0) -> 14.06 | G241: =VLOOKUP(I241,sinapi!$A$2:$J$12415,7,0)+VLOOKUP(I241,sinapi!$A$2:$J$12415,8,0)+VLOOKUP(I241,sinapi!$A$2:$J$12415,10,0) -> 4.78 | H241: SINAPI | I241: 88316 | J241: 0.2812 | K241: 0.0956
A244: CÓDIGO: | B244: DESCRIÇÃO: | H244: UNIDADE: | J244: CUSTO TOTAL (MO): | K244: CUSTO TOTAL (MAT+EQ):
A245: CCU 23 | B245: IMPRIMAÇÃO ASFALTO DILUÍDO | H245: M2 | J245: =TRUNC(SUM(J247:J250),2) -> 0.02 | K245: =TRUNC(SUM(K247:K250),2) -> 9.19
A246: ITEM | B246: DESCRIÇÃO | C246: UNID. | D246: COEF. | E246: REFERENCIAL COEF. | F246: CUSTO UNITARIO (MO) | G246: CUSTO UNITARIO (MAT+EQ) | H246: REFERENCIAL CUSTO | J246: CUSTO TOTAL (MO) | K246: CUSTO TOTAL (MAT+EQ)
A247: 1 | B247: Caminhão tanque distribuidor de asfalto com capacidade de 6.000 l - 7 kW/136 kW | C247: CHP | D247: =TRUNC(1/1125,4) -> 0.0008 | E247: 4011351 - SICRO | F247: 0 | G247: =TRUNC(203.7102*(1+orcamento!$E$116),4) -> 208.0492 | H247: SICRO | I247: E9509 | J247: =TRUNC(D247*F247,4) -> 0 | K247: =TRUNC(D247*G247,4) -> 0.1664
... 263 more rows

Sheet cotacao
B1: PREFEITURA MUNICIPAL DE PORTO ALEGRE
B2: SECRETARIA MUNICIPAL DE OBRAS E INFRAESTRUTURA
B3: =orcamento!D3 -> Objeto: PONTE SOBRE O ARROIO MAUÁ
B4: =orcamento!D4 -> Endereço: Rua Marinheiros, 312- Ilha Pintado - Porto Alegre - RS
B6: COTAÇÕES
A8: COT 01 | B8: LOCAÇÃO DE PERFIS METÁLICOS DE 15,50m W 610 X 174,0 AÇO ASTM A572 POR 12 MESES | E8: Valor adotado: | F8: =TRUNC(IF(MEDIAN(G10:G12)<AVERAGE(G10:G12),MEDIAN(G10:G12),AVERAGE(G10:G12)),2) -> 46000 | G8: und
B9: Nome do Fornecedor | C9: CNPJ do Fornecedor | D9: Nome do contato | E9: Telefone do contato | F9: Data da cotação | G9: Valor da cotação
A10: a) | B10: JULIO CESAR DE LIMA SCHEFFER | C10: 11.160.871/0001-99 | F10: 2021-08-20 | G10: =182000/4 -> 45500
A11: b) | B11: LAVORO ENGENHARIA | C11: 00.134.748/0001‐87 | F11: 2021-08-20 | G11: =184000/4 -> 46000
A12: c) | B12: R&R ESTRUTURAS METÁLICAS | C12: 05.862.119/0001-97 | F12: 2021-08-20 | G12: =190000/4 -> 47500
C15: empresa A | E15: empresa B | G15: empresa C
A16: codigo | B16: item | C16: data | D16: valor | E16: data | F16: valor | G16: data | H16: valor | I16: valor adotado
A17: COT 02 | B17: Caixas (quadros metálicos) 400x400x200mm | C17: 2021-08-31 | D17: 309.37 | E17: 2021-08-31 | F17: 292.38 | G17: 2021-08-20 | H17: 371.3 | I17: =TRUNC(IF(MEDIAN(D17,F17,H17)<AVERAGE(D17,F17,H17),MEDIAN(D17,F17,H17),AVERAGE(D17,F17,H17)),2) -> 309.37 | J17: und
A18: COT 03 | B18: Cabo ramal multiplex duplex 2#10(10)m² | C18: 2021-08-20 | D18: =374.31/100 -> 3.7431 | E18: 2021-08-31 | F18: 3.51 | G18: 2021-08-31 | H18: 3.46 | I18: =TRUNC(IF(MEDIAN(D18,F18,H18)<AVERAGE(D18,F18,H18),MEDIAN(D18,F18,H18),AVERAGE(D18,F18,H18)),2) -> 3.51 | J18: m
A19: COT 04 | B19: Conector perfurante principal 16 - 95mm² - derivacao 4-35mm² | C19: 2021-08-31 | D19: 7.24 | E19: 2021-08-20 | F19: 7.49 | G19: 2021-08-31 | H19: 9.49 | I19: 7.49 | J19: und
A20: COT 05 | B20: Eletroduto de aço galvanizado roscável Ø 1" - L=3m | C20: 2021-08-20 | D20: =74.57/3 -> 24.85666667 | E20: 2021-08-31 | F20: =81.99/3 -> 27.33 | G20: 2021-10-19 | H20: =79.9/3 -> 26.63333333 | I20: 26.27 | J20: m
A21: COT 06 | B21: Eletroduto de aço galvanizado roscável Ø 2" - L=3m | C21: 2021-08-20 | D21: =224.19/3 -> 74.73 | E21: 2021-10-19 | F21: =242.3/3 -> 80.76666667 | G21: 2021-10-19 | H21: =318.258/3 -> 106.086 | I21: 80.76 | J21: m
A22: COT 07 | B22: Massa de calafetar | C22: 2021-08-20 | D22: 29.9 | E22: 2021-10-19 | F22: =9.9/350*1000 -> 28.28571429 | G22: 2021-10-19 | H22: 37.49 | I22: 29.9 | J22: kg
A23: COT 08 | B23: Suporte em ferro galv. topo poste com parafusos | C23: 2021-08-20 | D23: 172 | E23: 2021-10-19 | F23: 157 | I23: 164.5 | J23: und
A24: COT 09 | B24: Piscante para baliza | C24: 2022-01-04 | D24: 159.34 | E24: 2022-01-04 | F24: 158.85 | G24: 2022-01-04 | H24: 149 | I24: 155.73 | J24: und
A25: COT 10 | B25: Suporte em aço galvanizado a fogo S5b padrão EPTC | C25: 2022-01-13 | D25: 6780 | I25: 6780 | J25: und

Sheet cronograma
B1: PREFEITURA MUNICIPAL DE PORTO ALEGRE
B2: SECRETARIA MUNICIPAL DE OBRAS E INFRAESTRUTURA
B3: =orcamento!D3 -> Objeto: PONTE SOBRE O ARROIO MAUÁ
B4: =orcamento!D4 -> Endereço: Rua Marinheiros, 312- Ilha Pintado - Porto Alegre - RS
B6: CRONOGRAMA
A8: ITEM | B8: DESCRIÇÃO | C8: PREÇO TOTAL | D8: MÊS 01 | E8: MÊS 02 | F8: MÊS 03 | G8: MÊS 04 | H8: MÊS 05 | I8: MÊS 06 | J8: MÊS 07 | K8: MÊS 08 | L8: MÊS 09 | M8: MÊS 10 | N8: MÊS 11 | O8: MÊS 12 | P8: TOTAL ACUM.
A9: =orcamento!A10 -> 1 | B9: =orcamento!D10 -> ADMINISTRAÇÃO LOCAL | C9: =C10/C31 -> 0.1689486872 | D9: =TRUNC((D12+D14+D16+D18+D20+D22+D24+D26+D28+D30)/($C$12+$C$14+$C$16+$C$18+$C$20+$C$22+$C$24+$C$26+$C$28+$C$30),4) -> 0.0166 | E9: =TRUNC((E12+E14+E16+E18+E20+E22+E24+E26+E28+E30)/($C$12+$C$14+$C$16+$C$18+$C$20+$C$22+$C$24+$C$26+$C$28+$C$30),4) -> 0.0793 | F9: 0.1235 | G9: 0.0639 | H9: 0.054 | I9: 0.0811 | J9: 0.0683 | K9: 0.1508 | L9: 0.1508 | M9: 0.1005 | N9: 0.0967 | O9: =1-SUM(D9:N9) -> 0.0145 | P9: =SUM(D9:O9) -> 1
C10: =orcamento!N10 -> 464878.03 | D10: =$C10*D9 -> 7716.975298 | E10: 36864.82778 | F10: 57412.43671 | G10: 29705.70612 | H10: 25103.41362 | I10: 37701.60823 | J10: 31751.16945 | K10: 70103.60692 | L10: 70103.60692 | M10: 46720.24202 | N10: 44953.7055 | O10: 6740.731435 | P10: =SUM(D10:O10) -> 464878.03
A11: =orcamento!A12 -> 2 | B11: =orcamento!D12 -> SERVIÇOS INICIAIS | C11: =C12/$C$31 -> 0.08753399481 | D11: =D12/$C$12 -> 0.1584853777 | E11: =E12/$C$12 -> 0.6940180462 | F11: =F12/$C$12 -> 0.1295793333 | G11: =G12/$C$12 -> 0.01791724275 | H11: 0 | I11: 0 | J11: 0 | K11: 0 | L11: 0 | M11: 0 | N11: 0 | O11: 0 | P11: =SUM(D11:O11) -> 1
C12: =orcamento!N12 -> 240857.93 | D12: =33199.99+4972.47 -> 38172.46 | E12: =C12-D12-F12-G12 -> 167159.75 | F12: 31210.21 | G12: 4315.51 | H12: =$C12*H11 -> 0 | I12: 0 | J12: 0 | K12: 0 | L12: 0 | M12: 0 | N12: 0 | O12: =$C12*O11 -> 0 | P12: =SUM(D12:O12) -> 240857.93
A13: =orcamento!A27 -> 3 | B13: =orcamento!D27 -> DEMOLIÇÃO ESTRUTURA EXISTENTE | C13: =C14/$C$31 -> 0.01045057161 | D13: 0 | E13: 0.5 | F13: 0 | G13: 0.5 | H13: 0 | I13: 0 | J13: 0 | K13: 0 | L13: 0 | M13: 0 | N13: 0 | O13: 0 | P13: =SUM(D13:O13) -> 1
C14: =orcamento!N27 -> 28755.72 | D14: =$C14*D13 -> 0 | E14: 14377.86 | F14: =$C14*F13 -> 0 | G14: 14377.86 | H14: 0 | I14: 0 | J14: 0 | K14: 0 | L14: 0 | M14: 0 | N14: 0 | O14: =$C14*O13 -> 0 | P14: =SUM(D14:O14) -> 28755.72
A15: =orcamento!A31 -> 4 | B15: =orcamento!D31 -> PASSARELA PROVISÓRIA | C15: =C16/$C$31 -> 0.0951121758 | D15: 0 | E15: =E16/C16 -> 0 | F15: =F16/C16 -> 0.9425404073 | G15: 0 | H15: 0 | I15: 0 | J15: 0 | K15: 0 | L15: 0 | M15: 0 | N15: =N16/C16 -> 0.05745959268 | O15: 0 | P15: =SUM(D15:O15) -> 1
C16: =orcamento!N31 -> 261710 | D16: =$C16*D15 -> 0 | E16: 0 | F16: =orcamento!N32 -> 246672.25 | G16: =$C16*G15 -> 0 | H16: =$C16*H15 -> 0 | I16: =$C16*I15 -> 0 | J16: =$C16*J15 -> 0 | K16: =$C16*K15 -> 0 | L16: =$C16*L15 -> 0 | M16: =$C16*M15 -> 0 | N16: =orcamento!N33 -> 15037.75 | O16: =$C16*O15 -> 0 | P16: =SUM(D16:O16) -> 261710
A17: =orcamento!A34 -> 5 | B17: =orcamento!D34 -> MOVIMENTAÇÃO DE TERRA E CONTENÇÃO | C17: =C18/$C$31 -> 0.03414614333 | D17: 0 | E17: 0 | F17: 0.05 | G17: 0.7 | H17: 0 | I17: 0 | J17: 0 | K17: 0 | L17: 0 | M17: 0 | N17: 0.25 | O17: 0 | P17: =SUM(D17:O17) -> 1
C18: =orcamento!N34 -> 93956.29 | D18: =$C18*D17 -> 0 | E18: =$C18*E17 -> 0 | F18: 4697.8145 | G18: 65769.403 | H18: =$C18*H17 -> 0 | I18: =$C18*I17 -> 0 | J18: =$C18*J17 -> 0 | K18: =$C18*K17 -> 0 | L18: =$C18*L17 -> 0 | M18: =$C18*M17 -> 0 | N18: 23489.0725 | O18: =$C18*O17 -> 0 | P18: =SUM(D18:O18) -> 93956.29
A19: =orcamento!A44 -> 6 | B19: =orcamento!D44 -> INFRA E MESOESTRUTURA | C19: =C20/$C$31 -> 0.1498579061 | D19: 0 | E19: 0 | F19: 0 | G19: 0.15 | H19: 0.3 | I19: 0.45 | J19: 0.1 | K19: 0 | L19: 0 | M19: 0 | N19: 0 | O19: 0 | P19: =SUM(D19:O19) -> 1
C20: =orcamento!N44 -> 412347.97 | D20: =$C20*D19 -> 0 | E20: =$C20*E19 -> 0 | F20: =$C20*F19 -> 0 | G20: =$C20*G19 -> 61852.1955 | H20: =$C20*H19 -> 123704.391 | I20: =$C20*I19 -> 185556.5865 | J20: =$C20*J19 -> 41234.797 | K20: =$C20*K19 -> 0 | L20: =$C20*L19 -> 0 | M20: =$C20*M19 -> 0 | N20: =$C20*N19 -> 0 | O20: =$C20*O19 -> 0 | P20: =SUM(D20:O20) -> 412347.97
A21: =orcamento!A60 -> 7 | B21: =orcamento!D60 -> SUPERESTRUTURA | C21: =C22/$C$31 -> 0.4179563102 | D21: 0 | E21: 0 | F21: 0 | G21: 0 | H21: 0 | I21: 0 | J21: 0.1 | K21: 0.3 | L21: 0.3 | M21: 0.2 | N21: 0.1 | O21: 0 | P21: =SUM(D21:O21) -> 1
C22: =orcamento!N60 -> 1150045.67 | D22: =$C22*D21 -> 0 | E22: =$C22*E21 -> 0 | F22: =$C22*F21 -> 0 | G22: =$C22*G21 -> 0 | H22: =$C22*H21 -> 0 | I22: =$C22*I21 -> 0 | J22: =$C22*J21 -> 115004.567 | K22: =$C22*K21 -> 345013.701 | L22: =$C22*L21 -> 345013.701 | M22: =$C22*M21 -> 230009.134 | N22: =$C22*N21 -> 115004.567 | O22: =$C22*O21 -> 0 | P22: =SUM(D22:O22) -> 1150045.67
A23: =orcamento!A77 -> 8 | B23: =orcamento!D77 -> PAVIMENTAÇÃO | C23: =C24/$C$31 -> 0.008183630266 | D23: 0 | E23: 0 | F23: 0 | G23: 0 | H23: 0 | I23: 0 | J23: 0 | K23: 0 | L23: 0 | M23: 0 | N23: 1 | O23: 0 | P23: =SUM(D23:O23) -> 1
C24: =orcamento!N77 -> 22518.02 | D24: =$C24*D23 -> 0 | E24: =$C24*E23 -> 0 | F24: =$C24*F23 -> 0 | G24: =$C24*G23 -> 0 | H24: =$C24*H23 -> 0 | I24: =$C24*I23 -> 0 | J24: =$C24*J23 -> 0 | K24: =$C24*K23 -> 0 | L24: =$C24*L23 -> 0 | M24: =$C24*M23 -> 0 | N24: =$C24*N23 -> 22518.02 | O24: =$C24*O23 -> 0 | P24: =SUM(D24:O24) -> 22518.02
A25: =orcamento!A84 -> 9 | B25: =orcamento!D84 -> SINALIZAÇÃO | C25: =C26/$C$31 -> 0.006849890153 | D25: 0 | E25: 0 | F25: 0 | G25: 0 | H25: 0 | I25: 0 | J25: 0 | K25: 0 | L25: 0 | M25: 0 | N25: 1 | O25: 0 | P25: =SUM(D25:O25) -> 1
C26: =orcamento!N84 -> 18848.11 | D26: =$C26*D25 -> 0 | E26: 0 | F26: 0 | G26: 0 | H26: 0 | I26: 0 | J26: 0 | K26: 0 | L26: 0 | M26: 0 | N26: 18848.11 | O26: =$C26*O25 -> 0 | P26: =SUM(D26:O26) -> 18848.11
A27: =orcamento!A94 -> 10 | B27: =orcamento!D94 -> INSTALAÇÕES COMPLEMENTARES | C27: =C28/$C$31 -> 0.01921537067 | D27: 0 | E27: 0 | F27: 0 | G27: 0 | H27: 0 | I27: 0 | J27: 0 | K27: 0 | L27: 0 | M27: 0 | N27: 0.5 | O27: 0.5 | P27: =SUM(D27:O27) -> 1
C28: =orcamento!N94 -> 52872.88 | D28: =$C28*D27 -> 0 | E28: 0 | F28: 0 | G28: 0 | H28: 0 | I28: 0 | J28: 0 | K28: 0 | L28: 0 | M28: 0 | N28: 26436.44 | O28: =$C28*O27 -> 26436.44 | P28: =SUM(D28:O28) -> 52872.88
A29: =orcamento!A103 -> 11 | B29: =orcamento!D103 -> SERVIÇOS FINAIS | C29: =C30/$C$31 -> 0.001745319874 | D29: 0 | E29: 0 | F29: 0 | G29: 0 | H29: 0 | I29: 0 | J29: 0 | K29: 0 | L29: 0 | M29: 0 | N29: 0 | O29: 1 | P29: =SUM(D29:O29) -> 1
C30: =orcamento!N103 -> 4802.41 | D30: =$C30*D29 -> 0 | E30: 0 | F30: 0 | G30: 0 | H30: 0 | I30: 0 | J30: 0 | K30: 0 | L30: 0 | M30: 0 | N30: 0 | O30: =$C30*O29 -> 4802.41 | P30: =SUM(D30:O30) -> 4802.41
B31: TOTAL MENSAL | C31: =SUM(C10,C12,C14,C16,C18,C20,C22,C24,C26,C28,C30) -> 2751593.03 | D31: =((D32*100)/$C$31)/100 -> 0.01667740643 | E31: =((E32*100)/$C$31)/100 -> 0.07937308875 | F31: 0.1235621356 | G31: 0.063970461 | H31: 0.05408060095 | I31: 0.08113779629 | J31: 0.06832061697 | K31: 0.1508643551 | L31: 0.1508643551 | M31: 0.1005706051 | N31: 0.09677581753 | O31: 0.01380276117 | P31: =P10+P12+P14+P16+P18+P20+P22+P24+P26+P28+P30 -> 2751593.03
D32: =SUM(D10,D12,D14,D16,D18,D20,D22,D24,D26,D28,D30) -> 45889.4353 | E32: =SUM(E10,E12,E14,E16,E18,E20,E22,E24,E26,E28,E30) -> 218402.4378 | F32: 339992.7112 | G32: 176020.6746 | H32: 148807.8046 | I32: 223258.1947 | J32: 187990.5334 | K32: 415117.3079 | L32: 415117.3079 | M32: 276729.376 | N32: 266287.665 | O32: 37979.58143
B33: TOTAL ACUMULADO | D33: =((D34*100)/$C$31)/100 -> 0.01667740643 | E33: =((E34*100)/$C$31)/100 -> 0.09605049518 | F33: 0.2196126308 | G33: 0.2835830918 | H33: 0.3376636928 | I33: 0.4188014891 | J33: 0.487122106 | K33: 0.6379864611 | L33: 0.7888508162 | M33: 0.8894214213 | N33: 0.9861972388 | O33: 1
D34: =D32 -> 45889.4353 | E34: =D34+E32 -> 264291.8731 | F34: =E34+F32 -> 604284.5843 | G34: 780305.2589 | H34: 929113.0635 | I34: 1152371.258 | J34: 1340361.792 | K34: 1755479.1 | L34: 2170596.408 | M34: 2447325.784 | N34: 2713613.449 | O34: 2751593.03

Sheet quantitativos
B1: SERVIÇOS INICIAIS
B2: PLACA DE OBRA PLACA DE OBRA EM CHAPA DE ACO GALVANIZADO
B3: l= | C3: 4.8 | K3: Equipe Obra
B4: H= | C4: 2.4 | K4: 12 meses
B5: LOCACAO CONVENCIONAL DE OBRA, ATRAVÉS DE GABARITO DE TABUAS CORRIDAS PONTALETADAS, SEM REAPROVEITAMENTO | K5: 170 | L5: h/mês
C6: B= | D6: 2.5 | E6: Lbloco= | F6: 8 | K6: =12*170 -> 2040 | L6: HH
C7: N= | D7: 4
C8: Alocação= | D8: =D6*F6*D7 -> 80
B9: INSTALAÇÕES DO CANTEIRO DE OBRAS
C11: A - Área (m²)
B12: Guarita | C12: 4
B13: Escritório da Fiscalização/Topografia | C13: 7.5
B14: Escritório da Administração/Segurança do Trabalho | C14: 7.5
B15: Almoxarifado e Ferramentaria | C15: 15
B16: Refeitório | C16: 50
B17: Vestiário e Sanitários | C17: 30
B18: Depósito de Material | C18: 15
B19: Central de Armação | C19: 30
B20: Central de Carpintaria | C20: 30
B21: Oficina | C21: 65.5
A23: PONTE EXISTENTE
A24: A= | B24: 62.38
B25: 6.4
B26: =ROUND(B24*B25,2) -> 399.23
I34: 102.53
A37: PASSARELA PROVISÓRIA
A38: ÁREA | H38: 1753.7
A39: C= | B39: =72.26+1.8 -> 74.06 | H39: 15214.9 | I39: 184.6
A40: L= | B40: 2.1 | H40: 23500.9 | I40: 326.3
A41: A= | B41: =ROUND(B39*B40,2) -> 155.53 | H41: 3796.2 | I41: 420
H42: 139.5 | I42: 532.8
H43: 20.9
H44: 52
H45: 7.8
H46: 17
H47: =ROUND(SUM(H38:H46),2) -> 44502.9 | I47: =ROUND(H47/720,2) -> 61.81
A49: CONTENÇÕES
B51: ENROCAMENTO
B52: V RACHÃO= | C52: 101.48
B53: V AREIA= | C53: 11.65 | D53: V COMPRA = | E53: =ROUND(C53*1.25,2) -> 14.56
B55: A GEOTEXTIL= | C55: 460.7
A58: TERRAPLENAGEM
B60: V CORTE = | C60: 187.9 | E60: V TRANSPORTE = | F60: =ROUND(C60*1.25,2) -> 234.88
C61: EMPOLAMENTO | D61: 1.25
B62: V ATERRO= | C62: 398.21 | E62: V REATERRO = | F62: =ROUND(C62*D61,2) -> 497.76
A65: CONTENÇÃO
A77: INFRA E MESOESTRUTURA
A78: 1. VOLUME DE CONCRETO
A79: 1.1 Pilares P1 e P4:
A80: L = | B80: 5.7 | C80: B = | D80: 0.5 | E80: h = | F80: 0.5
A81: V pilar = | B81: (L1*B1*H1)
A82: V pilar = | B82: =B80*D80*F80 -> 1.425
A83: Npilares = | B83: 2
A84: V total = | B84: Vpilar*Npilares
A85: V total = | B85: =B82*B83 -> 2.85
A86: 1.2 Blocos B1 e B4:
A87: L = | B87: 8 | C87: B = | D87: 2.5 | E87: h = | F87: 1
A88: V bloco = | B88: (L1*B1*H1)
A89: V bloco = | B89: =B87*D87*F87 -> 20
A90: Nblocos = | B90: 2
A91: V total = | B91: Vblocos*Nblocos
A92: V total = | B92: =B89*B90 -> 40
A93: 1.3 Pilares P2 e P3:
A94: L = | B94: 5.7 | C94: B = | D94: 0.5 | E94: h = | F94: 0.5
A95: V pilar = | B95: (L1*B1*H1)
A96: V pilar = | B96: =B94*D94*F94 -> 1.425
A97: Npilares = | B97: 2
A98: V total = | B98: Vpilar*Npilares
A99: V total = | B99: =B96*B97 -> 2.85
A100: 1.4 Blocos B2 e B3:
A101: L = | B101: 8 | C101: B = | D101: 2.5 | E101: h = | F101: 1
A102: V bloco = | B102: (L1*B1*H1)
A103: V bloco = | B103: =B101*D101*F101 -> 20
A104: Nblocos = | B104: 2
A105: V total = | B105: Vblocos*Nblocos
A106: V total = | B106: =B103*B104 -> 40
A107: TOTAL VOLUME DE CONCRETO 30MPa = | D107: =ROUND((B85+B92+B99+B106),2) -> 85.7
A109: 2. ÁREA DE FORMA
A110: 2.1 Pilares P1 e P4:
A111: P = | B111: =B80*2+D80*2 -> 12.4 | C111: h = | D111: =F80 -> 0.5
A112: A pilares = | B112: P*h | D112: N= | E112: 2
A113: A pilares = | B113: =B111*D111 -> 6.2
A114: A total = | B114: =B113*E112 -> 12.4
A115: 2.2 Blocos B1 e B4:
A116: P = | B116: =B87*2+D87*2 -> 21 | C116: h = | D116: =F87 -> 1
A117: A blocos = | B117: P*h | D117: N= | E117: 2
A118: A blocos = | B118: =B116*D116 -> 21
A119: A total = | B119: =B118*E117 -> 42
A120: 2.3 Pilares P2 e P3:
A121: P = | B121: =B94*2+D94*2 -> 12.4 | C121: h = | D121: =F94 -> 0.5
A122: A pilares = | B122: P*h | D122: N= | E122: 2
A123: A pilares = | B123: =B121*D121 -> 6.2
A124: A total = | B124: =B123*E122 -> 12.4
A125: 2.4 Blocos B2 e B3:
A126: P = | B126: =B101*2+D101*2 -> 21 | C126: h = | D126: =F101 -> 1
A127: L= | B127: =B101 -> 8 | C127: B= | D127: =D101 -> 2.5
A128: A blocos = | B128: P*h + L*B | D128: N= | E128: 2
A129: A blocos = | B129: =(B126*D126)+(B127*D127) -> 41
A130: A total = | B130: =B129*E128 -> 82
A131: TOTAL ÁREA DE FORMA = | C131: =ROUND((B114+B119+B124+B130),2) -> 148.8
A133: 3.VOLUME DE CONCRETO MAGRO/LASTRO DE BRITA :
A134: 3.1 Sob blocos B1 e B4
A135: L1 = | B135: =B87+0.05 -> 8.05 | C135: h = | D135: 0.1 | E135: B1= | F135: =D87+0.05 -> 2.55 | G135: N= | H135: 2
A136: V sob bloco = | B136: (L1*B1*N)*h
A137: V sob bloco = | B137: =B135*F135*D135*H135 -> 4.1055
A138: 3.1 Sob lajes de transição
A139: L1 = | B139: 9 | C139: h = | D139: 0.05 | E139: B1= | F139: 4.05 | G139: N= | H139: 2
A140: V sob laje transi = | B140: (L1*B1*N)*h
A141: V sob laje transi = | B141: =B139*F139*D139*H139 -> 3.645
A142: VOLUME CONCRETO MAGRO = | D142: =ROUND((B137+B141),2) -> 7.75
A144: VOLUME BRITA = | D144: =ROUND(B137,2) -> 4.11
A146: 5. AÇO
A147: 5.1 Blocos B1 e B4 (2x) | B147: Unitário | E147: TOTAL
B148: ø8 | C148: 15.08 | E148: ø8 | F148: =C148*2 -> 30.16
B149: ø10 | C149: 318.66 | E149: ø10 | F149: =C149*2 -> 637.32
B150: ø12,5 | C150: 147.84 | E150: ø12,5 | F150: 295.68
B151: ø16 | C151: 470.24 | E151: ø16 | F151: 940.48
B152: ø20 | C152: 433 | E152: ø20 | F152: 866
A153: 5.2 Blocos B2 e B3 (2x) | B153: Unitário | E153: TOTAL
B154: ø8 | C154: 10.92 | E154: ø8 | F154: =C154*2 -> 21.84
B155: ø10 | C155: 318.66 | E155: ø10 | F155: =C155*2 -> 637.32
B156: ø12,5 | C156: 147.84 | E156: ø12,5 | F156: 295.68
B157: ø20 | C157: 1087.15 | E157: ø20 | F157: 2174.3
E160: ø8 | F160: =ROUND((F148+F154),2) -> 52
E161: ø10 | F161: =ROUND((F149+F155),2) -> 1274.64
E162: ø12,5 | F162: =ROUND((F150+F156),2) -> 591.36
E163: ø16 | F163: =ROUND(F151,2) -> 940.48
E164: ø20 | F164: =ROUND((F152+F157),2) -> 3040.3
A167: 6. ESTACAS PRÉ-MOLDADAS 35x35cm
A168: 6.1 Bloco B1 e B4:
A169: N Estacas Inclinadas = | C169: 12 | D169: L inclinada = | F169: 17.34
A170: N Estacas Verticais = | C170: 8 | D170: L vertical = | F170: 17
A171: Total = | B171: =(F169*C169)+(C170*F170) -> 344.08
A172: 6.2 Bloco B2 e B3:
A173: N Estacas Inclinadas = | C173: 12 | D173: L inclinada = | F173: 21.42
A174: N Estacas Verticais = | C174: 8 | D174: L vertical = | F174: 21
A175: Total = | B175: =(F173*C173)+(C174*F174) -> 425.04
A177: COMP. TOTAL ESTACAS = | C177: =ROUND((B171+B175),2) -> 769.12 | D177: =ROUND((0.35*0.35*C177),2) -> 94.22 | E177: =ROUND(D177*2.5,2) -> 235.55
A180: 3. ESCORAMENTO
A181: B = | B181: 9.6 | C181: L = | D181: 52 | E181: H = | F181: 3
A182: V = | B182: =ROUND(B181*D181*F181,2) -> 1497.6
A184: base apoio sobre blocos
A185: B = | B185: 9.6 | C185: L = | D185: 20 | E185: H = | F185: 0.5
A186: V = | B186: =ROUND(B185*D185*F185,2) -> 96
A188: SUPERESTRUTURA
A189: 1. VOLUME DE CONCRETO
A190: 1.1 Viga
A191: A2 = | B191: 0.48 | C191: L2 = | D191: =2*8.47+2*16.96 -> 50.86 | E191: N2 = | F191: 2
A192: V = | B192: A*L*N
A193: V = | B193: =B191*D191*F191 -> 48.8256
A194: 1.2 Laje
A195: A = | B195: 2.44 | C195: L = | D195: 50.86
A196: V = | B196: A*L
A197: V = | B197: =B195*D195 -> 124.0984
A198: 1.3 Transversina de Entrada
A199: A = | B199: 0.55275 | C199: L = | D199: 9.6
A200: V = | B200: A*L
A201: V = | B201: =B199*D199 -> 5.3064
A202: Nº transvers = | B202: 2
A203: Vtotal = | B203: =B202*B201 -> 10.6128
A204: 1.4 Transversina de Apoio
A205: A = | B205: 0.4662 | C205: L = | D205: 5.7
A206: V = | B206: A*L
A207: V = | B207: =B205*D205 -> 2.65734
A208: Nº transvers = | B208: 2
A209: Vtotal = | B209: =B208*B207 -> 5.31468
A210: 1.5 Transversina Intermediária
A211: A = | B211: =0.25*0.7 -> 0.175 | C211: L = | D211: 4.9
A212: V = | B212: A*L
A213: V = | B213: =B211*D211 -> 0.8575
A214: Nº transvers = | B214: 6
A215: Vtotal = | B215: =B214*B213 -> 5.145
A216: 1.6 Laje de Transição
A217: C1 = | B217: 8.96 | C217: L1 = | D217: 4 | E217: h1 = | F217: 0.3
A218: C2 = | B218: 0 | C218: L2 = | D218: 0 | E218: h2 = | F218: 0
A219: V = | B219: C1*L1*h1
A220: V = | B220: =B217*D217*F217 -> 10.752
A221: N = | B221: 2
A222: Vtotal = | B222: =B221*B220 -> 21.504
A223: Vmagro = | B223: =B217*D217*B221*0.05 -> 3.584
A224: 1.7 Alas
A225: A1 = | B225: 1.93 | C225: N = | D225: 4 | E225: e = | F225: 0.3
A226: V1 = | B226: A1 * e * N
A227: V1 = | B227: =B225*D225*F225 -> 2.316
A228: 1.8 Passeio
A229: A1 = | B229: 0.24 | C229: N = | D229: 2 | E229: l = | F229: 52.07
A230: V1 = | B230: A1 * l * N
A231: V1 = | B231: =B229*D229*F229 -> 24.9936
A232: RESUMO CONCRETO:
A233: V30 MPa = | B233: =ROUND((B227+B223+B197+B231),2) -> 154.99
A234: V35 MPa = | B234: =ROUND((B193+B203+B209+B215),2) -> 69.9
A236: 2. ÁREA DE FORMA
A237: 2.1 Viga
A238: Per1 = | B238: =1.2+0.4+1.2 -> 2.8 | C238: L1 = | D238: 50.86 | E238: N1 = | F238: 2
A239: V = | B239: A*L
A240: V = | B240: =B238*D238*F238 -> 284.816
A241: 2.2 Laje
A242: Per = | B242: =2*1.86+4.91 -> 8.63 | C242: Comp = | D242: 50.86
A243: A = | B243: =B242*D242 -> 438.9218
A244: 2.3 Transversina de Entrada
... 106 more rows

Sheet BDI
I1: DIFERENCIADO
B2: Composição do BDI | G2: Composição do BDI
B3: Itens | E3: Adotado | G3: Itens | J3: Adotado
B4: AC | C4: ADM CENTRAL | E4: 0.0403 | G4: AC | H4: ADM CENTRAL | J4: 0.01
B5: S+G | C5: SEGURO E GARANTIA | E5: 0.0065 | G5: S+G | H5: SEGURO E GARANTIA | J5: 0
B6: R | C6: RISCO | E6: 0.0133 | G6: R | H6: RISCO | J6: 0.005
B7: DF | C7: DESP. FINANCEIRAS | E7: 0.0152 | G7: DF | H7: DESP. FINANCEIRAS | J7: 0.0152
B8: L | C8: LUCRO | E8: 0.08 | G8: L | H8: LUCRO | J8: 0.05
B9: I | C9: IMPOSTOS | E9: =SUM(E10:E13) -> 0.0485 | G9: I | H9: IMPOSTOS | J9: =SUM(J10:J13) -> 0.0485
D10: PIS | E10: 0.0065 | I10: PIS | J10: 0.0065
D11: COFINS | E11: 0.03 | I11: COFINS | J11: 0.03
D12: ISSQN (Aliquota x %Base de cálculo) | E12: 0.012 | I12: ISSQN (Aliquota x %Base de cálculo) | J12: 0.012
D13: CPRB | E13: 0 | I13: CPRB | J13: 0
B15: Fórmula do BDI | G15: Fórmula do BDI
D16: BDI = (1 + AC + S + G + R) * (1 + DF) * (1 + L) -1 | I16: BDI = (1 + AC + S + G + R) * (1 + DF) * (1 + L) -1
D17: (1 - I) | I17: (1 - I)
B19: BDI Resultante SEM DESONERAÇÃO | G19: BDI Resultante SEM DESONERAÇÃO
B20: BDI Resultante | E20: =TRUNC(((((1+E4+E5+E6)*(1+E7)*(1+E8))/(1-E9))-1),4) -> 0.2215 | G20: BDI Resultante | J20: =TRUNC(((((1+J4+J5+J6)*(1+J7)*(1+J8))/(1-J9))-1),4) -> 0.137
B21: De acordo com o Decreto 19224/2015 da PMPA | G21: De acordo com o Decreto 19224/2015 da PMPA

Sheet encargos
A1: TABELA DE ENCARGOS SOCIAIS
A2: CÓD. | B2: DESCRIÇÃO | C2: Sem Desoneração
A3: GRUPO A: ENCARGOS BÁSICOS PREVIDENCIÁRIOS | C3: Horista | D3: Mensalista
A4: A1 | B4: INSS | C4: 0.2 | D4: 0.2
A5: A2 | B5: SESI | C5: 0.015 | D5: 0.015
A6: A3 | B6: SENAI | C6: 0.01 | D6: 0.01
A7: A4 | B7: INCRA | C7: 0.002 | D7: 0.002
A8: A5 | B8: SEBRAE | C8: 0.006 | D8: 0.006
A9: A6 | B9: SALÁRIO-EDUCAÇÃO | C9: 0.025 | D9: 0.025
A10: A7 | B10: SEGURO-ACIDENTE | C10: 0.03 | D10: 0.03
A11: A8 | B11: FGTS | C11: 0.08 | D11: 0.08
A12: A9 | B12: SECONDI | C12: 0 | D12: 0
A13: TOTAL GRUPO A | C13: =SUM(C4:C12) -> 0.368 | D13: =SUM(D4:D12) -> 0.368
A14: GRUPO B: ENCARGOS QUE RECEBEM INCIDÊNCIA DE A
A15: B1 | B15: REPOUSO SEMANAL REMUNERADO | C15: 0.1793 | D15: -
A16: B2 | B16: FERIADOS | C16: 0.0424 | D16: -
A17: B3 | B17: AUXÍLIO-ENFERMIDADE | C17: 0.0085 | D17: 0.0066
A18: B4 | B18: 13º SALÁRIO | C18: 0.1081 | D18: 0.0833
A19: B5 | B19: LICENÇA-PATERNIDADE | C19: 0.0007 | D19: 0.0006
A20: B6 | B20: FALTAS JUSTIFICADAS | C20: 0.0072 | D20: 0.0056
A21: B7 | B21: DIAS DE CHUVAS | C21: 0.0153 | D21: -
A22: B8 | B22: ACIDENTES DE TRABALHO | C22: 0.001 | D22: 0.0008
A23: B9 | B23: FÉRIAS | C23: 0.0814 | D23: 0.0628
A24: B10 | B24: SALARIO MATERNIDADE | C24: 0.0003 | D24: 0.0002
A25: TOTAL GRUPO B | C25: =SUM(C15:C24) -> 0.4442 | D25: =SUM(D15:D24) -> 0.1599
A26: GRUPO C: ENCARGOS QUE NÃO RECEBEM A INCIDÊNCIA DE A
A27: C1 | B27: AVISO PRÉVIO INDENIZADO | C27: 0.045 | D27: 0.0347
A28: C2 | B28: AVISO PRÉVIO TRABALHADO | C28: 0.0011 | D28: 0.0008
A29: C3 | B29: FÉRIAS INDENIZADAS + 1/3 | C29: 0.0478 | D29: 0.0368
A30: C4 | B30: DEPOSITO POR DESPEDIDA INJUSTA | C30: 0.0348 | D30: 0.0269
A31: C5 | B31: INDENIZAÇÃO ADICIONAL | C31: 0.0038 | D31: 0.0029
A32: TOTAL GRUPO C | C32: =SUM(C27:C31) -> 0.1325 | D32: =SUM(D27:D31) -> 0.1021
A33: GRUPO D: INCIDÊNCIA DE ENCARGOS
A34: D1 | B34: REINCIDÊNCIA DE A SOBRE B | C34: =C13*C25 -> 0.1634656 | D34: =D13*D25 -> 0.0588432
A35: D2 | B35: REINCIDÊNCIA DE A SOBRE C2 + REINCIDÊNCIA DE FGTS SOBRE C1 | C35: 0.004 | D35: 0.0031
A36: TOTAL GRUPO D | C36: =SUM(C34:C35) -> 0.1674656 | D36: =SUM(D34:D35) -> 0.0619432
B37: TOTAL GERAL A + B + C + D | C37: =SUM(C13,C25,C32,C36) -> 1.1121656 | D37: =SUM(D13,D25,D32,D36) -> 0.6919432
B38: Fonte: SINAPI

Sheet sinapi (hidden)
A1: CODIGO DA COMPOSICAO | B1: DESCRICAO DA COMPOSICAO | C1: UNIDADE | D1: ORIGEM DE PREÇO | E1: CUSTO TOTAL | F1: CUSTO MAO DE OBRA | G1: CUSTO MATERIAL | H1: CUSTO EQUIPAMENTO
A2: 97141 | B2: ASSENTAMENTO DE TUBO DE FERRO FUNDIDO PARA REDE DE ÁGUA, DN 80 MM, JUNTA ELÁSTICA, INSTALADO EM LOCAL COM NÍVEL ALTO DE INTERFERÊNCIAS (NÃO INCLUI FORNECIMENTO). AF_11/2017 | C2: M | D2: COEFICIENTE DE REPRESENTATIVIDADE | E2: 8.16 | F2: 4.85 | G2: 1.53 | H2: 1.78
A3: 97142 | B3: ASSENTAMENTO DE TUBO DE FERRO FUNDIDO PARA REDE DE ÁGUA, DN 100 MM, JUNTA ELÁSTICA, INSTALADO EM LOCAL COM NÍVEL ALTO DE INTERFERÊNCIAS (NÃO INCLUI FORNECIMENTO). AF_11/2017 | C3: M | D3: COEFICIENTE DE REPRESENTATIVIDADE | E3: 9.11 | F3: 5.48 | G3: 1.71 | H3: 1.92
A4: 97143 | B4: ASSENTAMENTO DE TUBO DE FERRO FUNDIDO PARA REDE DE ÁGUA, DN 150 MM, JUNTA ELÁSTICA, INSTALADO EM LOCAL COM NÍVEL ALTO DE INTERFERÊNCIAS (NÃO INCLUI FORNECIMENTO). AF_11/2017 | C4: M | D4: COEFICIENTE DE REPRESENTATIVIDADE | E4: 11.46 | F4: 7.04 | G4: 2.19 | H4: 2.23
A5: 97144 | B5: ASSENTAMENTO DE TUBO DE FERRO FUNDIDO PARA REDE DE ÁGUA, DN 200 MM, JUNTA ELÁSTICA, INSTALADO EM LOCAL COM NÍVEL ALTO DE INTERFERÊNCIAS (NÃO INCLUI FORNECIMENTO). AF_11/2017 | C5: M | D5: COEFICIENTE DE REPRESENTATIVIDADE | E5: 13.78 | F5: 8.55 | G5: 2.69 | H5: 2.54
A6: 97145 | B6: ASSENTAMENTO DE TUBO DE FERRO FUNDIDO PARA REDE DE ÁGUA, DN 250 MM, JUNTA ELÁSTICA, INSTALADO EM LOCAL COM NÍVEL ALTO DE INTERFERÊNCIAS (NÃO INCLUI FORNECIMENTO). AF_11/2017 | C6: M | D6: COEFICIENTE DE REPRESENTATIVIDADE | E6: 16.15 | F6: 10.12 | G6: 3.17 | H6: 2.86
A7: 97146 | B7: ASSENTAMENTO DE TUBO DE FERRO FUNDIDO PARA REDE DE ÁGUA, DN 300 MM, JUNTA ELÁSTICA, INSTALADO EM LOCAL COM NÍVEL ALTO DE INTERFERÊNCIAS (NÃO INCLUI FORNECIMENTO). AF_11/2017 | C7: M | D7: COEFICIENTE DE REPRESENTATIVIDADE | E7: 18.51 | F7: 11.68 | G7: 3.66 | H7: 3.17
A8: 97147 | B8: ASSENTAMENTO DE TUBO DE FERRO FUNDIDO PARA REDE DE ÁGUA, DN 350 MM, JUNTA ELÁSTICA, INSTALADO EM LOCAL COM NÍVEL ALTO DE INTERFERÊNCIAS (NÃO INCLUI FORNECIMENTO). AF_11/2017 | C8: M | D8: COEFICIENTE DE REPRESENTATIVIDADE | E8: 20.88 | F8: 13.23 | G8: 4.17 | H8: 3.48
A9: 97148 | B9: ASSENTAMENTO DE TUBO DE FERRO FUNDIDO PARA REDE DE ÁGUA, DN 400 MM, JUNTA ELÁSTICA, INSTALADO EM LOCAL COM NÍVEL ALTO DE INTERFERÊNCIAS (NÃO INCLUI FORNECIMENTO). AF_11/2017 | C9: M | D9: COEFICIENTE DE REPRESENTATIVIDADE | E9: 23.24 | F9: 14.78 | G9: 4.66 | H9: 3.8
A10: 97149 | B10: ASSENTAMENTO DE TUBO DE FERRO FUNDIDO PARA REDE DE ÁGUA, DN 450 MM, JUNTA ELÁSTICA, INSTALADO EM LOCAL COM NÍVEL ALTO DE INTERFERÊNCIAS (NÃO INCLUI FORNECIMENTO). AF_11/2017 | C10: M | D10: COEFICIENTE DE REPRESENTATIVIDADE | E10: 25.64 | F10: 16.31 | G10: 5.21 | H10: 4.12
A11: 97150 | B11: ASSENTAMENTO DE TUBO DE FERRO FUNDIDO PARA REDE DE ÁGUA, DN 500 MM, JUNTA ELÁSTICA, INSTALADO EM LOCAL COM NÍVEL ALTO DE INTERFERÊNCIAS (NÃO INCLUI FORNECIMENTO). AF_11/2017 | C11: M | D11: COEFICIENTE DE REPRESENTATIVIDADE | E11: 32.71 | F11: 17.83 | G11: 6.01 | H11: 8.87
A12: 97151 | B12: ASSENTAMENTO DE TUBO DE FERRO FUNDIDO PARA REDE DE ÁGUA, DN 600 MM, JUNTA ELÁSTICA, INSTALADO EM LOCAL COM NÍVEL ALTO DE INTERFERÊNCIAS (NÃO INCLUI FORNECIMENTO). AF_11/2017 | C12: M | D12: COEFICIENTE DE REPRESENTATIVIDADE | E12: 38.17 | F12: 20.93 | G12: 7.12 | H12: 10.12
A13: 97152 | B13: ASSENTAMENTO DE TUBO DE FERRO FUNDIDO PARA REDE DE ÁGUA, DN 700 MM, JUNTA ELÁSTICA, INSTALADO EM LOCAL COM NÍVEL ALTO DE INTERFERÊNCIAS (NÃO INCLUI FORNECIMENTO). AF_11/2017 | C13: M | D13: COEFICIENTE DE REPRESENTATIVIDADE | E13: 43.33 | F13: 24.02 | G13: 7.93 | H13: 11.38
A14: 97153 | B14: ASSENTAMENTO DE TUBO DE FERRO FUNDIDO PARA REDE DE ÁGUA, DN 800 MM, JUNTA ELÁSTICA, INSTALADO EM LOCAL COM NÍVEL ALTO DE INTERFERÊNCIAS (NÃO INCLUI FORNECIMENTO). AF_11/2017 | C14: M | D14: COEFICIENTE DE REPRESENTATIVIDADE | E14: 48.65 | F14: 27.11 | G14: 8.9 | H14: 12.64
A15: 97154 | B15: ASSENTAMENTO DE TUBO DE FERRO FUNDIDO PARA REDE DE ÁGUA, DN 900 MM, JUNTA ELÁSTICA, INSTALADO EM LOCAL COM NÍVEL ALTO DE INTERFERÊNCIAS (NÃO INCLUI FORNECIMENTO). AF_11/2017 | C15: M | D15: COEFICIENTE DE REPRESENTATIVIDADE | E15: 54.03 | F15: 30.21 | G15: 9.91 | H15: 13.91
A16: 97155 | B16: ASSENTAMENTO DE TUBO DE FERRO FUNDIDO PARA REDE DE ÁGUA, DN 1000 MM, JUNTA ELÁSTICA, INSTALADO EM LOCAL COM NÍVEL ALTO DE INTERFERÊNCIAS (NÃO INCLUI FORNECIMENTO). AF_11/2017 | C16: M | D16: COEFICIENTE DE REPRESENTATIVIDADE | E16: 59.4 | F16: 33.3 | G16: 10.94 | H16: 15.16
A17: 97156 | B17: ASSENTAMENTO DE TUBO DE FERRO FUNDIDO PARA REDE DE ÁGUA, DN 1200 MM, JUNTA ELÁSTICA, INSTALADO EM LOCAL COM NÍVEL ALTO DE INTERFERÊNCIAS (NÃO INCLUI FORNECIMENTO). AF_11/2017 | C17: M | D17: COEFICIENTE DE REPRESENTATIVIDADE | E17: 70.65 | F17: 39.48 | G17: 13.5 | H17: 17.67
A18: 97157 | B18: ASSENTAMENTO DE TUBO DE FERRO FUNDIDO PARA REDE DE ÁGUA, DN 80 MM, JUNTA ELÁSTICA, INSTALADO EM LOCAL COM NÍVEL BAIXO DE INTERFERÊNCIAS (NÃO INCLUI FORNECIMENTO). AF_11/2017 | C18: M | D18: COEFICIENTE DE REPRESENTATIVIDADE | E18: 4.95 | F18: 2.79 | G18: 1.13 | H18: 1.03
A19: 97158 | B19: ASSENTAMENTO DE TUBO DE FERRO FUNDIDO PARA REDE DE ÁGUA, DN 100 MM, JUNTA ELÁSTICA, INSTALADO EM LOCAL COM NÍVEL BAIXO DE INTERFERÊNCIAS (NÃO INCLUI FORNECIMENTO). AF_11/2017 | C19: M | D19: COEFICIENTE DE REPRESENTATIVIDADE | E19: 5.54 | F19: 3.17 | G19: 1.26 | H19: 1.11
A20: 97159 | B20: ASSENTAMENTO DE TUBO DE FERRO FUNDIDO PARA REDE DE ÁGUA, DN 150 MM, JUNTA ELÁSTICA, INSTALADO EM LOCAL COM NÍVEL BAIXO DE INTERFERÊNCIAS (NÃO INCLUI FORNECIMENTO). AF_11/2017 | C20: M | D20: COEFICIENTE DE REPRESENTATIVIDADE | E20: 6.97 | F20: 4.09 | G20: 1.59 | H20: 1.29
A21: 97160 | B21: ASSENTAMENTO DE TUBO DE FERRO FUNDIDO PARA REDE DE ÁGUA, DN 200 MM, JUNTA ELÁSTICA, INSTALADO EM LOCAL COM NÍVEL BAIXO DE INTERFERÊNCIAS (NÃO INCLUI FORNECIMENTO). AF_11/2017 | C21: M | D21: COEFICIENTE DE REPRESENTATIVIDADE | E21: 8.39 | F21: 4.98 | G21: 1.93 | H21: 1.48
A22: 97161 | B22: ASSENTAMENTO DE TUBO DE FERRO FUNDIDO PARA REDE DE ÁGUA, DN 250 MM, JUNTA ELÁSTICA, INSTALADO EM LOCAL COM NÍVEL BAIXO DE INTERFERÊNCIAS (NÃO INCLUI FORNECIMENTO). AF_11/2017 | C22: M | D22: COEFICIENTE DE REPRESENTATIVIDADE | E22: 9.86 | F22: 5.91 | G22: 2.3 | H22: 1.65
A23: 97162 | B23: ASSENTAMENTO DE TUBO DE FERRO FUNDIDO PARA REDE DE ÁGUA, DN 300 MM, JUNTA ELÁSTICA, INSTALADO EM LOCAL COM NÍVEL BAIXO DE INTERFERÊNCIAS (NÃO INCLUI FORNECIMENTO). AF_11/2017 | C23: M | D23: COEFICIENTE DE REPRESENTATIVIDADE | E23: 11.3 | F23: 6.82 | G23: 2.64 | H23: 1.84
A24: 97163 | B24: ASSENTAMENTO DE TUBO DE FERRO FUNDIDO PARA REDE DE ÁGUA, DN 350 MM, JUNTA ELÁSTICA, INSTALADO EM LOCAL COM NÍVEL BAIXO DE INTERFERÊNCIAS (NÃO INCLUI FORNECIMENTO). AF_11/2017 | C24: M | D24: COEFICIENTE DE REPRESENTATIVIDADE | E24: 12.76 | F24: 7.69 | G24: 3.04 | H24: 2.03
A25: 97164 | B25: ASSENTAMENTO DE TUBO DE FERRO FUNDIDO PARA REDE DE ÁGUA, DN 400 MM, JUNTA ELÁSTICA, INSTALADO EM LOCAL COM NÍVEL BAIXO DE INTERFERÊNCIAS (NÃO INCLUI FORNECIMENTO). AF_11/2017 | C25: M | D25: COEFICIENTE DE REPRESENTATIVIDADE | E25: 14.23 | F25: 8.63 | G25: 3.4 | H25: 2.2
A26: 97165 | B26: ASSENTAMENTO DE TUBO DE FERRO FUNDIDO PARA REDE DE ÁGUA, DN 450 MM, JUNTA ELÁSTICA, INSTALADO EM LOCAL COM NÍVEL BAIXO DE INTERFERÊNCIAS (NÃO INCLUI FORNECIMENTO). AF_11/2017 | C26: M | D26: COEFICIENTE DE REPRESENTATIVIDADE | E26: 15.71 | F26: 9.55 | G26: 3.77 | H26: 2.39
A27: 97166 | B27: ASSENTAMENTO DE TUBO DE FERRO FUNDIDO PARA REDE DE ÁGUA, DN 500 MM, JUNTA ELÁSTICA, INSTALADO EM LOCAL COM NÍVEL BAIXO DE INTERFERÊNCIAS (NÃO INCLUI FORNECIMENTO). AF_11/2017 | C27: M | D27: COEFICIENTE DE REPRESENTATIVIDADE | E27: 20.03 | F27: 10.44 | G27: 4.42 | H27: 5.17
A28: 97167 | B28: ASSENTAMENTO DE TUBO DE FERRO FUNDIDO PARA REDE DE ÁGUA, DN 600 MM, JUNTA ELÁSTICA, INSTALADO EM LOCAL COM NÍVEL BAIXO DE INTERFERÊNCIAS (NÃO INCLUI FORNECIMENTO). AF_11/2017 | C28: M | D28: COEFICIENTE DE REPRESENTATIVIDADE | E28: 23.41 | F28: 12.25 | G28: 5.28 | H28: 5.88
A29: 97168 | B29: ASSENTAMENTO DE TUBO DE FERRO FUNDIDO PARA REDE DE ÁGUA, DN 700 MM, JUNTA ELÁSTICA, INSTALADO EM LOCAL COM NÍVEL BAIXO DE INTERFERÊNCIAS (NÃO INCLUI FORNECIMENTO). AF_11/2017 | C29: M | D29: COEFICIENTE DE REPRESENTATIVIDADE | E29: 26.48 | F29: 14.08 | G29: 5.77 | H29: 6.63
A30: 97169 | B30: ASSENTAMENTO DE TUBO DE FERRO FUNDIDO PARA REDE DE ÁGUA, DN 800 MM, JUNTA ELÁSTICA, INSTALADO EM LOCAL COM NÍVEL BAIXO DE INTERFERÊNCIAS (NÃO INCLUI FORNECIMENTO). AF_11/2017 | C30: M | D30: COEFICIENTE DE REPRESENTATIVIDADE | E30: 29.72 | F30: 15.88 | G30: 6.49 | H30: 7.35
A31: 97170 | B31: ASSENTAMENTO DE TUBO DE FERRO FUNDIDO PARA REDE DE ÁGUA, DN 900 MM, JUNTA ELÁSTICA, INSTALADO EM LOCAL COM NÍVEL BAIXO DE INTERFERÊNCIAS (NÃO INCLUI FORNECIMENTO). AF_11/2017 | C31: M | D31: COEFICIENTE DE REPRESENTATIVIDADE | E31: 33.03 | F31: 17.71 | G31: 7.23 | H31: 8.09
A32: 97171 | B32: ASSENTAMENTO DE TUBO DE FERRO FUNDIDO PARA REDE DE ÁGUA, DN 1000 MM, JUNTA ELÁSTICA, INSTALADO EM LOCAL COM NÍVEL BAIXO DE INTERFERÊNCIAS (NÃO INCLUI FORNECIMENTO). AF_11/2017 | C32: M | D32: COEFICIENTE DE REPRESENTATIVIDADE | E32: 36.34 | F32: 19.53 | G32: 7.99 | H32: 8.82
A33: 97172 | B33: ASSENTAMENTO DE TUBO DE FERRO FUNDIDO PARA REDE DE ÁGUA, DN 1200 MM, JUNTA ELÁSTICA, INSTALADO EM LOCAL COM NÍVEL BAIXO DE INTERFERÊNCIAS (NÃO INCLUI FORNECIMENTO). AF_11/2017 | C33: M | D33: COEFICIENTE DE REPRESENTATIVIDADE | E33: 43.43 | F33: 23.17 | G33: 9.97 | H33: 10.29
A34: 97173 | B34: ASSENTAMENTO DE TUBO DE AÇO CARBONO PARA REDE DE ÁGUA, DN 600 MM (24), JUNTA SOLDADA, INSTALADO EM LOCAL COM NÍVEL ALTO DE INTERFERÊNCIAS (NÃO INCLUI FORNECIMENTO). AF_11/2017 | C34: M | D34: COEFICIENTE DE REPRESENTATIVIDADE | E34: 43.57 | F34: 17.5 | G34: 18.49 | H34: 7.58
A35: 97174 | B35: ASSENTAMENTO DE TUBO DE AÇO CARBONO PARA REDE DE ÁGUA, DN 700 MM (28), JUNTA SOLDADA, INSTALADO EM LOCAL COM NÍVEL ALTO DE INTERFERÊNCIAS (NÃO INCLUI FORNECIMENTO). AF_11/2017 | C35: M | D35: COEFICIENTE DE REPRESENTATIVIDADE | E35: 50.49 | F35: 20.15 | G35: 21.49 | H35: 8.85
A36: 97175 | B36: ASSENTAMENTO DE TUBO DE AÇO CARBONO PARA REDE DE ÁGUA, DN 800 MM (32), JUNTA SOLDADA, INSTALADO EM LOCAL COM NÍVEL ALTO DE INTERFERÊNCIAS (NÃO INCLUI FORNECIMENTO). AF_11/2017 | C36: M | D36: COEFICIENTE DE REPRESENTATIVIDADE | E36: 57.41 | F36: 22.78 | G36: 24.53 | H36: 10.1
A37: 97176 | B37: ASSENTAMENTO DE TUBO DE AÇO CARBONO PARA REDE DE ÁGUA, DN 900 MM (36), JUNTA SOLDADA, INSTALADO EM LOCAL COM NÍVEL ALTO DE INTERFERÊNCIAS (NÃO INCLUI FORNECIMENTO). AF_11/2017 | C37: M | D37: COEFICIENTE DE REPRESENTATIVIDADE | E37: 64.32 | F37: 25.42 | G37: 27.55 | H37: 11.35
A38: 97177 | B38: ASSENTAMENTO DE TUBO DE AÇO CARBONO PARA REDE DE ÁGUA, DN 1000 MM (40) OU DN 1100 MM (44), JUNTA SOLDADA, INSTALADO EM LOCAL COM NÍVEL ALTO DE INTERFERÊNCIAS (NÃO INCLUI FORNECIMENTO). AF_11/2017 | C38: M | D38: COEFICIENTE DE REPRESENTATIVIDADE | E38: 78.17 | F38: 30.69 | G38: 33.61 | H38: 13.87
A39: 97178 | B39: ASSENTAMENTO DE TUBO DE AÇO CARBONO PARA REDE DE ÁGUA, DN 1200 MM (48) OU DN 1300 MM (52), JUNTA SOLDADA, INSTALADO EM LOCAL COM NÍVEL ALTO DE INTERFERÊNCIAS (NÃO INCLUI FORNECIMENTO). AF_11/2017 | C39: M | D39: COEFICIENTE DE REPRESENTATIVIDADE | E39: 92.01 | F39: 35.98 | G39: 39.65 | H39: 16.38
A40: 97179 | B40: ASSENTAMENTO DE TUBO DE AÇO CARBONO PARA REDE DE ÁGUA, DN 1400 MM (56'') OU DN 1500 MM (60), JUNTA SOLDADA, INSTALADO EM LOCAL COM NÍVEL ALTO DE INTERFERÊNCIAS (NÃO INCLUI FORNECIMENTO). AF_11/2017 | C40: M | D40: COEFICIENTE DE REPRESENTATIVIDADE | E40: 105.86 | F40: 41.26 | G40: 45.7 | H40: 18.9
A41: 97180 | B41: ASSENTAMENTO DE TUBO DE AÇO CARBONO PARA REDE DE ÁGUA, DN 1600 MM (64) OU DN 1700 MM (68), JUNTA SOLDADA, INSTALADO EM LOCAL COM NÍVEL ALTO DE INTERFERÊNCIAS (NÃO INCLUI FORNECIMENTO). AF_11/2017 | C41: M | D41: COEFICIENTE DE REPRESENTATIVIDADE | E41: 119.7 | F41: 46.52 | G41: 51.76 | H41: 21.42
A42: 97181 | B42: ASSENTAMENTO DE TUBO DE AÇO CARBONO PARA REDE DE ÁGUA, DN 1800 MM (72) OU DN 1900 MM (76), JUNTA SOLDADA, INSTALADO EM LOCAL COM NÍVEL ALTO DE INTERFERÊNCIAS (NÃO INCLUI FORNECIMENTO). AF_11/2017 | C42: M | D42: COEFICIENTE DE REPRESENTATIVIDADE | E42: 137.79 | F42: 51.82 | G42: 59.35 | H42: 26.62
A43: 97182 | B43: ASSENTAMENTO DE TUBO DE AÇO CARBONO PARA REDE DE ÁGUA, DN 2000 MM (80) OU DN 2100 MM (84), JUNTA SOLDADA, INSTALADO EM LOCAL COM NÍVEL ALTO DE INTERFERÊNCIAS (NÃO INCLUI FORNECIMENTO). AF_11/2017 | C43: M | D43: COEFICIENTE DE REPRESENTATIVIDADE | E43: 152.07 | F43: 57.1 | G43: 65.55 | H43: 29.42
A44: 97183 | B44: ASSENTAMENTO DE TUBO DE AÇO CARBONO PARA REDE DE ÁGUA, DN 600 MM (24), JUNTA SOLDADA, INSTALADO EM LOCAL COM NÍVEL BAIXO DE INTERFERÊNCIAS (NÃO INCLUI FORNECIMENTO). AF_11/2017 | C44: M | D44: COEFICIENTE DE REPRESENTATIVIDADE | E44: 36.67 | F44: 14.36 | G44: 17.9 | H44: 4.41
A45: 97184 | B45: ASSENTAMENTO DE TUBO DE AÇO CARBONO PARA REDE DE ÁGUA, DN 700 MM (28), JUNTA SOLDADA, INSTALADO EM LOCAL COM NÍVEL BAIXO DE INTERFERÊNCIAS (NÃO INCLUI FORNECIMENTO). AF_11/2017 | C45: M | D45: COEFICIENTE DE REPRESENTATIVIDADE | E45: 42.56 | F45: 16.59 | G45: 20.83 | H45: 5.14
A46: 97185 | B46: ASSENTAMENTO DE TUBO DE AÇO CARBONO PARA REDE DE ÁGUA, DN 800 MM (32), JUNTA SOLDADA, INSTALADO EM LOCAL COM NÍVEL BAIXO DE INTERFERÊNCIAS (NÃO INCLUI FORNECIMENTO). AF_11/2017 | C46: M | D46: COEFICIENTE DE REPRESENTATIVIDADE | E46: 48.48 | F46: 18.81 | G46: 23.8 | H46: 5.87
A47: 97186 | B47: ASSENTAMENTO DE TUBO DE AÇO CARBONO PARA REDE DE ÁGUA, DN 900 MM (36), JUNTA SOLDADA, INSTALADO EM LOCAL COM NÍVEL BAIXO DE INTERFERÊNCIAS (NÃO INCLUI FORNECIMENTO). AF_11/2017 | C47: M | D47: COEFICIENTE DE REPRESENTATIVIDADE | E47: 54.38 | F47: 21.04 | G47: 26.74 | H47: 6.6
A48: 97187 | B48: ASSENTAMENTO DE TUBO DE AÇO CARBONO PARA REDE DE ÁGUA, DN 1000 MM (40 ) OU DN 1100 MM (44 ), JUNTA SOLDADA, INSTALADO EM LOCAL COM NÍVEL BAIXO DE INTERFERÊNCIAS (NÃO INCLUI FORNECIMENTO). AF_11/2017 | C48: M | D48: COEFICIENTE DE REPRESENTATIVIDADE | E48: 66.2 | F48: 25.48 | G48: 32.65 | H48: 8.07
A49: 97188 | B49: ASSENTAMENTO DE TUBO DE AÇO CARBONO PARA REDE DE ÁGUA, DN 1200 MM (48) OU DN 1300 MM (52), JUNTA SOLDADA, INSTALADO EM LOCAL COM NÍVEL BAIXO DE INTERFERÊNCIAS (NÃO INCLUI FORNECIMENTO). AF_11/2017 | C49: M | D49: COEFICIENTE DE REPRESENTATIVIDADE | E49: 78.01 | F49: 29.93 | G49: 38.54 | H49: 9.54
A50: 97189 | B50: ASSENTAMENTO DE TUBO DE AÇO CARBONO PARA REDE DE ÁGUA, DN 1400 MM (56'') OU DN 1500 MM (60), JUNTA SOLDADA, INSTALADO EM LOCAL COM NÍVEL BAIXO DE INTERFERÊNCIAS (NÃO INCLUI FORNECIMENTO). AF_11/2017 | C50: M | D50: COEFICIENTE DE REPRESENTATIVIDADE | E50: 89.82 | F50: 34.4 | G50: 44.43 | H50: 10.99
A51: 97190 | B51: ASSENTAMENTO DE TUBO DE AÇO CARBONO PARA REDE DE ÁGUA, DN 1600 MM (64) OU DN 1700 MM (68), JUNTA SOLDADA, INSTALADO EM LOCAL COM NÍVEL BAIXO DE INTERFERÊNCIAS (NÃO INCLUI FORNECIMENTO). AF_11/2017 | C51: M | D51: COEFICIENTE DE REPRESENTATIVIDADE | E51: 101.64 | F51: 38.86 | G51: 50.33 | H51: 12.45
A52: 97191 | B52: ASSENTAMENTO DE TUBO DE AÇO CARBONO PARA REDE DE ÁGUA, DN 1800 MM (72) OU DN 1900 MM (76), JUNTA SOLDADA, INSTALADO EM LOCAL COM NÍVEL BAIXO DE INTERFERÊNCIAS (NÃO INCLUI FORNECIMENTO). AF_11/2017 | C52: M | D52: COEFICIENTE DE REPRESENTATIVIDADE | E52: 116.57 | F52: 43.29 | G52: 57.8 | H52: 15.48
A53: 97192 | B53: ASSENTAMENTO DE TUBO DE AÇO CARBONO PARA REDE DE ÁGUA, DN 2000 MM (80) OU DN 2100 MM (84), JUNTA SOLDADA, INSTALADO EM LOCAL COM NÍVEL BAIXO DE INTERFERÊNCIAS (NÃO INCLUI FORNECIMENTO). AF_11/2017 | C53: M | D53: COEFICIENTE DE REPRESENTATIVIDADE | E53: 128.7 | F53: 47.75 | G53: 63.84 | H53: 17.11
A54: 90694 | B54: TUBO DE PVC PARA REDE COLETORA DE ESGOTO DE PAREDE MACIÇA, DN 100 MM, JUNTA ELÁSTICA - FORNECIMENTO E ASSENTAMENTO. AF_01/2021 | C54: M | D54: COEFICIENTE DE REPRESENTATIVIDADE | E54: 47.26 | F54: 2.73 | G54: 44.53 | H54: 0
A55: 90695 | B55: TUBO DE PVC PARA REDE COLETORA DE ESGOTO DE PAREDE MACIÇA, DN 150 MM, JUNTA ELÁSTICA - FORNECIMENTO E ASSENTAMENTO. AF_01/2021 | C55: M | D55: COEFICIENTE DE REPRESENTATIVIDADE | E55: 98.41 | F55: 3.25 | G55: 95.16 | H55: 0
A56: 90696 | B56: TUBO DE PVC PARA REDE COLETORA DE ESGOTO DE PAREDE MACIÇA, DN 200 MM, JUNTA ELÁSTICA - FORNECIMENTO E ASSENTAMENTO. AF_01/2021 | C56: M | D56: COEFICIENTE DE REPRESENTATIVIDADE | E56: 146.16 | F56: 3.75 | G56: 142.41 | H56: 0
A57: 90697 | B57: TUBO DE PVC PARA REDE COLETORA DE ESGOTO DE PAREDE MACIÇA, DN 250 MM, JUNTA ELÁSTICA - FORNECIMENTO E ASSENTAMENTO. AF_01/2021 | C57: M | D57: COEFICIENTE DE REPRESENTATIVIDADE | E57: 246.34 | F57: 4.26 | G57: 242.08 | H57: 0
A58: 90698 | B58: TUBO DE PVC PARA REDE COLETORA DE ESGOTO DE PAREDE MACIÇA, DN 300 MM, JUNTA ELÁSTICA, FORNECIMENTO E ASSENTAMENTO. AF_01/2021 | C58: M | D58: COEFICIENTE DE REPRESENTATIVIDADE | E58: 395.02 | F58: 4.77 | G58: 390.25 | H58: 0
A59: 90699 | B59: TUBO DE PVC PARA REDE COLETORA DE ESGOTO DE PAREDE MACIÇA, DN 350 MM, JUNTA ELÁSTICA - FORNECIMENTO E ASSENTAMENTO. AF_01/2021 | C59: M | D59: COEFICIENTE DE REPRESENTATIVIDADE | E59: 488.38 | F59: 5.28 | G59: 483.1 | H59: 0
A60: 90700 | B60: TUBO DE PVC PARA REDE COLETORA DE ESGOTO DE PAREDE MACIÇA, DN 400 MM, JUNTA ELÁSTICA FORNECIMENTO E ASSENTAMENTO. AF_01/2021 | C60: M | D60: COEFICIENTE DE REPRESENTATIVIDADE | E60: 632.61 | F60: 4.35 | G60: 626.27 | H60: 1.99
A61: 90701 | B61: TUBO DE PVC CORRUGADO DE DUPLA PAREDE PARA REDE COLETORA DE ESGOTO, DN 150 MM, JUNTA ELÁSTICA - FORNECIMENTO E ASSENTAMENTO. AF_01/2021 | C61: M | D61: COEFICIENTE DE REPRESENTATIVIDADE | E61: 79.78 | F61: 3.62 | G61: 76.16 | H61: 0
A62: 90702 | B62: TUBO DE PVC CORRUGADO DE DUPLA PAREDE PARA REDE COLETORA DE ESGOTO, DN 200 MM, JUNTA ELÁSTICA - FORNECIMENTO E ASSENTAMENTO. AF_01/2021 | C62: M | D62: COEFICIENTE DE REPRESENTATIVIDADE | E62: 127.87 | F62: 4.12 | G62: 123.75 | H62: 0
A63: 90703 | B63: TUBO DE PVC CORRUGADO DE DUPLA PAREDE PARA REDE COLETORA DE ESGOTO, DN 250 MM, JUNTA ELÁSTICA - FORNECIMENTO E ASSENTAMENTO. AF_01/2021 | C63: M | D63: COEFICIENTE DE REPRESENTATIVIDADE | E63: 211.23 | F63: 4.63 | G63: 206.6 | H63: 0
A64: 90704 | B64: TUBO DE PVC CORRUGADO DE DUPLA PAREDE PARA REDE COLETORA DE ESGOTO, DN 300 MM, JUNTA ELÁSTICA - FORNECIMENTO E ASSENTAMENTO. AF_01/2021 | C64: M | D64: COEFICIENTE DE REPRESENTATIVIDADE | E64: 299.08 | F64: 5.15 | G64: 293.93 | H64: 0
A65: 90705 | B65: TUBO DE PVC CORRUGADO DE DUPLA PAREDE PARA REDE COLETORA DE ESGOTO, DN 350 MM, JUNTA ELÁSTICA - FORNECIMENTO E ASSENTAMENTO. AF_01/2021 | C65: M | D65: COEFICIENTE DE REPRESENTATIVIDADE | E65: 408.07 | F65: 5.66 | G65: 402.41 | H65: 0
A66: 90706 | B66: TUBO DE PVC CORRUGADO DE DUPLA PAREDE PARA REDE COLETORA DE ESGOTO, DN 400 MM, JUNTA ELÁSTICA - FORNECIMENTO E ASSENTAMENTO. AF_01/2021 | C66: M | D66: COEFICIENTE DE REPRESENTATIVIDADE | E66: 477.53 | F66: 4.85 | G66: 470.46 | H66: 2.22
A67: 90708 | B67: TUBO DE PEAD CORRUGADO DE DUPLA PAREDE PARA REDE COLETORA DE ESGOTO, DN 600 MM, JUNTA ELÁSTICA INTEGRADA - FORNECIMENTO E ASSENTAMENTO. AF_01/2021 | C67: M | D67: COEFICIENTE DE REPRESENTATIVIDADE | E67: 1342.44 | F67: 6.48 | G67: 1329.99 | H67: 5.97
A68: 90724 | B68: JUNTA ARGAMASSADA ENTRE TUBO DN 100 MM E O POÇO DE VISITA/ CAIXA DE CONCRETO OU ALVENARIA EM REDES DE ESGOTO. AF_01/2021 | C68: UN | D68: COEFICIENTE DE REPRESENTATIVIDADE | E68: 24.07 | F68: 18.89 | G68: 5.18 | H68: 0
A69: 90725 | B69: JUNTA ARGAMASSADA ENTRE TUBO DN 150 MM E O POÇO DE VISITA/ CAIXA DE CONCRETO OU ALVENARIA EM REDES DE ESGOTO. AF_01/2021 | C69: UN | D69: COEFICIENTE DE REPRESENTATIVIDADE | E69: 29.61 | F69: 23.13 | G69: 6.48 | H69: 0
A70: 90726 | B70: JUNTA ARGAMASSADA ENTRE TUBO DN 200 MM E O POÇO/ CAIXA DE CONCRETO OU ALVENARIA EM REDES DE ESGOTO. AF_01/2021 | C70: UN | D70: COEFICIENTE DE REPRESENTATIVIDADE | E70: 35.2 | F70: 27.34 | G70: 7.86 | H70: 0
A71: 90727 | B71: JUNTA ARGAMASSADA ENTRE TUBO DN 250 MM E O POÇO DE VISITA/ CAIXA DE CONCRETO OU ALVENARIA EM REDES DE ESGOTO. AF_01/2021 | C71: UN | D71: COEFICIENTE DE REPRESENTATIVIDADE | E71: 40.73 | F71: 31.6 | G71: 9.13 | H71: 0
A72: 90728 | B72: JUNTA ARGAMASSADA ENTRE TUBO DN 300 MM E O POÇO DE VISITA/ CAIXA DE CONCRETO OU ALVENARIA EM REDES DE ESGOTO. AF_01/2021 | C72: UN | D72: COEFICIENTE DE REPRESENTATIVIDADE | E72: 46.27 | F72: 35.82 | G72: 10.45 | H72: 0
A73: 90729 | B73: JUNTA ARGAMASSADA ENTRE TUBO DN 350 MM E O POÇO DE VISITA/ CAIXA DE CONCRETO OU ALVENARIA EM REDES DE ESGOTO. AF_01/2021 | C73: UN | D73: COEFICIENTE DE REPRESENTATIVIDADE | E73: 51.8 | F73: 40.02 | G73: 11.78 | H73: 0
A74: 90730 | B74: JUNTA ARGAMASSADA ENTRE TUBO DN 400 MM E O POÇO DE VISITA/ CAIXA DE CONCRETO OU ALVENARIA EM REDES DE ESGOTO. AF_01/2021 | C74: UN | D74: COEFICIENTE DE REPRESENTATIVIDADE | E74: 57.33 | F74: 44.22 | G74: 13.11 | H74: 0
A75: 90731 | B75: JUNTA ARGAMASSADA ENTRE TUBO DN 450 MM E O POÇO DE VISITA/ CAIXA DE CONCRETO OU ALVENARIA EM REDES DE ESGOTO. AF_01/2021 | C75: UN | D75: COEFICIENTE DE REPRESENTATIVIDADE | E75: 62.87 | F75: 48.49 | G75: 14.38 | H75: 0
A76: 90732 | B76: JUNTA ARGAMASSADA ENTRE TUBO DN 600 MM E O POÇO DE VISITA/ CAIXA DE CONCRETO OU ALVENARIA EM REDES DE ESGOTO. AF_01/2021 | C76: UN | D76: COEFICIENTE DE REPRESENTATIVIDADE | E76: 79.48 | F76: 61.16 | G76: 18.32 | H76: 0
A77: 90733 | B77: ASSENTAMENTO DE TUBO DE PVC PARA REDE COLETORA DE ESGOTO DE PAREDE MACIÇA, DN 100 MM, JUNTA ELÁSTICA (NÃO INCLUI FORNECIMENTO). AF_01/2021 | C77: M | D77: COEFICIENTE DE REPRESENTATIVIDADE | E77: 3.39 | F77: 2.78 | G77: 0.61 | H77: 0
A78: 90734 | B78: ASSENTAMENTO DE TUBO DE PVC PARA REDE COLETORA DE ESGOTO DE PAREDE MACIÇA, DN 150 MM, JUNTA ELÁSTICA, (NÃO INCLUI FORNECIMENTO). AF_01/2021 | C78: M | D78: COEFICIENTE DE REPRESENTATIVIDADE | E78: 4.03 | F78: 3.3 | G78: 0.73 | H78: 0
A79: 90735 | B79: ASSENTAMENTO DE TUBO DE PVC PARA REDE COLETORA DE ESGOTO DE PAREDE MACIÇA, DN 200 MM, JUNTA ELÁSTICA (NÃO INCLUI FORNECIMENTO). AF_01/2021 | C79: M | D79: COEFICIENTE DE REPRESENTATIVIDADE | E79: 4.65 | F79: 3.81 | G79: 0.84 | H79: 0
A80: 90736 | B80: ASSENTAMENTO DE TUBO DE PVC PARA REDE COLETORA DE ESGOTO DE PAREDE MACIÇA, DN 250 MM, JUNTA ELÁSTICA (NÃO INCLUI FORNECIMENTO). AF_01/2021 | C80: M | D80: COEFICIENTE DE REPRESENTATIVIDADE | E80: 5.28 | F80: 4.32 | G80: 0.96 | H80: 0
A81: 90737 | B81: ASSENTAMENTO DE TUBO DE PVC PARA REDE COLETORA DE ESGOTO DE PAREDE MACIÇA, DN 300 MM, JUNTA ELÁSTICA (NÃO INCLUI FORNECIMENTO). AF_01/2021 | C81: M | D81: COEFICIENTE DE REPRESENTATIVIDADE | E81: 5.91 | F81: 4.85 | G81: 1.06 | H81: 0
A82: 90738 | B82: ASSENTAMENTO DE TUBO DE PVC PARA REDE COLETORA DE ESGOTO DE PAREDE MACIÇA, DN 350 MM, JUNTA ELÁSTICA (NÃO INCLUI FORNECIMENTO). AF_01/2021 | C82: M | D82: COEFICIENTE DE REPRESENTATIVIDADE | E82: 6.53 | F82: 5.34 | G82: 1.19 | H82: 0
A83: 90739 | B83: ASSENTAMENTO DE TUBO DE PVC PARA REDE COLETORA DE ESGOTO DE PAREDE MACIÇA, DN 400 MM, JUNTA ELÁSTICA (NÃO INCLUI FORNECIMENTO). AF_01/2021 | C83: M | D83: COEFICIENTE DE REPRESENTATIVIDADE | E83: 8.63 | F83: 4.42 | G83: 2.19 | H83: 2.02
A84: 90740 | B84: ASSENTAMENTO DE TUBO DE PVC CORRUGADO DE DUPLA PAREDE PARA REDE COLETORA DE ESGOTO, DN 150 MM, JUNTA ELÁSTICA (NÃO INCLUI FORNECIMENTO). AF_01/2021 | C84: M | D84: COEFICIENTE DE REPRESENTATIVIDADE | E84: 4.48 | F84: 3.67 | G84: 0.81 | H84: 0
A85: 90741 | B85: ASSENTAMENTO DE TUBO DE PVC CORRUGADO DE DUPLA PAREDE PARA REDE COLETORA DE ESGOTO, DN 200 MM, JUNTA ELÁSTICA (NÃO INCLUI FORNECIMENTO). AF_01/2021 | C85: M | D85: COEFICIENTE DE REPRESENTATIVIDADE | E85: 5.11 | F85: 4.17 | G85: 0.94 | H85: 0
A86: 90742 | B86: ASSENTAMENTO DE TUBO DE PVC CORRUGADO DE DUPLA PAREDE PARA REDE COLETORA DE ESGOTO, DN 250 MM, JUNTA ELÁSTICA (NÃO INCLUI FORNECIMENTO). AF_01/2021 | C86: M | D86: COEFICIENTE DE REPRESENTATIVIDADE | E86: 5.74 | F86: 4.69 | G86: 1.05 | H86: 0
A87: 90743 | B87: ASSENTAMENTO DE TUBO DE PVC CORRUGADO DE DUPLA PAREDE PARA REDE COLETORA DE ESGOTO, DN 300 MM, JUNTA ELÁSTICA (NÃO INCLUI FORNECIMENTO). AF_01/2021 | C87: M | D87: COEFICIENTE DE REPRESENTATIVIDADE | E87: 6.36 | F87: 5.2 | G87: 1.16 | H87: 0
A88: 90744 | B88: ASSENTAMENTO DE TUBO DE PVC CORRUGADO DE DUPLA PAREDE PARA REDE COLETORA DE ESGOTO, DN 350 MM, JUNTA ELÁSTICA (NÃO INCLUI FORNECIMENTO). AF_01/2021 | C88: M | D88: COEFICIENTE DE REPRESENTATIVIDADE | E88: 6.99 | F88: 5.72 | G88: 1.27 | H88: 0
A89: 90745 | B89: ASSENTAMENTO DE TUBO DE PVC CORRUGADO DE DUPLA PAREDE PARA REDE COLETORA DE ESGOTO, DN 400 MM, JUNTA ELÁSTICA (NÃO INCLUI FORNECIMENTO). AF_01/2021 | C89: M | D89: COEFICIENTE DE REPRESENTATIVIDADE | E89: 9.63 | F89: 4.93 | G89: 2.45 | H89: 2.25
A90: 90746 | B90: ASSENTAMENTO DE TUBO DE PEAD CORRUGADO DE DUPLA PAREDE PARA REDE COLETORA DE ESGOTO, DN 450 MM, JUNTA ELÁSTICA INTEGRADA (NÃO INCLUI FORNECIMENTO). AF_01/2021 | C90: M | D90: COEFICIENTE DE REPRESENTATIVIDADE | E90: 3.67 | F90: 3.01 | G90: 0.66 | H90: 0
A91: 90747 | B91: ASSENTAMENTO DE TUBO DE PEAD CORRUGADO DE DUPLA PAREDE PARA REDE COLETORA DE ESGOTO, DN 600 MM, JUNTA ELÁSTICA INTEGRADA (NÃO INCLUI FORNECIMENTO). AF_01/2021 | C91: M | D91: COEFICIENTE DE REPRESENTATIVIDADE | E91: 16.38 | F91: 6.56 | G91: 3.78 | H91: 6.04
A92: 94869 | B92: TUBO DE PEAD CORRUGADO DE DUPLA PAREDE PARA REDE COLETORA DE ESGOTO, DN 250 MM, JUNTA ELÁSTICA INTEGRADA - FORNECIMENTO E ASSENTAMENTO. AF_01/2021 | C92: M | D92: COEFICIENTE DE REPRESENTATIVIDADE | E92: 273.62 | F92: 0.71 | G92: 272.91 | H92: 0
A93: 94870 | B93: ASSENTAMENTO DE TUBO DE PEAD CORRUGADO DE DUPLA PAREDE PARA REDE COLETORA DE ESGOTO, DN 250 MM, JUNTA ELÁSTICA INTEGRADA (NÃO INCLUI FORNECIMENTO). AF_01/2021 | C93: M | D93: COEFICIENTE DE REPRESENTATIVIDADE | E93: 2.09 | F93: 0.72 | G93: 1.37 | H93: 0
A94: 94871 | B94: TUBO DE PEAD CORRUGADO DE DUPLA PAREDE PARA REDE COLETORA DE ESGOTO, DN 300 MM, JUNTA ELÁSTICA INTEGRADA - FORNECIMENTO E ASSENTAMENTO. AF_01/2021 | C94: M | D94: COEFICIENTE DE REPRESENTATIVIDADE | E94: 324.03 | F94: 1.25 | G94: 322.78 | H94: 0
A95: 94872 | B95: ASSENTAMENTO DE TUBO DE PEAD CORRUGADO DE DUPLA PAREDE PARA REDE COLETORA DE ESGOTO, DN 300 MM, JUNTA ELÁSTICA INTEGRADA (NÃO INCLUI FORNECIMENTO). AF_01/2021 | C95: M | D95: COEFICIENTE DE REPRESENTATIVIDADE | E95: 2.89 | F95: 1.29 | G95: 1.6 | H95: 0
A96: 94875 | B96: TUBO DE PEAD CORRUGADO DE DUPLA PAREDE PARA REDE COLETORA DE ESGOTO, DN 800 MM, JUNTA ELÁSTICA INTEGRADA - FORNECIMENTO E ASSENTAMENTO. AF_01/2021 | C96: M | D96: COEFICIENTE DE REPRESENTATIVIDADE | E96: 1896.31 | F96: 9.84 | G96: 1877.45 | H96: 9.02
A97: 94876 | B97: ASSENTAMENTO DE TUBO DE PEAD CORRUGADO DE DUPLA PAREDE PARA REDE COLETORA DE ESGOTO, DN 800 MM, JUNTA ELÁSTICA INTEGRADA (NÃO INCLUI FORNECIMENTO). AF_01/2021 | C97: M | D97: COEFICIENTE DE REPRESENTATIVIDADE | E97: 28.08 | F97: 9.9 | G97: 9.12 | H97: 9.06
A98: 94878 | B98: ASSENTAMENTO DE TUBO DE PEAD CORRUGADO DE DUPLA PAREDE PARA REDE COLETORA DE ESGOTO, DN 900 MM, JUNTA ELÁSTICA INTEGRADA (NÃO INCLUI FORNECIMENTO). AF_01/2021 | C98: M | D98: COEFICIENTE DE REPRESENTATIVIDADE | E98: 32.39 | F98: 11.63 | G98: 10.12 | H98: 10.64
A99: 94879 | B99: TUBO DE PEAD CORRUGADO DE DUPLA PAREDE PARA REDE COLETORA DE ESGOTO, DN 1000 MM, JUNTA ELÁSTICA INTEGRADA - FORNECIMENTO E ASSENTAMENTO. AF_01/2021 | C99: M | D99: COEFICIENTE DE REPRESENTATIVIDADE | E99: 2525.4 | F99: 14.16 | G99: 2498.26 | H99: 12.98
A100: 94880 | B100: ASSENTAMENTO DE TUBO DE PEAD CORRUGADO DE DUPLA PAREDE PARA REDE COLETORA DE ESGOTO, DN 1000 MM, JUNTA ELÁSTICA INTEGRADA (NÃO INCLUI FORNECIMENTO). AF_01/2021 | C100: M | D100: COEFICIENTE DE REPRESENTATIVIDADE | E100: 42.22 | F100: 14.22 | G100: 14.97 | H100: 13.03
A101: 94881 | B101: TUBO DE PEAD CORRUGADO DE DUPLA PAREDE PARA REDE COLETORA DE ESGOTO, DN 1200 MM, JUNTA ELÁSTICA INTEGRADA - FORNECIMENTO E ASSENTAMENTO. AF_01/2021 | C101: M | D101: COEFICIENTE DE REPRESENTATIVIDADE | E101: 3946.18 | F101: 16.78 | G101: 3913.99 | H101: 15.41
A102: 94882 | B102: ASSENTAMENTO DE TUBO DE PEAD CORRUGADO DE DUPLA PAREDE PARA REDE COLETORA DE ESGOTO, DN 1200 MM, JUNTA ELÁSTICA INTEGRADA (NÃO INCLUI FORNECIMENTO). AF_01/2021 | C102: M | D102: COEFICIENTE DE REPRESENTATIVIDADE | E102: 48.85 | F102: 16.85 | G102: 16.54 | H102: 15.46
A103: 94884 | B103: ASSENTAMENTO DE TUBO DE PEAD CORRUGADO DE DUPLA PAREDE PARA REDE COLETORA DE ESGOTO, DN 1500 MM, JUNTA ELÁSTICA INTEGRADA (NÃO INCLUI FORNECIMENTO). AF_01/2021 | C103: M | D103: COEFICIENTE DE REPRESENTATIVIDADE | E103: 62.3 | F103: 22.23 | G103: 19.7 | H103: 20.37
A104: 97121 | B104: ASSENTAMENTO DE TUBO DE PVC PBA PARA REDE DE ÁGUA, DN 50 MM, JUNTA ELÁSTICA INTEGRADA, INSTALADO EM LOCAL COM NÍVEL ALTO DE INTERFERÊNCIAS (NÃO INCLUI FORNECIMENTO). AF_11/2017 | C104: M | D104: COEFICIENTE DE REPRESENTATIVIDADE | E104: 2.05 | F104: 1.6 | G104: 0.45 | H104: 0
A105: 97122 | B105: ASSENTAMENTO DE TUBO DE PVC PBA PARA REDE DE ÁGUA, DN 75 MM, JUNTA ELÁSTICA INTEGRADA, INSTALADO EM LOCAL COM NÍVEL ALTO DE INTERFERÊNCIAS (NÃO INCLUI FORNECIMENTO). AF_11/2017 | C105: M | D105: COEFICIENTE DE REPRESENTATIVIDADE | E105: 2.85 | F105: 2.16 | G105: 0.69 | H105: 0
A106: 97123 | B106: ASSENTAMENTO DE TUBO DE PVC PBA PARA REDE DE ÁGUA, DN 100 MM, JUNTA ELÁSTICA INTEGRADA, INSTALADO EM LOCAL COM NÍVEL ALTO DE INTERFERÊNCIAS (NÃO INCLUI FORNECIMENTO). AF_11/2017 | C106: M | D106: COEFICIENTE DE REPRESENTATIVIDADE | E106: 3.62 | F106: 2.74 | G106: 0.88 | H106: 0
A107: 97124 | B107: ASSENTAMENTO DE TUBO DE PVC PBA PARA REDE DE ÁGUA, DN 50 MM, JUNTA ELÁSTICA INTEGRADA, INSTALADO EM LOCAL COM NÍVEL BAIXO DE INTERFERÊNCIAS (NÃO INCLUI FORNECIMENTO). AF_11/2017 | C107: M | D107: COEFICIENTE DE REPRESENTATIVIDADE | E107: 0.92 | F107: 0.69 | G107: 0.23 | H107: 0
A108: 97125 | B108: ASSENTAMENTO DE TUBO DE PVC PBA PARA REDE DE ÁGUA, DN 75 MM, JUNTA ELÁSTICA INTEGRADA, INSTALADO EM LOCAL COM NÍVEL BAIXO DE INTERFERÊNCIAS (NÃO INCLUI FORNECIMENTO). AF_11/2017 | C108: M | D108: COEFICIENTE DE REPRESENTATIVIDADE | E108: 1.31 | F108: 0.92 | G108: 0.39 | H108: 0
A109: 97126 | B109: ASSENTAMENTO DE TUBO DE PVC PBA PARA REDE DE ÁGUA, DN 100 MM, JUNTA ELÁSTICA INTEGRADA, INSTALADO EM LOCAL COM NÍVEL BAIXO DE INTERFERÊNCIAS (NÃO INCLUI FORNECIMENTO). AF_11/2017 | C109: M | D109: COEFICIENTE DE REPRESENTATIVIDADE | E109: 1.67 | F109: 1.14 | G109: 0.53 | H109: 0
A110: 102264 | B110: TUBO DE PVC BRANCO PARA REDE COLETORA DE ESGOTO CONDOMINIAL DE PAREDE MACIÇA, DN 100 MM, JUNTA ELÁSTICA - FORNECIMENTO E ASSENTAMENTO. AF_01/2021 | C110: M | D110: COEFICIENTE DE REPRESENTATIVIDADE | E110: 24.75 | F110: 2.73 | G110: 22.02 | H110: 0
A111: 102265 | B111: JUNTA ARGAMASSADA ENTRE TUBO DN 800 MM E O POÇO DE VISITA/ CAIXA DE CONCRETO OU ALVENARIA EM REDES DE ESGOTO. AF_01/2021 | C111: UN | D111: COEFICIENTE DE REPRESENTATIVIDADE | E111: 101.61 | F111: 78.05 | G111: 23.56 | H111: 0
A112: 102266 | B112: JUNTA ARGAMASSADA ENTRE TUBO DN 900 MM E O POÇO DE VISITA/ CAIXA DE CONCRETO OU ALVENARIA EM REDES DE ESGOTO. AF_01/2021 | C112: UN | D112: COEFICIENTE DE REPRESENTATIVIDADE | E112: 112.68 | F112: 86.5 | G112: 26.18 | H112: 0
A113: 102267 | B113: JUNTA ARGAMASSADA ENTRE TUBO DN 1000 MM E O POÇO DE VISITA/ CAIXA DE CONCRETO OU ALVENARIA EM REDES DE ESGOTO. AF_01/2021 | C113: UN | D113: COEFICIENTE DE REPRESENTATIVIDADE | E113: 129.34 | F113: 99.17 | G113: 30.17 | H113: 0
A114: 102268 | B114: JUNTA ARGAMASSADA ENTRE TUBO DN 1200 MM E O POÇO DE VISITA/ CAIXA DE CONCRETO OU ALVENARIA EM REDES DE ESGOTO. AF_01/2021 | C114: UN | D114: COEFICIENTE DE REPRESENTATIVIDADE | E114: 145.94 | F114: 111.86 | G114: 34.08 | H114: 0
A115: 102269 | B115: JUNTA ARGAMASSADA ENTRE TUBO DN 1500 MM E O POÇO DE VISITA/ CAIXA DE CONCRETO OU ALVENARIA EM REDES DE ESGOTO. AF_01/2021 | C115: UN | D115: COEFICIENTE DE REPRESENTATIVIDADE | E115: 179.15 | F115: 137.18 | G115: 41.97 | H115: 0
A116: 92833 | B116: TUBO DE CONCRETO PARA REDES COLETORAS DE ESGOTO SANITÁRIO, DIÂMETRO DE 300 MM, JUNTA ELÁSTICA, INSTALADO EM LOCAL COM BAIXO NÍVEL DE INTERFERÊNCIAS - FORNECIMENTO E ASSENTAMENTO. AF_12/2015 | C116: M | D116: COEFICIENTE DE REPRESENTATIVIDADE | E116: 179.24 | F116: 3.93 | G116: 172.45 | H116: 2.86
A117: 92834 | B117: ASSENTAMENTO DE TUBO DE CONCRETO PARA REDES COLETORAS DE ESGOTO SANITÁRIO, DIÂMETRO DE 300 MM, JUNTA ELÁSTICA, INSTALADO EM LOCAL COM BAIXO NÍVEL DE INTERFERÊNCIAS (NÃO INCLUI FORNECIMENTO). AF_12/2015 | C117: M | D117: COEFICIENTE DE REPRESENTATIVIDADE | E117: 8.76 | F117: 4.21 | G117: 1.65 | H117: 2.9
A118: 92835 | B118: TUBO DE CONCRETO PARA REDES COLETORAS DE ESGOTO SANITÁRIO, DIÂMETRO DE 400 MM, JUNTA ELÁSTICA, INSTALADO EM LOCAL COM BAIXO NÍVEL DE INTERFERÊNCIAS - FORNECIMENTO E ASSENTAMENTO. AF_12/2015 | C118: M | D118: COEFICIENTE DE REPRESENTATIVIDADE | E118: 188.18 | F118: 5 | G118: 179.53 | H118: 3.65
A119: 92836 | B119: ASSENTAMENTO DE TUBO DE CONCRETO PARA REDES COLETORAS DE ESGOTO SANITÁRIO, DIÂMETRO DE 400 MM, JUNTA ELÁSTICA, INSTALADO EM LOCAL COM BAIXO NÍVEL DE INTERFERÊNCIAS (NÃO INCLUI FORNECIMENTO). AF_12/2015 | C119: M | D119: COEFICIENTE DE REPRESENTATIVIDADE | E119: 11.21 | F119: 5.36 | G119: 2.14 | H119: 3.71
A120: 92837 | B120: TUBO DE CONCRETO PARA REDES COLETORAS DE ESGOTO SANITÁRIO, DIÂMETRO DE 500 MM, JUNTA ELÁSTICA, INSTALADO EM LOCAL COM BAIXO NÍVEL DE INTERFERÊNCIAS - FORNECIMENTO E ASSENTAMENTO. AF_12/2015 | C120: M | D120: COEFICIENTE DE REPRESENTATIVIDADE | E120: 330.9 | F120: 6.07 | G120: 320.48 | H120: 4.35
A121: 92838 | B121: ASSENTAMENTO DE TUBO DE CONCRETO PARA REDES COLETORAS DE ESGOTO SANITÁRIO, DIÂMETRO DE 500 MM, JUNTA ELÁSTICA, INSTALADO EM LOCAL COM BAIXO NÍVEL DE INTERFERÊNCIAS (NÃO INCLUI FORNECIMENTO). AF_12/2015 | C121: M | D121: COEFICIENTE DE REPRESENTATIVIDADE | E121: 13.45 | F121: 6.44 | G121: 2.62 | H121: 4.39
A122: 92839 | B122: TUBO DE CONCRETO PARA REDES COLETORAS DE ESGOTO SANITÁRIO, DIÂMETRO DE 600 MM, JUNTA ELÁSTICA, INSTALADO EM LOCAL COM BAIXO NÍVEL DE INTERFERÊNCIAS - FORNECIMENTO E ASSENTAMENTO. AF_12/2015 | C122: M | D122: COEFICIENTE DE REPRESENTATIVIDADE | E122: 404.72 | F122: 7.15 | G122: 392.36 | H122: 5.21
A123: 92840 | B123: ASSENTAMENTO DE TUBO DE CONCRETO PARA REDES COLETORAS DE ESGOTO SANITÁRIO, DIÂMETRO DE 600 MM, JUNTA ELÁSTICA, INSTALADO EM LOCAL COM BAIXO NÍVEL DE INTERFERÊNCIAS (NÃO INCLUI FORNECIMENTO). AF_12/2015 | C123: M | D123: COEFICIENTE DE REPRESENTATIVIDADE | E123: 15.93 | F123: 7.58 | G123: 3.09 | H123: 5.26
A124: 92841 | B124: TUBO DE CONCRETO PARA REDES COLETORAS DE ESGOTO SANITÁRIO, DIÂMETRO DE 700 MM, JUNTA ELÁSTICA, INSTALADO EM LOCAL COM BAIXO NÍVEL DE INTERFERÊNCIAS - FORNECIMENTO E ASSENTAMENTO. AF_12/2015 | C124: M | D124: COEFICIENTE DE REPRESENTATIVIDADE | E124: 527.32 | F124: 8.21 | G124: 513.22 | H124: 5.89
A125: 92842 | B125: ASSENTAMENTO DE TUBO DE CONCRETO PARA REDES COLETORAS DE ESGOTO SANITÁRIO, DIÂMETRO DE 700 MM, JUNTA ELÁSTICA, INSTALADO EM LOCAL COM BAIXO NÍVEL DE INTERFERÊNCIAS (NÃO INCLUI FORNECIMENTO). AF_12/2015 | C125: M | D125: COEFICIENTE DE REPRESENTATIVIDADE | E125: 18.2 | F125: 8.7 | G125: 3.56 | H125: 5.94
A126: 92843 | B126: TUBO DE CONCRETO PARA REDES COLETORAS DE ESGOTO SANITÁRIO, DIÂMETRO DE 800 MM, JUNTA ELÁSTICA, INSTALADO EM LOCAL COM BAIXO NÍVEL DE INTERFERÊNCIAS - FORNECIMENTO E ASSENTAMENTO. AF_12/2015 | C126: M | D126: COEFICIENTE DE REPRESENTATIVIDADE | E126: 547.68 | F126: 9.74 | G126: 531.18 | H126: 6.76
A127: 92844 | B127: ASSENTAMENTO DE TUBO DE CONCRETO PARA REDES COLETORAS DE ESGOTO SANITÁRIO, DIÂMETRO DE 800 MM, JUNTA ELÁSTICA, INSTALADO EM LOCAL COM BAIXO NÍVEL DE INTERFERÊNCIAS (NÃO INCLUI FORNECIMENTO). AF_12/2015 | C127: M | D127: COEFICIENTE DE REPRESENTATIVIDADE | E127: 20.68 | F127: 9.82 | G127: 4.05 | H127: 6.81
A128: 92845 | B128: TUBO DE CONCRETO PARA REDES COLETORAS DE ESGOTO SANITÁRIO, DIÂMETRO DE 900 MM, JUNTA ELÁSTICA, INSTALADO EM LOCAL COM BAIXO NÍVEL DE INTERFERÊNCIAS - FORNECIMENTO E ASSENTAMENTO. AF_12/2015 | C128: M | D128: COEFICIENTE DE REPRESENTATIVIDADE | E128: 809 | F128: 10.86 | G128: 790.7 | H128: 7.44
A129: 92846 | B129: ASSENTAMENTO DE TUBO DE CONCRETO PARA REDES COLETORAS DE ESGOTO SANITÁRIO, DIÂMETRO DE 900 MM, JUNTA ELÁSTICA, INSTALADO EM LOCAL COM BAIXO NÍVEL DE INTERFERÊNCIAS (NÃO INCLUI FORNECIMENTO). AF_12/2015 | C129: M | D129: COEFICIENTE DE REPRESENTATIVIDADE | E129: 22.92 | F129: 10.94 | G129: 4.5 | H129: 7.48
A130: 92847 | B130: TUBO DE CONCRETO PARA REDES COLETORAS DE ESGOTO SANITÁRIO, DIÂMETRO DE 1000 MM, JUNTA ELÁSTICA, INSTALADO EM LOCAL COM BAIXO NÍVEL DE INTERFERÊNCIAS - FORNECIMENTO E ASSENTAMENTO. AF_12/2015 | C130: M | D130: COEFICIENTE DE REPRESENTATIVIDADE | E130: 832.33 | F130: 11.43 | G130: 812.6 | H130: 8.3
A131: 92848 | B131: ASSENTAMENTO DE TUBO DE CONCRETO PARA REDES COLETORAS DE ESGOTO SANITÁRIO, DIÂMETRO DE 1000 MM, JUNTA ELÁSTICA, INSTALADO EM LOCAL COM BAIXO NÍVEL DE INTERFERÊNCIAS (NÃO INCLUI FORNECIMENTO). AF_12/2015 | C131: M | D131: COEFICIENTE DE REPRESENTATIVIDADE | E131: 25.44 | F131: 12.09 | G131: 5.01 | H131: 8.34
A132: 92849 | B132: TUBO DE CONCRETO PARA REDES COLETORAS DE ESGOTO SANITÁRIO, DIÂMETRO DE 300 MM, JUNTA ELÁSTICA, INSTALADO EM LOCAL COM ALTO NÍVEL DE INTERFERÊNCIAS - FORNECIMENTO E ASSENTAMENTO. AF_12/2015 | C132: M | D132: COEFICIENTE DE REPRESENTATIVIDADE | E132: 186.91 | F132: 7.45 | G132: 174.04 | H132: 5.42
A133: 92850 | B133: ASSENTAMENTO DE TUBO DE CONCRETO PARA REDES COLETORAS DE ESGOTO SANITÁRIO, DIÂMETRO DE 300 MM, JUNTA ELÁSTICA, INSTALADO EM LOCAL COM ALTO NÍVEL DE INTERFERÊNCIAS (NÃO INCLUI FORNECIMENTO). AF_12/2015 | C133: M | D133: COEFICIENTE DE REPRESENTATIVIDADE | E133: 16.61 | F133: 7.91 | G133: 3.23 | H133: 5.47
A134: 92851 | B134: TUBO DE CONCRETO PARA REDES COLETORAS DE ESGOTO SANITÁRIO, DIÂMETRO DE 400 MM, JUNTA ELÁSTICA, INSTALADO EM LOCAL COM ALTO NÍVEL DE INTERFERÊNCIAS - FORNECIMENTO E ASSENTAMENTO. AF_12/2015 | C134: M | D134: COEFICIENTE DE REPRESENTATIVIDADE | E134: 197.7 | F134: 9.45 | G134: 181.44 | H134: 6.81
A135: 92852 | B135: ASSENTAMENTO DE TUBO DE CONCRETO PARA REDES COLETORAS DE ESGOTO SANITÁRIO, DIÂMETRO DE 400 MM, JUNTA ELÁSTICA, INSTALADO EM LOCAL COM ALTO NÍVEL DE INTERFERÊNCIAS (NÃO INCLUI FORNECIMENTO). AF_12/2015 | C135: M | D135: COEFICIENTE DE REPRESENTATIVIDADE | E135: 20.95 | F135: 9.99 | G135: 4.1 | H135: 6.86
A136: 92853 | B136: TUBO DE CONCRETO PARA REDES COLETORAS DE ESGOTO SANITÁRIO, DIÂMETRO DE 500 MM, JUNTA ELÁSTICA, INSTALADO EM LOCAL COM ALTO NÍVEL DE INTERFERÊNCIAS - FORNECIMENTO E ASSENTAMENTO. AF_12/2015 | C136: M | D136: COEFICIENTE DE REPRESENTATIVIDADE | E136: 342.71 | F136: 11.5 | G136: 322.91 | H136: 8.3
A137: 92854 | B137: ASSENTAMENTO DE TUBO DE CONCRETO PARA REDES COLETORAS DE ESGOTO SANITÁRIO, DIÂMETRO DE 500 MM, JUNTA ELÁSTICA, INSTALADO EM LOCAL COM ALTO NÍVEL DE INTERFERÊNCIAS (NÃO INCLUI FORNECIMENTO). AF_12/2015 | C137: M | D137: COEFICIENTE DE REPRESENTATIVIDADE | E137: 25.53 | F137: 12.15 | G137: 5.04 | H137: 8.34
A138: 92855 | B138: TUBO DE CONCRETO PARA REDES COLETORAS DE ESGOTO SANITÁRIO, DIÂMETRO DE 600 MM, JUNTA ELÁSTICA, INSTALADO EM LOCAL COM ALTO NÍVEL DE INTERFERÊNCIAS - FORNECIMENTO E ASSENTAMENTO. AF_12/2015 | C138: M | D138: COEFICIENTE DE REPRESENTATIVIDADE | E138: 418.56 | F138: 13.57 | G138: 395.19 | H138: 9.8
A139: 92856 | B139: ASSENTAMENTO DE TUBO DE CONCRETO PARA REDES COLETORAS DE ESGOTO SANITÁRIO, DIÂMETRO DE 600 MM, JUNTA ELÁSTICA, INSTALADO EM LOCAL COM ALTO NÍVEL DE INTERFERÊNCIAS (NÃO INCLUI FORNECIMENTO). AF_12/2015 | C139: M | D139: COEFICIENTE DE REPRESENTATIVIDADE | E139: 30.09 | F139: 14.31 | G139: 5.95 | H139: 9.83
A140: 92857 | B140: TUBO DE CONCRETO PARA REDES COLETORAS DE ESGOTO SANITÁRIO, DIÂMETRO DE 700 MM, JUNTA ELÁSTICA, INSTALADO EM LOCAL COM ALTO NÍVEL DE INTERFERÊNCIAS - FORNECIMENTO E ASSENTAMENTO. AF_12/2015 | C140: M | D140: COEFICIENTE DE REPRESENTATIVIDADE | E140: 543.18 | F140: 15.57 | G140: 516.43 | H140: 11.18
A141: 92858 | B141: ASSENTAMENTO DE TUBO DE CONCRETO PARA REDES COLETORAS DE ESGOTO SANITÁRIO, DIÂMETRO DE 700 MM, JUNTA ELÁSTICA, INSTALADO EM LOCAL COM ALTO NÍVEL DE INTERFERÊNCIAS (NÃO INCLUI FORNECIMENTO). AF_12/2015 | C141: M | D141: COEFICIENTE DE REPRESENTATIVIDADE | E141: 34.43 | F141: 16.42 | G141: 6.78 | H141: 11.23
A142: 92859 | B142: TUBO DE CONCRETO PARA REDES COLETORAS DE ESGOTO SANITÁRIO, DIÂMETRO DE 800 MM, JUNTA ELÁSTICA, INSTALADO EM LOCAL COM ALTO NÍVEL DE INTERFERÊNCIAS - FORNECIMENTO E ASSENTAMENTO. AF_12/2015 | C142: M | D142: COEFICIENTE DE REPRESENTATIVIDADE | E142: 566.08 | F142: 18.51 | G142: 534.83 | H142: 12.74
A143: 92860 | B143: ASSENTAMENTO DE TUBO DE CONCRETO PARA REDES COLETORAS DE ESGOTO SANITÁRIO, DIÂMETRO DE 800 MM, JUNTA ELÁSTICA, INSTALADO EM LOCAL COM ALTO NÍVEL DE INTERFERÊNCIAS (NÃO INCLUI FORNECIMENTO). AF_12/2015 | C143: M | D143: COEFICIENTE DE REPRESENTATIVIDADE | E143: 39.08 | F143: 18.59 | G143: 7.7 | H143: 12.79
A144: 92861 | B144: TUBO DE CONCRETO PARA REDES COLETORAS DE ESGOTO SANITÁRIO, DIÂMETRO DE 900 MM, JUNTA ELÁSTICA, INSTALADO EM LOCAL COM ALTO NÍVEL DE INTERFERÊNCIAS - FORNECIMENTO E ASSENTAMENTO. AF_12/2015 | C144: M | D144: COEFICIENTE DE REPRESENTATIVIDADE | E144: 829.71 | F144: 20.65 | G144: 794.83 | H144: 14.23
A145: 92862 | B145: ASSENTAMENTO DE TUBO DE CONCRETO PARA REDES COLETORAS DE ESGOTO SANITÁRIO, DIÂMETRO DE 900 MM, JUNTA ELÁSTICA, INSTALADO EM LOCAL COM ALTO NÍVEL DE INTERFERÊNCIAS (NÃO INCLUI FORNECIMENTO). AF_12/2015 | C145: M | D145: COEFICIENTE DE REPRESENTATIVIDADE | E145: 43.63 | F145: 20.74 | G145: 8.62 | H145: 14.27
A146: 92863 | B146: TUBO DE CONCRETO PARA REDES COLETORAS DE ESGOTO SANITÁRIO, DIÂMETRO DE 1000 MM, JUNTA ELÁSTICA, INSTALADO EM LOCAL COM ALTO NÍVEL DE INTERFERÊNCIAS - FORNECIMENTO E ASSENTAMENTO. AF_12/2015 | C146: M | D146: COEFICIENTE DE REPRESENTATIVIDADE | E146: 854.57 | F146: 21.73 | G146: 817.13 | H146: 15.71
A147: 92864 | B147: ASSENTAMENTO DE TUBO DE CONCRETO PARA REDES COLETORAS DE ESGOTO SANITÁRIO, DIÂMETRO DE 1000 MM, JUNTA ELÁSTICA, INSTALADO EM LOCAL COM ALTO NÍVEL DE INTERFERÊNCIAS (NÃO INCLUI FORNECIMENTO). AF_12/2015 | C147: M | D147: COEFICIENTE DE REPRESENTATIVIDADE | E147: 48.19 | F147: 22.88 | G147: 9.56 | H147: 15.75
A148: 92210 | B148: TUBO DE CONCRETO PARA REDES COLETORAS DE ÁGUAS PLUVIAIS, DIÂMETRO DE 400 MM, JUNTA RÍGIDA, INSTALADO EM LOCAL COM BAIXO NÍVEL DE INTERFERÊNCIAS - FORNECIMENTO E ASSENTAMENTO. AF_12/2015 | C148: M | D148: COEFICIENTE DE REPRESENTATIVIDADE | E148: 150.21 | F148: 23.65 | G148: 110.38 | H148: 16.18
A149: 92211 | B149: TUBO DE CONCRETO PARA REDES COLETORAS DE ÁGUAS PLUVIAIS, DIÂMETRO DE 500 MM, JUNTA RÍGIDA, INSTALADO EM LOCAL COM BAIXO NÍVEL DE INTERFERÊNCIAS - FORNECIMENTO E ASSENTAMENTO. AF_12/2015 | C149: M | D149: COEFICIENTE DE REPRESENTATIVIDADE | E149: 180.64 | F149: 28.76 | G149: 132.35 | H149: 19.53
A150: 92212 | B150: TUBO DE CONCRETO PARA REDES COLETORAS DE ÁGUAS PLUVIAIS, DIÂMETRO DE 600 MM, JUNTA RÍGIDA, INSTALADO EM LOCAL COM BAIXO NÍVEL DE INTERFERÊNCIAS - FORNECIMENTO E ASSENTAMENTO. AF_12/2015 | C150: M | D150: COEFICIENTE DE REPRESENTATIVIDADE | E150: 266.06 | F150: 33.97 | G150: 209.09 | H150: 23
A151: 92213 | B151: TUBO DE CONCRETO PARA REDES COLETORAS DE ÁGUAS PLUVIAIS, DIÂMETRO DE 700 MM, JUNTA RÍGIDA, INSTALADO EM LOCAL COM BAIXO NÍVEL DE INTERFERÊNCIAS - FORNECIMENTO E ASSENTAMENTO. AF_12/2015 | C151: M | D151: COEFICIENTE DE REPRESENTATIVIDADE | E151: 347.55 | F151: 39.18 | G151: 282.02 | H151: 26.35
A152: 92214 | B152: TUBO DE CONCRETO PARA REDES COLETORAS DE ÁGUAS PLUVIAIS, DIÂMETRO DE 800 MM, JUNTA RÍGIDA, INSTALADO EM LOCAL COM BAIXO NÍVEL DE INTERFERÊNCIAS - FORNECIMENTO E ASSENTAMENTO. AF_12/2015 | C152: M | D152: COEFICIENTE DE REPRESENTATIVIDADE | E152: 419.08 | F152: 44.77 | G152: 344.5 | H152: 29.81
A153: 92215 | B153: TUBO DE CONCRETO PARA REDES COLETORAS DE ÁGUAS PLUVIAIS, DIÂMETRO DE 900 MM, JUNTA RÍGIDA, INSTALADO EM LOCAL COM BAIXO NÍVEL DE INTERFERÊNCIAS - FORNECIMENTO E ASSENTAMENTO. AF_12/2015 | C153: M | D153: COEFICIENTE DE REPRESENTATIVIDADE | E153: 481.01 | F153: 50.47 | G153: 397.24 | H153: 33.3
A154: 92216 | B154: TUBO DE CONCRETO PARA REDES COLETORAS DE ÁGUAS PLUVIAIS, DIÂMETRO DE 1000 MM, JUNTA RÍGIDA, INSTALADO EM LOCAL COM BAIXO NÍVEL DE INTERFERÊNCIAS - FORNECIMENTO E ASSENTAMENTO. AF_12/2015 | C154: M | D154: COEFICIENTE DE REPRESENTATIVIDADE | E154: 504.59 | F154: 56.62 | G154: 411.38 | H154: 36.59
A155: 92219 | B155: TUBO DE CONCRETO PARA REDES COLETORAS DE ÁGUAS PLUVIAIS, DIÂMETRO DE 400 MM, JUNTA RÍGIDA, INSTALADO EM LOCAL COM ALTO NÍVEL DE INTERFERÊNCIAS - FORNECIMENTO E ASSENTAMENTO. AF_12/2015 | C155: M | D155: COEFICIENTE DE REPRESENTATIVIDADE | E155: 159.96 | F155: 28.34 | G155: 112.31 | H155: 19.31
A156: 92220 | B156: TUBO DE CONCRETO PARA REDES COLETORAS DE ÁGUAS PLUVIAIS, DIÂMETRO DE 500 MM, JUNTA RÍGIDA, INSTALADO EM LOCAL COM ALTO NÍVEL DE INTERFERÊNCIAS - FORNECIMENTO E ASSENTAMENTO. AF_12/2015 | C156: M | D156: COEFICIENTE DE REPRESENTATIVIDADE | E156: 192.73 | F156: 34.49 | G156: 134.77 | H156: 23.47
A157: 92221 | B157: TUBO DE CONCRETO PARA REDES COLETORAS DE ÁGUAS PLUVIAIS, DIÂMETRO DE 600 MM, JUNTA RÍGIDA, INSTALADO EM LOCAL COM ALTO NÍVEL DE INTERFERÊNCIAS - FORNECIMENTO E ASSENTAMENTO. AF_12/2015 | C157: M | D157: COEFICIENTE DE REPRESENTATIVIDADE | E157: 280.2 | F157: 40.71 | G157: 211.91 | H157: 27.58
A158: 92222 | B158: TUBO DE CONCRETO PARA REDES COLETORAS DE ÁGUAS PLUVIAIS, DIÂMETRO DE 700 MM, JUNTA RÍGIDA, INSTALADO EM LOCAL COM ALTO NÍVEL DE INTERFERÊNCIAS - FORNECIMENTO E ASSENTAMENTO. AF_12/2015 | C158: M | D158: COEFICIENTE DE REPRESENTATIVIDADE | E158: 364.01 | F158: 46.94 | G158: 285.32 | H158: 31.75
A159: 92223 | B159: TUBO DE CONCRETO PARA REDES COLETORAS DE ÁGUAS PLUVIAIS, DIÂMETRO DE 800 MM, JUNTA RÍGIDA, INSTALADO EM LOCAL COM ALTO NÍVEL DE INTERFERÊNCIAS - FORNECIMENTO E ASSENTAMENTO. AF_12/2015 | C159: M | D159: COEFICIENTE DE REPRESENTATIVIDADE | E159: 437.49 | F159: 53.54 | G159: 348.16 | H159: 35.79
A160: 92224 | B160: TUBO DE CONCRETO PARA REDES COLETORAS DE ÁGUAS PLUVIAIS, DIÂMETRO DE 900 MM, JUNTA RÍGIDA, INSTALADO EM LOCAL COM ALTO NÍVEL DE INTERFERÊNCIAS - FORNECIMENTO E ASSENTAMENTO. AF_12/2015 | C160: M | D160: COEFICIENTE DE REPRESENTATIVIDADE | E160: 501.42 | F160: 60.23 | G160: 401.28 | H160: 39.91
A161: 92226 | B161: TUBO DE CONCRETO PARA REDES COLETORAS DE ÁGUAS PLUVIAIS, DIÂMETRO DE 1000 MM, JUNTA RÍGIDA, INSTALADO EM LOCAL COM ALTO NÍVEL DE INTERFERÊNCIAS - FORNECIMENTO E ASSENTAMENTO. AF_12/2015 | C161: M | D161: COEFICIENTE DE REPRESENTATIVIDADE | E161: 527.45 | F161: 67.45 | G161: 415.92 | H161: 44.08
A162: 92808 | B162: ASSENTAMENTO DE TUBO DE CONCRETO PARA REDES COLETORAS DE ÁGUAS PLUVIAIS, DIÂMETRO DE 300 MM, JUNTA RÍGIDA, INSTALADO EM LOCAL COM BAIXO NÍVEL DE INTERFERÊNCIAS (NÃO INCLUI FORNECIMENTO). AF_12/2015 | C162: M | D162: COEFICIENTE DE REPRESENTATIVIDADE | E162: 39.52 | F162: 18.65 | G162: 8.13 | H162: 12.74
A163: 92809 | B163: ASSENTAMENTO DE TUBO DE CONCRETO PARA REDES COLETORAS DE ÁGUAS PLUVIAIS, DIÂMETRO DE 400 MM, JUNTA RÍGIDA, INSTALADO EM LOCAL COM BAIXO NÍVEL DE INTERFERÊNCIAS (NÃO INCLUI FORNECIMENTO). AF_12/2015 | C163: M | D163: COEFICIENTE DE REPRESENTATIVIDADE | E163: 50.68 | F163: 23.72 | G163: 10.74 | H163: 16.22
A164: 92810 | B164: ASSENTAMENTO DE TUBO DE CONCRETO PARA REDES COLETORAS DE ÁGUAS PLUVIAIS, DIÂMETRO DE 500 MM, JUNTA RÍGIDA, INSTALADO EM LOCAL COM BAIXO NÍVEL DE INTERFERÊNCIAS (NÃO INCLUI FORNECIMENTO). AF_12/2015 | C164: M | D164: COEFICIENTE DE REPRESENTATIVIDADE | E164: 61.68 | F164: 28.83 | G164: 13.28 | H164: 19.57
A165: 92811 | B165: ASSENTAMENTO DE TUBO DE CONCRETO PARA REDES COLETORAS DE ÁGUAS PLUVIAIS, DIÂMETRO DE 600 MM, JUNTA RÍGIDA, INSTALADO EM LOCAL COM BAIXO NÍVEL DE INTERFERÊNCIAS (NÃO INCLUI FORNECIMENTO). AF_12/2015 | C165: M | D165: COEFICIENTE DE REPRESENTATIVIDADE | E165: 73.45 | F165: 34.08 | G165: 16.31 | H165: 23.06
A166: 92812 | B166: ASSENTAMENTO DE TUBO DE CONCRETO PARA REDES COLETORAS DE ÁGUAS PLUVIAIS, DIÂMETRO DE 700 MM, JUNTA RÍGIDA, INSTALADO EM LOCAL COM BAIXO NÍVEL DE INTERFERÊNCIAS (NÃO INCLUI FORNECIMENTO). AF_12/2015 | C166: M | D166: COEFICIENTE DE REPRESENTATIVIDADE | E166: 85.03 | F166: 39.27 | G166: 19.36 | H166: 26.4
A167: 92813 | B167: ASSENTAMENTO DE TUBO DE CONCRETO PARA REDES COLETORAS DE ÁGUAS PLUVIAIS, DIÂMETRO DE 800 MM, JUNTA RÍGIDA, INSTALADO EM LOCAL COM BAIXO NÍVEL DE INTERFERÊNCIAS (NÃO INCLUI FORNECIMENTO). AF_12/2015 | C167: M | D167: COEFICIENTE DE REPRESENTATIVIDADE | E167: 98.61 | F167: 44.87 | G167: 23.87 | H167: 29.87
A168: 92814 | B168: ASSENTAMENTO DE TUBO DE CONCRETO PARA REDES COLETORAS DE ÁGUAS PLUVIAIS, DIÂMETRO DE 900 MM, JUNTA RÍGIDA, INSTALADO EM LOCAL COM BAIXO NÍVEL DE INTERFERÊNCIAS (NÃO INCLUI FORNECIMENTO). AF_12/2015 | C168: M | D168: COEFICIENTE DE REPRESENTATIVIDADE | E168: 112.8 | F168: 50.56 | G168: 28.88 | H168: 33.36
A169: 92815 | B169: ASSENTAMENTO DE TUBO DE CONCRETO PARA REDES COLETORAS DE ÁGUAS PLUVIAIS, DIÂMETRO DE 1000 MM, JUNTA RÍGIDA, INSTALADO EM LOCAL COM BAIXO NÍVEL DE INTERFERÊNCIAS (NÃO INCLUI FORNECIMENTO). AF_12/2015 | C169: M | D169: COEFICIENTE DE REPRESENTATIVIDADE | E169: 129.09 | F169: 56.72 | G169: 35.73 | H169: 36.64
A170: 92816 | B170: TUBO DE CONCRETO PARA REDES COLETORAS DE ÁGUAS PLUVIAIS, DIÂMETRO DE 1200 MM, JUNTA RÍGIDA, INSTALADO EM LOCAL COM BAIXO NÍVEL DE INTERFERÊNCIAS - FORNECIMENTO E ASSENTAMENTO. AF_12/2015 | C170: M | D170: COEFICIENTE DE REPRESENTATIVIDADE | E170: 722.35 | F170: 70.86 | G170: 605.69 | H170: 45.8
A171: 92817 | B171: ASSENTAMENTO DE TUBO DE CONCRETO PARA REDES COLETORAS DE ÁGUAS PLUVIAIS, DIÂMETRO DE 1200 MM, JUNTA RÍGIDA, INSTALADO EM LOCAL COM BAIXO NÍVEL DE INTERFERÊNCIAS (NÃO INCLUI FORNECIMENTO). AF_12/2015 | C171: M | D171: COEFICIENTE DE REPRESENTATIVIDADE | E171: 161.53 | F171: 70.96 | G171: 44.71 | H171: 45.86
A172: 92818 | B172: TUBO DE CONCRETO PARA REDES COLETORAS DE ÁGUAS PLUVIAIS, DIÂMETRO DE 1500 MM, JUNTA RÍGIDA, INSTALADO EM LOCAL COM BAIXO NÍVEL DE INTERFERÊNCIAS - FORNECIMENTO E ASSENTAMENTO. AF_12/2015 | C172: M | D172: COEFICIENTE DE REPRESENTATIVIDADE | E172: 1029.93 | F172: 95.36 | G172: 872.93 | H172: 61.64
A173: 92819 | B173: ASSENTAMENTO DE TUBO DE CONCRETO PARA REDES COLETORAS DE ÁGUAS PLUVIAIS, DIÂMETRO DE 1500 MM, JUNTA RÍGIDA, INSTALADO EM LOCAL COM BAIXO NÍVEL DE INTERFERÊNCIAS (NÃO INCLUI FORNECIMENTO). AF_12/2015 | C173: M | D173: COEFICIENTE DE REPRESENTATIVIDADE | E173: 217.42 | F173: 95.46 | G173: 60.26 | H173: 61.7
A174: 92820 | B174: ASSENTAMENTO DE TUBO DE CONCRETO PARA REDES COLETORAS DE ÁGUAS PLUVIAIS, DIÂMETRO DE 300 MM, JUNTA RÍGIDA, INSTALADO EM LOCAL COM ALTO NÍVEL DE INTERFERÊNCIAS (NÃO INCLUI FORNECIMENTO). AF_12/2015 | C174: M | D174: COEFICIENTE DE REPRESENTATIVIDADE | E174: 47.14 | F174: 22.33 | G174: 9.61 | H174: 15.2
A175: 92821 | B175: ASSENTAMENTO DE TUBO DE CONCRETO PARA REDES COLETORAS DE ÁGUAS PLUVIAIS, DIÂMETRO DE 400 MM, JUNTA RÍGIDA, INSTALADO EM LOCAL COM ALTO NÍVEL DE INTERFERÊNCIAS (NÃO INCLUI FORNECIMENTO). AF_12/2015 | C175: M | D175: COEFICIENTE DE REPRESENTATIVIDADE | E175: 60.43 | F175: 28.42 | G175: 12.65 | H175: 19.36
A176: 92822 | B176: ASSENTAMENTO DE TUBO DE CONCRETO PARA REDES COLETORAS DE ÁGUAS PLUVIAIS, DIÂMETRO DE 500 MM, JUNTA RÍGIDA, INSTALADO EM LOCAL COM ALTO NÍVEL DE INTERFERÊNCIAS (NÃO INCLUI FORNECIMENTO). AF_12/2015 | C176: M | D176: COEFICIENTE DE REPRESENTATIVIDADE | E176: 73.77 | F176: 34.57 | G176: 15.68 | H176: 23.52
A177: 92824 | B177: ASSENTAMENTO DE TUBO DE CONCRETO PARA REDES COLETORAS DE ÁGUAS PLUVIAIS, DIÂMETRO DE 600 MM, JUNTA RÍGIDA, INSTALADO EM LOCAL COM ALTO NÍVEL DE INTERFERÊNCIAS (NÃO INCLUI FORNECIMENTO). AF_12/2015 | C177: M | D177: COEFICIENTE DE REPRESENTATIVIDADE | E177: 87.59 | F177: 40.79 | G177: 19.17 | H177: 27.63
A178: 92825 | B178: ASSENTAMENTO DE TUBO DE CONCRETO PARA REDES COLETORAS DE ÁGUAS PLUVIAIS, DIÂMETRO DE 700 MM, JUNTA RÍGIDA, INSTALADO EM LOCAL COM ALTO NÍVEL DE INTERFERÊNCIAS (NÃO INCLUI FORNECIMENTO). AF_12/2015 | C178: M | D178: COEFICIENTE DE REPRESENTATIVIDADE | E178: 101.49 | F178: 47.04 | G178: 22.65 | H178: 31.8
A179: 92826 | B179: ASSENTAMENTO DE TUBO DE CONCRETO PARA REDES COLETORAS DE ÁGUAS PLUVIAIS, DIÂMETRO DE 800 MM, JUNTA RÍGIDA, INSTALADO EM LOCAL COM ALTO NÍVEL DE INTERFERÊNCIAS (NÃO INCLUI FORNECIMENTO). AF_12/2015 | C179: M | D179: COEFICIENTE DE REPRESENTATIVIDADE | E179: 117.02 | F179: 53.64 | G179: 27.53 | H179: 35.85
A180: 92827 | B180: ASSENTAMENTO DE TUBO DE CONCRETO PARA REDES COLETORAS DE ÁGUAS PLUVIAIS, DIÂMETRO DE 900 MM, JUNTA RÍGIDA, INSTALADO EM LOCAL COM ALTO NÍVEL DE INTERFERÊNCIAS (NÃO INCLUI FORNECIMENTO). AF_12/2015 | C180: M | D180: COEFICIENTE DE REPRESENTATIVIDADE | E180: 133.21 | F180: 60.31 | G180: 32.94 | H180: 39.96
A181: 92828 | B181: ASSENTAMENTO DE TUBO DE CONCRETO PARA REDES COLETORAS DE ÁGUAS PLUVIAIS, DIÂMETRO DE 1000 MM, JUNTA RÍGIDA, INSTALADO EM LOCAL COM ALTO NÍVEL DE INTERFERÊNCIAS (NÃO INCLUI FORNECIMENTO). AF_12/2015 | C181: M | D181: COEFICIENTE DE REPRESENTATIVIDADE | E181: 151.95 | F181: 67.53 | G181: 40.29 | H181: 44.13
A182: 92829 | B182: TUBO DE CONCRETO PARA REDES COLETORAS DE ÁGUAS PLUVIAIS, DIÂMETRO DE 1200 MM, JUNTA RÍGIDA, INSTALADO EM LOCAL COM ALTO NÍVEL DE INTERFERÊNCIAS - FORNECIMENTO E ASSENTAMENTO. AF_12/2015 | C182: M | D182: COEFICIENTE DE REPRESENTATIVIDADE | E182: 749.32 | F182: 83.68 | G182: 610.94 | H182: 54.7
A183: 92830 | B183: ASSENTAMENTO DE TUBO DE CONCRETO PARA REDES COLETORAS DE ÁGUAS PLUVIAIS, DIÂMETRO DE 1200 MM, JUNTA RÍGIDA, INSTALADO EM LOCAL COM ALTO NÍVEL DE INTERFERÊNCIAS (NÃO INCLUI FORNECIMENTO). AF_12/2015 | C183: M | D183: COEFICIENTE DE REPRESENTATIVIDADE | E183: 188.5 | F183: 83.75 | G183: 50.01 | H183: 54.74
A184: 92831 | B184: TUBO DE CONCRETO PARA REDES COLETORAS DE ÁGUAS PLUVIAIS, DIÂMETRO DE 1500 MM, JUNTA RÍGIDA, INSTALADO EM LOCAL COM ALTO NÍVEL DE INTERFERÊNCIAS - FORNECIMENTO E ASSENTAMENTO. AF_12/2015 | C184: M | D184: COEFICIENTE DE REPRESENTATIVIDADE | E184: 1063.07 | F184: 111.23 | G184: 879.16 | H184: 72.68
A185: 92832 | B185: ASSENTAMENTO DE TUBO DE CONCRETO PARA REDES COLETORAS DE ÁGUAS PLUVIAIS, DIÂMETRO DE 1500 MM, JUNTA RÍGIDA, INSTALADO EM LOCAL COM ALTO NÍVEL DE INTERFERÊNCIAS (NÃO INCLUI FORNECIMENTO). AF_12/2015 | C185: M | D185: COEFICIENTE DE REPRESENTATIVIDADE | E185: 250.56 | F185: 111.32 | G185: 66.51 | H185: 72.73
A186: 95565 | B186: TUBO DE CONCRETO PARA REDES COLETORAS DE ÁGUAS PLUVIAIS, DIÂMETRO DE 300MM, JUNTA RÍGIDA, INSTALADO EM LOCAL COM BAIXO NÍVEL DE INTERFERÊNCIAS - FORNECIMENTO E ASSENTAMENTO. AF_12/2015 | C186: M | D186: COEFICIENTE DE REPRESENTATIVIDADE | E186: 126.85 | F186: 17.69 | G186: 96.46 | H186: 12.7
A187: 95566 | B187: TUBO DE CONCRETO PARA REDES COLETORAS DE ÁGUAS PLUVIAIS, DIÂMETRO DE 300MM, JUNTA RÍGIDA, INSTALADO EM LOCAL COM ALTO NÍVEL DE INTERFERÊNCIAS - FORNECIMENTO E ASSENTAMENTO. AF_12/2015 | C187: M | D187: COEFICIENTE DE REPRESENTATIVIDADE | E187: 134.3 | F187: 21.2 | G187: 97.96 | H187: 15.14
A188: 95567 | B188: TUBO DE CONCRETO (SIMPLES) PARA REDES COLETORAS DE ÁGUAS PLUVIAIS, DIÂMETRO DE 300 MM, JUNTA RÍGIDA, INSTALADO EM LOCAL COM BAIXO NÍVEL DE INTERFERÊNCIAS - FORNECIMENTO E ASSENTAMENTO. AF_12/2015 | C188: M | D188: COEFICIENTE DE REPRESENTATIVIDADE | E188: 84.97 | F188: 17.71 | G188: 54.55 | H188: 12.71
A189: 95568 | B189: TUBO DE CONCRETO (SIMPLES) PARA REDES COLETORAS DE ÁGUAS PLUVIAIS, DIÂMETRO DE 400 MM, JUNTA RÍGIDA, INSTALADO EM LOCAL COM BAIXO NÍVEL DE INTERFERÊNCIAS - FORNECIMENTO E ASSENTAMENTO. AF_12/2015 | C189: M | D189: COEFICIENTE DE REPRESENTATIVIDADE | E189: 104.33 | F189: 22.57 | G189: 65.57 | H189: 16.19
A190: 95569 | B190: TUBO DE CONCRETO (SIMPLES) PARA REDES COLETORAS DE ÁGUAS PLUVIAIS, DIÂMETRO DE 500 MM, JUNTA RÍGIDA, INSTALADO EM LOCAL COM BAIXO NÍVEL DE INTERFERÊNCIAS - FORNECIMENTO E ASSENTAMENTO. AF_12/2015 | C190: M | D190: COEFICIENTE DE REPRESENTATIVIDADE | E190: 141.83 | F190: 27.44 | G190: 94.86 | H190: 19.53
A191: 95570 | B191: TUBO DE CONCRETO (SIMPLES) PARA REDES COLETORAS DE ÁGUAS PLUVIAIS, DIÂMETRO DE 300 MM, JUNTA RÍGIDA, INSTALADO EM LOCAL COM ALTO NÍVEL DE INTERFERÊNCIAS - FORNECIMENTO E ASSENTAMENTO. AF_12/2015 | C191: M | D191: COEFICIENTE DE REPRESENTATIVIDADE | E191: 92.42 | F191: 21.21 | G191: 56.05 | H191: 15.16
A192: 95571 | B192: TUBO DE CONCRETO (SIMPLES) PARA REDES COLETORAS DE ÁGUAS PLUVIAIS, DIÂMETRO DE 400 MM, JUNTA RÍGIDA, INSTALADO EM LOCAL COM ALTO NÍVEL DE INTERFERÊNCIAS - FORNECIMENTO E ASSENTAMENTO. AF_12/2015 | C192: M | D192: COEFICIENTE DE REPRESENTATIVIDADE | E192: 113.86 | F192: 27.05 | G192: 67.49 | H192: 19.32
A193: 95572 | B193: TUBO DE CONCRETO (SIMPLES) PARA REDES COLETORAS DE ÁGUAS PLUVIAIS, DIÂMETRO DE 500 MM, JUNTA RÍGIDA, INSTALADO EM LOCAL COM ALTO NÍVEL DE INTERFERÊNCIAS - FORNECIMENTO E ASSENTAMENTO. AF_12/2015 | C193: M | D193: COEFICIENTE DE REPRESENTATIVIDADE | E193: 153.65 | F193: 32.9 | G193: 97.27 | H193: 23.48
A194: 97127 | B194: ASSENTAMENTO DE TUBO DE PVC DEFOFO OU PRFV OU RPVC PARA REDE DE ÁGUA, DN 150 MM, JUNTA ELÁSTICA INTEGRADA, INSTALADO EM LOCAL COM NÍVEL ALTO DE INTERFERÊNCIAS (NÃO INCLUI FORNECIMENTO). AF_11/2017 | C194: M | D194: COEFICIENTE DE REPRESENTATIVIDADE | E194: 5.2 | F194: 3.87 | G194: 1.33 | H194: 0
A195: 97128 | B195: ASSENTAMENTO DE TUBO DE PVC DEFOFO OU PRFV OU RPVC PARA REDE DE ÁGUA, DN 200 MM, JUNTA ELÁSTICA INTEGRADA, INSTALADO EM LOCAL COM NÍVEL ALTO DE INTERFERÊNCIAS (NÃO INCLUI FORNECIMENTO). AF_11/2017 | C195: M | D195: COEFICIENTE DE REPRESENTATIVIDADE | E195: 10.17 | F195: 6.33 | G195: 2.3 | H195: 1.54
A196: 97129 | B196: ASSENTAMENTO DE TUBO DE PVC DEFOFO OU PRFV OU RPVC PARA REDE DE ÁGUA, DN 250 MM, JUNTA ELÁSTICA INTEGRADA, INSTALADO EM LOCAL COM NÍVEL ALTO DE INTERFERÊNCIAS (NÃO INCLUI FORNECIMENTO). AF_11/2017 | C196: M | D196: COEFICIENTE DE REPRESENTATIVIDADE | E196: 12.52 | F196: 7.77 | G196: 2.85 | H196: 1.9
A197: 97130 | B197: ASSENTAMENTO DE TUBO DE PVC DEFOFO OU PRFV OU RPVC PARA REDE DE ÁGUA, DN 300 MM, JUNTA ELÁSTICA INTEGRADA, INSTALADO EM LOCAL COM NÍVEL ALTO DE INTERFERÊNCIAS (NÃO INCLUI FORNECIMENTO). AF_11/2017 | C197: M | D197: COEFICIENTE DE REPRESENTATIVIDADE | E197: 14.86 | F197: 9.19 | G197: 3.42 | H197: 2.25
A198: 97131 | B198: ASSENTAMENTO DE TUBO DE PVC DEFOFO OU PRFV OU RPVC PARA REDE DE ÁGUA, DN 350 MM, JUNTA ELÁSTICA INTEGRADA, INSTALADO EM LOCAL COM NÍVEL ALTO DE INTERFERÊNCIAS (NÃO INCLUI FORNECIMENTO). AF_11/2017 | C198: M | D198: COEFICIENTE DE REPRESENTATIVIDADE | E198: 17.19 | F198: 10.64 | G198: 3.94 | H198: 2.61
A199: 97132 | B199: ASSENTAMENTO DE TUBO DE PVC DEFOFO OU PRFV OU RPVC PARA REDE DE ÁGUA, DN 400 MM, JUNTA ELÁSTICA INTEGRADA, INSTALADO EM LOCAL COM NÍVEL ALTO DE INTERFERÊNCIAS (NÃO INCLUI FORNECIMENTO). AF_11/2017 | C199: M | D199: COEFICIENTE DE REPRESENTATIVIDADE | E199: 19.52 | F199: 12.06 | G199: 4.49 | H199: 2.97
A200: 97133 | B200: ASSENTAMENTO DE TUBO DE PVC DEFOFO OU PRFV OU RPVC PARA REDE DE ÁGUA, DN 500 MM, JUNTA ELÁSTICA INTEGRADA, INSTALADO EM LOCAL COM NÍVEL ALTO DE INTERFERÊNCIAS (NÃO INCLUI FORNECIMENTO). AF_11/2017 | C200: M | D200: COEFICIENTE DE REPRESENTATIVIDADE | E200: 24.2 | F200: 14.94 | G200: 5.58 | H200: 3.68
... 12205 more rows

Sheet Identificação-TCE (hidden)
A1: IDENTIFICAÇÃO
A2: Modalidade* | D2: N° * | F2: Ano *
A3: Descrição do Objeto | B3: =orcamento!D3 -> Objeto: PONTE SOBRE O ARROIO MAUÁ
A4: Órgão | B4: SECRETARIA MUNICIPAL DE OBRAS E INFRAESTRUTURA | F4: CNPJ * | G4: 92.963.560/0001-60
A5: Tipo de Objeto* | C5: N° CENTRAL DE COMPRAS
A6: Preço Total Estimado | B6: 2751593.03
A7: Preço Total Proposto | B7: ='Proposta-TCE'!C6 -> 2751593.03
A8: Qtd. Itens Orçamento | B8: =COUNT('Orçamento-TCE'!B12:B39905) -> 88
A11: Nº do lote** | B11: Descrição do Lote** | C11: Estimativa | G11: Proposta
C12: Valor do lote (R$) | G12: Valor do lote (R$)
A13: 1 | B13: =B3 -> Objeto: PONTE SOBRE O ARROIO MAUÁ | C13: =B6 -> 2751593.03 | G13: =SUMIF('Proposta-TCE'!$A$12:$A$39888,'Identificação-TCE'!$A13,'Proposta-TCE'!$H$12:$H$39888) -> 2751593.03

Sheet Orçamento-TCE (hidden)
A1: ORÇAMENTO
A2: Modalidade | C2: =IF('Identificação-TCE'!B2=0,"",'Identificação-TCE'!B2) ->  | H2: N° | I2: =IF('Identificação-TCE'!E2=0,"",'Identificação-TCE'!E2) ->  | J2: Ano | K2: =IF('Identificação-TCE'!G2=0,"",'Identificação-TCE'!G2) -> 
A3: Descrição do Objeto | C3: ='Identificação-TCE'!B3 -> Objeto: PONTE SOBRE O ARROIO MAUÁ
A4: Órgão | C4: ='Identificação-TCE'!B4 -> SECRETARIA MUNICIPAL DE OBRAS E INFRAESTRUTURA | J4: CNPJ | K4: =IF('Identificação-TCE'!G4=0,"",'Identificação-TCE'!G4) -> 92.963.560/0001-60
A5: Tipo de Objeto | C5: =IF('Identificação-TCE'!B5=0,"",'Identificação-TCE'!B5) -> 
A6: Preço T. Estimado | C6: =SUMIFS(K12:K39817,B12:B39817,">0",K12:K39817,"<>0") -> 2751593.03
A10: Nº do Lote*** | B10: N° Ordem | C10: Nº Item* | D10: Fonte de Referência** | E10: Código de Referência** | F10: Data de Referência** | G10: Descrição do item* | H10: Estimativa | N10: Família | P10: Subfamília | R10: Tipo de Orçamento
H11: Qtd.* | I11: Unid.* | J11: Preço unitário (R$)* | K11: Preço Total (R$) | L11: % BDI** | M11: % Encargos Sociais** | N11: Código | O11: Descrição | P11: Código | Q11: Descrição
A12: 1 | B12: =IF(AND(G12<>"",H12>0,I12<>"",J12<>0,K12<>0),COUNT($B$11:B11)+1,"") -> 1 | C12: =orcamento!A11 -> 1.1 | D12: =orcamento!B11 -> COMPOSICAO_PROPRIA | E12: =orcamento!C11 -> CCU 01 | F12: 2022-02-01 | G12: =orcamento!D11 -> EQUIPE DE ADMINISTRAÇÃO LOCAL | H12: =orcamento!E11 -> 1 | I12: =orcamento!F11 -> UN | J12: =orcamento!M11 -> 464878.03 | K12: =IFERROR(IF(H12*J12<>0,ROUND(ROUND(H12,4)*ROUND(J12,4),2),""),"") -> 464878.03 | L12: =orcamento!J11 -> 0.2215 | M12: 1.1122
A14: 1 | B14: =IF(AND(G14<>"",H14>0,I14<>"",J14<>0,K14<>0),COUNT($B$11:B13)+1,"") -> 2 | C14: =orcamento!A13 -> 2.1 | D14: =orcamento!B13 -> COMPOSICAO_PROPRIA | E14: =orcamento!C13 -> CCU 02 | F14: 2022-02-01 | G14: =orcamento!D13 -> INSTALAÇÕES PROVISÓRIAS PARA CANTEIRO | H14: =orcamento!E13 -> 1 | I14: =orcamento!F13 -> UN | J14: =orcamento!M13 -> 38052.77 | K14: =IFERROR(IF(H14*J14<>0,ROUND(ROUND(H14,4)*ROUND(J14,4),2),""),"") -> 38052.77 | L14: =orcamento!J13 -> 0.2215 | M14: 1.1122
A15: 1 | B15: =IF(AND(G15<>"",H15>0,I15<>"",J15<>0,K15<>0),COUNT($B$11:B14)+1,"") -> 3 | C15: =orcamento!A14 -> 2.2 | D15: =orcamento!B14 -> SINAPI | E15: =orcamento!C14 -> 93585 | F15: 2022-02-01 | G15: =orcamento!D14 -> EXECUÇÃO DE GUARITA EM CANTEIRO DE OBRA EM CHAPA DE MADEIRA COMPENSADA, NÃO INCLUSO MOBILIÁRIO | H15: =orcamento!E14 -> 4 | I15: =orcamento!F14 -> M2 | J15: =orcamento!M14 -> 1356.68 | K15: 5426.72 | L15: =orcamento!J14 -> 0.2215 | M15: 1.1122
A16: 1 | B16: =IF(AND(G16<>"",H16>0,I16<>"",J16<>0,K16<>0),COUNT($B$11:B15)+1,"") -> 4 | C16: =orcamento!A15 -> 2.3 | D16: =orcamento!B15 -> SINAPI | E16: =orcamento!C15 -> 93584 | F16: 2022-02-01 | G16: =orcamento!D15 -> EXECUÇÃO DE DEPÓSITO EM CANTEIRO DE OBRA EM CHAPA DE MADEIRA COMPENSADA, NÃO INCLUSO MOBILIÁRIO | H16: =orcamento!E15 -> 15 | I16: =orcamento!F15 -> M2 | J16: =orcamento!M15 -> 1028.47 | K16: 15427.05 | L16: =orcamento!J15 -> 0.2215 | M16: 1.1122
A17: 1 | B17: =IF(AND(G17<>"",H17>0,I17<>"",J17<>0,K17<>0),COUNT($B$11:B16)+1,"") -> 5 | C17: =orcamento!A16 -> 2.4 | D17: =orcamento!B16 -> SINAPI | E17: =orcamento!C16 -> 93582 | F17: 2022-02-01 | G17: =orcamento!D16 -> EXECUÇÃO DE CENTRAL DE ARMADURA EM CANTEIRO DE OBRA, NÃO INCLUSO MOBILIÁRIO E EQUIPAMENTOS | H17: =orcamento!E16 -> 30 | I17: =orcamento!F16 -> M2 | J17: =orcamento!M16 -> 315.57 | K17: 9467.1 | L17: =orcamento!J16 -> 0.2215 | M17: 1.1122
A18: 1 | B18: =IF(AND(G18<>"",H18>0,I18<>"",J18<>0,K18<>0),COUNT($B$11:B17)+1,"") -> 6 | C18: =orcamento!A17 -> 2.5 | D18: =orcamento!B17 -> SINAPI | E18: =orcamento!C17 -> 93583 | F18: 2022-02-01 | G18: =orcamento!D17 -> EXECUÇÃO DE CENTRAL DE FÔRMAS, PRODUÇÃO DE ARGAMASSA OU CONCRETO EM CANTEIRO DE OBRA, NÃO INCLUSO MOBILIÁRIO E EQUIPAMENTOS | H18: =orcamento!E17 -> 30 | I18: =orcamento!F17 -> M2 | J18: =orcamento!M17 -> 525.38 | K18: 15761.4 | L18: =orcamento!J17 -> 0.2215 | M18: 1.1122
A19: 1 | B19: =IF(AND(G19<>"",H19>0,I19<>"",J19<>0,K19<>0),COUNT($B$11:B18)+1,"") -> 7 | C19: =orcamento!A18 -> 2.6 | D19: =orcamento!B18 -> SINAPI | E19: =orcamento!C18 -> 93212 | F19: 2022-02-01 | G19: =orcamento!D18 -> EXECUÇÃO DE SANITÁRIO E VESTIÁRIO EM CANTEIRO DE OBRA EM CHAPA DE MADEIRA COMPENSADA, NÃO INCLUSO MOBILIÁRIO | H19: =orcamento!E18 -> 30 | I19: =orcamento!F18 -> M2 | J19: =orcamento!M18 -> 1177.59 | K19: 35327.7 | L19: =orcamento!J18 -> 0.2215 | M19: 1.1122
A20: 1 | B20: =IF(AND(G20<>"",H20>0,I20<>"",J20<>0,K20<>0),COUNT($B$11:B19)+1,"") -> 8 | C20: =orcamento!A19 -> 2.7 | D20: =orcamento!B19 -> SINAPI | E20: =orcamento!C19 -> 93210 | F20: 2022-02-01 | G20: =orcamento!D19 -> EXECUÇÃO DE REFEITÓRIO EM CANTEIRO DE OBRA EM CHAPA DE MADEIRA COMPENSADA, NÃO INCLUSO MOBILIÁRIO E EQUIPAMENTOS | H20: =orcamento!E19 -> 50 | I20: =orcamento!F19 -> M2 | J20: =orcamento!M19 -> 719.37 | K20: 35968.5 | L20: =orcamento!J19 -> 0.2215 | M20: 1.1122
A21: 1 | B21: =IF(AND(G21<>"",H21>0,I21<>"",J21<>0,K21<>0),COUNT($B$11:B20)+1,"") -> 9 | C21: =orcamento!A20 -> 2.8 | D21: =orcamento!B20 -> SINAPI | E21: =orcamento!C20 -> 93206 | F21: 2022-02-01 | G21: =orcamento!D20 -> EXECUÇÃO DE ESCRITÓRIO EM CANTEIRO DE OBRA EM ALVENARIA, NÃO INCLUSO MOBILIÁRIO E EQUIPAMENTOS | H21: =orcamento!E20 -> 15 | I21: =orcamento!F20 -> M2 | J21: =orcamento!M20 -> 1378.27 | K21: 20674.05 | L21: =orcamento!J20 -> 0.2215 | M21: 1.1122
A22: 1 | B22: =IF(AND(G22<>"",H22>0,I22<>"",J22<>0,K22<>0),COUNT($B$11:B21)+1,"") -> 10 | C22: =orcamento!A21 -> 2.9 | D22: =orcamento!B21 -> SINAPI | E22: =orcamento!C21 -> 93208 | F22: 2022-02-01 | G22: =orcamento!D21 -> EXECUÇÃO DE ALMOXARIFADO EM CANTEIRO DE OBRA EM CHAPA DE MADEIRA COMPENSADA, INCLUSO PRATELEIRAS | H22: =orcamento!E21 -> 15 | I22: =orcamento!F21 -> M2 | J22: =orcamento!M21 -> 1030.93 | K22: 15463.95 | L22: =orcamento!J21 -> 0.2215 | M22: 1.1122
A23: 1 | B23: =IF(AND(G23<>"",H23>0,I23<>"",J23<>0,K23<>0),COUNT($B$11:B22)+1,"") -> 11 | C23: =orcamento!A22 -> 2.10 | D23: =orcamento!B22 -> SINAPI | E23: =orcamento!C22 -> 93583 | F23: 2022-02-01 | G23: =orcamento!D22 -> EXECUÇÃO DE CENTRAL DE FÔRMAS, PRODUÇÃO DE ARGAMASSA OU CONCRETO EM CANTEIRO DE OBRA, NÃO INCLUSO MOBILIÁRIO E EQUIPAMENTOS | H23: =orcamento!E22 -> 65 | I23: =orcamento!F22 -> M2 | J23: =orcamento!M22 -> 525.38 | K23: 34149.7 | L23: =orcamento!J22 -> 0.2215 | M23: 1.1122
A24: 1 | B24: =IF(AND(G24<>"",H24>0,I24<>"",J24<>0,K24<>0),COUNT($B$11:B23)+1,"") -> 12 | C24: =orcamento!A23 -> 2.11 | D24: =orcamento!B23 -> SINAPI | E24: =orcamento!C23 -> 99059 | F24: 2022-02-01 | G24: =orcamento!D23 -> LOCACAO CONVENCIONAL DE OBRA, UTILIZANDO GABARITO DE TÁBUAS CORRIDAS PONTALETADAS A CADA 2,00M | H24: =orcamento!E23 -> 80 | I24: =orcamento!F23 -> M | J24: =orcamento!M23 -> 55.14 | K24: 4411.2 | L24: =orcamento!J23 -> 0.2215 | M24: 1.1122
A25: 1 | B25: =IF(AND(G25<>"",H25>0,I25<>"",J25<>0,K25<>0),COUNT($B$11:B24)+1,"") -> 13 | C25: =orcamento!A24 -> 2.12 | D25: =orcamento!B24 -> SICRO | E25: =orcamento!C24 -> M0045 | F25: 2022-02-01 | G25: =orcamento!D24 -> BARREIRA PLÁSTICA MONOBLOCO PARA CANALIZAÇÃO DE TRÂNSITO - C = 100 CM, L = 50 CM E H = 55 CM - AQUISIÇÃO E UTILIZAÇÃO | H25: =orcamento!E24 -> 6 | I25: =orcamento!F24 -> UN | J25: =orcamento!M24 -> 1026.82 | K25: 6160.92 | L25: =orcamento!J24 -> 0.2215 | M25: 1.1122
A26: 1 | B26: =IF(AND(G26<>"",H26>0,I26<>"",J26<>0,K26<>0),COUNT($B$11:B25)+1,"") -> 14 | C26: =orcamento!A25 -> 2.13 | D26: =orcamento!B25 -> COMPOSICAO_PROPRIA | E26: =orcamento!C25 -> CCU 37 | F26: 2022-02-01 | G26: =orcamento!D25 -> PLACA DE ADVERTÊNCIA PARA SINALIZAÇÃO DE OBRAS 1,10 M X 0,70M COM SUPORTE EM MADEIRA MÓVEL TIPO CAVALETE - AQUISIÇÃO E UTILIZAÇÃO | H26: =orcamento!E25 -> 7 | I26: =orcamento!F25 -> UN | J26: =orcamento!M25 -> 338.25 | K26: 2367.75 | L26: =orcamento!J25 -> 0.2215 | M26: 1.1122
A27: 1 | B27: =IF(AND(G27<>"",H27>0,I27<>"",J27<>0,K27<>0),COUNT($B$11:B26)+1,"") -> 15 | C27: =orcamento!A26 -> 2.14 | D27: =orcamento!B26 -> COMPOSICAO_PROPRIA | E27: =orcamento!C26 -> CCU 22 | F27: 2022-02-01 | G27: =orcamento!D26 -> BALIZADOR COM LED PISCANTE - AQUISIÇÃO E UTILIZAÇÃO | H27: =orcamento!E26 -> 6 | I27: =orcamento!F26 -> UN | J27: =orcamento!M26 -> 366.52 | K27: 2199.12 | L27: =orcamento!J26 -> 0.2215 | M27: 1.1122
A29: 1 | B29: =IF(AND(G29<>"",H29>0,I29<>"",J29<>0,K29<>0),COUNT($B$11:B28)+1,"") -> 16 | C29: =orcamento!A28 -> 3.1 | D29: =orcamento!B28 -> COMPOSICAO_PROPRIA | E29: =orcamento!C28 -> CCU 09 | F29: 2022-02-01 | G29: =orcamento!D28 -> DESMONTE DE ESTRUTURA DE MADEIRA EXISTENTE | H29: =orcamento!E28 -> 102.53 | I29: =orcamento!F28 -> M3 | J29: =orcamento!M28 -> 243.29 | K29: 24944.52 | L29: =orcamento!J28 -> 0.2215 | M29: 1.1122
A30: 1 | B30: =IF(AND(G30<>"",H30>0,I30<>"",J30<>0,K30<>0),COUNT($B$11:B29)+1,"") -> 17 | C30: =orcamento!A29 -> 3.2 | D30: =orcamento!B29 -> COMPOSICAO_PROPRIA | E30: =orcamento!C29 -> CCU 11 | F30: 2022-02-01 | G30: =orcamento!D29 -> REMOÇÃO GUARDA-CORPO DE AÇO | H30: =orcamento!E29 -> 50 | I30: =orcamento!F29 -> M | J30: =orcamento!M29 -> 69.6 | K30: 3480 | L30: =orcamento!J29 -> 0.2215 | M30: 1.1122
A31: 1 | B31: =IF(AND(G31<>"",H31>0,I31<>"",J31<>0,K31<>0),COUNT($B$11:B30)+1,"") -> 18 | C31: =orcamento!A30 -> 3.3 | D31: =orcamento!B30 -> COMPOSICAO_PROPRIA | E31: =orcamento!C30 -> CCU 10 | F31: 2022-02-01 | G31: =orcamento!D30 -> REMOÇÃO DE TUBULAÇÃO DO DMAE ANEXA A PONTE EXISTENTE | H31: =orcamento!E30 -> 80 | I31: =orcamento!F30 -> M | J31: =orcamento!M30 -> 4.14 | K31: 331.2 | L31: =orcamento!J30 -> 0.2215 | M31: 1.1122
A33: 1 | B33: =IF(AND(G33<>"",H33>0,I33<>"",J33<>0,K33<>0),COUNT($B$11:B32)+1,"") -> 19 | C33: =orcamento!A32 -> 4.1 | D33: =orcamento!B32 -> COMPOSICAO_PROPRIA | E33: =orcamento!C32 -> CCU 12 | F33: 2022-02-01 | G33: =orcamento!D32 -> MONTAGEM PASSARELA DE MADEIRA - FORNECIMENTO E INSTALAÇÃO | H33: =orcamento!E32 -> 1 | I33: =orcamento!F32 -> UN | J33: =orcamento!M32 -> 246672.25 | K33: 246672.25 | L33: =orcamento!J32 -> 0.2215 | M33: 1.1122
A34: 1 | B34: =IF(AND(G34<>"",H34>0,I34<>"",J34<>0,K34<>0),COUNT($B$11:B33)+1,"") -> 20 | C34: =orcamento!A33 -> 4.2 | D34: =orcamento!B33 -> COMPOSICAO_PROPRIA | E34: =orcamento!C33 -> CCU 09 | F34: 2022-02-01 | G34: =orcamento!D33 -> DESMONTE DE ESTRUTURA DE MADEIRA EXISTENTE | H34: =orcamento!E33 -> 61.81 | I34: =orcamento!F33 -> M3 | J34: =orcamento!M33 -> 243.29 | K34: 15037.75 | L34: =orcamento!J33 -> 0.2215 | M34: 1.1122
A36: 1 | B36: =IF(AND(G36<>"",H36>0,I36<>"",J36<>0,K36<>0),COUNT($B$11:B35)+1,"") -> 21 | C36: =orcamento!A35 -> 5.1 | D36: =orcamento!B35 -> SINAPI | E36: =orcamento!C35 -> 98525 | F36: 2022-02-01 | G36: =orcamento!D35 -> LIMPEZA MECANIZADA DE CAMADA VEGETAL, VEGETAÇÃO E PEQUENAS ÁRVORES (DIÂMETRO DE TRONCO MENOR QUE 0,20 M), COM TRATOR DE ESTEIRAS | H36: =orcamento!E35 -> 44.03 | I36: =orcamento!F35 -> M2 | J36: =orcamento!M35 -> 0.44 | K36: 19.37 | L36: =orcamento!J35 -> 0.2215 | M36: 1.1122
A37: 1 | B37: =IF(AND(G37<>"",H37>0,I37<>"",J37<>0,K37<>0),COUNT($B$11:B36)+1,"") -> 22 | C37: =orcamento!A36 -> 5.2 | D37: =orcamento!B36 -> COMPOSICAO_PROPRIA | E37: =orcamento!C36 -> CCU 25 | F37: 2022-02-01 | G37: =orcamento!D36 -> ESCAVAÇÃO MECÂNICA COM RETROESCAVADEIRA EM MATERIAL DE 1ª CATEGORIA | H37: =orcamento!E36 -> 187.9 | I37: =orcamento!F36 -> M3 | J37: =orcamento!M36 -> 6.34 | K37: 1191.29 | L37: =orcamento!J36 -> 0.2215 | M37: 1.1122
A38: 1 | B38: =IF(AND(G38<>"",H38>0,I38<>"",J38<>0,K38<>0),COUNT($B$11:B37)+1,"") -> 23 | C38: =orcamento!A37 -> 5.3 | D38: =orcamento!B37 -> SINAPI | E38: =orcamento!C37 -> 100978 | F38: 2022-02-01 | G38: =orcamento!D37 -> CARGA, MANOBRA E DESCARGA DE SOLOS E MATERIAIS GRANULARES EM CAMINHÃO BASCULANTE 10 M³ - CARGA COM ESCAVADEIRA HIDRÁULICA (CAÇAMBA DE 1,20 M³ / 155 HP) E DESCARGA LIVRE | H38: =orcamento!E37 -> 234.88 | I38: =orcamento!F37 -> M3 | J38: =orcamento!M37 -> 6.34 | K38: 1489.14 | L38: =orcamento!J37 -> 0.2215 | M38: 1.1122
A39: 1 | B39: =IF(AND(G39<>"",H39>0,I39<>"",J39<>0,K39<>0),COUNT($B$11:B38)+1,"") -> 24 | C39: =orcamento!A38 -> 5.4 | D39: =orcamento!B38 -> SINAPI | E39: =orcamento!C38 -> 95875 | F39: 2022-02-01 | G39: =orcamento!D38 -> TRANSPORTE COM CAMINHÃO BASCULANTE DE 10 M³, EM VIA URBANA PAVIMENTADA, DMT ATÉ 30 KM | H39: =orcamento!E38 -> 6727.2 | I39: =orcamento!F38 -> M3XKM | J39: =orcamento!M38 -> 2.05 | K39: 13790.76 | L39: =orcamento!J38 -> 0.2215 | M39: 1.1122
A40: 1 | B40: =IF(AND(G40<>"",H40>0,I40<>"",J40<>0,K40<>0),COUNT($B$11:B39)+1,"") -> 25 | C40: =orcamento!A39 -> 5.5 | D40: =orcamento!B39 -> COMPOSICAO_PROPRIA | E40: =orcamento!C39 -> CCU 13 | F40: 2022-02-01 | G40: =orcamento!D39 -> ENROCAMENTO COM PEDRA DE MÃO, INCLUSIVE ESPALHAMENTO E COMPACTAÇÃO MECÂNICA - FORNECIMENTO E ASSENTAMENTO | H40: =orcamento!E39 -> 101.48 | I40: =orcamento!F39 -> M3 | J40: =orcamento!M39 -> 120.22 | K40: 12199.93 | L40: =orcamento!J39 -> 0.2215 | M40: 1.1122
A41: 1 | B41: =IF(AND(G41<>"",H41>0,I41<>"",J41<>0,K41<>0),COUNT($B$11:B40)+1,"") -> 26 | C41: =orcamento!A40 -> 5.6 | D41: =orcamento!B40 -> COMPOSICAO_PROPRIA | E41: =orcamento!C40 -> CCU 06 | F41: 2022-02-01 | G41: =orcamento!D40 -> ATERRO COM SOLO PREDOMINANTEMENTE ARGILOSO INCLUSO SOLO, ESCAVAÇÃO, CARGA E TRANSPORTE | H41: =orcamento!E40 -> 497.76 | I41: =orcamento!F40 -> M3 | J41: =orcamento!M40 -> 102.9 | K41: 51219.5 | L41: =orcamento!J40 -> 0.2215 | M41: 1.1122
A42: 1 | B42: =IF(AND(G42<>"",H42>0,I42<>"",J42<>0,K42<>0),COUNT($B$11:B41)+1,"") -> 27 | C42: =orcamento!A41 -> 5.7 | D42: =orcamento!B41 -> COMPOSICAO_PROPRIA | E42: =orcamento!C41 -> CCU 04 | F42: 2022-02-01 | G42: =orcamento!D41 -> AREIA GRADUADA | H42: =orcamento!E41 -> 11.65 | I42: =orcamento!F41 -> M3 | J42: =orcamento!M41 -> 149.08 | K42: 1736.78 | L42: =orcamento!J41 -> 0.2215 | M42: 1.1122
A43: 1 | B43: =IF(AND(G43<>"",H43>0,I43<>"",J43<>0,K43<>0),COUNT($B$11:B42)+1,"") -> 28 | C43: =orcamento!A42 -> 5.8 | D43: =orcamento!B42 -> COMPOSICAO_PROPRIA | E43: =orcamento!C42 -> CCU 05 | F43: 2022-02-01 | G43: =orcamento!D42 -> APLICAÇÃO DE GEOTEXTIL NÃO-TECIDO AGULHADO RT 31 | H43: =orcamento!E42 -> 460.7 | I43: =orcamento!F42 -> M2 | J43: =orcamento!M42 -> 21.83 | K43: 10057.08 | L43: =orcamento!J42 -> 0.2215 | M43: 1.1122
A44: 1 | B44: =IF(AND(G44<>"",H44>0,I44<>"",J44<>0,K44<>0),COUNT($B$11:B43)+1,"") -> 29 | C44: =orcamento!A43 -> 5.9 | D44: =orcamento!B43 -> COMPOSICAO_PROPRIA | E44: =orcamento!C43 -> CCU 03 | F44: 2022-02-01 | G44: =orcamento!D43 -> ENSAIOS DE CARACTERIZAÇÃO E VERIFICAÇÃO DO GRAU DE COMPACTAÇÃO DO SOLO | H44: =orcamento!E43 -> 4 | I44: =orcamento!F43 -> UN | J44: =orcamento!M43 -> 563.11 | K44: 2252.44 | L44: =orcamento!J43 -> 0.2215 | M44: 1.1122
A46: 1 | B46: =IF(AND(G46<>"",H46>0,I46<>"",J46<>0,K46<>0),COUNT($B$11:B45)+1,"") -> 30 | C46: =orcamento!A45 -> 6.1 | D46: =orcamento!B45 -> COMPOSICAO_PROPRIA | E46: =orcamento!C45 -> CCU 26 | F46: 2022-02-01 | G46: =orcamento!D45 -> ESTACAS PRÉ-MOLDADAS 35X35CM EXCLUSO TRANSPORTE | H46: =orcamento!E45 -> 769.12 | I46: =orcamento!F45 -> M | J46: =orcamento!M45 -> 272.55 | K46: 209623.66 | L46: =orcamento!J45 -> 0.2215 | M46: 1.1122
A47: 1 | B47: =IF(AND(G47<>"",H47>0,I47<>"",J47<>0,K47<>0),COUNT($B$11:B46)+1,"") -> 31 | C47: =orcamento!A46 -> 6.2 | D47: =orcamento!B46 -> COMPOSICAO_PROPRIA | E47: =orcamento!C46 -> CCU 27 | F47: 2022-02-01 | G47: =orcamento!D46 -> TRANSPORTE COM CAMINHÃO CARROCERIA COM CAPACIDADE DE 11 T E COM GUINDAUTO DE 45 T.M - RODOVIA PAVIMENTADA | H47: =orcamento!E46 -> 7066.5 | I47: =orcamento!F46 -> TXKM | J47: =orcamento!M46 -> 1.37 | K47: 9681.11 | L47: =orcamento!J46 -> 0.2215 | M47: 1.1122
A48: 1 | B48: =IF(AND(G48<>"",H48>0,I48<>"",J48<>0,K48<>0),COUNT($B$11:B47)+1,"") -> 32 | C48: =orcamento!A47 -> 6.3 | D48: =orcamento!B47 -> COMPOSICAO_PROPRIA | E48: =orcamento!C47 -> CCU 18 | F48: 2022-02-01 | G48: =orcamento!D47 -> IMPLANTAÇÃO DO SISTEMA NAVAL TIPO I - PONTE MÓVEL E FLUTUANTE PRINCIPAL (INCLUSO DESMOBILIZAÇÃO) | H48: =orcamento!E47 -> 1 | I48: =orcamento!F47 -> UN | J48: =orcamento!M47 -> 42812.07 | K48: 42812.07 | L48: =orcamento!J47 -> 0.2215 | M48: 1.1122
A49: 1 | B49: =IF(AND(G49<>"",H49>0,I49<>"",J49<>0,K49<>0),COUNT($B$11:B48)+1,"") -> 33 | C49: =orcamento!A48 -> 6.4 | D49: =orcamento!B48 -> COMPOSICAO_PROPRIA | E49: =orcamento!C48 -> CCU 19 | F49: 2022-02-01 | G49: =orcamento!D48 -> OPERAÇÃO DO SISTEMA NAVAL TIPO I - PONTE MÓVEL E FLUTUANTE PRINCIPAL | H49: =orcamento!E48 -> 425.04 | I49: =orcamento!F48 -> M | J49: =orcamento!M48 -> 25.86 | K49: 10991.53 | L49: =orcamento!J48 -> 0.2215 | M49: 1.1122
A50: 1 | B50: =IF(AND(G50<>"",H50>0,I50<>"",J50<>0,K50<>0),COUNT($B$11:B49)+1,"") -> 34 | C50: =orcamento!A49 -> 6.5 | D50: =orcamento!B49 -> SINAPI | E50: =orcamento!C49 -> 96616 | F50: 2022-02-01 | G50: =orcamento!D49 -> LASTRO DE CONCRETO MAGRO, APLICADO EM BLOCOS DE COROAMENTO OU SAPATAS | H50: =orcamento!E49 -> 7.75 | I50: =orcamento!F49 -> M3 | J50: =orcamento!M49 -> 670.76 | K50: 5198.39 | L50: =orcamento!J49 -> 0.2215 | M50: 1.1122
A51: 1 | B51: =IF(AND(G51<>"",H51>0,I51<>"",J51<>0,K51<>0),COUNT($B$11:B50)+1,"") -> 35 | C51: =orcamento!A50 -> 6.6 | D51: =orcamento!B50 -> SINAPI | E51: =orcamento!C50 -> 96623 | F51: 2022-02-01 | G51: =orcamento!D50 -> LASTRO COM MATERIAL GRANULAR, APLICADO EM BLOCOS DE COROAMENTO, ESPESSURA DE *10 CM* | H51: =orcamento!E50 -> 4.11 | I51: =orcamento!F50 -> M3 | J51: =orcamento!M50 -> 188.73 | K51: 775.68 | L51: =orcamento!J50 -> 0.2215 | M51: 1.1122
A52: 1 | B52: =IF(AND(G52<>"",H52>0,I52<>"",J52<>0,K52<>0),COUNT($B$11:B51)+1,"") -> 36 | C52: =orcamento!A51 -> 6.7 | D52: =orcamento!B51 -> COMPOSICAO_PROPRIA | E52: =orcamento!C51 -> CCU 28 | F52: 2022-02-01 | G52: =orcamento!D51 -> FORMAS DE COMPENSADO PLASTIFICADO 12 MM - USO GERAL - UTILIZAÇÃO DE 3 VEZES - CONFECÇÃO, INSTALAÇÃO E RETIRADA | H52: =orcamento!E51 -> 148.8 | I52: =orcamento!F51 -> M2 | J52: =orcamento!M51 -> 78.66 | K52: 11704.61 | L52: =orcamento!J51 -> 0.2215 | M52: 1.1122
A53: 1 | B53: =IF(AND(G53<>"",H53>0,I53<>"",J53<>0,K53<>0),COUNT($B$11:B52)+1,"") -> 37 | C53: =orcamento!A52 -> 6.8 | D53: =orcamento!B52 -> SINAPI | E53: =orcamento!C52 -> 92917 | F53: 2022-02-01 | G53: =orcamento!D52 -> ARMAÇÃO DE ESTRUTURAS DE CONCRETO ARMADO, EXCETO VIGAS, PILARES, LAJES E FUNDAÇÕES, UTILIZANDO AÇO CA-50 DE 8,0 MM | H53: =orcamento!E52 -> 52 | I53: =orcamento!F52 -> KG | J53: =orcamento!M52 -> 17.27 | K53: 898.04 | L53: =orcamento!J52 -> 0.2215 | M53: 1.1122
A54: 1 | B54: =IF(AND(G54<>"",H54>0,I54<>"",J54<>0,K54<>0),COUNT($B$11:B53)+1,"") -> 38 | C54: =orcamento!A53 -> 6.9 | D54: =orcamento!B53 -> SINAPI | E54: =orcamento!C53 -> 92919 | F54: 2022-02-01 | G54: =orcamento!D53 -> ARMAÇÃO DE ESTRUTURAS DE CONCRETO ARMADO, EXCETO VIGAS, PILARES, LAJES E FUNDAÇÕES, UTILIZANDO AÇO CA-50 DE 10,0 MM | H54: =orcamento!E53 -> 1274.64 | I54: =orcamento!F53 -> KG | J54: =orcamento!M53 -> 15.43 | K54: 19667.7 | L54: =orcamento!J53 -> 0.2215 | M54: 1.1122
A55: 1 | B55: =IF(AND(G55<>"",H55>0,I55<>"",J55<>0,K55<>0),COUNT($B$11:B54)+1,"") -> 39 | C55: =orcamento!A54 -> 6.10 | D55: =orcamento!B54 -> SINAPI | E55: =orcamento!C54 -> 92921 | F55: 2022-02-01 | G55: =orcamento!D54 -> ARMAÇÃO DE ESTRUTURAS DE CONCRETO ARMADO, EXCETO VIGAS, PILARES, LAJES E FUNDAÇÕES, UTILIZANDO AÇO CA-50 DE 12,5 MM | H55: =orcamento!E54 -> 591.36 | I55: =orcamento!F54 -> KG | J55: =orcamento!M54 -> 12.98 | K55: 7675.85 | L55: =orcamento!J54 -> 0.2215 | M55: 1.1122
A56: 1 | B56: =IF(AND(G56<>"",H56>0,I56<>"",J56<>0,K56<>0),COUNT($B$11:B55)+1,"") -> 40 | C56: =orcamento!A55 -> 6.11 | D56: =orcamento!B55 -> SINAPI | E56: =orcamento!C55 -> 92922 | F56: 2022-02-01 | G56: =orcamento!D55 -> ARMAÇÃO DE ESTRUTURAS DE CONCRETO ARMADO, EXCETO VIGAS, PILARES, LAJES E FUNDAÇÕES, UTILIZANDO AÇO CA-50 DE 16,0 MM | H56: =orcamento!E55 -> 940.48 | I56: =orcamento!F55 -> KG | J56: =orcamento!M55 -> 12.32 | K56: 11586.71 | L56: =orcamento!J55 -> 0.2215 | M56: 1.1122
A57: 1 | B57: =IF(AND(G57<>"",H57>0,I57<>"",J57<>0,K57<>0),COUNT($B$11:B56)+1,"") -> 41 | C57: =orcamento!A56 -> 6.12 | D57: =orcamento!B56 -> SINAPI | E57: =orcamento!C56 -> 92923 | F57: 2022-02-01 | G57: =orcamento!D56 -> ARMAÇÃO DE ESTRUTURAS DE CONCRETO ARMADO, EXCETO VIGAS, PILARES, LAJES E FUNDAÇÕES, UTILIZANDO AÇO CA-50 DE 20,0 MM | H57: =orcamento!E56 -> 3040.3 | I57: =orcamento!F56 -> KG | J57: =orcamento!M56 -> 13.75 | K57: 41804.13 | L57: =orcamento!J56 -> 0.2215 | M57: 1.1122
A58: 1 | B58: =IF(AND(G58<>"",H58>0,I58<>"",J58<>0,K58<>0),COUNT($B$11:B57)+1,"") -> 42 | C58: =orcamento!A57 -> 6.13 | D58: =orcamento!B57 -> COMPOSICAO_PROPRIA | E58: =orcamento!C57 -> CCU 29 | F58: 2022-02-01 | G58: =orcamento!D57 -> CONCRETO PARA BOMBEAMENTO FCK = 30 MPA - CONFECÇÃO EM CENTRAL DOSADORA DE 30 M³/H - AREIA E BRITA COMERCIAIS | H58: =orcamento!E57 -> 85.7 | I58: =orcamento!F57 -> M3 | J58: =orcamento!M57 -> 415.73 | K58: 35628.06 | L58: =orcamento!J57 -> 0.2215 | M58: 1.1122
A59: 1 | B59: =IF(AND(G59<>"",H59>0,I59<>"",J59<>0,K59<>0),COUNT($B$11:B58)+1,"") -> 43 | C59: =orcamento!A58 -> 6.14 | D59: =orcamento!B58 -> COMPOSICAO_PROPRIA | E59: =orcamento!C58 -> CCU 31 | F59: 2022-02-01 | G59: =orcamento!D58 -> LANÇAMENTO MECÂNICO DE CONCRETO COM BOMBA REBOCÁVEL COM CAPACIDADE DE 41 M³/H | H59: =orcamento!E58 -> 85.7 | I59: =orcamento!F58 -> M3 | J59: =orcamento!M58 -> 46.34 | K59: 3971.34 | L59: =orcamento!J58 -> 0.2215 | M59: 1.1122
A60: 1 | B60: =IF(AND(G60<>"",H60>0,I60<>"",J60<>0,K60<>0),COUNT($B$11:B59)+1,"") -> 44 | C60: =orcamento!A59 -> 6.15 | D60: =orcamento!B59 -> COMPOSICAO_PROPRIA | E60: =orcamento!C59 -> CCU 32 | F60: 2022-02-01 | G60: =orcamento!D59 -> ADENSAMENTO DE CONCRETO POR VIBRADOR DE IMERSÃO | H60: =orcamento!E59 -> 85.7 | I60: =orcamento!F59 -> M3 | J60: =orcamento!M59 -> 3.84 | K60: 329.09 | L60: =orcamento!J59 -> 0.2215 | M60: 1.1122
A62: 1 | B62: =IF(AND(G62<>"",H62>0,I62<>"",J62<>0,K62<>0),COUNT($B$11:B61)+1,"") -> 45 | C62: =orcamento!A61 -> 7.1 | D62: =orcamento!B61 -> COMPOSICAO_PROPRIA | E62: =orcamento!C61 -> CCU 28 | F62: 2022-02-01 | G62: =orcamento!D61 -> FORMAS DE COMPENSADO PLASTIFICADO 12 MM - USO GERAL - UTILIZAÇÃO DE 3 VEZES - CONFECÇÃO, INSTALAÇÃO E RETIRADA | H62: =orcamento!E61 -> 923.39 | I62: =orcamento!F61 -> M2 | J62: =orcamento!M61 -> 78.66 | K62: 72633.86 | L62: =orcamento!J61 -> 0.2215 | M62: 1.1122
A63: 1 | B63: =IF(AND(G63<>"",H63>0,I63<>"",J63<>0,K63<>0),COUNT($B$11:B62)+1,"") -> 46 | C63: =orcamento!A62 -> 7.2 | D63: =orcamento!B62 -> SINAPI | E63: =orcamento!C62 -> 101793 | F63: 2022-02-01 | G63: =orcamento!D62 -> ESCORAMENTO DE FÔRMAS DE LAJE EM MADEIRA NÃO APARELHADA, PÉ-DIREITO DUPLO, INCLUSO TRAVAMENTO, 4 UTILIZAÇÕES | H63: =orcamento!E62 -> 1497.6 | I63: =orcamento!F62 -> M3 | J63: =orcamento!M62 -> 24.52 | K63: 36721.15 | L63: =orcamento!J62 -> 0.2215 | M63: 1.1122
A64: 1 | B64: =IF(AND(G64<>"",H64>0,I64<>"",J64<>0,K64<>0),COUNT($B$11:B63)+1,"") -> 47 | C64: =orcamento!A63 -> 7.3 | D64: =orcamento!B63 -> COTACAO | E64: =orcamento!C63 -> COT 01 | F64: 2022-02-01 | G64: =orcamento!D63 -> PERFIS METÁLICOS DE 15,50M W 610 X 174,0 AÇO ASTM A572 - LOCAÇÃO | H64: =orcamento!E63 -> 4 | I64: =orcamento!F63 -> UN | J64: =orcamento!M63 -> 52302 | K64: 209208 | L64: =orcamento!J63 -> 0.137 | M64: 1.1122
A65: 1 | B65: =IF(AND(G65<>"",H65>0,I65<>"",J65<>0,K65<>0),COUNT($B$11:B64)+1,"") -> 48 | C65: =orcamento!A64 -> 7.4 | D65: =orcamento!B64 -> COMPOSICAO_PROPRIA | E65: =orcamento!C64 -> CCU 34 | F65: 2022-02-01 | G65: =orcamento!D64 -> PERFIS METÁLICOS DE 15,50M W 610 X 174,0 AÇO ASTM A572 - INSTALAÇÃO | H65: =orcamento!E64 -> 4 | I65: =orcamento!F64 -> UN | J65: =orcamento!M64 -> 1968.28 | K65: 7873.12 | L65: =orcamento!J64 -> 0.2215 | M65: 1.1122
A66: 1 | B66: =IF(AND(G66<>"",H66>0,I66<>"",J66<>0,K66<>0),COUNT($B$11:B65)+1,"") -> 49 | C66: =orcamento!A65 -> 7.5 | D66: =orcamento!B65 -> SINAPI | E66: =orcamento!C65 -> 92917 | F66: 2022-02-01 | G66: =orcamento!D65 -> ARMAÇÃO DE ESTRUTURAS DE CONCRETO ARMADO, EXCETO VIGAS, PILARES, LAJES E FUNDAÇÕES, UTILIZANDO AÇO CA-50 DE 8,0 MM | H66: =orcamento!E65 -> 310 | I66: =orcamento!F65 -> KG | J66: =orcamento!M65 -> 17.27 | K66: 5353.7 | L66: =orcamento!J65 -> 0.2215 | M66: 1.1122
A67: 1 | B67: =IF(AND(G67<>"",H67>0,I67<>"",J67<>0,K67<>0),COUNT($B$11:B66)+1,"") -> 50 | C67: =orcamento!A66 -> 7.6 | D67: =orcamento!B66 -> SINAPI | E67: =orcamento!C66 -> 92919 | F67: 2022-02-01 | G67: =orcamento!D66 -> ARMAÇÃO DE ESTRUTURAS DE CONCRETO ARMADO, EXCETO VIGAS, PILARES, LAJES E FUNDAÇÕES, UTILIZANDO AÇO CA-50 DE 10,0 MM | H67: =orcamento!E66 -> 6654.69 | I67: =orcamento!F66 -> KG | J67: =orcamento!M66 -> 15.43 | K67: 102681.87 | L67: =orcamento!J66 -> 0.2215 | M67: 1.1122
A68: 1 | B68: =IF(AND(G68<>"",H68>0,I68<>"",J68<>0,K68<>0),COUNT($B$11:B67)+1,"") -> 51 | C68: =orcamento!A67 -> 7.7 | D68: =orcamento!B67 -> SINAPI | E68: =orcamento!C67 -> 92921 | F68: 2022-02-01 | G68: =orcamento!D67 -> ARMAÇÃO DE ESTRUTURAS DE CONCRETO ARMADO, EXCETO VIGAS, PILARES, LAJES E FUNDAÇÕES, UTILIZANDO AÇO CA-50 DE 12,5 MM | H68: =orcamento!E67 -> 9983.36 | I68: =orcamento!F67 -> KG | J68: =orcamento!M67 -> 12.98 | K68: 129584.01 | L68: =orcamento!J67 -> 0.2215 | M68: 1.1122
A69: 1 | B69: =IF(AND(G69<>"",H69>0,I69<>"",J69<>0,K69<>0),COUNT($B$11:B68)+1,"") -> 52 | C69: =orcamento!A68 -> 7.8 | D69: =orcamento!B68 -> SINAPI | E69: =orcamento!C68 -> 92922 | F69: 2022-02-01 | G69: =orcamento!D68 -> ARMAÇÃO DE ESTRUTURAS DE CONCRETO ARMADO, EXCETO VIGAS, PILARES, LAJES E FUNDAÇÕES, UTILIZANDO AÇO CA-50 DE 16,0 MM | H69: =orcamento!E68 -> 3963.39 | I69: =orcamento!F68 -> KG | J69: =orcamento!M68 -> 12.32 | K69: 48828.96 | L69: =orcamento!J68 -> 0.2215 | M69: 1.1122
A70: 1 | B70: =IF(AND(G70<>"",H70>0,I70<>"",J70<>0,K70<>0),COUNT($B$11:B69)+1,"") -> 53 | C70: =orcamento!A69 -> 7.9 | D70: =orcamento!B69 -> SINAPI | E70: =orcamento!C69 -> 92923 | F70: 2022-02-01 | G70: =orcamento!D69 -> ARMAÇÃO DE ESTRUTURAS DE CONCRETO ARMADO, EXCETO VIGAS, PILARES, LAJES E FUNDAÇÕES, UTILIZANDO AÇO CA-50 DE 20,0 MM | H70: =orcamento!E69 -> 540 | I70: =orcamento!F69 -> KG | J70: =orcamento!M69 -> 13.75 | K70: 7425 | L70: =orcamento!J69 -> 0.2215 | M70: 1.1122
A71: 1 | B71: =IF(AND(G71<>"",H71>0,I71<>"",J71<>0,K71<>0),COUNT($B$11:B70)+1,"") -> 54 | C71: =orcamento!A70 -> 7.10 | D71: =orcamento!B70 -> SINAPI | E71: =orcamento!C70 -> 92924 | F71: 2022-02-01 | G71: =orcamento!D70 -> ARMAÇÃO DE ESTRUTURAS DE CONCRETO ARMADO, EXCETO VIGAS, PILARES, LAJES E FUNDAÇÕES, UTILIZANDO AÇO CA-50 DE 25,0 MM | H71: =orcamento!E70 -> 11266.64 | I71: =orcamento!F70 -> KG | J71: =orcamento!M70 -> 13.41 | K71: 151085.64 | L71: =orcamento!J70 -> 0.2215 | M71: 1.1122
A72: 1 | B72: =IF(AND(G72<>"",H72>0,I72<>"",J72<>0,K72<>0),COUNT($B$11:B71)+1,"") -> 55 | C72: =orcamento!A71 -> 7.11 | D72: =orcamento!B71 -> COMPOSICAO_PROPRIA | E72: =orcamento!C71 -> CCU 33 | F72: 2022-02-01 | G72: =orcamento!D71 -> EXECUCAO DE DRENO COM TUBOS DE PVC - DN 100 | H72: =orcamento!E71 -> 24 | I72: =orcamento!F71 -> M | J72: =orcamento!M71 -> 109.07 | K72: 2617.68 | L72: =orcamento!J71 -> 0.2215 | M72: 1.1122
A73: 1 | B73: =IF(AND(G73<>"",H73>0,I73<>"",J73<>0,K73<>0),COUNT($B$11:B72)+1,"") -> 56 | C73: =orcamento!A72 -> 7.12 | D73: =orcamento!B72 -> COMPOSICAO_PROPRIA | E73: =orcamento!C72 -> CCU 30 | F73: 2022-02-01 | G73: =orcamento!D72 -> CONCRETO PARA BOMBEAMENTO FCK = 35 MPA - CONFECÇÃO EM CENTRAL DOSADORA DE 30 M³/H - AREIA E BRITA COMERCIAIS | H73: =orcamento!E72 -> 69.9 | I73: =orcamento!F72 -> M3 | J73: =orcamento!M72 -> 447.95 | K73: 31311.71 | L73: =orcamento!J72 -> 0.2215 | M73: 1.1122
A74: 1 | B74: =IF(AND(G74<>"",H74>0,I74<>"",J74<>0,K74<>0),COUNT($B$11:B73)+1,"") -> 57 | C74: =orcamento!A73 -> 7.13 | D74: =orcamento!B73 -> COMPOSICAO_PROPRIA | E74: =orcamento!C73 -> CCU 29 | F74: 2022-02-01 | G74: =orcamento!D73 -> CONCRETO PARA BOMBEAMENTO FCK = 30 MPA - CONFECÇÃO EM CENTRAL DOSADORA DE 30 M³/H - AREIA E BRITA COMERCIAIS | H74: =orcamento!E73 -> 154.99 | I74: =orcamento!F73 -> M3 | J74: =orcamento!M73 -> 415.73 | K74: 64433.99 | L74: =orcamento!J73 -> 0.2215 | M74: 1.1122
A75: 1 | B75: =IF(AND(G75<>"",H75>0,I75<>"",J75<>0,K75<>0),COUNT($B$11:B74)+1,"") -> 58 | C75: =orcamento!A74 -> 7.14 | D75: =orcamento!B74 -> COMPOSICAO_PROPRIA | E75: =orcamento!C74 -> CCU 31 | F75: 2022-02-01 | G75: =orcamento!D74 -> LANÇAMENTO MECÂNICO DE CONCRETO COM BOMBA REBOCÁVEL COM CAPACIDADE DE 41 M³/H | H75: =orcamento!E74 -> 224.89 | I75: =orcamento!F74 -> M3 | J75: =orcamento!M74 -> 46.34 | K75: 10421.4 | L75: =orcamento!J74 -> 0.2215 | M75: 1.1122
A76: 1 | B76: =IF(AND(G76<>"",H76>0,I76<>"",J76<>0,K76<>0),COUNT($B$11:B75)+1,"") -> 59 | C76: =orcamento!A75 -> 7.15 | D76: =orcamento!B75 -> COMPOSICAO_PROPRIA | E76: =orcamento!C75 -> CCU 32 | F76: 2022-02-01 | G76: =orcamento!D75 -> ADENSAMENTO DE CONCRETO POR VIBRADOR DE IMERSÃO | H76: =orcamento!E75 -> 224.89 | I76: =orcamento!F75 -> M3 | J76: =orcamento!M75 -> 3.84 | K76: 863.58 | L76: =orcamento!J75 -> 0.2215 | M76: 1.1122
A77: 1 | B77: =IF(AND(G77<>"",H77>0,I77<>"",J77<>0,K77<>0),COUNT($B$11:B76)+1,"") -> 60 | C77: =orcamento!A76 -> 7.16 | D77: =orcamento!B76 -> COMPOSICAO_PROPRIA | E77: =orcamento!C76 -> CCU 35 | F77: 2022-02-01 | G77: =orcamento!D76 -> GUARDA CORPO E CORRIMÃO METÁLICO - FORNECIMENTO E INSTALAÇÃO | H77: =orcamento!E76 -> 50 | I77: =orcamento!F76 -> UN | J77: =orcamento!M76 -> 5380.04 | K77: =IFERROR(IF(H77*J77<>0,ROUND(ROUND(H77,4)*ROUND(J77,4),2),""),"") -> 269002 | L77: =orcamento!J76 -> 0.2215 | M77: 1.1122
A79: 1 | B79: =IF(AND(G79<>"",H79>0,I79<>"",J79<>0,K79<>0),COUNT($B$11:B78)+1,"") -> 61 | C79: =orcamento!A78 -> 8.1 | D79: =orcamento!B78 -> SINAPI | E79: =orcamento!C78 -> 96397 | F79: 2022-02-01 | G79: =orcamento!D78 -> EXECUÇÃO E COMPACTAÇÃO DE BASE E OU SUB BASE PARA PAVIMENTAÇÃO DE BRITA GRADUADA SIMPLES TRATADA COM CIMENTO - EXCLUSIVE CARGA E TRANSPORTE | H79: =orcamento!E78 -> 21 | I79: =orcamento!F78 -> M3 | J79: =orcamento!M78 -> 212.19 | K79: 4455.99 | L79: =orcamento!J78 -> 0.2215 | M79: 1.1122
A80: 1 | B80: =IF(AND(G80<>"",H80>0,I80<>"",J80<>0,K80<>0),COUNT($B$11:B79)+1,"") -> 62 | C80: =orcamento!A79 -> 8.2 | D80: =orcamento!B79 -> SINAPI | E80: =orcamento!C79 -> 95875 | F80: 2022-02-01 | G80: =orcamento!D79 -> TRANSPORTE COM CAMINHÃO BASCULANTE DE 10 M³, EM VIA URBANA PAVIMENTADA, DMT ATÉ 30 KM (CAMADA BASE) | H80: =orcamento!E79 -> 420 | I80: =orcamento!F79 -> M3XKM | J80: =orcamento!M79 -> 2.05 | K80: 861 | L80: =orcamento!J79 -> 0.2215 | M80: 1.1122
A81: 1 | B81: =IF(AND(G81<>"",H81>0,I81<>"",J81<>0,K81<>0),COUNT($B$11:B80)+1,"") -> 63 | C81: =orcamento!A80 -> 8.3 | D81: =orcamento!B80 -> SINAPI | E81: =orcamento!C80 -> 97636 | F81: 2022-02-01 | G81: =orcamento!D80 -> DEMOLIÇÃO PAVIMENTO ASFÁLTICO, DE FORMA MECANIZADA, SEM REAPROVEITAMENTO. | H81: =orcamento!E80 -> 70 | I81: =orcamento!F80 -> M2 | J81: =orcamento!M80 -> 21.86 | K81: 1530.2 | L81: =orcamento!J80 -> 0.2215 | M81: 1.1122
A82: 1 | B82: =IF(AND(G82<>"",H82>0,I82<>"",J82<>0,K82<>0),COUNT($B$11:B81)+1,"") -> 64 | C82: =orcamento!A81 -> 8.4 | D82: =orcamento!B81 -> SINAPI | E82: =orcamento!C81 -> 95875 | F82: 2022-02-01 | G82: =orcamento!D81 -> TRANSPORTE COM CAMINHÃO BASCULANTE DE 10 M³, EM VIA URBANA PAVIMENTADA, DMT ATÉ 30 KM (CAMADA CBUQ) | H82: =orcamento!E81 -> 140 | I82: =orcamento!F81 -> M3XKM | J82: =orcamento!M81 -> 2.05 | K82: 287 | L82: =orcamento!J81 -> 0.2215 | M82: 1.1122
A83: 1 | B83: =IF(AND(G83<>"",H83>0,I83<>"",J83<>0,K83<>0),COUNT($B$11:B82)+1,"") -> 65 | C83: =orcamento!A82 -> 8.5 | D83: =orcamento!B82 -> COMPOSICAO_PROPRIA | E83: =orcamento!C82 -> CCU 23 | F83: 2022-02-01 | G83: =orcamento!D82 -> IMPRIMAÇÃO ASFALTO DILUÍDO | H83: =orcamento!E82 -> 140 | I83: =orcamento!F82 -> M2 | J83: =orcamento!M82 -> 11.25 | K83: 1575 | L83: =orcamento!J82 -> 0.2215 | M83: 1.1122
A84: 1 | B84: =IF(AND(G84<>"",H84>0,I84<>"",J84<>0,K84<>0),COUNT($B$11:B83)+1,"") -> 66 | C84: =orcamento!A83 -> 8.6 | D84: =orcamento!B83 -> SINAPI | E84: =orcamento!C83 -> 95995 | F84: 2022-02-01 | G84: =orcamento!D83 -> EXECUÇÃO DE PAVIMENTO COM APLICAÇÃO DE CONCRETO ASFÁLTICO, CAMADA DE ROLAMENTO - EXCLUSIVE CARGA E TRANSPORTE | H84: =orcamento!E83 -> 7 | I84: =orcamento!F83 -> M3 | J84: =orcamento!M83 -> 1972.69 | K84: 13808.83 | L84: =orcamento!J83 -> 0.2215 | M84: 1.1122
A86: 1 | B86: =IF(AND(G86<>"",H86>0,I86<>"",J86<>0,K86<>0),COUNT($B$11:B85)+1,"") -> 67 | C86: =orcamento!A85 -> 9.1 | D86: =orcamento!B85 -> COMPOSICAO_PROPRIA | E86: =orcamento!C85 -> CCU 39 | F86: 2022-02-01 | G86: =orcamento!D85 -> PLACA EM AÇO - 2,00 X 1,00 M - PELÍCULA RETRORREFLETIVA TIPO I + III - FORNECIMENTO E IMPLANTAÇÃO | H86: =orcamento!E85 -> 1 | I86: =orcamento!F85 -> UN | J86: =orcamento!M85 -> 975.91 | K86: 975.91 | L86: =orcamento!J85 -> 0.2215 | M86: 1.1122
A87: 1 | B87: =IF(AND(G87<>"",H87>0,I87<>"",J87<>0,K87<>0),COUNT($B$11:B86)+1,"") -> 68 | C87: =orcamento!A86 -> 9.2 | D87: =orcamento!B86 -> COMPOSICAO_PROPRIA | E87: =orcamento!C86 -> CCU 38 | F87: 2022-02-01 | G87: =orcamento!D86 -> SUPORTE EM AÇO GALVANIZADO A FOGO S5B - AQUISIÇÃO E INSTALAÇÃO | H87: =orcamento!E86 -> 1 | I87: =orcamento!F86 -> UN | J87: =orcamento!M86 -> 8947.61 | K87: 8947.61 | L87: =orcamento!J86 -> 0.2215 | M87: 1.1122
A88: 1 | B88: =IF(AND(G88<>"",H88>0,I88<>"",J88<>0,K88<>0),COUNT($B$11:B87)+1,"") -> 69 | C88: =orcamento!A87 -> 9.3 | D88: =orcamento!B87 -> COMPOSICAO_PROPRIA | E88: =orcamento!C87 -> CCU 40 | F88: 2022-02-01 | G88: =orcamento!D87 -> PLACA DELINEADOR EM AÇO - 0,30 X 0,90 M - PELÍCULA RETRORREFLETIVA TIPO I + IV - FORNECIMENTO E IMPLANTAÇÃO | H88: =orcamento!E87 -> 4 | I88: =orcamento!F87 -> UN | J88: =orcamento!M87 -> 159.86 | K88: 639.44 | L88: =orcamento!J87 -> 0.2215 | M88: 1.1122
A89: 1 | B89: =IF(AND(G89<>"",H89>0,I89<>"",J89<>0,K89<>0),COUNT($B$11:B88)+1,"") -> 70 | C89: =orcamento!A88 -> 9.4 | D89: =orcamento!B88 -> COMPOSICAO_PROPRIA | E89: =orcamento!C88 -> CCU 43 | F89: 2022-02-01 | G89: =orcamento!D88 -> SUPORTE METÁLICO GALVANIZADO PARA PLACA DE REGULAMENTAÇÃO - LADO DE 0,331 M - FORNECIMENTO E IMPLANTAÇÃO | H89: =orcamento!E88 -> 4 | I89: =orcamento!F88 -> UN | J89: =orcamento!M88 -> 404.18 | K89: 1616.72 | L89: =orcamento!J88 -> 0.2215 | M89: 1.1122
A90: 1 | B90: =IF(AND(G90<>"",H90>0,I90<>"",J90<>0,K90<>0),COUNT($B$11:B89)+1,"") -> 71 | C90: =orcamento!A89 -> 9.5 | D90: =orcamento!B89 -> COMPOSICAO_PROPRIA | E90: =orcamento!C89 -> CCU 36 | F90: 2022-02-01 | G90: =orcamento!D89 -> PINTURA DE FAIXA COM TERMOPLÁSTICO POR ASPERSÃO - ESPESSURA DE 1,5 MM | H90: =orcamento!E89 -> 21.6 | I90: =orcamento!F89 -> M2 | J90: =orcamento!M89 -> 50.06 | K90: 1081.3 | L90: =orcamento!J89 -> 0.2215 | M90: 1.1122
A91: 1 | B91: =IF(AND(G91<>"",H91>0,I91<>"",J91<>0,K91<>0),COUNT($B$11:B90)+1,"") -> 72 | C91: =orcamento!A90 -> 9.6 | D91: =orcamento!B90 -> COMPOSICAO_PROPRIA | E91: =orcamento!C90 -> CCU 41 | F91: 2022-02-01 | G91: =orcamento!D90 -> PLACA DE REGULAMENTAÇÃO EM AÇO D = 0,60 M - PELÍCULA RETRORREFLETIVA TIPO I + SI - FORNECIMENTO E IMPLANTAÇÃO | H91: =orcamento!E90 -> 4 | I91: =orcamento!F90 -> UN | J91: =orcamento!M90 -> 266.27 | K91: 1065.08 | L91: =orcamento!J90 -> 0.2215 | M91: 1.1122
A92: 1 | B92: =IF(AND(G92<>"",H92>0,I92<>"",J92<>0,K92<>0),COUNT($B$11:B91)+1,"") -> 73 | C92: =orcamento!A91 -> 9.7 | D92: =orcamento!B91 -> COMPOSICAO_PROPRIA | E92: =orcamento!C91 -> CCU 42 | F92: 2022-02-01 | G92: =orcamento!D91 -> SUPORTE METÁLICO GALVANIZADO PARA PLACA DE ADVERTÊNCIA OU REGULAMENTAÇÃO - LADO OU DIÂMETRO DE 0,60 M - FORNECIMENTO E IMPLANTAÇÃO | H92: =orcamento!E91 -> 4 | I92: =orcamento!F91 -> UN | J92: =orcamento!M91 -> 433.45 | K92: 1733.8 | L92: =orcamento!J91 -> 0.2215 | M92: 1.1122
A93: 1 | B93: =IF(AND(G93<>"",H93>0,I93<>"",J93<>0,K93<>0),COUNT($B$11:B92)+1,"") -> 74 | C93: =orcamento!A92 -> 9.8 | D93: =orcamento!B92 -> COMPOSICAO_PROPRIA | E93: =orcamento!C92 -> CCU 44 | F93: 2022-02-01 | G93: =orcamento!D92 -> TACHÃO REFLETIVO EM PLÁSTICO INJETADO - BIDIRECIONAL - FORNECIMENTO E COLOCAÇÃO | H93: =orcamento!E92 -> 19 | I93: =orcamento!F92 -> UN | J93: =orcamento!M92 -> 91.71 | K93: 1742.49 | L93: =orcamento!J92 -> 0.2215 | M93: 1.1122
A94: 1 | B94: =IF(AND(G94<>"",H94>0,I94<>"",J94<>0,K94<>0),COUNT($B$11:B93)+1,"") -> 75 | C94: =orcamento!A93 -> 9.9 | D94: =orcamento!B93 -> COMPOSICAO_PROPRIA | E94: =orcamento!C93 -> CCU 45 | F94: 2022-02-01 | G94: =orcamento!D93 -> TACHA REFLETIVA METÁLICA - MONODIRECIONAL TIPO III - COM UM PINO - FORNECIMENTO E COLOCAÇÃO | H94: =orcamento!E93 -> 38 | I94: =orcamento!F93 -> UN | J94: =orcamento!M93 -> 27.52 | K94: 1045.76 | L94: =orcamento!J93 -> 0.2215 | M94: 1.1122
A96: 1 | B96: =IF(AND(G96<>"",H96>0,I96<>"",J96<>0,K96<>0),COUNT($B$11:B95)+1,"") -> 76 | C96: =orcamento!A95 -> 10.1 | D96: =orcamento!B95 -> COMPOSICAO_PROPRIA | E96: =orcamento!C95 -> CCU 07 | F96: 2022-02-01 | G96: =orcamento!D95 -> INSTALAÇÃO REDE DMAE 90 PEAD PROVISÓRIA | H96: =orcamento!E95 -> 86.2 | I96: =orcamento!F95 -> M | J96: =orcamento!M95 -> 189.92 | K96: 16371.1 | L96: =orcamento!J95 -> 0.2215 | M96: 1.1122
A97: 1 | B97: =IF(AND(G97<>"",H97>0,I97<>"",J97<>0,K97<>0),COUNT($B$11:B96)+1,"") -> 77 | C97: =orcamento!A96 -> 10.2 | D97: =orcamento!B96 -> COMPOSICAO_PROPRIA | E97: =orcamento!C96 -> CCU 08 | F97: 2022-02-01 | G97: =orcamento!D96 -> RELOCAÇÃO REDE DMAE PEAD PARA LOCAL DEFINITIVO JUNTO À PONTE NOVA | H97: =orcamento!E96 -> 80 | I97: =orcamento!F96 -> M | J97: =orcamento!M96 -> 5.77 | K97: 461.6 | L97: =orcamento!J96 -> 0.2215 | M97: 1.1122
A98: 1 | B98: =IF(AND(G98<>"",H98>0,I98<>"",J98<>0,K98<>0),COUNT($B$11:B97)+1,"") -> 78 | C98: =orcamento!A97 -> 10.3 | D98: =orcamento!B97 -> COMPOSICAO_PROPRIA | E98: =orcamento!C97 -> CCU 21 | F98: 2022-02-01 | G98: =orcamento!D97 -> POSTE DE CONCRETO ARMADO DUPLO T | H98: =orcamento!E97 -> 1 | I98: =orcamento!F97 -> UN | J98: =orcamento!M97 -> 1222.49 | K98: 1222.49 | L98: =orcamento!J97 -> 0.2215 | M98: 1.1122
A99: 1 | B99: =IF(AND(G99<>"",H99>0,I99<>"",J99<>0,K99<>0),COUNT($B$11:B98)+1,"") -> 79 | C99: =orcamento!A98 -> 10.4 | D99: =orcamento!B98 -> COMPOSICAO_PROPRIA | E99: =orcamento!C98 -> CCU 20 | F99: 2022-02-01 | G99: =orcamento!D98 -> FECHAMENTO TUBULAÇÃO DMAE COM BLOCO CANALETA U 19X19X39 | H99: =orcamento!E98 -> 56 | I99: =orcamento!F98 -> M | J99: =orcamento!M98 -> 20.07 | K99: 1123.92 | L99: =orcamento!J98 -> 0.2215 | M99: 1.1122
A100: 1 | B100: =IF(AND(G100<>"",H100>0,I100<>"",J100<>0,K100<>0),COUNT($B$11:B99)+1,"") -> 80 | C100: =orcamento!A99 -> 10.5 | D100: =orcamento!B99 -> COMPOSICAO_PROPRIA | E100: =orcamento!C99 -> CCU 14 | F100: 2022-02-01 | G100: =orcamento!D99 -> INSTALAÇÃO DO POSTE MEDIÇÃO E COMANDO | H100: =orcamento!E99 -> 3 | I100: =orcamento!F99 -> UN | J100: =orcamento!M99 -> 2743.83 | K100: 8231.49 | L100: =orcamento!J99 -> 0.2215 | M100: 1.1122
A101: 1 | B101: =IF(AND(G101<>"",H101>0,I101<>"",J101<>0,K101<>0),COUNT($B$11:B100)+1,"") -> 81 | C101: =orcamento!A100 -> 10.6 | D101: =orcamento!B100 -> COMPOSICAO_PROPRIA | E101: =orcamento!C100 -> CCU 15 | F101: 2022-02-01 | G101: =orcamento!D100 -> INSTALAÇÃO DE CABOS E DISPOSITIVOS DE MEDIÇÃO E COMANDO | H101: =orcamento!E100 -> 1 | I101: =orcamento!F100 -> UN | J101: =orcamento!M100 -> 8150.9 | K101: 8150.9 | L101: =orcamento!J100 -> 0.2215 | M101: 1.1122
A102: 1 | B102: =IF(AND(G102<>"",H102>0,I102<>"",J102<>0,K102<>0),COUNT($B$11:B101)+1,"") -> 82 | C102: =orcamento!A101 -> 10.7 | D102: =orcamento!B101 -> COMPOSICAO_PROPRIA | E102: =orcamento!C101 -> CCU 16 | F102: 2022-02-01 | G102: =orcamento!D101 -> INSTALAÇÃO DE POSTE DE AÇO PARA ILUMINAÇÃO | H102: =orcamento!E101 -> 3 | I102: =orcamento!F101 -> UN | J102: =orcamento!M101 -> 3699.8 | K102: 11099.4 | L102: =orcamento!J101 -> 0.2215 | M102: 1.1122
A103: 1 | B103: =IF(AND(G103<>"",H103>0,I103<>"",J103<>0,K103<>0),COUNT($B$11:B102)+1,"") -> 83 | C103: =orcamento!A102 -> 10.8 | D103: =orcamento!B102 -> COMPOSICAO_PROPRIA | E103: =orcamento!C102 -> CCU 17 | F103: 2022-02-01 | G103: =orcamento!D102 -> INSTALAÇÃO PARA ILUMINAÇÃO E ALIMENTAÇÃO DOS POSTES | H103: =orcamento!E102 -> 3 | I103: =orcamento!F102 -> UN | J103: =orcamento!M102 -> 2070.66 | K103: 6211.98 | L103: =orcamento!J102 -> 0.2215 | M103: 1.1122
A105: 1 | B105: =IF(AND(G105<>"",H105>0,I105<>"",J105<>0,K105<>0),COUNT($B$11:B104)+1,"") -> 84 | C105: =orcamento!A104 -> 11.1 | D105: =orcamento!B104 -> SINAPI | E105: =orcamento!C104 -> 99814 | F105: 2022-02-01 | G105: =orcamento!D104 -> LIMPEZA DE SUPERFÍCIE COM JATO DE ALTA PRESSÃO | H105: =orcamento!E104 -> 800 | I105: =orcamento!F104 -> M2 | J105: =orcamento!M104 -> 2.05 | K105: 1640 | L105: =orcamento!J104 -> 0.2215 | M105: 1.1122
A106: 1 | B106: =IF(AND(G106<>"",H106>0,I106<>"",J106<>0,K106<>0),COUNT($B$11:B105)+1,"") -> 85 | C106: =orcamento!A105 -> 11.2 | D106: =orcamento!B105 -> SINAPI | E106: =orcamento!C105 -> 98504 | F106: 2022-02-01 | G106: =orcamento!D105 -> PLANTIO DE GRAMA EM PLACAS | H106: =orcamento!E105 -> 32.15 | I106: =orcamento!F105 -> M2 | J106: =orcamento!M105 -> 26.25 | K106: 843.94 | L106: =orcamento!J105 -> 0.2215 | M106: 1.1122
A107: 1 | B107: =IF(AND(G107<>"",H107>0,I107<>"",J107<>0,K107<>0),COUNT($B$11:B106)+1,"") -> 86 | C107: =orcamento!A106 -> 11.3 | D107: =orcamento!B106 -> SINAPI | E107: =orcamento!C106 -> 98510 | F107: 2022-02-01 | G107: =orcamento!D106 -> PLANTIO DE ÁRVORE ORNAMENTAL COM ALTURA DE MUDA MENOR OU IGUAL A 2,00 M. AF_05/2018 | H107: =orcamento!E106 -> 2 | I107: =orcamento!F106 -> UN | J107: =orcamento!M106 -> 67.67 | K107: 135.34 | L107: =orcamento!J106 -> 0.2215 | M107: 1.1122
A108: 1 | B108: =IF(AND(G108<>"",H108>0,I108<>"",J108<>0,K108<>0),COUNT($B$11:B107)+1,"") -> 87 | C108: =orcamento!A107 -> 11.4 | D108: =orcamento!B107 -> COMPOSICAO_PROPRIA | E108: =orcamento!C107 -> CCU 24 | F108: 2022-02-01 | G108: =orcamento!D107 -> REMOÇÃO ESTRUTURA CANTEIRO DE OBRAS | H108: =orcamento!E107 -> 254 | I108: =orcamento!F107 -> M2 | J108: =orcamento!M107 -> 7.57 | K108: 1922.78 | L108: =orcamento!J107 -> 0.2215 | M108: 1.1122
A109: 1 | B109: =IF(AND(G109<>"",H109>0,I109<>"",J109<>0,K109<>0),COUNT($B$11:B108)+1,"") -> 88 | C109: =orcamento!A108 -> 11.5 | D109: =orcamento!B108 -> SINAPI | E109: =orcamento!C108 -> 95875 | F109: 2022-02-01 | G109: =orcamento!D108 -> TRANSPORTE COM CAMINHÃO BASCULANTE DE 10 M³, EM VIA URBANA PAVIMENTADA, DMT ATÉ 30 KM | H109: =orcamento!E108 -> 127 | I109: =orcamento!F108 -> M3XKM | J109: =orcamento!M108 -> 2.05 | K109: =IFERROR(IF(H109*J109<>0,ROUND(ROUND(H109,4)*ROUND(J109,4),2),""),"") -> 260.35 | L109: =orcamento!J108 -> 0.2215 | M109: 1.1122

Sheet Proposta-TCE (hidden)
A1: PROPOSTA
A2: Modalidade | C2: =IF('Identificação-TCE'!B2=0,"",'Identificação-TCE'!B2) ->  | E2: N° | F2: =IF('Identificação-TCE'!E2=0,"",'Identificação-TCE'!E2) ->  | G2: Ano | H2: =IF('Identificação-TCE'!G2=0,"",'Identificação-TCE'!G2) -> 
A3: Descrição do Objeto | C3: ='Identificação-TCE'!B3 -> Objeto: PONTE SOBRE O ARROIO MAUÁ
A4: Licitante | G4: CNPJ*
A5: Tipo de Objeto | C5: =IF('Identificação-TCE'!B5=0,"",'Identificação-TCE'!B5) -> 
A6: Preço Total Proposto | C6: =SUMIFS(H12:H39835,B12:B39835,">0",H12:H39835,"<>0") -> 2751593.03
A10: Nº do lote | B10: Nº Ordem | C10: Nº Item | D10: Descrição do item | E10: Proposta
E11: Qtd. | F11: Unid. | G11: Preço unitário (R$)* | H11: Preço Total (R$) | I11: % BDI** | J11: % Encargos Sociais** | K11: Percentual de Desconto | L11: Pr. Unit. Material | M11: Pr. Unit. Mão de obra
A12: =IF('Orçamento-TCE'!A12>0,'Orçamento-TCE'!A12,"") -> 1 | B12: ='Orçamento-TCE'!B12 -> 1 | C12: =IF('Orçamento-TCE'!C12>0,'Orçamento-TCE'!C12,"") -> 1.1 | D12: =IF('Orçamento-TCE'!G12>0,'Orçamento-TCE'!G12,"") -> EQUIPE DE ADMINISTRAÇÃO LOCAL | E12: =IF('Orçamento-TCE'!H12>0,'Orçamento-TCE'!H12,"") -> 1 | F12: =IF('Orçamento-TCE'!I12>0,'Orçamento-TCE'!I12,"") -> UN | G12: ='Orçamento-TCE'!J12 -> 464878.03 | H12: =IFERROR(IF(E12*G12<>0,ROUND(ROUND(E12,4)*ROUND(G12,4),2),""),"") -> 464878.03 | I12: ='Orçamento-TCE'!L12 -> 0.2215 | J12: ='Orçamento-TCE'!M12 -> 1.1122 | L12: =orcamento!L11 -> 9976.09 | M12: =orcamento!K11 -> 454901.94
A14: =IF('Orçamento-TCE'!A14>0,'Orçamento-TCE'!A14,"") -> 1 | B14: ='Orçamento-TCE'!B14 -> 2 | C14: =IF('Orçamento-TCE'!C14>0,'Orçamento-TCE'!C14,"") -> 2.1 | D14: =IF('Orçamento-TCE'!G14>0,'Orçamento-TCE'!G14,"") -> INSTALAÇÕES PROVISÓRIAS PARA CANTEIRO | E14: =IF('Orçamento-TCE'!H14>0,'Orçamento-TCE'!H14,"") -> 1 | F14: =IF('Orçamento-TCE'!I14>0,'Orçamento-TCE'!I14,"") -> UN | G14: ='Orçamento-TCE'!J14 -> 38052.77 | H14: =IFERROR(IF(E14*G14<>0,ROUND(ROUND(E14,4)*ROUND(G14,4),2),""),"") -> 38052.77 | I14: ='Orçamento-TCE'!L14 -> 0.2215 | J14: ='Orçamento-TCE'!M14 -> 1.1122 | L14: =orcamento!L13 -> 32597.33 | M14: =orcamento!K13 -> 5455.44
A15: =IF('Orçamento-TCE'!A15>0,'Orçamento-TCE'!A15,"") -> 1 | B15: ='Orçamento-TCE'!B15 -> 3 | C15: =IF('Orçamento-TCE'!C15>0,'Orçamento-TCE'!C15,"") -> 2.2 | D15: =IF('Orçamento-TCE'!G15>0,'Orçamento-TCE'!G15,"") -> EXECUÇÃO DE GUARITA EM CANTEIRO DE OBRA EM CHAPA DE MADEIRA COMPENSADA, NÃO INCLUSO MOBILIÁRIO | E15: =IF('Orçamento-TCE'!H15>0,'Orçamento-TCE'!H15,"") -> 4 | F15: =IF('Orçamento-TCE'!I15>0,'Orçamento-TCE'!I15,"") -> M2 | G15: ='Orçamento-TCE'!J15 -> 1356.68 | H15: 5426.72 | I15: ='Orçamento-TCE'!L15 -> 0.2215 | J15: ='Orçamento-TCE'!M15 -> 1.1122 | L15: =orcamento!L14 -> 1146.83 | M15: =orcamento!K14 -> 209.85
A16: =IF('Orçamento-TCE'!A16>0,'Orçamento-TCE'!A16,"") -> 1 | B16: ='Orçamento-TCE'!B16 -> 4 | C16: =IF('Orçamento-TCE'!C16>0,'Orçamento-TCE'!C16,"") -> 2.3 | D16: =IF('Orçamento-TCE'!G16>0,'Orçamento-TCE'!G16,"") -> EXECUÇÃO DE DEPÓSITO EM CANTEIRO DE OBRA EM CHAPA DE MADEIRA COMPENSADA, NÃO INCLUSO MOBILIÁRIO | E16: =IF('Orçamento-TCE'!H16>0,'Orçamento-TCE'!H16,"") -> 15 | F16: =IF('Orçamento-TCE'!I16>0,'Orçamento-TCE'!I16,"") -> M2 | G16: ='Orçamento-TCE'!J16 -> 1028.47 | H16: 15427.05 | I16: ='Orçamento-TCE'!L16 -> 0.2215 | J16: ='Orçamento-TCE'!M16 -> 1.1122 | L16: =orcamento!L15 -> 848.89 | M16: =orcamento!K15 -> 179.58
A17: =IF('Orçamento-TCE'!A17>0,'Orçamento-TCE'!A17,"") -> 1 | B17: ='Orçamento-TCE'!B17 -> 5 | C17: =IF('Orçamento-TCE'!C17>0,'Orçamento-TCE'!C17,"") -> 2.4 | D17: =IF('Orçamento-TCE'!G17>0,'Orçamento-TCE'!G17,"") -> EXECUÇÃO DE CENTRAL DE ARMADURA EM CANTEIRO DE OBRA, NÃO INCLUSO MOBILIÁRIO E EQUIPAMENTOS | E17: =IF('Orçamento-TCE'!H17>0,'Orçamento-TCE'!H17,"") -> 30 | F17: =IF('Orçamento-TCE'!I17>0,'Orçamento-TCE'!I17,"") -> M2 | G17: ='Orçamento-TCE'!J17 -> 315.57 | H17: 9467.1 | I17: ='Orçamento-TCE'!L17 -> 0.2215 | J17: ='Orçamento-TCE'!M17 -> 1.1122 | L17: =orcamento!L16 -> 258.33 | M17: =orcamento!K16 -> 57.24
A18: =IF('Orçamento-TCE'!A18>0,'Orçamento-TCE'!A18,"") -> 1 | B18: ='Orçamento-TCE'!B18 -> 6 | C18: =IF('Orçamento-TCE'!C18>0,'Orçamento-TCE'!C18,"") -> 2.5 | D18: =IF('Orçamento-TCE'!G18>0,'Orçamento-TCE'!G18,"") -> EXECUÇÃO DE CENTRAL DE FÔRMAS, PRODUÇÃO DE ARGAMASSA OU CONCRETO EM CANTEIRO DE OBRA, NÃO INCLUSO MOBILIÁRIO E EQUIPAMENTOS | E18: =IF('Orçamento-TCE'!H18>0,'Orçamento-TCE'!H18,"") -> 30 | F18: =IF('Orçamento-TCE'!I18>0,'Orçamento-TCE'!I18,"") -> M2 | G18: ='Orçamento-TCE'!J18 -> 525.38 | H18: 15761.4 | I18: ='Orçamento-TCE'!L18 -> 0.2215 | J18: ='Orçamento-TCE'!M18 -> 1.1122 | L18: =orcamento!L17 -> 430.48 | M18: =orcamento!K17 -> 94.9
A19: =IF('Orçamento-TCE'!A19>0,'Orçamento-TCE'!A19,"") -> 1 | B19: ='Orçamento-TCE'!B19 -> 7 | C19: =IF('Orçamento-TCE'!C19>0,'Orçamento-TCE'!C19,"") -> 2.6 | D19: =IF('Orçamento-TCE'!G19>0,'Orçamento-TCE'!G19,"") -> EXECUÇÃO DE SANITÁRIO E VESTIÁRIO EM CANTEIRO DE OBRA EM CHAPA DE MADEIRA COMPENSADA, NÃO INCLUSO MOBILIÁRIO | E19: =IF('Orçamento-TCE'!H19>0,'Orçamento-TCE'!H19,"") -> 30 | F19: =IF('Orçamento-TCE'!I19>0,'Orçamento-TCE'!I19,"") -> M2 | G19: ='Orçamento-TCE'!J19 -> 1177.59 | H19: 35327.7 | I19: ='Orçamento-TCE'!L19 -> 0.2215 | J19: ='Orçamento-TCE'!M19 -> 1.1122 | L19: =orcamento!L18 -> 941.72 | M19: =orcamento!K18 -> 235.87
A20: =IF('Orçamento-TCE'!A20>0,'Orçamento-TCE'!A20,"") -> 1 | B20: ='Orçamento-TCE'!B20 -> 8 | C20: =IF('Orçamento-TCE'!C20>0,'Orçamento-TCE'!C20,"") -> 2.7 | D20: =IF('Orçamento-TCE'!G20>0,'Orçamento-TCE'!G20,"") -> EXECUÇÃO DE REFEITÓRIO EM CANTEIRO DE OBRA EM CHAPA DE MADEIRA COMPENSADA, NÃO INCLUSO MOBILIÁRIO E EQUIPAMENTOS | E20: =IF('Orçamento-TCE'!H20>0,'Orçamento-TCE'!H20,"") -> 50 | F20: =IF('Orçamento-TCE'!I20>0,'Orçamento-TCE'!I20,"") -> M2 | G20: ='Orçamento-TCE'!J20 -> 719.37 | H20: 35968.5 | I20: ='Orçamento-TCE'!L20 -> 0.2215 | J20: ='Orçamento-TCE'!M20 -> 1.1122 | L20: =orcamento!L19 -> 578.12 | M20: =orcamento!K19 -> 141.25
A21: =IF('Orçamento-TCE'!A21>0,'Orçamento-TCE'!A21,"") -> 1 | B21: ='Orçamento-TCE'!B21 -> 9 | C21: =IF('Orçamento-TCE'!C21>0,'Orçamento-TCE'!C21,"") -> 2.8 | D21: =IF('Orçamento-TCE'!G21>0,'Orçamento-TCE'!G21,"") -> EXECUÇÃO DE ESCRITÓRIO EM CANTEIRO DE OBRA EM ALVENARIA, NÃO INCLUSO MOBILIÁRIO E EQUIPAMENTOS | E21: =IF('Orçamento-TCE'!H21>0,'Orçamento-TCE'!H21,"") -> 15 | F21: =IF('Orçamento-TCE'!I21>0,'Orçamento-TCE'!I21,"") -> M2 | G21: ='Orçamento-TCE'!J21 -> 1378.27 | H21: 20674.05 | I21: ='Orçamento-TCE'!L21 -> 0.2215 | J21: ='Orçamento-TCE'!M21 -> 1.1122 | L21: =orcamento!L20 -> 989.64 | M21: =orcamento!K20 -> 388.63
A22: =IF('Orçamento-TCE'!A22>0,'Orçamento-TCE'!A22,"") -> 1 | B22: ='Orçamento-TCE'!B22 -> 10 | C22: =IF('Orçamento-TCE'!C22>0,'Orçamento-TCE'!C22,"") -> 2.9 | D22: =IF('Orçamento-TCE'!G22>0,'Orçamento-TCE'!G22,"") -> EXECUÇÃO DE ALMOXARIFADO EM CANTEIRO DE OBRA EM CHAPA DE MADEIRA COMPENSADA, INCLUSO PRATELEIRAS | E22: =IF('Orçamento-TCE'!H22>0,'Orçamento-TCE'!H22,"") -> 15 | F22: =IF('Orçamento-TCE'!I22>0,'Orçamento-TCE'!I22,"") -> M2 | G22: ='Orçamento-TCE'!J22 -> 1030.93 | H22: 15463.95 | I22: ='Orçamento-TCE'!L22 -> 0.2215 | J22: ='Orçamento-TCE'!M22 -> 1.1122 | L22: =orcamento!L21 -> 867.18 | M22: =orcamento!K21 -> 163.75
A23: =IF('Orçamento-TCE'!A23>0,'Orçamento-TCE'!A23,"") -> 1 | B23: ='Orçamento-TCE'!B23 -> 11 | C23: =IF('Orçamento-TCE'!C23>0,'Orçamento-TCE'!C23,"") -> 2.10 | D23: =IF('Orçamento-TCE'!G23>0,'Orçamento-TCE'!G23,"") -> EXECUÇÃO DE CENTRAL DE FÔRMAS, PRODUÇÃO DE ARGAMASSA OU CONCRETO EM CANTEIRO DE OBRA, NÃO INCLUSO MOBILIÁRIO E EQUIPAMENTOS | E23: =IF('Orçamento-TCE'!H23>0,'Orçamento-TCE'!H23,"") -> 65 | F23: =IF('Orçamento-TCE'!I23>0,'Orçamento-TCE'!I23,"") -> M2 | G23: ='Orçamento-TCE'!J23 -> 525.38 | H23: 34149.7 | I23: ='Orçamento-TCE'!L23 -> 0.2215 | J23: ='Orçamento-TCE'!M23 -> 1.1122 | L23: =orcamento!L22 -> 430.48 | M23: =orcamento!K22 -> 94.9
A24: =IF('Orçamento-TCE'!A24>0,'Orçamento-TCE'!A24,"") -> 1 | B24: ='Orçamento-TCE'!B24 -> 12 | C24: =IF('Orçamento-TCE'!C24>0,'Orçamento-TCE'!C24,"") -> 2.11 | D24: =IF('Orçamento-TCE'!G24>0,'Orçamento-TCE'!G24,"") -> LOCACAO CONVENCIONAL DE OBRA, UTILIZANDO GABARITO DE TÁBUAS CORRIDAS PONTALETADAS A CADA 2,00M | E24: =IF('Orçamento-TCE'!H24>0,'Orçamento-TCE'!H24,"") -> 80 | F24: =IF('Orçamento-TCE'!I24>0,'Orçamento-TCE'!I24,"") -> M | G24: ='Orçamento-TCE'!J24 -> 55.14 | H24: 4411.2 | I24: ='Orçamento-TCE'!L24 -> 0.2215 | J24: ='Orçamento-TCE'!M24 -> 1.1122 | L24: =orcamento!L23 -> 29.02 | M24: =orcamento!K23 -> 26.12
A25: =IF('Orçamento-TCE'!A25>0,'Orçamento-TCE'!A25,"") -> 1 | B25: ='Orçamento-TCE'!B25 -> 13 | C25: =IF('Orçamento-TCE'!C25>0,'Orçamento-TCE'!C25,"") -> 2.12 | D25: =IF('Orçamento-TCE'!G25>0,'Orçamento-TCE'!G25,"") -> BARREIRA PLÁSTICA MONOBLOCO PARA CANALIZAÇÃO DE TRÂNSITO - C = 100 CM, L = 50 CM E H = 55 CM - AQUISIÇÃO E UTILIZAÇÃO | E25: =IF('Orçamento-TCE'!H25>0,'Orçamento-TCE'!H25,"") -> 6 | F25: =IF('Orçamento-TCE'!I25>0,'Orçamento-TCE'!I25,"") -> UN | G25: ='Orçamento-TCE'!J25 -> 1026.82 | H25: 6160.92 | I25: ='Orçamento-TCE'!L25 -> 0.2215 | J25: ='Orçamento-TCE'!M25 -> 1.1122 | L25: =orcamento!L24 -> 1026.82 | M25: =orcamento!K24 -> 0
A26: =IF('Orçamento-TCE'!A26>0,'Orçamento-TCE'!A26,"") -> 1 | B26: ='Orçamento-TCE'!B26 -> 14 | C26: =IF('Orçamento-TCE'!C26>0,'Orçamento-TCE'!C26,"") -> 2.13 | D26: =IF('Orçamento-TCE'!G26>0,'Orçamento-TCE'!G26,"") -> PLACA DE ADVERTÊNCIA PARA SINALIZAÇÃO DE OBRAS 1,10 M X 0,70M COM SUPORTE EM MADEIRA MÓVEL TIPO CAVALETE - AQUISIÇÃO E UTILIZAÇÃO | E26: =IF('Orçamento-TCE'!H26>0,'Orçamento-TCE'!H26,"") -> 7 | F26: =IF('Orçamento-TCE'!I26>0,'Orçamento-TCE'!I26,"") -> UN | G26: ='Orçamento-TCE'!J26 -> 338.25 | H26: 2367.75 | I26: ='Orçamento-TCE'!L26 -> 0.2215 | J26: ='Orçamento-TCE'!M26 -> 1.1122 | L26: =orcamento!L25 -> 313.65 | M26: =orcamento!K25 -> 24.6
A27: =IF('Orçamento-TCE'!A27>0,'Orçamento-TCE'!A27,"") -> 1 | B27: ='Orçamento-TCE'!B27 -> 15 | C27: =IF('Orçamento-TCE'!C27>0,'Orçamento-TCE'!C27,"") -> 2.14 | D27: =IF('Orçamento-TCE'!G27>0,'Orçamento-TCE'!G27,"") -> BALIZADOR COM LED PISCANTE - AQUISIÇÃO E UTILIZAÇÃO | E27: =IF('Orçamento-TCE'!H27>0,'Orçamento-TCE'!H27,"") -> 6 | F27: =IF('Orçamento-TCE'!I27>0,'Orçamento-TCE'!I27,"") -> UN | G27: ='Orçamento-TCE'!J27 -> 366.52 | H27: 2199.12 | I27: ='Orçamento-TCE'!L27 -> 0.2215 | J27: ='Orçamento-TCE'!M27 -> 1.1122 | L27: =orcamento!L26 -> 366.18 | M27: =orcamento!K26 -> 0.34
A29: =IF('Orçamento-TCE'!A29>0,'Orçamento-TCE'!A29,"") -> 1 | B29: ='Orçamento-TCE'!B29 -> 16 | C29: =IF('Orçamento-TCE'!C29>0,'Orçamento-TCE'!C29,"") -> 3.1 | D29: =IF('Orçamento-TCE'!G29>0,'Orçamento-TCE'!G29,"") -> DESMONTE DE ESTRUTURA DE MADEIRA EXISTENTE | E29: =IF('Orçamento-TCE'!H29>0,'Orçamento-TCE'!H29,"") -> 102.53 | F29: =IF('Orçamento-TCE'!I29>0,'Orçamento-TCE'!I29,"") -> M3 | G29: ='Orçamento-TCE'!J29 -> 243.29 | H29: 24944.52 | I29: ='Orçamento-TCE'!L29 -> 0.2215 | J29: ='Orçamento-TCE'!M29 -> 1.1122 | L29: =orcamento!L28 -> 184.57 | M29: =orcamento!K28 -> 58.72
A30: =IF('Orçamento-TCE'!A30>0,'Orçamento-TCE'!A30,"") -> 1 | B30: ='Orçamento-TCE'!B30 -> 17 | C30: =IF('Orçamento-TCE'!C30>0,'Orçamento-TCE'!C30,"") -> 3.2 | D30: =IF('Orçamento-TCE'!G30>0,'Orçamento-TCE'!G30,"") -> REMOÇÃO GUARDA-CORPO DE AÇO | E30: =IF('Orçamento-TCE'!H30>0,'Orçamento-TCE'!H30,"") -> 50 | F30: =IF('Orçamento-TCE'!I30>0,'Orçamento-TCE'!I30,"") -> M | G30: ='Orçamento-TCE'!J30 -> 69.6 | H30: 3480 | I30: ='Orçamento-TCE'!L30 -> 0.2215 | J30: ='Orçamento-TCE'!M30 -> 1.1122 | L30: =orcamento!L29 -> 49.59 | M30: =orcamento!K29 -> 20.01
A31: =IF('Orçamento-TCE'!A31>0,'Orçamento-TCE'!A31,"") -> 1 | B31: ='Orçamento-TCE'!B31 -> 18 | C31: =IF('Orçamento-TCE'!C31>0,'Orçamento-TCE'!C31,"") -> 3.3 | D31: =IF('Orçamento-TCE'!G31>0,'Orçamento-TCE'!G31,"") -> REMOÇÃO DE TUBULAÇÃO DO DMAE ANEXA A PONTE EXISTENTE | E31: =IF('Orçamento-TCE'!H31>0,'Orçamento-TCE'!H31,"") -> 80 | F31: =IF('Orçamento-TCE'!I31>0,'Orçamento-TCE'!I31,"") -> M | G31: ='Orçamento-TCE'!J31 -> 4.14 | H31: 331.2 | I31: ='Orçamento-TCE'!L31 -> 0.2215 | J31: ='Orçamento-TCE'!M31 -> 1.1122 | L31: =orcamento!L30 -> 0.78 | M31: =orcamento!K30 -> 3.36
A33: =IF('Orçamento-TCE'!A33>0,'Orçamento-TCE'!A33,"") -> 1 | B33: ='Orçamento-TCE'!B33 -> 19 | C33: =IF('Orçamento-TCE'!C33>0,'Orçamento-TCE'!C33,"") -> 4.1 | D33: =IF('Orçamento-TCE'!G33>0,'Orçamento-TCE'!G33,"") -> MONTAGEM PASSARELA DE MADEIRA - FORNECIMENTO E INSTALAÇÃO | E33: =IF('Orçamento-TCE'!H33>0,'Orçamento-TCE'!H33,"") -> 1 | F33: =IF('Orçamento-TCE'!I33>0,'Orçamento-TCE'!I33,"") -> UN | G33: ='Orçamento-TCE'!J33 -> 246672.25 | H33: 246672.25 | I33: ='Orçamento-TCE'!L33 -> 0.2215 | J33: ='Orçamento-TCE'!M33 -> 1.1122 | L33: =orcamento!L32 -> 237280.06 | M33: =orcamento!K32 -> 9392.19
A34: =IF('Orçamento-TCE'!A34>0,'Orçamento-TCE'!A34,"") -> 1 | B34: ='Orçamento-TCE'!B34 -> 20 | C34: =IF('Orçamento-TCE'!C34>0,'Orçamento-TCE'!C34,"") -> 4.2 | D34: =IF('Orçamento-TCE'!G34>0,'Orçamento-TCE'!G34,"") -> DESMONTE DE ESTRUTURA DE MADEIRA EXISTENTE | E34: =IF('Orçamento-TCE'!H34>0,'Orçamento-TCE'!H34,"") -> 61.81 | F34: =IF('Orçamento-TCE'!I34>0,'Orçamento-TCE'!I34,"") -> M3 | G34: ='Orçamento-TCE'!J34 -> 243.29 | H34: 15037.75 | I34: ='Orçamento-TCE'!L34 -> 0.2215 | J34: ='Orçamento-TCE'!M34 -> 1.1122 | L34: =orcamento!L33 -> 184.57 | M34: =orcamento!K33 -> 58.72
A36: =IF('Orçamento-TCE'!A36>0,'Orçamento-TCE'!A36,"") -> 1 | B36: ='Orçamento-TCE'!B36 -> 21 | C36: =IF('Orçamento-TCE'!C36>0,'Orçamento-TCE'!C36,"") -> 5.1 | D36: =IF('Orçamento-TCE'!G36>0,'Orçamento-TCE'!G36,"") -> LIMPEZA MECANIZADA DE CAMADA VEGETAL, VEGETAÇÃO E PEQUENAS ÁRVORES (DIÂMETRO DE TRONCO MENOR QUE 0,20 M), COM TRATOR DE ESTEIRAS | E36: =IF('Orçamento-TCE'!H36>0,'Orçamento-TCE'!H36,"") -> 44.03 | F36: =IF('Orçamento-TCE'!I36>0,'Orçamento-TCE'!I36,"") -> M2 | G36: ='Orçamento-TCE'!J36 -> 0.44 | H36: 19.37 | I36: ='Orçamento-TCE'!L36 -> 0.2215 | J36: ='Orçamento-TCE'!M36 -> 1.1122 | L36: =orcamento!L35 -> 0.21 | M36: =orcamento!K35 -> 0.23
A37: =IF('Orçamento-TCE'!A37>0,'Orçamento-TCE'!A37,"") -> 1 | B37: ='Orçamento-TCE'!B37 -> 22 | C37: =IF('Orçamento-TCE'!C37>0,'Orçamento-TCE'!C37,"") -> 5.2 | D37: =IF('Orçamento-TCE'!G37>0,'Orçamento-TCE'!G37,"") -> ESCAVAÇÃO MECÂNICA COM RETROESCAVADEIRA EM MATERIAL DE 1ª CATEGORIA | E37: =IF('Orçamento-TCE'!H37>0,'Orçamento-TCE'!H37,"") -> 187.9 | F37: =IF('Orçamento-TCE'!I37>0,'Orçamento-TCE'!I37,"") -> M3 | G37: ='Orçamento-TCE'!J37 -> 6.34 | H37: 1191.29 | I37: ='Orçamento-TCE'!L37 -> 0.2215 | J37: ='Orçamento-TCE'!M37 -> 1.1122 | L37: =orcamento!L36 -> 5.69 | M37: =orcamento!K36 -> 0.65
A38: =IF('Orçamento-TCE'!A38>0,'Orçamento-TCE'!A38,"") -> 1 | B38: ='Orçamento-TCE'!B38 -> 23 | C38: =IF('Orçamento-TCE'!C38>0,'Orçamento-TCE'!C38,"") -> 5.3 | D38: =IF('Orçamento-TCE'!G38>0,'Orçamento-TCE'!G38,"") -> CARGA, MANOBRA E DESCARGA DE SOLOS E MATERIAIS GRANULARES EM CAMINHÃO BASCULANTE 10 M³ - CARGA COM ESCAVADEIRA HIDRÁULICA (CAÇAMBA DE 1,20 M³ / 155 HP) E DESCARGA LIVRE | E38: =IF('Orçamento-TCE'!H38>0,'Orçamento-TCE'!H38,"") -> 234.88 | F38: =IF('Orçamento-TCE'!I38>0,'Orçamento-TCE'!I38,"") -> M3 | G38: ='Orçamento-TCE'!J38 -> 6.34 | H38: 1489.14 | I38: ='Orçamento-TCE'!L38 -> 0.2215 | J38: ='Orçamento-TCE'!M38 -> 1.1122 | L38: =orcamento!L37 -> 5.25 | M38: =orcamento!K37 -> 1.09
A39: =IF('Orçamento-TCE'!A39>0,'Orçamento-TCE'!A39,"") -> 1 | B39: ='Orçamento-TCE'!B39 -> 24 | C39: =IF('Orçamento-TCE'!C39>0,'Orçamento-TCE'!C39,"") -> 5.4 | D39: =IF('Orçamento-TCE'!G39>0,'Orçamento-TCE'!G39,"") -> TRANSPORTE COM CAMINHÃO BASCULANTE DE 10 M³, EM VIA URBANA PAVIMENTADA, DMT ATÉ 30 KM | E39: =IF('Orçamento-TCE'!H39>0,'Orçamento-TCE'!H39,"") -> 6727.2 | F39: =IF('Orçamento-TCE'!I39>0,'Orçamento-TCE'!I39,"") -> M3XKM | G39: ='Orçamento-TCE'!J39 -> 2.05 | H39: 13790.76 | I39: ='Orçamento-TCE'!L39 -> 0.2215 | J39: ='Orçamento-TCE'!M39 -> 1.1122 | L39: =orcamento!L38 -> 1.76 | M39: =orcamento!K38 -> 0.29
A40: =IF('Orçamento-TCE'!A40>0,'Orçamento-TCE'!A40,"") -> 1 | B40: ='Orçamento-TCE'!B40 -> 25 | C40: =IF('Orçamento-TCE'!C40>0,'Orçamento-TCE'!C40,"") -> 5.5 | D40: =IF('Orçamento-TCE'!G40>0,'Orçamento-TCE'!G40,"") -> ENROCAMENTO COM PEDRA DE MÃO, INCLUSIVE ESPALHAMENTO E COMPACTAÇÃO MECÂNICA - FORNECIMENTO E ASSENTAMENTO | E40: =IF('Orçamento-TCE'!H40>0,'Orçamento-TCE'!H40,"") -> 101.48 | F40: =IF('Orçamento-TCE'!I40>0,'Orçamento-TCE'!I40,"") -> M3 | G40: ='Orçamento-TCE'!J40 -> 120.22 | H40: 12199.93 | I40: ='Orçamento-TCE'!L40 -> 0.2215 | J40: ='Orçamento-TCE'!M40 -> 1.1122 | L40: =orcamento!L39 -> 119.89 | M40: =orcamento!K39 -> 0.33
A41: =IF('Orçamento-TCE'!A41>0,'Orçamento-TCE'!A41,"") -> 1 | B41: ='Orçamento-TCE'!B41 -> 26 | C41: =IF('Orçamento-TCE'!C41>0,'Orçamento-TCE'!C41,"") -> 5.6 | D41: =IF('Orçamento-TCE'!G41>0,'Orçamento-TCE'!G41,"") -> ATERRO COM SOLO PREDOMINANTEMENTE ARGILOSO INCLUSO SOLO, ESCAVAÇÃO, CARGA E TRANSPORTE | E41: =IF('Orçamento-TCE'!H41>0,'Orçamento-TCE'!H41,"") -> 497.76 | F41: =IF('Orçamento-TCE'!I41>0,'Orçamento-TCE'!I41,"") -> M3 | G41: ='Orçamento-TCE'!J41 -> 102.9 | H41: 51219.5 | I41: ='Orçamento-TCE'!L41 -> 0.2215 | J41: ='Orçamento-TCE'!M41 -> 1.1122 | L41: =orcamento!L40 -> 95.02 | M41: =orcamento!K40 -> 7.88
A42: =IF('Orçamento-TCE'!A42>0,'Orçamento-TCE'!A42,"") -> 1 | B42: ='Orçamento-TCE'!B42 -> 27 | C42: =IF('Orçamento-TCE'!C42>0,'Orçamento-TCE'!C42,"") -> 5.7 | D42: =IF('Orçamento-TCE'!G42>0,'Orçamento-TCE'!G42,"") -> AREIA GRADUADA | E42: =IF('Orçamento-TCE'!H42>0,'Orçamento-TCE'!H42,"") -> 11.65 | F42: =IF('Orçamento-TCE'!I42>0,'Orçamento-TCE'!I42,"") -> M3 | G42: ='Orçamento-TCE'!J42 -> 149.08 | H42: 1736.78 | I42: ='Orçamento-TCE'!L42 -> 0.2215 | J42: ='Orçamento-TCE'!M42 -> 1.1122 | L42: =orcamento!L41 -> 131.33 | M42: =orcamento!K41 -> 17.75
A43: =IF('Orçamento-TCE'!A43>0,'Orçamento-TCE'!A43,"") -> 1 | B43: ='Orçamento-TCE'!B43 -> 28 | C43: =IF('Orçamento-TCE'!C43>0,'Orçamento-TCE'!C43,"") -> 5.8 | D43: =IF('Orçamento-TCE'!G43>0,'Orçamento-TCE'!G43,"") -> APLICAÇÃO DE GEOTEXTIL NÃO-TECIDO AGULHADO RT 31 | E43: =IF('Orçamento-TCE'!H43>0,'Orçamento-TCE'!H43,"") -> 460.7 | F43: =IF('Orçamento-TCE'!I43>0,'Orçamento-TCE'!I43,"") -> M2 | G43: ='Orçamento-TCE'!J43 -> 21.83 | H43: 10057.08 | I43: ='Orçamento-TCE'!L43 -> 0.2215 | J43: ='Orçamento-TCE'!M43 -> 1.1122 | L43: =orcamento!L42 -> 21.55 | M43: =orcamento!K42 -> 0.28
A44: =IF('Orçamento-TCE'!A44>0,'Orçamento-TCE'!A44,"") -> 1 | B44: ='Orçamento-TCE'!B44 -> 29 | C44: =IF('Orçamento-TCE'!C44>0,'Orçamento-TCE'!C44,"") -> 5.9 | D44: =IF('Orçamento-TCE'!G44>0,'Orçamento-TCE'!G44,"") -> ENSAIOS DE CARACTERIZAÇÃO E VERIFICAÇÃO DO GRAU DE COMPACTAÇÃO DO SOLO | E44: =IF('Orçamento-TCE'!H44>0,'Orçamento-TCE'!H44,"") -> 4 | F44: =IF('Orçamento-TCE'!I44>0,'Orçamento-TCE'!I44,"") -> UN | G44: ='Orçamento-TCE'!J44 -> 563.11 | H44: 2252.44 | I44: ='Orçamento-TCE'!L44 -> 0.2215 | J44: ='Orçamento-TCE'!M44 -> 1.1122 | L44: =orcamento!L43 -> 563.11 | M44: =orcamento!K43 -> 0
A46: =IF('Orçamento-TCE'!A46>0,'Orçamento-TCE'!A46,"") -> 1 | B46: ='Orçamento-TCE'!B46 -> 30 | C46: =IF('Orçamento-TCE'!C46>0,'Orçamento-TCE'!C46,"") -> 6.1 | D46: =IF('Orçamento-TCE'!G46>0,'Orçamento-TCE'!G46,"") -> ESTACAS PRÉ-MOLDADAS 35X35CM EXCLUSO TRANSPORTE | E46: =IF('Orçamento-TCE'!H46>0,'Orçamento-TCE'!H46,"") -> 769.12 | F46: =IF('Orçamento-TCE'!I46>0,'Orçamento-TCE'!I46,"") -> M | G46: ='Orçamento-TCE'!J46 -> 272.55 | H46: 209623.66 | I46: ='Orçamento-TCE'!L46 -> 0.2215 | J46: ='Orçamento-TCE'!M46 -> 1.1122 | L46: =orcamento!L45 -> 264.28 | M46: =orcamento!K45 -> 8.27
A47: =IF('Orçamento-TCE'!A47>0,'Orçamento-TCE'!A47,"") -> 1 | B47: ='Orçamento-TCE'!B47 -> 31 | C47: =IF('Orçamento-TCE'!C47>0,'Orçamento-TCE'!C47,"") -> 6.2 | D47: =IF('Orçamento-TCE'!G47>0,'Orçamento-TCE'!G47,"") -> TRANSPORTE COM CAMINHÃO CARROCERIA COM CAPACIDADE DE 11 T E COM GUINDAUTO DE 45 T.M - RODOVIA PAVIMENTADA | E47: =IF('Orçamento-TCE'!H47>0,'Orçamento-TCE'!H47,"") -> 7066.5 | F47: =IF('Orçamento-TCE'!I47>0,'Orçamento-TCE'!I47,"") -> TXKM | G47: ='Orçamento-TCE'!J47 -> 1.37 | H47: 9681.11 | I47: ='Orçamento-TCE'!L47 -> 0.2215 | J47: ='Orçamento-TCE'!M47 -> 1.1122 | L47: =orcamento!L46 -> 1.37 | M47: =orcamento!K46 -> 0
A48: =IF('Orçamento-TCE'!A48>0,'Orçamento-TCE'!A48,"") -> 1 | B48: ='Orçamento-TCE'!B48 -> 32 | C48: =IF('Orçamento-TCE'!C48>0,'Orçamento-TCE'!C48,"") -> 6.3 | D48: =IF('Orçamento-TCE'!G48>0,'Orçamento-TCE'!G48,"") -> IMPLANTAÇÃO DO SISTEMA NAVAL TIPO I - PONTE MÓVEL E FLUTUANTE PRINCIPAL (INCLUSO DESMOBILIZAÇÃO) | E48: =IF('Orçamento-TCE'!H48>0,'Orçamento-TCE'!H48,"") -> 1 | F48: =IF('Orçamento-TCE'!I48>0,'Orçamento-TCE'!I48,"") -> UN | G48: ='Orçamento-TCE'!J48 -> 42812.07 | H48: 42812.07 | I48: ='Orçamento-TCE'!L48 -> 0.2215 | J48: ='Orçamento-TCE'!M48 -> 1.1122 | L48: =orcamento!L47 -> 40009.59 | M48: =orcamento!K47 -> 2802.48
A49: =IF('Orçamento-TCE'!A49>0,'Orçamento-TCE'!A49,"") -> 1 | B49: ='Orçamento-TCE'!B49 -> 33 | C49: =IF('Orçamento-TCE'!C49>0,'Orçamento-TCE'!C49,"") -> 6.4 | D49: =IF('Orçamento-TCE'!G49>0,'Orçamento-TCE'!G49,"") -> OPERAÇÃO DO SISTEMA NAVAL TIPO I - PONTE MÓVEL E FLUTUANTE PRINCIPAL | E49: =IF('Orçamento-TCE'!H49>0,'Orçamento-TCE'!H49,"") -> 425.04 | F49: =IF('Orçamento-TCE'!I49>0,'Orçamento-TCE'!I49,"") -> M | G49: ='Orçamento-TCE'!J49 -> 25.86 | H49: 10991.53 | I49: ='Orçamento-TCE'!L49 -> 0.2215 | J49: ='Orçamento-TCE'!M49 -> 1.1122 | L49: =orcamento!L48 -> 25.86 | M49: =orcamento!K48 -> 0
A50: =IF('Orçamento-TCE'!A50>0,'Orçamento-TCE'!A50,"") -> 1 | B50: ='Orçamento-TCE'!B50 -> 34 | C50: =IF('Orçamento-TCE'!C50>0,'Orçamento-TCE'!C50,"") -> 6.5 | D50: =IF('Orçamento-TCE'!G50>0,'Orçamento-TCE'!G50,"") -> LASTRO DE CONCRETO MAGRO, APLICADO EM BLOCOS DE COROAMENTO OU SAPATAS | E50: =IF('Orçamento-TCE'!H50>0,'Orçamento-TCE'!H50,"") -> 7.75 | F50: =IF('Orçamento-TCE'!I50>0,'Orçamento-TCE'!I50,"") -> M3 | G50: ='Orçamento-TCE'!J50 -> 670.76 | H50: 5198.39 | I50: ='Orçamento-TCE'!L50 -> 0.2215 | J50: ='Orçamento-TCE'!M50 -> 1.1122 | L50: =orcamento!L49 -> 431.15 | M50: =orcamento!K49 -> 239.61
A51: =IF('Orçamento-TCE'!A51>0,'Orçamento-TCE'!A51,"") -> 1 | B51: ='Orçamento-TCE'!B51 -> 35 | C51: =IF('Orçamento-TCE'!C51>0,'Orçamento-TCE'!C51,"") -> 6.6 | D51: =IF('Orçamento-TCE'!G51>0,'Orçamento-TCE'!G51,"") -> LASTRO COM MATERIAL GRANULAR, APLICADO EM BLOCOS DE COROAMENTO, ESPESSURA DE *10 CM* | E51: =IF('Orçamento-TCE'!H51>0,'Orçamento-TCE'!H51,"") -> 4.11 | F51: =IF('Orçamento-TCE'!I51>0,'Orçamento-TCE'!I51,"") -> M3 | G51: ='Orçamento-TCE'!J51 -> 188.73 | H51: 775.68 | I51: ='Orçamento-TCE'!L51 -> 0.2215 | J51: ='Orçamento-TCE'!M51 -> 1.1122 | L51: =orcamento!L50 -> 109.27 | M51: =orcamento!K50 -> 79.46
A52: =IF('Orçamento-TCE'!A52>0,'Orçamento-TCE'!A52,"") -> 1 | B52: ='Orçamento-TCE'!B52 -> 36 | C52: =IF('Orçamento-TCE'!C52>0,'Orçamento-TCE'!C52,"") -> 6.7 | D52: =IF('Orçamento-TCE'!G52>0,'Orçamento-TCE'!G52,"") -> FORMAS DE COMPENSADO PLASTIFICADO 12 MM - USO GERAL - UTILIZAÇÃO DE 3 VEZES - CONFECÇÃO, INSTALAÇÃO E RETIRADA | E52: =IF('Orçamento-TCE'!H52>0,'Orçamento-TCE'!H52,"") -> 148.8 | F52: =IF('Orçamento-TCE'!I52>0,'Orçamento-TCE'!I52,"") -> M2 | G52: ='Orçamento-TCE'!J52 -> 78.66 | H52: 11704.61 | I52: ='Orçamento-TCE'!L52 -> 0.2215 | J52: ='Orçamento-TCE'!M52 -> 1.1122 | L52: =orcamento!L51 -> 50.61 | M52: =orcamento!K51 -> 28.05
A53: =IF('Orçamento-TCE'!A53>0,'Orçamento-TCE'!A53,"") -> 1 | B53: ='Orçamento-TCE'!B53 -> 37 | C53: =IF('Orçamento-TCE'!C53>0,'Orçamento-TCE'!C53,"") -> 6.8 | D53: =IF('Orçamento-TCE'!G53>0,'Orçamento-TCE'!G53,"") -> ARMAÇÃO DE ESTRUTURAS DE CONCRETO ARMADO, EXCETO VIGAS, PILARES, LAJES E FUNDAÇÕES, UTILIZANDO AÇO CA-50 DE 8,0 MM | E53: =IF('Orçamento-TCE'!H53>0,'Orçamento-TCE'!H53,"") -> 52 | F53: =IF('Orçamento-TCE'!I53>0,'Orçamento-TCE'!I53,"") -> KG | G53: ='Orçamento-TCE'!J53 -> 17.27 | H53: 898.04 | I53: ='Orçamento-TCE'!L53 -> 0.2215 | J53: ='Orçamento-TCE'!M53 -> 1.1122 | L53: =orcamento!L52 -> 14.33 | M53: =orcamento!K52 -> 2.94
A54: =IF('Orçamento-TCE'!A54>0,'Orçamento-TCE'!A54,"") -> 1 | B54: ='Orçamento-TCE'!B54 -> 38 | C54: =IF('Orçamento-TCE'!C54>0,'Orçamento-TCE'!C54,"") -> 6.9 | D54: =IF('Orçamento-TCE'!G54>0,'Orçamento-TCE'!G54,"") -> ARMAÇÃO DE ESTRUTURAS DE CONCRETO ARMADO, EXCETO VIGAS, PILARES, LAJES E FUNDAÇÕES, UTILIZANDO AÇO CA-50 DE 10,0 MM | E54: =IF('Orçamento-TCE'!H54>0,'Orçamento-TCE'!H54,"") -> 1274.64 | F54: =IF('Orçamento-TCE'!I54>0,'Orçamento-TCE'!I54,"") -> KG | G54: ='Orçamento-TCE'!J54 -> 15.43 | H54: 19667.7 | I54: ='Orçamento-TCE'!L54 -> 0.2215 | J54: ='Orçamento-TCE'!M54 -> 1.1122 | L54: =orcamento!L53 -> 13.34 | M54: =orcamento!K53 -> 2.09
A55: =IF('Orçamento-TCE'!A55>0,'Orçamento-TCE'!A55,"") -> 1 | B55: ='Orçamento-TCE'!B55 -> 39 | C55: =IF('Orçamento-TCE'!C55>0,'Orçamento-TCE'!C55,"") -> 6.10 | D55: =IF('Orçamento-TCE'!G55>0,'Orçamento-TCE'!G55,"") -> ARMAÇÃO DE ESTRUTURAS DE CONCRETO ARMADO, EXCETO VIGAS, PILARES, LAJES E FUNDAÇÕES, UTILIZANDO AÇO CA-50 DE 12,5 MM | E55: =IF('Orçamento-TCE'!H55>0,'Orçamento-TCE'!H55,"") -> 591.36 | F55: =IF('Orçamento-TCE'!I55>0,'Orçamento-TCE'!I55,"") -> KG | G55: ='Orçamento-TCE'!J55 -> 12.98 | H55: 7675.85 | I55: ='Orçamento-TCE'!L55 -> 0.2215 | J55: ='Orçamento-TCE'!M55 -> 1.1122 | L55: =orcamento!L54 -> 11.5 | M55: =orcamento!K54 -> 1.48
A56: =IF('Orçamento-TCE'!A56>0,'Orçamento-TCE'!A56,"") -> 1 | B56: ='Orçamento-TCE'!B56 -> 40 | C56: =IF('Orçamento-TCE'!C56>0,'Orçamento-TCE'!C56,"") -> 6.11 | D56: =IF('Orçamento-TCE'!G56>0,'Orçamento-TCE'!G56,"") -> ARMAÇÃO DE ESTRUTURAS DE CONCRETO ARMADO, EXCETO VIGAS, PILARES, LAJES E FUNDAÇÕES, UTILIZANDO AÇO CA-50 DE 16,0 MM | E56: =IF('Orçamento-TCE'!H56>0,'Orçamento-TCE'!H56,"") -> 940.48 | F56: =IF('Orçamento-TCE'!I56>0,'Orçamento-TCE'!I56,"") -> KG | G56: ='Orçamento-TCE'!J56 -> 12.32 | H56: 11586.71 | I56: ='Orçamento-TCE'!L56 -> 0.2215 | J56: ='Orçamento-TCE'!M56 -> 1.1122 | L56: =orcamento!L55 -> 11.37 | M56: =orcamento!K55 -> 0.95
A57: =IF('Orçamento-TCE'!A57>0,'Orçamento-TCE'!A57,"") -> 1 | B57: ='Orçamento-TCE'!B57 -> 41 | C57: =IF('Orçamento-TCE'!C57>0,'Orçamento-TCE'!C57,"") -> 6.12 | D57: =IF('Orçamento-TCE'!G57>0,'Orçamento-TCE'!G57,"") -> ARMAÇÃO DE ESTRUTURAS DE CONCRETO ARMADO, EXCETO VIGAS, PILARES, LAJES E FUNDAÇÕES, UTILIZANDO AÇO CA-50 DE 20,0 MM | E57: =IF('Orçamento-TCE'!H57>0,'Orçamento-TCE'!H57,"") -> 3040.3 | F57: =IF('Orçamento-TCE'!I57>0,'Orçamento-TCE'!I57,"") -> KG | G57: ='Orçamento-TCE'!J57 -> 13.75 | H57: 41804.13 | I57: ='Orçamento-TCE'!L57 -> 0.2215 | J57: ='Orçamento-TCE'!M57 -> 1.1122 | L57: =orcamento!L56 -> 13.14 | M57: =orcamento!K56 -> 0.61
A58: =IF('Orçamento-TCE'!A58>0,'Orçamento-TCE'!A58,"") -> 1 | B58: ='Orçamento-TCE'!B58 -> 42 | C58: =IF('Orçamento-TCE'!C58>0,'Orçamento-TCE'!C58,"") -> 6.13 | D58: =IF('Orçamento-TCE'!G58>0,'Orçamento-TCE'!G58,"") -> CONCRETO PARA BOMBEAMENTO FCK = 30 MPA - CONFECÇÃO EM CENTRAL DOSADORA DE 30 M³/H - AREIA E BRITA COMERCIAIS | E58: =IF('Orçamento-TCE'!H58>0,'Orçamento-TCE'!H58,"") -> 85.7 | F58: =IF('Orçamento-TCE'!I58>0,'Orçamento-TCE'!I58,"") -> M3 | G58: ='Orçamento-TCE'!J58 -> 415.73 | H58: 35628.06 | I58: ='Orçamento-TCE'!L58 -> 0.2215 | J58: ='Orçamento-TCE'!M58 -> 1.1122 | L58: =orcamento!L57 -> 412.33 | M58: =orcamento!K57 -> 3.4
A59: =IF('Orçamento-TCE'!A59>0,'Orçamento-TCE'!A59,"") -> 1 | B59: ='Orçamento-TCE'!B59 -> 43 | C59: =IF('Orçamento-TCE'!C59>0,'Orçamento-TCE'!C59,"") -> 6.14 | D59: =IF('Orçamento-TCE'!G59>0,'Orçamento-TCE'!G59,"") -> LANÇAMENTO MECÂNICO DE CONCRETO COM BOMBA REBOCÁVEL COM CAPACIDADE DE 41 M³/H | E59: =IF('Orçamento-TCE'!H59>0,'Orçamento-TCE'!H59,"") -> 85.7 | F59: =IF('Orçamento-TCE'!I59>0,'Orçamento-TCE'!I59,"") -> M3 | G59: ='Orçamento-TCE'!J59 -> 46.34 | H59: 3971.34 | I59: ='Orçamento-TCE'!L59 -> 0.2215 | J59: ='Orçamento-TCE'!M59 -> 1.1122 | L59: =orcamento!L58 -> 42.06 | M59: =orcamento!K58 -> 4.28
A60: =IF('Orçamento-TCE'!A60>0,'Orçamento-TCE'!A60,"") -> 1 | B60: ='Orçamento-TCE'!B60 -> 44 | C60: =IF('Orçamento-TCE'!C60>0,'Orçamento-TCE'!C60,"") -> 6.15 | D60: =IF('Orçamento-TCE'!G60>0,'Orçamento-TCE'!G60,"") -> ADENSAMENTO DE CONCRETO POR VIBRADOR DE IMERSÃO | E60: =IF('Orçamento-TCE'!H60>0,'Orçamento-TCE'!H60,"") -> 85.7 | F60: =IF('Orçamento-TCE'!I60>0,'Orçamento-TCE'!I60,"") -> M3 | G60: ='Orçamento-TCE'!J60 -> 3.84 | H60: 329.09 | I60: ='Orçamento-TCE'!L60 -> 0.2215 | J60: ='Orçamento-TCE'!M60 -> 1.1122 | L60: =orcamento!L59 -> 1.93 | M60: =orcamento!K59 -> 1.91
A62: =IF('Orçamento-TCE'!A62>0,'Orçamento-TCE'!A62,"") -> 1 | B62: ='Orçamento-TCE'!B62 -> 45 | C62: =IF('Orçamento-TCE'!C62>0,'Orçamento-TCE'!C62,"") -> 7.1 | D62: =IF('Orçamento-TCE'!G62>0,'Orçamento-TCE'!G62,"") -> FORMAS DE COMPENSADO PLASTIFICADO 12 MM - USO GERAL - UTILIZAÇÃO DE 3 VEZES - CONFECÇÃO, INSTALAÇÃO E RETIRADA | E62: =IF('Orçamento-TCE'!H62>0,'Orçamento-TCE'!H62,"") -> 923.39 | F62: =IF('Orçamento-TCE'!I62>0,'Orçamento-TCE'!I62,"") -> M2 | G62: ='Orçamento-TCE'!J62 -> 78.66 | H62: 72633.86 | I62: ='Orçamento-TCE'!L62 -> 0.2215 | J62: ='Orçamento-TCE'!M62 -> 1.1122 | L62: =orcamento!L61 -> 50.61 | M62: =orcamento!K61 -> 28.05
A63: =IF('Orçamento-TCE'!A63>0,'Orçamento-TCE'!A63,"") -> 1 | B63: ='Orçamento-TCE'!B63 -> 46 | C63: =IF('Orçamento-TCE'!C63>0,'Orçamento-TCE'!C63,"") -> 7.2 | D63: =IF('Orçamento-TCE'!G63>0,'Orçamento-TCE'!G63,"") -> ESCORAMENTO DE FÔRMAS DE LAJE EM MADEIRA NÃO APARELHADA, PÉ-DIREITO DUPLO, INCLUSO TRAVAMENTO, 4 UTILIZAÇÕES | E63: =IF('Orçamento-TCE'!H63>0,'Orçamento-TCE'!H63,"") -> 1497.6 | F63: =IF('Orçamento-TCE'!I63>0,'Orçamento-TCE'!I63,"") -> M3 | G63: ='Orçamento-TCE'!J63 -> 24.52 | H63: 36721.15 | I63: ='Orçamento-TCE'!L63 -> 0.2215 | J63: ='Orçamento-TCE'!M63 -> 1.1122 | L63: =orcamento!L62 -> 16.14 | M63: =orcamento!K62 -> 8.38
A64: =IF('Orçamento-TCE'!A64>0,'Orçamento-TCE'!A64,"") -> 1 | B64: ='Orçamento-TCE'!B64 -> 47 | C64: =IF('Orçamento-TCE'!C64>0,'Orçamento-TCE'!C64,"") -> 7.3 | D64: =IF('Orçamento-TCE'!G64>0,'Orçamento-TCE'!G64,"") -> PERFIS METÁLICOS DE 15,50M W 610 X 174,0 AÇO ASTM A572 - LOCAÇÃO | E64: =IF('Orçamento-TCE'!H64>0,'Orçamento-TCE'!H64,"") -> 4 | F64: =IF('Orçamento-TCE'!I64>0,'Orçamento-TCE'!I64,"") -> UN | G64: ='Orçamento-TCE'!J64 -> 52302 | H64: 209208 | I64: ='Orçamento-TCE'!L64 -> 0.137 | J64: ='Orçamento-TCE'!M64 -> 1.1122 | L64: =orcamento!L63 -> 52302 | M64: =orcamento!K63 -> 0
A65: =IF('Orçamento-TCE'!A65>0,'Orçamento-TCE'!A65,"") -> 1 | B65: ='Orçamento-TCE'!B65 -> 48 | C65: =IF('Orçamento-TCE'!C65>0,'Orçamento-TCE'!C65,"") -> 7.4 | D65: =IF('Orçamento-TCE'!G65>0,'Orçamento-TCE'!G65,"") -> PERFIS METÁLICOS DE 15,50M W 610 X 174,0 AÇO ASTM A572 - INSTALAÇÃO | E65: =IF('Orçamento-TCE'!H65>0,'Orçamento-TCE'!H65,"") -> 4 | F65: =IF('Orçamento-TCE'!I65>0,'Orçamento-TCE'!I65,"") -> UN | G65: ='Orçamento-TCE'!J65 -> 1968.28 | H65: 7873.12 | I65: ='Orçamento-TCE'!L65 -> 0.2215 | J65: ='Orçamento-TCE'!M65 -> 1.1122 | L65: =orcamento!L64 -> 1752.61 | M65: =orcamento!K64 -> 215.67
A66: =IF('Orçamento-TCE'!A66>0,'Orçamento-TCE'!A66,"") -> 1 | B66: ='Orçamento-TCE'!B66 -> 49 | C66: =IF('Orçamento-TCE'!C66>0,'Orçamento-TCE'!C66,"") -> 7.5 | D66: =IF('Orçamento-TCE'!G66>0,'Orçamento-TCE'!G66,"") -> ARMAÇÃO DE ESTRUTURAS DE CONCRETO ARMADO, EXCETO VIGAS, PILARES, LAJES E FUNDAÇÕES, UTILIZANDO AÇO CA-50 DE 8,0 MM | E66: =IF('Orçamento-TCE'!H66>0,'Orçamento-TCE'!H66,"") -> 310 | F66: =IF('Orçamento-TCE'!I66>0,'Orçamento-TCE'!I66,"") -> KG | G66: ='Orçamento-TCE'!J66 -> 17.27 | H66: 5353.7 | I66: ='Orçamento-TCE'!L66 -> 0.2215 | J66: ='Orçamento-TCE'!M66 -> 1.1122 | L66: =orcamento!L65 -> 14.33 | M66: =orcamento!K65 -> 2.94
A67: =IF('Orçamento-TCE'!A67>0,'Orçamento-TCE'!A67,"") -> 1 | B67: ='Orçamento-TCE'!B67 -> 50 | C67: =IF('Orçamento-TCE'!C67>0,'Orçamento-TCE'!C67,"") -> 7.6 | D67: =IF('Orçamento-TCE'!G67>0,'Orçamento-TCE'!G67,"") -> ARMAÇÃO DE ESTRUTURAS DE CONCRETO ARMADO, EXCETO VIGAS, PILARES, LAJES E FUNDAÇÕES, UTILIZANDO AÇO CA-50 DE 10,0 MM | E67: =IF('Orçamento-TCE'!H67>0,'Orçamento-TCE'!H67,"") -> 6654.69 | F67: =IF('Orçamento-TCE'!I67>0,'Orçamento-TCE'!I67,"") -> KG | G67: ='Orçamento-TCE'!J67 -> 15.43 | H67: 102681.87 | I67: ='Orçamento-TCE'!L67 -> 0.2215 | J67: ='Orçamento-TCE'!M67 -> 1.1122 | L67: =orcamento!L66 -> 13.34 | M67: =orcamento!K66 -> 2.09
A68: =IF('Orçamento-TCE'!A68>0,'Orçamento-TCE'!A68,"") -> 1 | B68: ='Orçamento-TCE'!B68 -> 51 | C68: =IF('Orçamento-TCE'!C68>0,'Orçamento-TCE'!C68,"") -> 7.7 | D68: =IF('Orçamento-TCE'!G68>0,'Orçamento-TCE'!G68,"") -> ARMAÇÃO DE ESTRUTURAS DE CONCRETO ARMADO, EXCETO VIGAS, PILARES, LAJES E FUNDAÇÕES, UTILIZANDO AÇO CA-50 DE 12,5 MM | E68: =IF('Orçamento-TCE'!H68>0,'Orçamento-TCE'!H68,"") -> 9983.36 | F68: =IF('Orçamento-TCE'!I68>0,'Orçamento-TCE'!I68,"") -> KG | G68: ='Orçamento-TCE'!J68 -> 12.98 | H68: 129584.01 | I68: ='Orçamento-TCE'!L68 -> 0.2215 | J68: ='Orçamento-TCE'!M68 -> 1.1122 | L68: =orcamento!L67 -> 11.5 | M68: =orcamento!K67 -> 1.48
A69: =IF('Orçamento-TCE'!A69>0,'Orçamento-TCE'!A69,"") -> 1 | B69: ='Orçamento-TCE'!B69 -> 52 | C69: =IF('Orçamento-TCE'!C69>0,'Orçamento-TCE'!C69,"") -> 7.8 | D69: =IF('Orçamento-TCE'!G69>0,'Orçamento-TCE'!G69,"") -> ARMAÇÃO DE ESTRUTURAS DE CONCRETO ARMADO, EXCETO VIGAS, PILARES, LAJES E FUNDAÇÕES, UTILIZANDO AÇO CA-50 DE 16,0 MM | E69: =IF('Orçamento-TCE'!H69>0,'Orçamento-TCE'!H69,"") -> 3963.39 | F69: =IF('Orçamento-TCE'!I69>0,'Orçamento-TCE'!I69,"") -> KG | G69: ='Orçamento-TCE'!J69 -> 12.32 | H69: 48828.96 | I69: ='Orçamento-TCE'!L69 -> 0.2215 | J69: ='Orçamento-TCE'!M69 -> 1.1122 | L69: =orcamento!L68 -> 11.37 | M69: =orcamento!K68 -> 0.95
A70: =IF('Orçamento-TCE'!A70>0,'Orçamento-TCE'!A70,"") -> 1 | B70: ='Orçamento-TCE'!B70 -> 53 | C70: =IF('Orçamento-TCE'!C70>0,'Orçamento-TCE'!C70,"") -> 7.9 | D70: =IF('Orçamento-TCE'!G70>0,'Orçamento-TCE'!G70,"") -> ARMAÇÃO DE ESTRUTURAS DE CONCRETO ARMADO, EXCETO VIGAS, PILARES, LAJES E FUNDAÇÕES, UTILIZANDO AÇO CA-50 DE 20,0 MM | E70: =IF('Orçamento-TCE'!H70>0,'Orçamento-TCE'!H70,"") -> 540 | F70: =IF('Orçamento-TCE'!I70>0,'Orçamento-TCE'!I70,"") -> KG | G70: ='Orçamento-TCE'!J70 -> 13.75 | H70: 7425 | I70: ='Orçamento-TCE'!L70 -> 0.2215 | J70: ='Orçamento-TCE'!M70 -> 1.1122 | L70: =orcamento!L69 -> 13.14 | M70: =orcamento!K69 -> 0.61
A71: =IF('Orçamento-TCE'!A71>0,'Orçamento-TCE'!A71,"") -> 1 | B71: ='Orçamento-TCE'!B71 -> 54 | C71: =IF('Orçamento-TCE'!C71>0,'Orçamento-TCE'!C71,"") -> 7.10 | D71: =IF('Orçamento-TCE'!G71>0,'Orçamento-TCE'!G71,"") -> ARMAÇÃO DE ESTRUTURAS DE CONCRETO ARMADO, EXCETO VIGAS, PILARES, LAJES E FUNDAÇÕES, UTILIZANDO AÇO CA-50 DE 25,0 MM | E71: =IF('Orçamento-TCE'!H71>0,'Orçamento-TCE'!H71,"") -> 11266.64 | F71: =IF('Orçamento-TCE'!I71>0,'Orçamento-TCE'!I71,"") -> KG | G71: ='Orçamento-TCE'!J71 -> 13.41 | H71: 151085.64 | I71: ='Orçamento-TCE'!L71 -> 0.2215 | J71: ='Orçamento-TCE'!M71 -> 1.1122 | L71: =orcamento!L70 -> 13.07 | M71: =orcamento!K70 -> 0.34
A72: =IF('Orçamento-TCE'!A72>0,'Orçamento-TCE'!A72,"") -> 1 | B72: ='Orçamento-TCE'!B72 -> 55 | C72: =IF('Orçamento-TCE'!C72>0,'Orçamento-TCE'!C72,"") -> 7.11 | D72: =IF('Orçamento-TCE'!G72>0,'Orçamento-TCE'!G72,"") -> EXECUCAO DE DRENO COM TUBOS DE PVC - DN 100 | E72: =IF('Orçamento-TCE'!H72>0,'Orçamento-TCE'!H72,"") -> 24 | F72: =IF('Orçamento-TCE'!I72>0,'Orçamento-TCE'!I72,"") -> M | G72: ='Orçamento-TCE'!J72 -> 109.07 | H72: 2617.68 | I72: ='Orçamento-TCE'!L72 -> 0.2215 | J72: ='Orçamento-TCE'!M72 -> 1.1122 | L72: =orcamento!L71 -> 100.48 | M72: =orcamento!K71 -> 8.59
A73: =IF('Orçamento-TCE'!A73>0,'Orçamento-TCE'!A73,"") -> 1 | B73: ='Orçamento-TCE'!B73 -> 56 | C73: =IF('Orçamento-TCE'!C73>0,'Orçamento-TCE'!C73,"") -> 7.12 | D73: =IF('Orçamento-TCE'!G73>0,'Orçamento-TCE'!G73,"") -> CONCRETO PARA BOMBEAMENTO FCK = 35 MPA - CONFECÇÃO EM CENTRAL DOSADORA DE 30 M³/H - AREIA E BRITA COMERCIAIS | E73: =IF('Orçamento-TCE'!H73>0,'Orçamento-TCE'!H73,"") -> 69.9 | F73: =IF('Orçamento-TCE'!I73>0,'Orçamento-TCE'!I73,"") -> M3 | G73: ='Orçamento-TCE'!J73 -> 447.95 | H73: 31311.71 | I73: ='Orçamento-TCE'!L73 -> 0.2215 | J73: ='Orçamento-TCE'!M73 -> 1.1122 | L73: =orcamento!L72 -> 444.31 | M73: =orcamento!K72 -> 3.64
A74: =IF('Orçamento-TCE'!A74>0,'Orçamento-TCE'!A74,"") -> 1 | B74: ='Orçamento-TCE'!B74 -> 57 | C74: =IF('Orçamento-TCE'!C74>0,'Orçamento-TCE'!C74,"") -> 7.13 | D74: =IF('Orçamento-TCE'!G74>0,'Orçamento-TCE'!G74,"") -> CONCRETO PARA BOMBEAMENTO FCK = 30 MPA - CONFECÇÃO EM CENTRAL DOSADORA DE 30 M³/H - AREIA E BRITA COMERCIAIS | E74: =IF('Orçamento-TCE'!H74>0,'Orçamento-TCE'!H74,"") -> 154.99 | F74: =IF('Orçamento-TCE'!I74>0,'Orçamento-TCE'!I74,"") -> M3 | G74: ='Orçamento-TCE'!J74 -> 415.73 | H74: 64433.99 | I74: ='Orçamento-TCE'!L74 -> 0.2215 | J74: ='Orçamento-TCE'!M74 -> 1.1122 | L74: =orcamento!L73 -> 412.33 | M74: =orcamento!K73 -> 3.4
A75: =IF('Orçamento-TCE'!A75>0,'Orçamento-TCE'!A75,"") -> 1 | B75: ='Orçamento-TCE'!B75 -> 58 | C75: =IF('Orçamento-TCE'!C75>0,'Orçamento-TCE'!C75,"") -> 7.14 | D75: =IF('Orçamento-TCE'!G75>0,'Orçamento-TCE'!G75,"") -> LANÇAMENTO MECÂNICO DE CONCRETO COM BOMBA REBOCÁVEL COM CAPACIDADE DE 41 M³/H | E75: =IF('Orçamento-TCE'!H75>0,'Orçamento-TCE'!H75,"") -> 224.89 | F75: =IF('Orçamento-TCE'!I75>0,'Orçamento-TCE'!I75,"") -> M3 | G75: ='Orçamento-TCE'!J75 -> 46.34 | H75: 10421.4 | I75: ='Orçamento-TCE'!L75 -> 0.2215 | J75: ='Orçamento-TCE'!M75 -> 1.1122 | L75: =orcamento!L74 -> 42.06 | M75: =orcamento!K74 -> 4.28
A76: =IF('Orçamento-TCE'!A76>0,'Orçamento-TCE'!A76,"") -> 1 | B76: ='Orçamento-TCE'!B76 -> 59 | C76: =IF('Orçamento-TCE'!C76>0,'Orçamento-TCE'!C76,"") -> 7.15 | D76: =IF('Orçamento-TCE'!G76>0,'Orçamento-TCE'!G76,"") -> ADENSAMENTO DE CONCRETO POR VIBRADOR DE IMERSÃO | E76: =IF('Orçamento-TCE'!H76>0,'Orçamento-TCE'!H76,"") -> 224.89 | F76: =IF('Orçamento-TCE'!I76>0,'Orçamento-TCE'!I76,"") -> M3 | G76: ='Orçamento-TCE'!J76 -> 3.84 | H76: 863.58 | I76: ='Orçamento-TCE'!L76 -> 0.2215 | J76: ='Orçamento-TCE'!M76 -> 1.1122 | L76: =orcamento!L75 -> 1.93 | M76: =orcamento!K75 -> 1.91
A77: =IF('Orçamento-TCE'!A77>0,'Orçamento-TCE'!A77,"") -> 1 | B77: ='Orçamento-TCE'!B77 -> 60 | C77: =IF('Orçamento-TCE'!C77>0,'Orçamento-TCE'!C77,"") -> 7.16 | D77: =IF('Orçamento-TCE'!G77>0,'Orçamento-TCE'!G77,"") -> GUARDA CORPO E CORRIMÃO METÁLICO - FORNECIMENTO E INSTALAÇÃO | E77: =IF('Orçamento-TCE'!H77>0,'Orçamento-TCE'!H77,"") -> 50 | F77: =IF('Orçamento-TCE'!I77>0,'Orçamento-TCE'!I77,"") -> UN | G77: ='Orçamento-TCE'!J77 -> 5380.04 | H77: =IFERROR(IF(E77*G77<>0,ROUND(ROUND(E77,4)*ROUND(G77,4),2),""),"") -> 269002 | I77: ='Orçamento-TCE'!L77 -> 0.2215 | J77: ='Orçamento-TCE'!M77 -> 1.1122 | L77: =orcamento!L76 -> 5170.44 | M77: =orcamento!K76 -> 209.6
A79: =IF('Orçamento-TCE'!A79>0,'Orçamento-TCE'!A79,"") -> 1 | B79: ='Orçamento-TCE'!B79 -> 61 | C79: =IF('Orçamento-TCE'!C79>0,'Orçamento-TCE'!C79,"") -> 8.1 | D79: =IF('Orçamento-TCE'!G79>0,'Orçamento-TCE'!G79,"") -> EXECUÇÃO E COMPACTAÇÃO DE BASE E OU SUB BASE PARA PAVIMENTAÇÃO DE BRITA GRADUADA SIMPLES TRATADA COM CIMENTO - EXCLUSIVE CARGA E TRANSPORTE | E79: =IF('Orçamento-TCE'!H79>0,'Orçamento-TCE'!H79,"") -> 21 | F79: =IF('Orçamento-TCE'!I79>0,'Orçamento-TCE'!I79,"") -> M3 | G79: ='Orçamento-TCE'!J79 -> 212.19 | H79: 4455.99 | I79: ='Orçamento-TCE'!L79 -> 0.2215 | J79: ='Orçamento-TCE'!M79 -> 1.1122 | L79: =orcamento!L78 -> 206.06 | M79: =orcamento!K78 -> 6.13
A80: =IF('Orçamento-TCE'!A80>0,'Orçamento-TCE'!A80,"") -> 1 | B80: ='Orçamento-TCE'!B80 -> 62 | C80: =IF('Orçamento-TCE'!C80>0,'Orçamento-TCE'!C80,"") -> 8.2 | D80: =IF('Orçamento-TCE'!G80>0,'Orçamento-TCE'!G80,"") -> TRANSPORTE COM CAMINHÃO BASCULANTE DE 10 M³, EM VIA URBANA PAVIMENTADA, DMT ATÉ 30 KM (CAMADA BASE) | E80: =IF('Orçamento-TCE'!H80>0,'Orçamento-TCE'!H80,"") -> 420 | F80: =IF('Orçamento-TCE'!I80>0,'Orçamento-TCE'!I80,"") -> M3XKM | G80: ='Orçamento-TCE'!J80 -> 2.05 | H80: 861 | I80: ='Orçamento-TCE'!L80 -> 0.2215 | J80: ='Orçamento-TCE'!M80 -> 1.1122 | L80: =orcamento!L79 -> 1.76 | M80: =orcamento!K79 -> 0.29
A81: =IF('Orçamento-TCE'!A81>0,'Orçamento-TCE'!A81,"") -> 1 | B81: ='Orçamento-TCE'!B81 -> 63 | C81: =IF('Orçamento-TCE'!C81>0,'Orçamento-TCE'!C81,"") -> 8.3 | D81: =IF('Orçamento-TCE'!G81>0,'Orçamento-TCE'!G81,"") -> DEMOLIÇÃO PAVIMENTO ASFÁLTICO, DE FORMA MECANIZADA, SEM REAPROVEITAMENTO. | E81: =IF('Orçamento-TCE'!H81>0,'Orçamento-TCE'!H81,"") -> 70 | F81: =IF('Orçamento-TCE'!I81>0,'Orçamento-TCE'!I81,"") -> M2 | G81: ='Orçamento-TCE'!J81 -> 21.86 | H81: 1530.2 | I81: ='Orçamento-TCE'!L81 -> 0.2215 | J81: ='Orçamento-TCE'!M81 -> 1.1122 | L81: =orcamento!L80 -> 14.38 | M81: =orcamento!K80 -> 7.48
A82: =IF('Orçamento-TCE'!A82>0,'Orçamento-TCE'!A82,"") -> 1 | B82: ='Orçamento-TCE'!B82 -> 64 | C82: =IF('Orçamento-TCE'!C82>0,'Orçamento-TCE'!C82,"") -> 8.4 | D82: =IF('Orçamento-TCE'!G82>0,'Orçamento-TCE'!G82,"") -> TRANSPORTE COM CAMINHÃO BASCULANTE DE 10 M³, EM VIA URBANA PAVIMENTADA, DMT ATÉ 30 KM (CAMADA CBUQ) | E82: =IF('Orçamento-TCE'!H82>0,'Orçamento-TCE'!H82,"") -> 140 | F82: =IF('Orçamento-TCE'!I82>0,'Orçamento-TCE'!I82,"") -> M3XKM | G82: ='Orçamento-TCE'!J82 -> 2.05 | H82: 287 | I82: ='Orçamento-TCE'!L82 -> 0.2215 | J82: ='Orçamento-TCE'!M82 -> 1.1122 | L82: =orcamento!L81 -> 1.76 | M82: =orcamento!K81 -> 0.29
A83: =IF('Orçamento-TCE'!A83>0,'Orçamento-TCE'!A83,"") -> 1 | B83: ='Orçamento-TCE'!B83 -> 65 | C83: =IF('Orçamento-TCE'!C83>0,'Orçamento-TCE'!C83,"") -> 8.5 | D83: =IF('Orçamento-TCE'!G83>0,'Orçamento-TCE'!G83,"") -> IMPRIMAÇÃO ASFALTO DILUÍDO | E83: =IF('Orçamento-TCE'!H83>0,'Orçamento-TCE'!H83,"") -> 140 | F83: =IF('Orçamento-TCE'!I83>0,'Orçamento-TCE'!I83,"") -> M2 | G83: ='Orçamento-TCE'!J83 -> 11.25 | H83: 1575 | I83: ='Orçamento-TCE'!L83 -> 0.2215 | J83: ='Orçamento-TCE'!M83 -> 1.1122 | L83: =orcamento!L82 -> 11.23 | M83: =orcamento!K82 -> 0.02
A84: =IF('Orçamento-TCE'!A84>0,'Orçamento-TCE'!A84,"") -> 1 | B84: ='Orçamento-TCE'!B84 -> 66 | C84: =IF('Orçamento-TCE'!C84>0,'Orçamento-TCE'!C84,"") -> 8.6 | D84: =IF('Orçamento-TCE'!G84>0,'Orçamento-TCE'!G84,"") -> EXECUÇÃO DE PAVIMENTO COM APLICAÇÃO DE CONCRETO ASFÁLTICO, CAMADA DE ROLAMENTO - EXCLUSIVE CARGA E TRANSPORTE | E84: =IF('Orçamento-TCE'!H84>0,'Orçamento-TCE'!H84,"") -> 7 | F84: =IF('Orçamento-TCE'!I84>0,'Orçamento-TCE'!I84,"") -> M3 | G84: ='Orçamento-TCE'!J84 -> 1972.69 | H84: 13808.83 | I84: ='Orçamento-TCE'!L84 -> 0.2215 | J84: ='Orçamento-TCE'!M84 -> 1.1122 | L84: =orcamento!L83 -> 1933.52 | M84: =orcamento!K83 -> 39.17
A86: =IF('Orçamento-TCE'!A86>0,'Orçamento-TCE'!A86,"") -> 1 | B86: ='Orçamento-TCE'!B86 -> 67 | C86: =IF('Orçamento-TCE'!C86>0,'Orçamento-TCE'!C86,"") -> 9.1 | D86: =IF('Orçamento-TCE'!G86>0,'Orçamento-TCE'!G86,"") -> PLACA EM AÇO - 2,00 X 1,00 M - PELÍCULA RETRORREFLETIVA TIPO I + III - FORNECIMENTO E IMPLANTAÇÃO | E86: =IF('Orçamento-TCE'!H86>0,'Orçamento-TCE'!H86,"") -> 1 | F86: =IF('Orçamento-TCE'!I86>0,'Orçamento-TCE'!I86,"") -> UN | G86: ='Orçamento-TCE'!J86 -> 975.91 | H86: 975.91 | I86: ='Orçamento-TCE'!L86 -> 0.2215 | J86: ='Orçamento-TCE'!M86 -> 1.1122 | L86: =orcamento!L85 -> 883.74 | M86: =orcamento!K85 -> 92.17
A87: =IF('Orçamento-TCE'!A87>0,'Orçamento-TCE'!A87,"") -> 1 | B87: ='Orçamento-TCE'!B87 -> 68 | C87: =IF('Orçamento-TCE'!C87>0,'Orçamento-TCE'!C87,"") -> 9.2 | D87: =IF('Orçamento-TCE'!G87>0,'Orçamento-TCE'!G87,"") -> SUPORTE EM AÇO GALVANIZADO A FOGO S5B - AQUISIÇÃO E INSTALAÇÃO | E87: =IF('Orçamento-TCE'!H87>0,'Orçamento-TCE'!H87,"") -> 1 | F87: =IF('Orçamento-TCE'!I87>0,'Orçamento-TCE'!I87,"") -> UN | G87: ='Orçamento-TCE'!J87 -> 8947.61 | H87: 8947.61 | I87: ='Orçamento-TCE'!L87 -> 0.2215 | J87: ='Orçamento-TCE'!M87 -> 1.1122 | L87: =orcamento!L86 -> 8445.34 | M87: =orcamento!K86 -> 502.27
A88: =IF('Orçamento-TCE'!A88>0,'Orçamento-TCE'!A88,"") -> 1 | B88: ='Orçamento-TCE'!B88 -> 69 | C88: =IF('Orçamento-TCE'!C88>0,'Orçamento-TCE'!C88,"") -> 9.3 | D88: =IF('Orçamento-TCE'!G88>0,'Orçamento-TCE'!G88,"") -> PLACA DELINEADOR EM AÇO - 0,30 X 0,90 M - PELÍCULA RETRORREFLETIVA TIPO I + IV - FORNECIMENTO E IMPLANTAÇÃO | E88: =IF('Orçamento-TCE'!H88>0,'Orçamento-TCE'!H88,"") -> 4 | F88: =IF('Orçamento-TCE'!I88>0,'Orçamento-TCE'!I88,"") -> UN | G88: ='Orçamento-TCE'!J88 -> 159.86 | H88: 639.44 | I88: ='Orçamento-TCE'!L88 -> 0.2215 | J88: ='Orçamento-TCE'!M88 -> 1.1122 | L88: =orcamento!L87 -> 132.39 | M88: =orcamento!K87 -> 27.47
A89: =IF('Orçamento-TCE'!A89>0,'Orçamento-TCE'!A89,"") -> 1 | B89: ='Orçamento-TCE'!B89 -> 70 | C89: =IF('Orçamento-TCE'!C89>0,'Orçamento-TCE'!C89,"") -> 9.4 | D89: =IF('Orçamento-TCE'!G89>0,'Orçamento-TCE'!G89,"") -> SUPORTE METÁLICO GALVANIZADO PARA PLACA DE REGULAMENTAÇÃO - LADO DE 0,331 M - FORNECIMENTO E IMPLANTAÇÃO | E89: =IF('Orçamento-TCE'!H89>0,'Orçamento-TCE'!H89,"") -> 4 | F89: =IF('Orçamento-TCE'!I89>0,'Orçamento-TCE'!I89,"") -> UN | G89: ='Orçamento-TCE'!J89 -> 404.18 | H89: 1616.72 | I89: ='Orçamento-TCE'!L89 -> 0.2215 | J89: ='Orçamento-TCE'!M89 -> 1.1122 | L89: =orcamento!L88 -> 388.83 | M89: =orcamento!K88 -> 15.35
A90: =IF('Orçamento-TCE'!A90>0,'Orçamento-TCE'!A90,"") -> 1 | B90: ='Orçamento-TCE'!B90 -> 71 | C90: =IF('Orçamento-TCE'!C90>0,'Orçamento-TCE'!C90,"") -> 9.5 | D90: =IF('Orçamento-TCE'!G90>0,'Orçamento-TCE'!G90,"") -> PINTURA DE FAIXA COM TERMOPLÁSTICO POR ASPERSÃO - ESPESSURA DE 1,5 MM | E90: =IF('Orçamento-TCE'!H90>0,'Orçamento-TCE'!H90,"") -> 21.6 | F90: =IF('Orçamento-TCE'!I90>0,'Orçamento-TCE'!I90,"") -> M2 | G90: ='Orçamento-TCE'!J90 -> 50.06 | H90: 1081.3 | I90: ='Orçamento-TCE'!L90 -> 0.2215 | J90: ='Orçamento-TCE'!M90 -> 1.1122 | L90: =orcamento!L89 -> 48.94 | M90: =orcamento!K89 -> 1.12
A91: =IF('Orçamento-TCE'!A91>0,'Orçamento-TCE'!A91,"") -> 1 | B91: ='Orçamento-TCE'!B91 -> 72 | C91: =IF('Orçamento-TCE'!C91>0,'Orçamento-TCE'!C91,"") -> 9.6 | D91: =IF('Orçamento-TCE'!G91>0,'Orçamento-TCE'!G91,"") -> PLACA DE REGULAMENTAÇÃO EM AÇO D = 0,60 M - PELÍCULA RETRORREFLETIVA TIPO I + SI - FORNECIMENTO E IMPLANTAÇÃO | E91: =IF('Orçamento-TCE'!H91>0,'Orçamento-TCE'!H91,"") -> 4 | F91: =IF('Orçamento-TCE'!I91>0,'Orçamento-TCE'!I91,"") -> UN | G91: ='Orçamento-TCE'!J91 -> 266.27 | H91: 1065.08 | I91: ='Orçamento-TCE'!L91 -> 0.2215 | J91: ='Orçamento-TCE'!M91 -> 1.1122 | L91: =orcamento!L90 -> 235.93 | M91: =orcamento!K90 -> 30.34
A92: =IF('Orçamento-TCE'!A92>0,'Orçamento-TCE'!A92,"") -> 1 | B92: ='Orçamento-TCE'!B92 -> 73 | C92: =IF('Orçamento-TCE'!C92>0,'Orçamento-TCE'!C92,"") -> 9.7 | D92: =IF('Orçamento-TCE'!G92>0,'Orçamento-TCE'!G92,"") -> SUPORTE METÁLICO GALVANIZADO PARA PLACA DE ADVERTÊNCIA OU REGULAMENTAÇÃO - LADO OU DIÂMETRO DE 0,60 M - FORNECIMENTO E IMPLANTAÇÃO | E92: =IF('Orçamento-TCE'!H92>0,'Orçamento-TCE'!H92,"") -> 4 | F92: =IF('Orçamento-TCE'!I92>0,'Orçamento-TCE'!I92,"") -> UN | G92: ='Orçamento-TCE'!J92 -> 433.45 | H92: 1733.8 | I92: ='Orçamento-TCE'!L92 -> 0.2215 | J92: ='Orçamento-TCE'!M92 -> 1.1122 | L92: =orcamento!L91 -> 417.24 | M92: =orcamento!K91 -> 16.21
A93: =IF('Orçamento-TCE'!A93>0,'Orçamento-TCE'!A93,"") -> 1 | B93: ='Orçamento-TCE'!B93 -> 74 | C93: =IF('Orçamento-TCE'!C93>0,'Orçamento-TCE'!C93,"") -> 9.8 | D93: =IF('Orçamento-TCE'!G93>0,'Orçamento-TCE'!G93,"") -> TACHÃO REFLETIVO EM PLÁSTICO INJETADO - BIDIRECIONAL - FORNECIMENTO E COLOCAÇÃO | E93: =IF('Orçamento-TCE'!H93>0,'Orçamento-TCE'!H93,"") -> 19 | F93: =IF('Orçamento-TCE'!I93>0,'Orçamento-TCE'!I93,"") -> UN | G93: ='Orçamento-TCE'!J93 -> 91.71 | H93: 1742.49 | I93: ='Orçamento-TCE'!L93 -> 0.2215 | J93: ='Orçamento-TCE'!M93 -> 1.1122 | L93: =orcamento!L92 -> 86.26 | M93: =orcamento!K92 -> 5.45
A94: =IF('Orçamento-TCE'!A94>0,'Orçamento-TCE'!A94,"") -> 1 | B94: ='Orçamento-TCE'!B94 -> 75 | C94: =IF('Orçamento-TCE'!C94>0,'Orçamento-TCE'!C94,"") -> 9.9 | D94: =IF('Orçamento-TCE'!G94>0,'Orçamento-TCE'!G94,"") -> TACHA REFLETIVA METÁLICA - MONODIRECIONAL TIPO III - COM UM PINO - FORNECIMENTO E COLOCAÇÃO | E94: =IF('Orçamento-TCE'!H94>0,'Orçamento-TCE'!H94,"") -> 38 | F94: =IF('Orçamento-TCE'!I94>0,'Orçamento-TCE'!I94,"") -> UN | G94: ='Orçamento-TCE'!J94 -> 27.52 | H94: 1045.76 | I94: ='Orçamento-TCE'!L94 -> 0.2215 | J94: ='Orçamento-TCE'!M94 -> 1.1122 | L94: =orcamento!L93 -> 24.53 | M94: =orcamento!K93 -> 2.99
A96: =IF('Orçamento-TCE'!A96>0,'Orçamento-TCE'!A96,"") -> 1 | B96: ='Orçamento-TCE'!B96 -> 76 | C96: =IF('Orçamento-TCE'!C96>0,'Orçamento-TCE'!C96,"") -> 10.1 | D96: =IF('Orçamento-TCE'!G96>0,'Orçamento-TCE'!G96,"") -> INSTALAÇÃO REDE DMAE 90 PEAD PROVISÓRIA | E96: =IF('Orçamento-TCE'!H96>0,'Orçamento-TCE'!H96,"") -> 86.2 | F96: =IF('Orçamento-TCE'!I96>0,'Orçamento-TCE'!I96,"") -> M | G96: ='Orçamento-TCE'!J96 -> 189.92 | H96: 16371.1 | I96: ='Orçamento-TCE'!L96 -> 0.2215 | J96: ='Orçamento-TCE'!M96 -> 1.1122 | L96: =orcamento!L95 -> 186.56 | M96: =orcamento!K95 -> 3.36
A97: =IF('Orçamento-TCE'!A97>0,'Orçamento-TCE'!A97,"") -> 1 | B97: ='Orçamento-TCE'!B97 -> 77 | C97: =IF('Orçamento-TCE'!C97>0,'Orçamento-TCE'!C97,"") -> 10.2 | D97: =IF('Orçamento-TCE'!G97>0,'Orçamento-TCE'!G97,"") -> RELOCAÇÃO REDE DMAE PEAD PARA LOCAL DEFINITIVO JUNTO À PONTE NOVA | E97: =IF('Orçamento-TCE'!H97>0,'Orçamento-TCE'!H97,"") -> 80 | F97: =IF('Orçamento-TCE'!I97>0,'Orçamento-TCE'!I97,"") -> M | G97: ='Orçamento-TCE'!J97 -> 5.77 | H97: 461.6 | I97: ='Orçamento-TCE'!L97 -> 0.2215 | J97: ='Orçamento-TCE'!M97 -> 1.1122 | L97: =orcamento!L96 -> 2.41 | M97: =orcamento!K96 -> 3.36
A98: =IF('Orçamento-TCE'!A98>0,'Orçamento-TCE'!A98,"") -> 1 | B98: ='Orçamento-TCE'!B98 -> 78 | C98: =IF('Orçamento-TCE'!C98>0,'Orçamento-TCE'!C98,"") -> 10.3 | D98: =IF('Orçamento-TCE'!G98>0,'Orçamento-TCE'!G98,"") -> POSTE DE CONCRETO ARMADO DUPLO T | E98: =IF('Orçamento-TCE'!H98>0,'Orçamento-TCE'!H98,"") -> 1 | F98: =IF('Orçamento-TCE'!I98>0,'Orçamento-TCE'!I98,"") -> UN | G98: ='Orçamento-TCE'!J98 -> 1222.49 | H98: 1222.49 | I98: ='Orçamento-TCE'!L98 -> 0.2215 | J98: ='Orçamento-TCE'!M98 -> 1.1122 | L98: =orcamento!L97 -> 1110.54 | M98: =orcamento!K97 -> 111.95
A99: =IF('Orçamento-TCE'!A99>0,'Orçamento-TCE'!A99,"") -> 1 | B99: ='Orçamento-TCE'!B99 -> 79 | C99: =IF('Orçamento-TCE'!C99>0,'Orçamento-TCE'!C99,"") -> 10.4 | D99: =IF('Orçamento-TCE'!G99>0,'Orçamento-TCE'!G99,"") -> FECHAMENTO TUBULAÇÃO DMAE COM BLOCO CANALETA U 19X19X39 | E99: =IF('Orçamento-TCE'!H99>0,'Orçamento-TCE'!H99,"") -> 56 | F99: =IF('Orçamento-TCE'!I99>0,'Orçamento-TCE'!I99,"") -> M | G99: ='Orçamento-TCE'!J99 -> 20.07 | H99: 1123.92 | I99: ='Orçamento-TCE'!L99 -> 0.2215 | J99: ='Orçamento-TCE'!M99 -> 1.1122 | L99: =orcamento!L98 -> 13.24 | M99: =orcamento!K98 -> 6.83
A100: =IF('Orçamento-TCE'!A100>0,'Orçamento-TCE'!A100,"") -> 1 | B100: ='Orçamento-TCE'!B100 -> 80 | C100: =IF('Orçamento-TCE'!C100>0,'Orçamento-TCE'!C100,"") -> 10.5 | D100: =IF('Orçamento-TCE'!G100>0,'Orçamento-TCE'!G100,"") -> INSTALAÇÃO DO POSTE MEDIÇÃO E COMANDO | E100: =IF('Orçamento-TCE'!H100>0,'Orçamento-TCE'!H100,"") -> 3 | F100: =IF('Orçamento-TCE'!I100>0,'Orçamento-TCE'!I100,"") -> UN | G100: ='Orçamento-TCE'!J100 -> 2743.83 | H100: 8231.49 | I100: ='Orçamento-TCE'!L100 -> 0.2215 | J100: ='Orçamento-TCE'!M100 -> 1.1122 | L100: =orcamento!L99 -> 2384.1 | M100: =orcamento!K99 -> 359.73
A101: =IF('Orçamento-TCE'!A101>0,'Orçamento-TCE'!A101,"") -> 1 | B101: ='Orçamento-TCE'!B101 -> 81 | C101: =IF('Orçamento-TCE'!C101>0,'Orçamento-TCE'!C101,"") -> 10.6 | D101: =IF('Orçamento-TCE'!G101>0,'Orçamento-TCE'!G101,"") -> INSTALAÇÃO DE CABOS E DISPOSITIVOS DE MEDIÇÃO E COMANDO | E101: =IF('Orçamento-TCE'!H101>0,'Orçamento-TCE'!H101,"") -> 1 | F101: =IF('Orçamento-TCE'!I101>0,'Orçamento-TCE'!I101,"") -> UN | G101: ='Orçamento-TCE'!J101 -> 8150.9 | H101: 8150.9 | I101: ='Orçamento-TCE'!L101 -> 0.2215 | J101: ='Orçamento-TCE'!M101 -> 1.1122 | L101: =orcamento!L100 -> 6574.29 | M101: =orcamento!K100 -> 1576.61
A102: =IF('Orçamento-TCE'!A102>0,'Orçamento-TCE'!A102,"") -> 1 | B102: ='Orçamento-TCE'!B102 -> 82 | C102: =IF('Orçamento-TCE'!C102>0,'Orçamento-TCE'!C102,"") -> 10.7 | D102: =IF('Orçamento-TCE'!G102>0,'Orçamento-TCE'!G102,"") -> INSTALAÇÃO DE POSTE DE AÇO PARA ILUMINAÇÃO | E102: =IF('Orçamento-TCE'!H102>0,'Orçamento-TCE'!H102,"") -> 3 | F102: =IF('Orçamento-TCE'!I102>0,'Orçamento-TCE'!I102,"") -> UN | G102: ='Orçamento-TCE'!J102 -> 3699.8 | H102: 11099.4 | I102: ='Orçamento-TCE'!L102 -> 0.2215 | J102: ='Orçamento-TCE'!M102 -> 1.1122 | L102: =orcamento!L101 -> 3696.88 | M102: =orcamento!K101 -> 2.92
A103: =IF('Orçamento-TCE'!A103>0,'Orçamento-TCE'!A103,"") -> 1 | B103: ='Orçamento-TCE'!B103 -> 83 | C103: =IF('Orçamento-TCE'!C103>0,'Orçamento-TCE'!C103,"") -> 10.8 | D103: =IF('Orçamento-TCE'!G103>0,'Orçamento-TCE'!G103,"") -> INSTALAÇÃO PARA ILUMINAÇÃO E ALIMENTAÇÃO DOS POSTES | E103: =IF('Orçamento-TCE'!H103>0,'Orçamento-TCE'!H103,"") -> 3 | F103: =IF('Orçamento-TCE'!I103>0,'Orçamento-TCE'!I103,"") -> UN | G103: ='Orçamento-TCE'!J103 -> 2070.66 | H103: 6211.98 | I103: ='Orçamento-TCE'!L103 -> 0.2215 | J103: ='Orçamento-TCE'!M103 -> 1.1122 | L103: =orcamento!L102 -> 1055.03 | M103: =orcamento!K102 -> 1015.63
A105: =IF('Orçamento-TCE'!A105>0,'Orçamento-TCE'!A105,"") -> 1 | B105: ='Orçamento-TCE'!B105 -> 84 | C105: =IF('Orçamento-TCE'!C105>0,'Orçamento-TCE'!C105,"") -> 11.1 | D105: =IF('Orçamento-TCE'!G105>0,'Orçamento-TCE'!G105,"") -> LIMPEZA DE SUPERFÍCIE COM JATO DE ALTA PRESSÃO | E105: =IF('Orçamento-TCE'!H105>0,'Orçamento-TCE'!H105,"") -> 800 | F105: =IF('Orçamento-TCE'!I105>0,'Orçamento-TCE'!I105,"") -> M2 | G105: ='Orçamento-TCE'!J105 -> 2.05 | H105: 1640 | I105: ='Orçamento-TCE'!L105 -> 0.2215 | J105: ='Orçamento-TCE'!M105 -> 1.1122 | L105: =orcamento!L104 -> 0.49 | M105: =orcamento!K104 -> 1.56
A106: =IF('Orçamento-TCE'!A106>0,'Orçamento-TCE'!A106,"") -> 1 | B106: ='Orçamento-TCE'!B106 -> 85 | C106: =IF('Orçamento-TCE'!C106>0,'Orçamento-TCE'!C106,"") -> 11.2 | D106: =IF('Orçamento-TCE'!G106>0,'Orçamento-TCE'!G106,"") -> PLANTIO DE GRAMA EM PLACAS | E106: =IF('Orçamento-TCE'!H106>0,'Orçamento-TCE'!H106,"") -> 32.15 | F106: =IF('Orçamento-TCE'!I106>0,'Orçamento-TCE'!I106,"") -> M2 | G106: ='Orçamento-TCE'!J106 -> 26.25 | H106: 843.94 | I106: ='Orçamento-TCE'!L106 -> 0.2215 | J106: ='Orçamento-TCE'!M106 -> 1.1122 | L106: =orcamento!L105 -> 22.92 | M106: =orcamento!K105 -> 3.33
A107: =IF('Orçamento-TCE'!A107>0,'Orçamento-TCE'!A107,"") -> 1 | B107: ='Orçamento-TCE'!B107 -> 86 | C107: =IF('Orçamento-TCE'!C107>0,'Orçamento-TCE'!C107,"") -> 11.3 | D107: =IF('Orçamento-TCE'!G107>0,'Orçamento-TCE'!G107,"") -> PLANTIO DE ÁRVORE ORNAMENTAL COM ALTURA DE MUDA MENOR OU IGUAL A 2,00 M. AF_05/2018 | E107: =IF('Orçamento-TCE'!H107>0,'Orçamento-TCE'!H107,"") -> 2 | F107: =IF('Orçamento-TCE'!I107>0,'Orçamento-TCE'!I107,"") -> UN | G107: ='Orçamento-TCE'!J107 -> 67.67 | H107: 135.34 | I107: ='Orçamento-TCE'!L107 -> 0.2215 | J107: ='Orçamento-TCE'!M107 -> 1.1122 | L107: =orcamento!L106 -> 52.08 | M107: =orcamento!K106 -> 15.59
A108: =IF('Orçamento-TCE'!A108>0,'Orçamento-TCE'!A108,"") -> 1 | B108: ='Orçamento-TCE'!B108 -> 87 | C108: =IF('Orçamento-TCE'!C108>0,'Orçamento-TCE'!C108,"") -> 11.4 | D108: =IF('Orçamento-TCE'!G108>0,'Orçamento-TCE'!G108,"") -> REMOÇÃO ESTRUTURA CANTEIRO DE OBRAS | E108: =IF('Orçamento-TCE'!H108>0,'Orçamento-TCE'!H108,"") -> 254 | F108: =IF('Orçamento-TCE'!I108>0,'Orçamento-TCE'!I108,"") -> M2 | G108: ='Orçamento-TCE'!J108 -> 7.57 | H108: 1922.78 | I108: ='Orçamento-TCE'!L108 -> 0.2215 | J108: ='Orçamento-TCE'!M108 -> 1.1122 | L108: =orcamento!L107 -> 1.74 | M108: =orcamento!K107 -> 5.83
A109: =IF('Orçamento-TCE'!A109>0,'Orçamento-TCE'!A109,"") -> 1 | B109: ='Orçamento-TCE'!B109 -> 88 | C109: =IF('Orçamento-TCE'!C109>0,'Orçamento-TCE'!C109,"") -> 11.5 | D109: =IF('Orçamento-TCE'!G109>0,'Orçamento-TCE'!G109,"") -> TRANSPORTE COM CAMINHÃO BASCULANTE DE 10 M³, EM VIA URBANA PAVIMENTADA, DMT ATÉ 30 KM | E109: =IF('Orçamento-TCE'!H109>0,'Orçamento-TCE'!H109,"") -> 127 | F109: =IF('Orçamento-TCE'!I109>0,'Orçamento-TCE'!I109,"") -> M3XKM | G109: ='Orçamento-TCE'!J109 -> 2.05 | H109: 260.35 | I109: ='Orçamento-TCE'!L109 -> 0.2215 | J109: ='Orçamento-TCE'!M109 -> 1.1122 | L109: =orcamento!L108 -> 1.76 | M109: =orcamento!K108 -> 0.29
